Workbook

Sheet Contents
A1: 80 | M1: ESC USE ONLY
D2: ESSENTIAL SERVICES COMMISSION
D3: Water Price Review
D4: Financial Model Template
B7: Table of Contents | F7: Water Business: | H7: =+N24 -> Lower Murray Water - Rural | I7: =+O24 -> LMW-R
B8: Section & Sheet Titles | F8: Regulatory Period: | H8: 2018-19 to 2022-23 (Fourth) | N8: [Decision] | O8: [Month] | P8: [Year] | Q8: [Version]
F9: Model Name: | H9: =I7&"_Price Review Template_"&O9&P9&Q9 -> LMW-R_Price Review Template_Dec2016 - v1 | N9: Draft | O9: Dec | P9: 2016 | Q9: - v1 | R9: << Select
B10: a. | C10: =+KeyAssumptionsPriceControl_FO!B1 -> Key Assumptions Price Control | F10: Decision type: | H10: =+N9&" Decision" -> Draft Decision | N10: Draft | O10: Jan | P10: 2016 | Q10: - v1
B11: b. | C11: Expenditure Detail - Removed as it contained confidential information | N11: Final | O11: Feb | P11: 2017 | Q11: - v1.2
B12: c. | C12: =Opex_FO!B1 -> Operating Expenditure - Forecast | F12: Model Key: | O12: Mar | P12: 2018 | Q12: - v3
B13: d. | C13: =Opex_Breakdown!B1 -> Operating Expenditure - Breakdown | O13: Apr | P13: 2019 | Q13: - v3.1
B14: e. | C14: =+'Capex_FO input'!B1 -> Capital Expenditure - Forecast Input | G14: BLUE | H14: =+I7&" - DATA INPUT CELL" -> LMW-R - DATA INPUT CELL | O14: May | P14: 2020 | Q14: - v4
B15: f. | C15: =Capex_FO_AC!B1 -> Capital Expenditure - Asset Category Breakdown | O15: Jun | P15: 2021 | Q15: - v4.1
B16: g. | C16: =ExpSummary_FO!B1 -> Expenditure Summary | G16: YELLOW | H16: NOTES / INSTRUCTIONS | O16: Jul | Q16: - v5
B17: h. | C17: =RollForward_FO!B1 -> Rolled forward regulatory asset base (RAB) | O17: Aug | Q17: - v5.1
B18: i. | C18: =PrevPerAdj_FO!B1 -> Previous period adjustments | G18: GREY | H18: MODEL PARAMETERS / ASSUMPTIONS | O18: Sep | Q18: - v6
B19: j. | C19: =RevenuePriceCap_FO!C1 -> Revenue forecast (price caps) | O19: Oct | Q19: - v6.1
B20: k. | C20: Revenue forecast (tariff basket) | G20: WHITE | H20: FORMULA / HARDCODED VALUES | O20: Nov | Q20: - v7
B21: l. | C21: =NotPres_FO!B1 -> Non Prescribed Services | O21: Dec | Q21: - v7.1
B22: m. | C22: ='Finance&Tax_FO'!B1 -> Cash, debt and tax assumptions | G22: ORANGE | H22: FORMULA DIFFERENT TO ADJACENT CELL
B23: n. | C23: ='Rev&RAV_FO'!B1 -> Revenue requirement detail | N23: [Business]
B24: o. | C24: =Indicators_FO!B1 -> Financial indicators | G24: GREEN | H24: DATA FROM 2013 DECISION OR PERFORMANCE REPORT | N24: Lower Murray Water - Rural | O24: =+VLOOKUP(N24,N25:O42,2,FALSE) -> LMW-R
B25: p. | C25: =Outcomes!B1 -> Outcomes | N25: Barwon Water | O25: BW | P25: Urban model
B26: q. | C26: =GSL!B1 -> Guaranteed Service Levels (GSL) | G26: RED | H26: ERROR CHECK | N26: Central Highlands Water | O26: CHW | P26: Urban model
N27: City West Water | O27: CWW | P27: Urban model
N28: Coliban Water | O28: CW | P28: Urban model
N29: East Gippsland Water | O29: EGW | P29: Urban model
N30: Gippsland Water | O30: CGW | P30: Urban model
N31: Goulburn Valley Water | O31: GVW | P31: Urban model
N32: GWM Water | O32: GWMW | P32: GWMW model
N33: Lower Murray Water - Urban | O33: LMW-U | P33: Urban model
M34: >>>> | N34: Lower Murray Water - Rural | O34: LMW-R | P34: LMW-R model
N35: North East Water | O35: NEW | P35: Urban model
N36: South East Water | O36: SEW | P36: Urban model
N37: South Gippsland Water | O37: SGW | P37: Urban model
N38: Southern Rural Water | O38: SRW | P38: SRW model
N39: Wannon Water | O39: WNW | P39: Urban model
N40: Western Water | O40: WW | P40: Urban model
N41: Westernport Water | O41: WPW | P41: Urban model
N42: Yarra Valley Water | O42: YVW | P42: Urban model

Sheet KeyAssumptionsPriceControl_FO
A1: 80 | B1: Key Assumptions Price Control
B2: =+Contents!H7 -> Lower Murray Water - Rural
B3: Go to Table of Contents
L4: FIRST REG PERIOD | P4: SECOND REG PERIOD | U4: THIRD REG PERIOD | Z4: FOURTH REG PERIOD | AC4: FIFTH REG PERIOD
F6: Straight Line | K6: 2006 | L6: 2007 | M6: 2008 | N6: 2009 | O6: 2010 | P6: 2011 | Q6: 2012 | R6: 2013 | S6: 2014 | T6: 2015 | U6: 2016 | V6: 2017 | W6: 2018 | X6: 2019 | Y6: 2020 | Z6: 2021 | AA6: 2022 | AB6: 2023 | AC6: 2024 | AD6: 2025 | AE6: 2026 | AF6: 2027 | AG6: 2028
F7: Declining Balance | I7: 2003-04 | J7: 2004-05 | K7: =+CONCATENATE(K6-1,"-",RIGHT(K6,2)) -> 2005-06 | L7: =+CONCATENATE(L6-1,"-",RIGHT(L6,2)) -> 2006-07 | M7: 2007-08 | N7: 2008-09 | O7: 2009-10 | P7: 2010-11 | Q7: 2011-12 | R7: 2012-13 | S7: 2013-14 | T7: 2014-15 | U7: 2015-16 | V7: 2016-17 | W7: 2017-18 | X7: 2018-19 | Y7: 2019-20 | Z7: 2020-21 | AA7: 2021-22 | AB7: 2022-23 | AC7: 2023-24 | AD7: 2024-25 | AE7: 2025-26 | AF7: 2026-27 | AG7: 2027-28
E11: Inflation assumptions
W12: Estimate
F13: March quarter annual CPI | I13: 141.3 | J13: 144.1 | K13: 147.5 | L13: 151.9 | M13: 155.6 | N13: 162.2 | O13: 166.2 | P13: 171 | Q13: 176.7 | R13: 99.9 | S13: 102.4 | T13: 105.4 | U13: 106.8 | V13: 108.2 | W13: 110.5
F14: Inflation | J14: =+J13/I13-1 -> 0.01981599434 | K14: 0.02359472588 | L14: 0.02983050847 | M14: 0.02435813035 | N14: 0.04241645244 | O14: 0.02466091245 | P14: 0.02888086643 | Q14: 0.03333333333 | R14: 0.01584606678 | S14: =+IF(S13=0,$Q$28,S13/R13-1) -> 0.02502502503 | T14: 0.029296875 | U14: 0.01328273245 | V14: 0.01310861423 | W14: 0.02125693161 | X14: 0.023 | Y14: 0.023 | Z14: 0.023 | AA14: 0.023 | AB14: 0.023 | AC14: 0.023 | AD14: 0.023 | AE14: 0.023 | AF14: 0.023 | AG14: 0.023
F15: Inflation factor | I15: 0.7871866295 | J15: 0.8027855153 | K15: 0.8217270195 | L15: 0.8462395543 | M15: 0.8668523677 | N15: 0.9036211699 | O15: 0.9259052925 | P15: 0.9526462396 | Q15: 0.9844011142 | R15: =+R13/$W$13 -> 0.9040723982 | S15: 0.9266968326 | T15: 0.9538461538 | U15: 0.9665158371 | V15: =+V13/$W$13 -> 0.9791855204 | W15: =+W13/$W$13 -> 1 | X15: =+W15*(1+X14) -> 1.023 | Y15: =+X15*(1+Y14) -> 1.046529 | Z15: 1.070599167 | AA15: 1.095222948 | AB15: 1.120413076 | AC15: 1.146182576 | AD15: 1.172544776 | AE15: 1.199513305 | AF15: 1.227102112 | AG15: 1.25532546
I16: CPI index re-referenced in 2012-13, shaded values have been hardcoded to lock in RAB value.
E20: WACC assumptions
K21: 1st period | M21: 2nd period | O21: 3rd period | Q21: 4th period
E22: Parameters
F23: Risk Free Rate (Real) | K23: =+HLOOKUP(Contents!$I$7&1,Determination_Lookup!$C$54:$BD$61,2,FALSE) -> 0.0267 | M23: =+HLOOKUP(Contents!$I$7&2,Determination_Lookup!$C$54:$BD$61,2,FALSE) -> 0.0323 | O23: =+HLOOKUP(Contents!$I$7&3,Determination_Lookup!$C$54:$BD$61,2,FALSE) -> 0.00916 | Q23: 0.007 | R23: ESC will update the Rf rate upon submission
F24: Debt Premium | K24: =+HLOOKUP(Contents!$I$7&1,Determination_Lookup!$C$54:$BD$61,3,FALSE) -> 0.0116 | M24: =+HLOOKUP(Contents!$I$7&2,Determination_Lookup!$C$54:$BD$61,3,FALSE) -> 0.0175 | O24: =+HLOOKUP(Contents!$I$7&3,Determination_Lookup!$C$54:$BD$61,3,FALSE) -> 0.03158 | Q24: 0.0275
F25: Equity Premium | K25: =+HLOOKUP(Contents!$I$7&1,Determination_Lookup!$C$54:$BD$61,4,FALSE) -> 0.06 | M25: =+HLOOKUP(Contents!$I$7&2,Determination_Lookup!$C$54:$BD$61,4,FALSE) -> 0.06 | O25: =+HLOOKUP(Contents!$I$7&3,Determination_Lookup!$C$54:$BD$61,4,FALSE) -> 0.06 | Q25: 0.06
F26: Equity Beta | K26: =+HLOOKUP(Contents!$I$7&1,Determination_Lookup!$C$54:$BD$61,5,FALSE) -> 0.75 | M26: =+HLOOKUP(Contents!$I$7&2,Determination_Lookup!$C$54:$BD$61,5,FALSE) -> 0.7 | O26: =+HLOOKUP(Contents!$I$7&3,Determination_Lookup!$C$54:$BD$61,5,FALSE) -> 0.7 | Q26: 0.7
F27: Gearing (Debt/Assets) | K27: =+HLOOKUP(Contents!$I$7&1,Determination_Lookup!$C$54:$BD$61,6,FALSE) -> 0.6 | M27: =+HLOOKUP(Contents!$I$7&2,Determination_Lookup!$C$54:$BD$61,6,FALSE) -> 0.6 | O27: =+HLOOKUP(Contents!$I$7&3,Determination_Lookup!$C$54:$BD$61,6,FALSE) -> 0.6 | Q27: 0.6
F28: Forecast Inflation | K28: =+HLOOKUP(Contents!$I$7&1,Determination_Lookup!$C$54:$BD$61,7,FALSE) -> 0.0255 | M28: =+HLOOKUP(Contents!$I$7&2,Determination_Lookup!$C$54:$BD$61,7,FALSE) -> 0.029 | O28: =+HLOOKUP(Contents!$I$7&3,Determination_Lookup!$C$54:$BD$61,7,FALSE) -> 0.027 | Q28: 0.023
F29: Franking credit value | K29: =+HLOOKUP(Contents!$I$7&1,Determination_Lookup!$C$54:$BD$61,8,FALSE) -> 0.5 | M29: =+HLOOKUP(Contents!$I$7&2,Determination_Lookup!$C$54:$BD$61,8,FALSE) -> 0.5 | O29: =+HLOOKUP(Contents!$I$7&3,Determination_Lookup!$C$54:$BD$61,8,FALSE) -> 0.5 | Q29: 0.5
E31: 'Vanilla' After Tax WACC (Real) | K31: =ROUND(((K23+K25*K26)*(1-K27))+((K23+K24)*K27),3) -> 0.052 | M31: =ROUND(((M23+M25*M26)*(1-M27))+((M23+M24)*M27),3) -> 0.06 | O31: =ROUND(((O23+O25*O26)*(1-O27))+((O23+O24)*O27),3) -> 0.045 | Q31: =ROUND(((Q23+Q25*Q26)*(1-Q27))+((Q23+Q24)*Q27),3) -> 0.04
E35: Form of price control selected
E37: Price caps | I37: 2
E39: Revenue cap / Hybrid Tariff Basket

Sheet Opex_FO
B1: Operating Expenditure - Forecast
B2: =+Model_Name -> Lower Murray Water - Rural
B3: Go to Table of Contents
L4: FIRST REG PERIOD | P4: SECOND REG PERIOD | S4: THIRD REG PERIOD | X4: FOURTH REG PERIOD | AC4: FIFTH REG PERIOD
K5: 2006 | L5: 2007 | M5: 2008 | N5: 2009 | O5: 2010 | P5: 2011 | Q5: 2012 | R5: 2013 | S5: 2014 | T5: 2015 | U5: 2016 | V5: 2017 | W5: 2018 | X5: 2019 | Y5: 2020 | Z5: 2021 | AA5: 2022 | AB5: 2023 | AC5: 2024 | AD5: 2025 | AE5: 2026 | AF5: 2027 | AG5: 2028
B6: $m, 01/01/18 | K6: =+CONCATENATE(K5-1,"-",RIGHT(K5,2)) -> 2005-06 | L6: =+CONCATENATE(L5-1,"-",RIGHT(L5,2)) -> 2006-07 | M6: 2007-08 | N6: 2008-09 | O6: 2009-10 | P6: 2010-11 | Q6: 2011-12 | R6: 2012-13 | S6: 2013-14 | T6: 2014-15 | U6: 2015-16 | V6: 2016-17 | W6: 2017-18 | X6: 2018-19 | Y6: 2019-20 | Z6: 2020-21 | AA6: 2021-22 | AB6: 2022-23 | AC6: 2023-24 | AD6: 2024-25 | AE6: 2025-26 | AF6: 2026-27 | AG6: 2027-28
C9: Parameters | F9: 3rd period | H9: 4th period
D11: Cost efficiency improvement rate (% per annum) | F11: 0.01 | H11: =+SUM(X11:AB11)/5 -> 0
D13: Customer growth forecast (% per annum) | F13: =IF(V13="","-",AVERAGE(T13:W13)) -> - | H13: =+SUM(X13:AB13)/5 -> 0 | T13: =IF(T15="","",T15/S15-1) ->  | U13: =IF(U15="","",U15/T15-1) -> 
E14: Net baseline opex growth | F14: =IFERROR(F13-F11,"-") -> - | H14: =IFERROR(H13-H11,"-") -> 0
D15: Water customers (No.) - Residential & Non-Residential | W15: =+V$15*(1+W$13) -> 0 | X15: =+W$15*(1+X$13) -> 0 | Y15: =+X$15*(1+Y$13) -> 0 | Z15: 0 | AA15: 0 | AB15: 0 | AC15: 0 | AD15: 0 | AE15: 0 | AF15: 0 | AG15: 0 | AI15: << Used as normalising metric for dashboard graphs
D17: Sewer customers (No.) - Residential & Non-Residential | W17: =+V$17*(1+W$13) -> 0 | X17: =+W$17*(1+X$13) -> 0 | Y17: =+X$17*(1+Y$13) -> 0 | Z17: 0 | AA17: 0 | AB17: 0 | AC17: 0 | AD17: 0 | AE17: 0 | AF17: 0 | AG17: 0 | AI17: << Used as normalising metric for dashboard graphs
C21: Baseline Forecast
D23: Baseline year - total prescribed operating expenditure in 2016-17: | V23: =+Opex_Breakdown!V37 -> 23.48424475
D25: Less non-controllable expenditure items incurred in 2016-17:
E26: External bulk water charges (excl. temporary purchases) | V26: =+Opex_Breakdown!V29 -> 3.884503591
E27: External temporary water purchases | V27: =+Opex_Breakdown!V30 -> 0 | X27: Comparison with approved 2016-17 total controllable opex
E28: Licence fees | V28: =+Opex_Breakdown!V31 -> 0.02134426987 | X28: per 2013 determination model
E29: Environment Contribution | V29: =+Opex_Breakdown!V32 -> 0.3778650647
E30: Other non-controllable | V30: =+Opex_Breakdown!V33 -> 0
V31: =SUM(V26:V30) -> 4.283712925 | Y31: 2016-17 | Z31: Difference | AA31: %
D33: Baseline year - total controllable operating expenditure in 2016-17: | V33: =+V23-V31 -> 19.20053183 | Y33: =+Determination_Lookup!AX3 -> 15.35671164 | Z33: =+V49-Y33 -> 0.5060890512 | AA33: =+Z33/Y33 -> 0.03295556126
D35: Adjustments for non-recurring expenditure items incurred in 2016-17 and any efficiency savings to be realised from 2016-17: | X35: ($, 2017-18)
D37: 1 | E37: SMP1 related administration costs | V37: 1.391266488
D38: 2 | E38: SMP 2 business case related administration costs | V38: 1.36047457
D39: 3 | E39: LMW cost related to outlet maintenance due to SMP1 | V39: 0.4603325832
D40: 4 | E40: Contractor/Consultants for PS4 | V40: 0.1256574954
D41: 5 | E41: 0 | V41: 0
D42: 6 | E42: 0 | V42: 0
D43: 7 | E43: 0 | V43: 0
D44: 8 | E44: 0 | V44: 0
D45: 9 | E45: 0 | V45: 0
D46: 10 | E46: 0 | V46: 0
V47: =SUM(V37:V46) -> 3.337731137
D49: Baseline controllable operating expenditure (2016-17) | V49: =+V33-V47 -> 15.86280069
D51: Baseline controllable operating expenditure (Forecast) | W51: =+V49 -> 15.86280069 | X51: =+W51 -> 15.86280069 | Y51: =+X51 -> 15.86280069 | Z51: 15.86280069 | AA51: 15.86280069 | AB51: 15.86280069 | AC51: 15.86280069 | AD51: 15.86280069 | AE51: 15.86280069 | AF51: 15.86280069 | AG51: 15.86280069
C55: Operating expenditure - reconciliation
D58: Baseline controllable operating expenditure (Forecast) | X58: =+X51 -> 15.86280069 | Y58: 15.86280069 | Z58: 15.86280069 | AA58: 15.86280069 | AB58: 15.86280069 | AC58: 15.86280069 | AD58: 15.86280069 | AE58: 15.86280069 | AF58: 15.86280069 | AG58: 15.86280069
H59: Controllable
D60: Forecast variations to baseline operating expenditure (above or below baseline) | H60: only
D62: 1 | E62: Admin - Labour & Oncost | H62: Rural - All | X62: 0.381530495 | Y62: 0.411329495 | Z62: 0.346648495 | AA62: 0.318801495 | AB62: 0.332490745 | AC62: 0.332490745 | AD62: 0.332490745 | AE62: 0.332490745 | AF62: 0.332490745 | AG62: 0.332490745
D63: 2 | E63: Admin - Contract/Consultant | H63: Rural - All | X63: -0.2939529387 | Y63: -0.2939529387 | Z63: -0.3034529387 | AA63: -0.1015779387 | AB63: -0.2820779387 | AC63: -0.2820779387 | AD63: -0.2820779387 | AE63: -0.2820779387 | AF63: -0.2820779387 | AG63: -0.2820779387
D64: 3 | E64: Admin - Other | H64: Rural - All | X64: -0.4060878945 | Y64: -0.4272503945 | Z64: -0.4363003945 | AA64: -0.4406003945 | AB64: -0.4425253945 | AC64: -0.4425253945 | AD64: -0.4425253945 | AE64: -0.4425253945 | AF64: -0.4425253945 | AG64: -0.4425253945
D65: 4 | E65: Tech Services - Labour & Oncost | H65: Rural - All | X65: -0.3953097405 | Y65: -0.3705602405 | Z65: -0.4652661305 | AA65: -0.6450298705 | AB65: -0.7206542905 | AC65: -0.7206542905 | AD65: -0.7206542905 | AE65: -0.7206542905 | AF65: -0.7206542905 | AG65: -0.7206542905
D66: 5 | E66: Tech Services - Contract/Consultant (After basline adjustment) | H66: Rural - All | X66: 0.007617145125 | Y66: 0.007617145125 | Z66: 0.04361714512 | AA66: -0.007382854875 | AB66: -0.007382854875 | AC66: -0.007382854875 | AD66: -0.007382854875 | AE66: -0.007382854875 | AF66: -0.007382854875 | AG66: -0.007382854875
D67: 6 | E67: Tech Services - Other | H67: Rural - All | X67: -0.2370207799 | Y67: -0.2370207799 | Z67: -0.2370207799 | AA67: -0.2370207799 | AB67: -0.2370207799 | AC67: -0.2370207799 | AD67: -0.2370207799 | AE67: -0.2370207799 | AF67: -0.2370207799 | AG67: -0.2370207799
D68: 7 | E68: IT - Labour & Oncost | H68: Rural - All | X68: 0.2408250793 | Y68: 0.2464790793 | Z68: 0.1164660793 | AA68: 0.1199480793 | AB68: 0.1288360793 | AC68: 0.1288360793 | AD68: 0.1288360793 | AE68: 0.1288360793 | AF68: 0.1288360793 | AG68: 0.1288360793
D69: 8 | E69: IT - Contractor/Consultant | H69: Rural - All | X69: 0.04353414579 | Y69: 0.04353414579 | Z69: 0.04353414579 | AA69: 0.04353414579 | AB69: 0.04353414579 | AC69: 0.04353414579 | AD69: 0.04353414579 | AE69: 0.04353414579 | AF69: 0.04353414579 | AG69: 0.04353414579
D70: 9 | E70: IT - Software Licences | H70: Rural - All | X70: 0.00238114653 | Y70: 0.00238114653 | Z70: 0.00238114653 | AA70: 0.00238114653 | AB70: 0.00238114653 | AC70: 0.00238114653 | AD70: 0.00238114653 | AE70: 0.00238114653 | AF70: 0.00238114653 | AG70: 0.00238114653
D71: 10 | E71: Infra - O&M Labour & Oncost | H71: Rural - All | X71: -0.01313747131 | Y71: -0.09765132893 | Z71: -0.07463137893 | AA71: -0.1128930539 | AB71: -0.09388295393 | AC71: -0.09388295393 | AD71: -0.09388295393 | AE71: -0.09388295393 | AF71: -0.09388295393 | AG71: -0.09388295393
D72: 11 | E72: Infra - O&M Electricity | H72: Rural - All | X72: 1.437349834 | Y72: 1.007363505 | Z72: 1.076646897 | AA72: 1.109751979 | AB72: 1.266523829 | AC72: 1.266523829 | AD72: 1.266523829 | AE72: 1.266523829 | AF72: 1.266523829 | AG72: 1.266523829
D73: 12 | E73: Infra - O&M Contractor & Other | H73: Rural - All | X73: 0.1177101595 | Y73: -0.2153206438 | Z73: -0.2474600853 | AA73: -0.2024640923 | AB73: -0.2002344126 | AC73: -0.1438107526 | AD73: -0.1438107526 | AE73: -0.1318107526 | AF73: -0.1438107526 | AG73: -0.1438107526
D74: 13 | E74: 0 | H74: 0 | X74: 0 | Y74: 0 | Z74: 0 | AA74: 0 | AB74: 0 | AC74: 0 | AD74: 0 | AE74: 0 | AF74: 0 | AG74: 0
D75: 14 | E75: 0 | H75: 0 | X75: 0 | Y75: 0 | Z75: 0 | AA75: 0 | AB75: 0 | AC75: 0 | AD75: 0 | AE75: 0 | AF75: 0 | AG75: 0
D76: 15 | E76: 0 | H76: 0 | X76: 0 | Y76: 0 | Z76: 0 | AA76: 0 | AB76: 0 | AC76: 0 | AD76: 0 | AE76: 0 | AF76: 0 | AG76: 0
D78: Total changes required to baseline operating expenditure | X78: =SUM(X62:X77) -> 0.8854391804 | Y78: 0.07694819043 | Z78: -0.1348377996 | AA78: -0.1525521396 | AB78: -0.2100126796 | AC78: -0.1535890196 | AD78: -0.1535890196 | AE78: -0.1415890196 | AF78: -0.1535890196 | AG78: -0.1535890196
W79: % Change in baseline opex per annum | X79: =IFERROR(X78/X58,"-") -> 0.05581859079 | Y79: =IFERROR(Y78/Y58,"-") -> 0.004850857799 | Z79: -0.008500251766 | AA79: -0.00961697386 | AB79: -0.01323931906 | AC79: -0.009682339366 | AD79: -0.009682339366 | AE79: -0.008925852524 | AF79: -0.009682339366 | AG79: -0.009682339366
W80: % Change in baseline opex per reg period | AB80: =IFERROR(AVERAGE(X79:AB79),"-") -> 0.00586258078 | AG80: =IFERROR(AVERAGE(AC79:AG79),"-") -> -0.009531041998
D81: Total controllable operating expenditure | X81: =+X78+X58 -> 16.74823987 | Y81: 15.93974888 | Z81: 15.72796289 | AA81: 15.71024855 | AB81: 15.65278801 | AC81: 15.70921167 | AD81: 15.70921167 | AE81: 15.72121167 | AF81: 15.70921167 | AG81: 15.70921167
W82: Controllable Opex growth from baseline to 5th year | AB82: =IFERROR(AB81-V49,"-") -> -0.2100126796 | AC82: =IFERROR(AB81/V49-1,"-") -> -0.01323931906
D83: Non-controllable operating expenditure
D84: External bulk water charges (excl. temporary purchases) | X84: =+Opex_Breakdown!X29 -> 3.303077152 | Y84: =+Opex_Breakdown!Y29 -> 3.300721611 | Z84: =+Opex_Breakdown!Z29 -> 3.2984151 | AA84: =+Opex_Breakdown!AA29 -> 3.296156597 | AB84: =+Opex_Breakdown!AB29 -> 3.293945103 | AC84: =+Opex_Breakdown!AC29 -> 3.234533258 | AD84: =+Opex_Breakdown!AD29 -> 3.232266222 | AE84: =+Opex_Breakdown!AE29 -> 3.230050154 | AF84: =+Opex_Breakdown!AF29 -> 3.227883911 | AG84: =+Opex_Breakdown!AG29 -> 3.225766371
D85: External temporary water purchases | X85: =+Opex_Breakdown!X30 -> 0 | Y85: =+Opex_Breakdown!Y30 -> 0 | Z85: =+Opex_Breakdown!Z30 -> 0 | AA85: =+Opex_Breakdown!AA30 -> 0 | AB85: =+Opex_Breakdown!AB30 -> 0 | AC85: =+Opex_Breakdown!AC30 -> 0 | AD85: =+Opex_Breakdown!AD30 -> 0 | AE85: =+Opex_Breakdown!AE30 -> 0 | AF85: =+Opex_Breakdown!AF30 -> 0 | AG85: =+Opex_Breakdown!AG30 -> 0
D86: Licence fees | X86: =+Opex_Breakdown!X31 -> 0.016625 | Y86: =+Opex_Breakdown!Y31 -> 0.016625 | Z86: =+Opex_Breakdown!Z31 -> 0.016625 | AA86: =+Opex_Breakdown!AA31 -> 0.016625 | AB86: =+Opex_Breakdown!AB31 -> 0.016625 | AC86: =+Opex_Breakdown!AC31 -> 0.016625 | AD86: =+Opex_Breakdown!AD31 -> 0.016625 | AE86: =+Opex_Breakdown!AE31 -> 0.016625 | AF86: =+Opex_Breakdown!AF31 -> 0.016625 | AG86: =+Opex_Breakdown!AG31 -> 0.016625
D87: Environment Contribution | X87: =+Opex_Breakdown!X32 -> 0.513 | Y87: =+Opex_Breakdown!Y32 -> 0.513 | Z87: =+Opex_Breakdown!Z32 -> 0.513 | AA87: =+Opex_Breakdown!AA32 -> 0.513 | AB87: =+Opex_Breakdown!AB32 -> 0.513 | AC87: =+Opex_Breakdown!AC32 -> 0.513 | AD87: =+Opex_Breakdown!AD32 -> 0.513 | AE87: =+Opex_Breakdown!AE32 -> 0.513 | AF87: =+Opex_Breakdown!AF32 -> 0.513 | AG87: =+Opex_Breakdown!AG32 -> 0.513
D88: Other non-controllable | X88: =+Opex_Breakdown!X33 -> 0 | Y88: =+Opex_Breakdown!Y33 -> 0 | Z88: =+Opex_Breakdown!Z33 -> 0 | AA88: =+Opex_Breakdown!AA33 -> 0 | AB88: =+Opex_Breakdown!AB33 -> 0 | AC88: =+Opex_Breakdown!AC33 -> 0 | AD88: =+Opex_Breakdown!AD33 -> 0 | AE88: =+Opex_Breakdown!AE33 -> 0 | AF88: =+Opex_Breakdown!AF33 -> 0 | AG88: =+Opex_Breakdown!AG33 -> 0
D89: Total non-controllable operating expenditure | X89: =SUM(X84:X88) -> 3.832702152 | Y89: 3.830346611 | Z89: 3.8280401 | AA89: 3.825781597 | AB89: 3.823570103 | AC89: 3.764158258 | AD89: 3.761891222 | AE89: 3.759675154 | AF89: 3.757508911 | AG89: 3.755391371
W90: Non-controllable Opex growth from baseline to 5th year | AB90: =IFERROR(AB89-V31,"-") -> -0.4601428222 | AC90: =IFERROR(AB89/V31-1,"-") -> -0.1074168205
D92: Total prescribed operating expenditure | X92: =+X89+X81 -> 20.58094202 | Y92: 19.77009549 | Z92: 19.55600299 | AA92: 19.53603015 | AB92: 19.47635811 | AC92: 19.47336993 | AD92: 19.47110289 | AE92: 19.48088682 | AF92: 19.46672058 | AG92: =+AG89+AG81 -> 19.46460304
W93: Prescribed Opex growth from baseline to 5th year | AB93: =IFERROR(AB92-(V49+V31),"-") -> -0.6701555017 | AC93: =IFERROR((AB92/(V49+V31))-1,"-") -> -0.03326409296
W95: To reconcile to 'Opex_Breakdown' tab row 37 >> | X95: =+Opex_Breakdown!X37 -> 20.58094202 | Y95: =+Opex_Breakdown!Y37 -> 19.77009549 | Z95: =+Opex_Breakdown!Z37 -> 19.55600299 | AA95: =+Opex_Breakdown!AA37 -> 19.53603015 | AB95: =+Opex_Breakdown!AB37 -> 19.47635811 | AC95: =+Opex_Breakdown!AC37 -> 19.47336993 | AD95: =+Opex_Breakdown!AD37 -> 19.47110289 | AE95: =+Opex_Breakdown!AE37 -> 19.48088682 | AF95: =+Opex_Breakdown!AF37 -> 19.46672058 | AG95: =+Opex_Breakdown!AG37 -> 19.46460304
W96: Difference | X96: =+X95-X92 -> 0 | Y96: 0 | Z96: 0 | AA96: 0 | AB96: 0 | AC96: 0 | AD96: 0 | AE96: 0 | AF96: 0 | AG96: 0
W97: Test | X97: =+X95=X92 -> TRUE | Y97: TRUE | Z97: TRUE | AA97: TRUE | AB97: TRUE | AC97: TRUE | AD97: TRUE | AE97: TRUE | AF97: TRUE | AG97: TRUE
X136: =+X$157 -> 2018-19 | Y136: 2019-20 | Z136: 2020-21 | AA136: 2021-22 | AB136: 2022-23 | AC136: 2023-24 | AD136: 2024-25 | AE136: 2025-26 | AF136: 2026-27 | AG136: 2027-28
W137: Total controllable opex | X137: =+X81 -> 16.74823987 | Y137: 15.93974888 | Z137: 15.72796289 | AA137: 15.71024855 | AB137: 15.65278801 | AC137: 15.70921167 | AD137: 15.70921167 | AE137: 15.72121167 | AF137: 15.70921167 | AG137: 15.70921167
W138: Change - $ | Y138: =+Y137-X137 -> -0.80849099 | Z138: -0.21178599 | AA138: -0.01771434 | AB138: -0.05746054 | AC138: 0.05642366 | AD138: 0 | AE138: 0.012 | AF138: -0.012 | AG138: 0
W139: Change - % | Y139: =IFERROR(Y138/X137,"") -> -0.04827319147 | Z139: -0.01328665788 | AA139: -0.001126295893 | AB139: -0.003657519473 | AC139: 0.003604703518 | AD139: 0 | AE139: 0.0007638830167 | AF139: -0.0007632999448 | AG139: 0
X141: =+X$157 -> 2018-19 | Y141: 2019-20 | Z141: 2020-21 | AA141: 2021-22 | AB141: 2022-23 | AC141: 2023-24 | AD141: 2024-25 | AE141: 2025-26 | AF141: 2026-27 | AG141: 2027-28
W142: Total non-controllable opex | X142: =+X89 -> 3.832702152 | Y142: 3.830346611 | Z142: 3.8280401 | AA142: 3.825781597 | AB142: 3.823570103 | AC142: 3.764158258 | AD142: 3.761891222 | AE142: 3.759675154 | AF142: 3.757508911 | AG142: 3.755391371
W143: Change - $ | Y143: =+Y142-X142 -> -0.002355541094 | Z143: -0.002306511732 | AA143: -0.00225850289 | AB143: -0.002211493328 | AC143: -0.05941184501 | AD143: -0.002267036667 | AE143: -0.002216067123 | AF143: -0.002166243522 | AG143: -0.0021175401
W144: Change - % | Y144: =IFERROR(Y143/X142,"") -> -0.0006145901769 | Z144: -0.0006021678886 | AA144: -0.00058998935 | AB144: -0.0005780500721 | AC144: -0.01553831718 | AD144: -0.0006022692223 | AE144: -0.0005890832543 | AF144: -0.0005761783753 | AG144: -0.000563548923
X146: =+X$157 -> 2018-19 | Y146: 2019-20 | Z146: 2020-21 | AA146: 2021-22 | AB146: 2022-23 | AC146: 2023-24 | AD146: 2024-25 | AE146: 2025-26 | AF146: 2026-27 | AG146: 2027-28
W147: Total prescribed opex | X147: =+X137+X142 -> 20.58094202 | Y147: 19.77009549 | Z147: 19.55600299 | AA147: 19.53603015 | AB147: 19.47635811 | AC147: 19.47336993 | AD147: 19.47110289 | AE147: 19.48088682 | AF147: 19.46672058 | AG147: 19.46460304
W148: Change - $ | Y148: =+Y147-X147 -> -0.8108465311 | Z148: -0.2140925017 | AA148: -0.01997284289 | AB148: -0.05967203333 | AC148: -0.002988185014 | AD148: -0.002267036667 | AE148: 0.009783932877 | AF148: -0.01416624352 | AG148: -0.0021175401
W149: Change - % | Y149: =IFERROR(Y148/X147,"") -> -0.03939793087 | Z149: -0.01082910813 | AA149: -0.001021315189 | AB149: -0.003054460547 | AC149: -0.0001534262718 | AD149: -0.0001164172753 | AE149: 0.0005024847812 | AF149: -0.0007271867883 | AG149: -0.0001087774436
W152: Controllable vs. Non-controllable opex - % | X152: =+X$157 -> 2018-19 | Y152: 2019-20 | Z152: 2020-21 | AA152: 2021-22 | AB152: 2022-23 | AC152: 2023-24 | AD152: 2024-25 | AE152: 2025-26 | AF152: 2026-27 | AG152: 2027-28
W153: Controllable opex - % | X153: =+X81/X92 -> 0.8137742117 | Y153: 0.8062555331 | Z153: 0.8042524282 | AA153: 0.8041679109 | AB153: 0.8036814644 | AC153: 0.8067022671 | AD153: 0.8067961921 | AE153: 0.8070069813 | AF153: 0.8069778166 | AG153: 0.8070656071
W154: Non-controllable opex - % | X154: =+X89/X92 -> 0.1862257883 | Y154: 0.1937444669 | Z154: 0.1957475718 | AA154: 0.1958320891 | AB154: 0.1963185356 | AC154: 0.1932977329 | AD154: 0.1932038079 | AE154: 0.1929930187 | AF154: 0.1930221834 | AG154: 0.1929343929
X155: =SUM(X153:X154) -> 1 | Y155: 1 | Z155: 1 | AA155: 1 | AB155: 1 | AC155: 1 | AD155: 1 | AE155: 1 | AF155: 1 | AG155: 1
V157: =+V6 -> 2016-17 | W157: 2017-18 | X157: 2018-19 | Y157: 2019-20 | Z157: 2020-21 | AA157: 2021-22 | AB157: 2022-23 | AC157: 2023-24 | AD157: 2024-25 | AE157: 2025-26 | AF157: 2026-27 | AG157: 2027-28
U158: Third Reg period Opex | V158: =+V166-SUM(V159:V165) -> 19.20053183 | W158: =+W166-SUM(W159:W165) -> 15.89578137
U159: baseline opex | X159: =+X58 -> 15.86280069 | Y159: 15.86280069 | Z159: 15.86280069 | AA159: 15.86280069 | AB159: 15.86280069 | AC159: 15.86280069 | AD159: 15.86280069 | AE159: 15.86280069 | AF159: 15.86280069 | AG159: 15.86280069
U160: Forecast variations to baseline operating expenditure | X160: =+X78 -> 0.8854391804 | Y160: 0.07694819043 | Z160: -0.1348377996 | AA160: -0.1525521396 | AB160: -0.2100126796 | AC160: -0.1535890196 | AD160: -0.1535890196 | AE160: -0.1415890196 | AF160: -0.1535890196 | AG160: -0.1535890196
U161: Licence fees | V161: =+V191 -> 0.02134426987 | W161: =+W191 -> 0.016625 | X161: =+X86 -> 0.016625 | Y161: 0.016625 | Z161: 0.016625 | AA161: 0.016625 | AB161: 0.016625 | AC161: 0.016625 | AD161: 0.016625 | AE161: 0.016625 | AF161: 0.016625 | AG161: 0.016625
U162: Environment Contribution | V162: =+V192 -> 0.3778650647 | W162: =+W192 -> 0.37 | X162: =+X87 -> 0.513 | Y162: 0.513 | Z162: 0.513 | AA162: 0.513 | AB162: 0.513 | AC162: 0.513 | AD162: 0.513 | AE162: 0.513 | AF162: 0.513 | AG162: 0.513
U163: External bulk water charges | V163: =+V189 -> 3.884503591 | W163: =+W189 -> 3.270883255 | X163: =+X84 -> 3.303077152 | Y163: 3.300721611 | Z163: 3.2984151 | AA163: 3.296156597 | AB163: 3.293945103 | AC163: 3.234533258 | AD163: 3.232266222 | AE163: 3.230050154 | AF163: 3.227883911 | AG163: 3.225766371
U164: External temporary water purchases | V164: =+V190 -> 0 | W164: =+W190 -> 0 | X164: =+X85 -> 0 | Y164: 0 | Z164: 0 | AA164: 0 | AB164: 0 | AC164: 0 | AD164: 0 | AE164: 0 | AF164: 0 | AG164: 0
U165: Other non-controllable | V165: =+V193 -> 0 | W165: =+W193 -> 0 | X165: =+X88 -> 0 | Y165: 0 | Z165: 0 | AA165: 0 | AB165: 0 | AC165: 0 | AD165: 0 | AE165: 0 | AF165: 0 | AG165: 0
U166: Total prescribed opex | V166: =+Opex_Breakdown!V37 -> 23.48424475 | W166: =+Opex_Breakdown!W37 -> 19.55328962 | X166: =SUM(X159:X165) -> 20.58094202 | Y166: 19.77009549 | Z166: 19.55600299 | AA166: 19.53603015 | AB166: 19.47635811 | AC166: 19.47336993 | AD166: 19.47110289 | AE166: 19.48088682 | AF166: 19.46672058 | AG166: 19.46460304
X168: =+X$157 -> 2018-19 | Y168: 2019-20 | Z168: 2020-21 | AA168: 2021-22 | AB168: 2022-23 | AC168: 2023-24 | AD168: 2024-25 | AE168: 2025-26 | AF168: 2026-27 | AG168: 2027-28
W169: baseline opex | X169: =+X159/X$166 -> 0.7707519254 | Y169: 0.8023633824 | Z169: 0.8111473852 | AA169: 0.8119766693 | AB169: 0.8144644187 | AC169: 0.8145893981 | AD169: 0.8146842415 | AE169: 0.8142750806 | AF169: 0.8148676416 | AG169: 0.8149562905
W170: Forecast variations to baseline operating expenditure | X170: =+X160/X$166 -> 0.04302228632 | Y170: 0.003892150671 | Z170: -0.006894956993 | AA170: -0.007808758403 | AB170: -0.01078295431 | AC170: -0.007887130997 | AD170: -0.007888049302 | AE170: -0.007268099283 | AF170: -0.007889825044 | AG170: -0.007890683373
W171: Licence fees | X171: =+X161/X$166 -> 0.0008077861539 | Y171: 0.0008409165251 | Z171: 0.0008501225945 | AA171: 0.0008509917253 | AB171: 0.0008535990098 | AC171: 0.0008537299944 | AD171: 0.0008538293949 | AE171: 0.0008534005741 | AF171: 0.0008540216074 | AG171: 0.0008541145157
W172: Environment Contribution | X172: =+X162/X$166 -> 0.02492597275 | Y172: 0.02594828134 | Z172: 0.02623235435 | AA172: 0.02625917324 | AB172: 0.02633962659 | AC172: 0.0263436684 | AD172: 0.02634673561 | AE172: 0.02633350343 | AF172: 0.02635266674 | AG172: 0.02635553363
W173: External bulk water charges (excl. temporary purchases) | X173: =+X163/X$166 -> 0.1604920294 | Y173: 0.166955269 | Z173: 0.1686650949 | AA173: 0.1687219242 | AB173: 0.16912531 | AC173: 0.1661003345 | AD173: 0.1660032428 | AE173: 0.1658061147 | AF173: 0.1658154951 | AG173: 0.1657247448
W174: External temporary water purchases | X174: =+X164/X$166 -> 0 | Y174: 0 | Z174: 0 | AA174: 0 | AB174: 0 | AC174: 0 | AD174: 0 | AE174: 0 | AF174: 0 | AG174: 0
W175: Other non-controllable | X175: =+X165/X$166 -> 0 | Y175: 0 | Z175: 0 | AA175: 0 | AB175: 0 | AC175: 0 | AD175: 0 | AE175: 0 | AF175: 0 | AG175: 0
W176: Total prescribed opex | X176: =+X166/X$166 -> 1 | Y176: 1 | Z176: 1 | AA176: 1 | AB176: 1 | AC176: 1 | AD176: 1 | AE176: 1 | AF176: 1 | AG176: 1
X178: =+X$157 -> 2018-19 | Y178: 2019-20 | Z178: 2020-21 | AA178: 2021-22 | AB178: 2022-23 | AC178: 2023-24 | AD178: 2024-25 | AE178: 2025-26 | AF178: 2026-27 | AG178: 2027-28
W179: Irrigation | X179: =+SUMIF($H$62:$H$77,$W179,X$62:X$77) -> 0 | Y179: 0 | Z179: 0 | AA179: 0 | AB179: 0 | AC179: 0 | AD179: 0 | AE179: 0 | AF179: 0 | AG179: 0
W180: Drainage | X180: 0 | Y180: 0 | Z180: 0 | AA180: 0 | AB180: 0 | AC180: 0 | AD180: 0 | AE180: 0 | AF180: 0 | AG180: 0
W181: Domestic and stock | X181: 0 | Y181: 0 | Z181: 0 | AA181: 0 | AB181: 0 | AC181: 0 | AD181: 0 | AE181: 0 | AF181: 0 | AG181: 0
W182: Surface water diversions | X182: 0 | Y182: 0 | Z182: 0 | AA182: 0 | AB182: 0 | AC182: 0 | AD182: 0 | AE182: 0 | AF182: 0 | AG182: 0
W183: Groundwater diversions | X183: 0 | Y183: 0 | Z183: 0 | AA183: 0 | AB183: 0 | AC183: 0 | AD183: 0 | AE183: 0 | AF183: 0 | AG183: 0
W184: Bulk water services | X184: 0 | Y184: 0 | Z184: 0 | AA184: 0 | AB184: 0 | AC184: 0 | AD184: 0 | AE184: 0 | AF184: 0 | AG184: 0
W185: Forecast variations to baseline operating expenditure | X185: =SUM(X179:X184) -> 0 | Y185: 0 | Z185: 0 | AA185: 0 | AB185: 0 | AC185: 0 | AD185: 0 | AE185: 0 | AF185: 0 | AG185: 0
V188: =+V6 -> 2016-17 | W188: 2017-18 | X188: 2018-19 | Y188: 2019-20 | Z188: 2020-21 | AA188: 2021-22 | AB188: 2022-23 | AC188: 2023-24 | AD188: 2024-25 | AE188: 2025-26 | AF188: 2026-27 | AG188: 2027-28
U189: External bulk water charges (excl. temporary purchases) | V189: =+Opex_Breakdown!V29 -> 3.884503591 | W189: =+Opex_Breakdown!W29 -> 3.270883255 | X189: =+X84 -> 3.303077152 | Y189: 3.300721611 | Z189: 3.2984151 | AA189: 3.296156597 | AB189: 3.293945103 | AC189: 3.234533258 | AD189: 3.232266222 | AE189: 3.230050154 | AF189: 3.227883911 | AG189: 3.225766371
U190: External temporary water purchases | V190: =+Opex_Breakdown!V30 -> 0 | W190: =+Opex_Breakdown!W30 -> 0 | X190: =+X85 -> 0 | Y190: 0 | Z190: 0 | AA190: 0 | AB190: 0 | AC190: 0 | AD190: 0 | AE190: 0 | AF190: 0 | AG190: 0
U191: Licence fees | V191: =+Opex_Breakdown!V31 -> 0.02134426987 | W191: =+Opex_Breakdown!W31 -> 0.016625 | X191: =+X86 -> 0.016625 | Y191: 0.016625 | Z191: 0.016625 | AA191: 0.016625 | AB191: 0.016625 | AC191: 0.016625 | AD191: 0.016625 | AE191: 0.016625 | AF191: 0.016625 | AG191: 0.016625
U192: Environment Contribution | V192: =+Opex_Breakdown!V32 -> 0.3778650647 | W192: =+Opex_Breakdown!W32 -> 0.37 | X192: =+X87 -> 0.513 | Y192: 0.513 | Z192: 0.513 | AA192: 0.513 | AB192: 0.513 | AC192: 0.513 | AD192: 0.513 | AE192: 0.513 | AF192: 0.513 | AG192: 0.513
U193: Other non-controllable | V193: =+Opex_Breakdown!V33 -> 0 | W193: =+Opex_Breakdown!W33 -> 0 | X193: =+X88 -> 0 | Y193: 0 | Z193: 0 | AA193: 0 | AB193: 0 | AC193: 0 | AD193: 0 | AE193: 0 | AF193: 0 | AG193: 0
U194: Total Non-controllable operating expenditure | V194: =+Opex_Breakdown!V34 -> 4.283712925 | W194: =+Opex_Breakdown!W34 -> 3.657508255 | X194: =SUM(X189:X193) -> 3.832702152 | Y194: 3.830346611 | Z194: 3.8280401 | AA194: 3.825781597 | AB194: 3.823570103 | AC194: 3.764158258 | AD194: 3.761891222 | AE194: 3.759675154 | AF194: 3.757508911 | AG194: 3.755391371
V196: ERROR CHECK | X196: =+X166=X92 -> FALSE | Y196: TRUE | Z196: TRUE | AA196: TRUE | AB196: TRUE | AC196: TRUE | AD196: TRUE | AE196: TRUE | AF196: TRUE | AG196: TRUE
X197: =+X185=X160 -> FALSE | Y197: FALSE | Z197: FALSE | AA197: FALSE | AB197: FALSE | AC197: FALSE | AD197: FALSE | AE197: FALSE | AF197: FALSE | AG197: FALSE
X198: =+X147=X166 -> FALSE | Y198: TRUE | Z198: TRUE | AA198: TRUE | AB198: TRUE | AC198: TRUE | AD198: TRUE | AE198: TRUE | AF198: TRUE | AG198: TRUE
X199: =+X194=X142 -> TRUE | Y199: TRUE | Z199: TRUE | AA199: TRUE | AB199: TRUE | AC199: TRUE | AD199: TRUE | AE199: TRUE | AF199: TRUE | AG199: TRUE

Sheet Opex_Breakdown
A1: 80 | B1: Operating Expenditure - Breakdown
B2: =+Contents!H7 -> Lower Murray Water - Rural
B3: Go to Table of Contents
L4: FIRST REG PERIOD | P4: SECOND REG PERIOD | U4: THIRD REG PERIOD | Z4: FOURTH REG PERIOD | AC4: FIFTH REG PERIOD
K6: 2006 | L6: 2007 | M6: 2008 | N6: 2009 | O6: 2010 | P6: 2011 | Q6: 2012 | R6: 2013 | S6: 2014 | T6: 2015 | U6: 2016 | V6: 2017 | W6: 2018 | X6: 2019 | Y6: 2020 | Z6: 2021 | AA6: 2022 | AB6: 2023 | AC6: 2024 | AD6: 2025 | AE6: 2026 | AF6: 2027 | AG6: 2028
B7: $m, 01/01/18 | K7: =+CONCATENATE(K6-1,"-",RIGHT(K6,2)) -> 2005-06 | L7: =+CONCATENATE(L6-1,"-",RIGHT(L6,2)) -> 2006-07 | M7: 2007-08 | N7: 2008-09 | O7: 2009-10 | P7: 2010-11 | Q7: 2011-12 | R7: 2012-13 | S7: 2013-14 | T7: 2014-15 | U7: 2015-16 | V7: 2016-17 | W7: 2017-18 | X7: =+CONCATENATE(X6-1,"-",RIGHT(X6,2)) -> 2018-19 | Y7: =+CONCATENATE(Y6-1,"-",RIGHT(Y6,2)) -> 2019-20 | Z7: =+CONCATENATE(Z6-1,"-",RIGHT(Z6,2)) -> 2020-21 | AA7: =+CONCATENATE(AA6-1,"-",RIGHT(AA6,2)) -> 2021-22 | AB7: =+CONCATENATE(AB6-1,"-",RIGHT(AB6,2)) -> 2022-23 | AC7: =+CONCATENATE(AC6-1,"-",RIGHT(AC6,2)) -> 2023-24 | AD7: 2024-25 | AE7: 2025-26 | AF7: 2026-27 | AG7: 2027-28
D10: Operating Expenditure Summary
E12: Irrigation | K12: =+K56-K50-K53 -> 0 | L12: 0 | M12: 0 | N12: 0 | O12: 0 | P12: 0 | Q12: 0 | R12: 12.68926113 | S12: 12.24824921 | T12: 14.21310577 | U12: 14.2907334 | V12: 14.47434231 | W12: 11.28995646 | X12: 11.8021615 | Y12: 11.38428253 | Z12: 11.26978361 | AA12: 11.23962916 | AB12: 11.27329398 | AC12: 11.34672677 | AD12: 11.34672677 | AE12: 11.34672677 | AF12: 11.34672677 | AG12: 11.34672677
E13: Drainage | K13: =K66-K60-K63 -> 0 | L13: 0 | M13: 0 | N13: 0 | O13: 0 | P13: 0 | Q13: 0 | R13: 2.323591441 | S13: 2.373108349 | T13: 2.378262232 | U13: 2.79785318 | V13: 2.865525592 | W13: 2.718641751 | X13: 2.684584918 | Y13: 2.699801347 | Z13: 2.64598993 | AA13: 2.656052418 | AB13: 2.587706949 | AC13: 2.582944199 | AD13: 2.582944199 | AE13: 2.582944199 | AF13: 2.582944199 | AG13: 2.582944199
E14: Domestic and stock | K14: =K76-K70-K73 -> 0 | L14: 0 | M14: 0 | N14: 0 | O14: 0 | P14: 0 | Q14: 0 | R14: 0.4139150966 | S14: 1.019003805 | T14: 0.5721973001 | U14: 0.5736641956 | V14: 0.6394623359 | W14: 0.5865864414 | X14: 0.9848101339 | Y14: 0.5717885391 | Z14: 0.5560844473 | AA14: 0.5555611249 | AB14: 0.5660618684 | AC14: 0.5538154884 | AD14: 0.5538154884 | AE14: 0.5658154884 | AF14: 0.5538154884 | AG14: 0.5538154884
E15: Surface water diversions | K15: =K86-K80-K83 -> 0 | L15: 0 | M15: 0 | N15: 0 | O15: 0 | P15: 0 | Q15: 0 | R15: 1.026018106 | S15: 1.095365801 | T15: 1.060356178 | U15: 1.259455125 | V15: 1.221201585 | W15: 1.300596714 | X15: 1.276683319 | Y15: 1.283876463 | Z15: 1.256104899 | AA15: 1.259005846 | AB15: 1.225725209 | AC15: 1.225725209 | AD15: 1.225725209 | AE15: 1.225725209 | AF15: 1.225725209 | AG15: 1.225725209
E16: Groundwater diversions | K16: =K96-K90-K93 -> 0 | L16: =L96-L90-L93 -> 0 | M16: 0 | N16: 0 | O16: 0 | P16: 0 | Q16: 0 | R16: 0 | S16: 0 | T16: 0 | U16: 0 | V16: 0 | W16: 0 | X16: 0 | Y16: 0 | Z16: 0 | AA16: 0 | AB16: 0 | AC16: 0 | AD16: 0 | AE16: 0 | AF16: 0 | AG16: 0
E17: Bulk water services | K17: =K105-K102 -> 0 | L17: =L105-L102 -> 0 | M17: 0 | N17: 0 | O17: 0 | P17: 0 | Q17: 0 | R17: 0 | S17: 0 | T17: 0 | U17: 0 | V17: 0 | W17: 0 | X17: 0 | Y17: 0 | Z17: 0 | AA17: 0 | AB17: 0 | AC17: 0 | AD17: 0 | AE17: 0 | AF17: 0 | AG17: 0
E18: Total controllable operating expenditure | K18: =SUM(K12:K17) -> 0 | L18: 0 | M18: 0 | N18: 0 | O18: 0 | P18: 0 | Q18: 0 | R18: 16.45278577 | S18: 16.73572716 | T18: 18.22392148 | U18: 18.9217059 | V18: 19.20053183 | W18: 15.89578137 | X18: 16.74823987 | Y18: 15.93974888 | Z18: 15.72796289 | AA18: 15.71024855 | AB18: 15.65278801 | AC18: 15.70921167 | AD18: 15.70921167 | AE18: 15.72121167 | AF18: 15.70921167 | AG18: 15.70921167
V19: Controllable Opex for 3rd Reg Period | W19: =SUM(S18:W18) -> 88.97766774 | AA19: Controllable Opex for 4th Reg Period | AB19: =SUM(X18:AB18) -> 79.7789882
AA20: Controllable Opex growth from 3rd to 4th Reg Period | AB20: =IFERROR(AB19-W19,"-") -> -9.198679538 | AC20: =IFERROR(AB19/W19-1,"-") -> -0.1033818909
E21: Operations & Maintenance | K21: =K49+K59+K69+K79+K89+K99 -> 0 | L21: =L49+L59+L69+L79+L89+L99 -> 0 | M21: 0 | N21: 0 | O21: 0 | P21: 0 | Q21: 0 | R21: 11.84232703 | S21: 10.57762423 | T21: 10.70478814 | U21: 11.90641264 | V21: 10.98599426 | W21: 10.22480933 | X21: 11.46780845 | Y21: 10.63823446 | Z21: 10.63863547 | AA21: 10.4456024 | AB21: 10.53958173 | AC21: 10.59600539 | AD21: 10.59600539 | AE21: 10.60800539 | AF21: 10.59600539 | AG21: 10.59600539
E22: Customer Service and billing | K22: =K51+K61+K71+K81+K91+K100 -> 0 | L22: 0 | M22: 0 | N22: 0 | O22: 0 | P22: 0 | Q22: 0 | R22: 0.8908781316 | S22: 0.9124559367 | T22: 0.9232874033 | U22: 1.00306226 | V22: 1.015610382 | W22: 1.239370584 | X22: 1.14220752 | Y22: 1.09969252 | Z22: 1.09311152 | AA22: 1.07291652 | AB22: 1.09461952 | AC22: 1.09461952 | AD22: 1.09461952 | AE22: 1.09461952 | AF22: 1.09461952 | AG22: 1.09461952
E23: GSL Payments | K23: =K52+K62+K72+K82+K92+K101 -> 0 | L23: 0 | M23: 0 | N23: 0 | O23: 0 | P23: 0 | Q23: 0 | R23: 0 | S23: 0 | T23: 0 | U23: 0 | V23: 0 | W23: 0 | X23: 0 | Y23: 0 | Z23: 0 | AA23: 0 | AB23: 0 | AC23: 0 | AD23: 0 | AE23: 0 | AF23: 0 | AG23: 0
E24: Corporate | K24: =K54+K64+K74+K84+K94+K103 -> 0 | L24: 0 | M24: 0 | N24: 0 | O24: 0 | P24: 0 | Q24: 0 | R24: 3.719580608 | S24: 5.245646994 | T24: 6.59584594 | U24: 6.012231 | V24: 7.19892718 | W24: 4.431601453 | X24: 4.138223904 | Y24: 4.201821904 | Z24: 3.996215904 | AA24: 4.191729634 | AB24: 4.018586764 | AC24: 4.018586764 | AD24: 4.018586764 | AE24: 4.018586764 | AF24: 4.018586764 | AG24: 4.018586764
E25: Other operating expenditure | K25: =K55+K65+K75+K85+K95+K104 -> 0 | L25: 0 | M25: 0 | N25: 0 | O25: 0 | P25: 0 | Q25: 0 | R25: 0 | S25: 0 | T25: 0 | U25: 0 | V25: 0 | W25: 0 | X25: 0 | Y25: 0 | Z25: 0 | AA25: 0 | AB25: 0 | AC25: 0 | AD25: 0 | AE25: 0 | AF25: 0 | AG25: 0
E26: Total controllable operating expenditure | K26: =SUM(K21:K25) -> 0 | L26: 0 | M26: 0 | N26: 0 | O26: 0 | P26: 0 | Q26: 0 | R26: 16.45278577 | S26: 16.73572716 | T26: 18.22392148 | U26: 18.9217059 | V26: 19.20053183 | W26: 15.89578137 | X26: 16.74823987 | Y26: 15.93974888 | Z26: 15.72796289 | AA26: 15.71024855 | AB26: 15.65278801 | AC26: 15.70921167 | AD26: 15.70921167 | AE26: 15.72121167 | AF26: 15.70921167 | AG26: 15.70921167
E29: External bulk water charges (excl. temporary purchases) | K29: =K50+K60+K70+K80+K90 -> 0 | L29: =L50+L60+L70+L80+L90 -> 0 | M29: 0 | N29: 0 | O29: 0 | P29: 0 | Q29: 0 | R29: 9.452980698 | S29: 4.984931725 | T29: 4.847306509 | U29: 4.922567326 | V29: 3.884503591 | W29: 3.270883255 | X29: 3.303077152 | Y29: 3.300721611 | Z29: 3.2984151 | AA29: 3.296156597 | AB29: 3.293945103 | AC29: 3.234533258 | AD29: 3.232266222 | AE29: 3.230050154 | AF29: 3.227883911 | AG29: 3.225766371
E30: External temporary water purchases | K30: =+K108 -> 0 | L30: 0 | M30: 0 | N30: 0 | O30: 0 | P30: 0 | Q30: 0 | R30: 0 | S30: 0 | T30: 0 | U30: 0 | V30: 0 | W30: 0 | X30: 0 | Y30: 0 | Z30: 0 | AA30: 0 | AB30: 0 | AC30: 0 | AD30: 0 | AE30: 0 | AF30: 0 | AG30: 0
E31: Licence fees | K31: =+K115 -> 0 | L31: 0 | M31: 0 | N31: 0 | O31: 0 | P31: 0 | Q31: 0 | R31: 0.02691713191 | S31: 0.02070040527 | T31: 0.01898563508 | U31: 0.01417260791 | V31: 0.02134426987 | W31: 0.016625 | X31: 0.016625 | Y31: 0.016625 | Z31: 0.016625 | AA31: 0.016625 | AB31: 0.016625 | AC31: 0.016625 | AD31: 0.016625 | AE31: 0.016625 | AF31: 0.016625 | AG31: 0.016625
E32: Environment Contribution | K32: =K117 -> 0 | L32: 0 | M32: 0 | N32: 0 | O32: 0 | P32: 0 | Q32: 0 | R32: 0.4402302302 | S32: 0.3992675781 | T32: 0.3879032258 | U32: 0.3828183521 | V32: 0.3778650647 | W32: 0.37 | X32: 0.513 | Y32: 0.513 | Z32: 0.513 | AA32: 0.513 | AB32: 0.513 | AC32: 0.513 | AD32: 0.513 | AE32: 0.513 | AF32: 0.513 | AG32: 0.513
E33: Other non-controllable | K33: =+K130 -> 0 | L33: 0 | M33: 0 | N33: 0 | O33: 0 | P33: 0 | Q33: 0 | R33: 0 | S33: 0 | T33: 0 | U33: 0 | V33: 0 | W33: 0 | X33: 0 | Y33: 0 | Z33: 0 | AA33: 0 | AB33: 0 | AC33: 0 | AD33: 0 | AE33: 0 | AF33: 0 | AG33: =+AG130 -> 0
E34: Total non-controllable operating expenditure | K34: =SUM(K29:K33) -> 0 | L34: 0 | M34: 0 | N34: 0 | O34: 0 | P34: 0 | Q34: 0 | R34: 9.92012806 | S34: 5.404899708 | T34: 5.25419537 | U34: 5.319558286 | V34: 4.283712925 | W34: 3.657508255 | X34: 3.832702152 | Y34: 3.830346611 | Z34: 3.8280401 | AA34: 3.825781597 | AB34: 3.823570103 | AC34: 3.764158258 | AD34: 3.761891222 | AE34: 3.759675154 | AF34: 3.757508911 | AG34: 3.755391371
V35: Non-controllable Opex for 3rd Reg Period | W35: =SUM(S34:W34) -> 23.91987454 | AA35: Non-controllable Opex for 4th Reg Period | AB35: =SUM(X34:AB34) -> 19.14044056
AA36: Non-controllable Opex growth from 3rd to 4th Reg Period | AB36: =IFERROR(AB35-W35,"-") -> -4.779433982 | AC36: =IFERROR(AB35/W35-1,"-") -> -0.1998101609
E37: Total prescribed operating expenditure | K37: =+K34+K18 -> 0 | L37: 0 | M37: 0 | N37: 0 | O37: 0 | P37: 0 | Q37: 0 | R37: 26.37291383 | S37: 22.14062687 | T37: 23.47811685 | U37: 24.24126419 | V37: 23.48424475 | W37: 19.55328962 | X37: 20.58094202 | Y37: 19.77009549 | Z37: 19.55600299 | AA37: 19.53603015 | AB37: 19.47635811 | AC37: 19.47336993 | AD37: 19.47110289 | AE37: 19.48088682 | AF37: 19.46672058 | AG37: 19.46460304
V38: Prescribed Opex for 3rd Reg Period | W38: =SUM(S37:W37) -> 112.8975423 | AA38: Prescribed Opex for 4th Reg Period | AB38: =SUM(X37:AB37) -> 98.91942876
AA39: Prescribed Opex growth from 3rd to 4th Reg Period | AB39: =IFERROR(AB38-W38,"-") -> -13.97811352 | AC39: =IFERROR(AB38/W38-1,"-") -> -0.123812381
W40: To reconcile to 'Opex_FO' tab row 123>> | X40: =+Opex_FO!X92 -> 20.58094202 | Y40: =+Opex_FO!Y92 -> 19.77009549 | Z40: =+Opex_FO!Z92 -> 19.55600299 | AA40: =+Opex_FO!AA92 -> 19.53603015 | AB40: =+Opex_FO!AB92 -> 19.47635811 | AC40: =+Opex_FO!AC92 -> 19.47336993 | AD40: =+Opex_FO!AD92 -> 19.47110289 | AE40: =+Opex_FO!AE92 -> 19.48088682 | AF40: =+Opex_FO!AF92 -> 19.46672058 | AG40: =+Opex_FO!AG92 -> 19.46460304
W41: Difference | X41: =+X40-X37 -> 0 | Y41: 0 | Z41: 0 | AA41: 0 | AB41: 0 | AC41: 0 | AD41: 0 | AE41: 0 | AF41: 0 | AG41: 0
W42: Test | X42: =+X40=X37 -> TRUE | Y42: TRUE | Z42: TRUE | AA42: TRUE | AB42: TRUE | AC42: TRUE | AD42: TRUE | AE42: TRUE | AF42: TRUE | AG42: TRUE
B46: Total operating expenditure
C48: Irrigation
D49: Operations & Maintenance | R49: 10.07005867 | S49: 8.276413751 | T49: 8.795730023 | U49: 9.542642673 | V49: 8.730520486 | W49: 8.087778525 | X49: 8.972805079 | Y49: 8.543564262 | Z49: 8.542862601 | AA49: 8.417745019 | AB49: 8.533561605 | AC49: 8.606994395 | AD49: 8.606994395 | AE49: 8.606994395 | AF49: 8.606994395 | AG49: 8.606994395
D50: External bulk charges (excl. temporary purchases) | R50: 2.737001343 | S50: 1.791479781 | T50: 1.834004105 | U50: 1.821791777 | V50: 1.372735216 | W50: 1.14214503 | X50: 1.161637165 | Y50: 1.161637165 | Z50: 1.161637165 | AA50: 1.161637165 | AB50: 1.161637165 | AC50: 1.16163781 | AD50: 1.16163781 | AE50: 1.16163781 | AF50: 1.16163781 | AG50: 1.16163781
D51: Customer Service and billing | R51: 0.5039348807 | S51: 0.4929777678 | T51: 0.501640152 | U51: 0.5455960456 | V51: 0.5517860641 | W51: 0.6715801194 | X51: 0.6188657323 | Y51: 0.5958304465 | Z51: 0.5922647588 | AA51: 0.5813227949 | AB51: 0.5930818165 | AC51: 0.5930818165 | AD51: 0.5930818165 | AE51: 0.5930818165 | AF51: 0.5930818165 | AG51: 0.5930818165
D52: GSL Payments | R52: 0 | S52: 0 | T52: 0 | U52: 0 | V52: 0 | W52: 0 | X52: 0 | Y52: 0 | Z52: 0 | AA52: 0 | AB52: 0 | AC52: 0 | AD52: 0 | AE52: 0 | AF52: 0 | AG52: 0
D53: Licence Fees | R53: 0 | S53: 0 | T53: 0 | U53: 0 | V53: 0 | W53: 0 | X53: 0 | Y53: 0 | Z53: 0 | AA53: 0 | AB53: 0 | AC53: 0 | AD53: 0 | AE53: 0 | AF53: 0 | AG53: 0
D54: Corporate | R54: 2.11526758 | S54: 3.478857687 | T54: 4.915735593 | U54: 4.202494684 | V54: 5.192035763 | W54: 2.530597817 | X54: 2.210490687 | Y54: 2.244887822 | Z54: 2.134656253 | AA54: 2.240561347 | AB54: 2.146650562 | AC54: 2.146650562 | AD54: 2.146650562 | AE54: 2.146650562 | AF54: 2.146650562 | AG54: 2.146650562
D55: Other operating expenditure | R55: 0 | S55: 0 | T55: 0 | U55: 0 | V55: 0 | W55: 0 | X55: 0 | Y55: 0 | Z55: 0 | AA55: 0 | AB55: 0 | AC55: 0 | AD55: 0 | AE55: 0 | AF55: 0 | AG55: 0
C56: =+CONCATENATE("Total ",C48) -> Total Irrigation | K56: =+SUM(K49:K55) -> 0 | L56: 0 | M56: 0 | N56: 0 | O56: 0 | P56: 0 | Q56: 0 | R56: 15.42626247 | S56: 14.03972899 | T56: 16.04710987 | U56: 16.11252518 | V56: 15.84707753 | W56: 12.43210149 | X56: 12.96379866 | Y56: 12.5459197 | Z56: 12.43142078 | AA56: 12.40126633 | AB56: 12.43493115 | AC56: 12.50836458 | AD56: 12.50836458 | AE56: 12.50836458 | AF56: 12.50836458 | AG56: 12.50836458
C58: Drainage
D59: =+D49 -> Operations & Maintenance | R59: 0.9705674419 | S59: 0.9599220898 | T59: 1.037323768 | U59: 1.335057611 | V59: 1.255447835 | W59: 1.134329832 | X59: 1.112397084 | Y59: 1.1214044 | Z59: 1.1297818 | AA59: 1.087953957 | AB59: 1.064509372 | AC59: 1.059746622 | AD59: 1.059746622 | AE59: 1.059746622 | AF59: 1.059746622 | AG59: 1.059746622
D60: External bulk charges (excl. temporary purchases) | R60: 0.0002693001958 | S60: 0.0002458264484 | T60: 0.001131353984 | U60: 0.000839638892 | V60: 0.0001178790851 | W60: 0 | X60: 0 | Y60: 0 | Z60: 0 | AA60: 0 | AB60: 0 | AC60: 0 | AD60: 0 | AE60: 0 | AF60: 0 | AG60: 0
D61: Customer Service and billing | R61: 0.2614658979 | S61: 0.2707349499 | T61: 0.2744663609 | U61: 0.2969334863 | V61: 0.2992588149 | W61: 0.3669269561 | X61: 0.3382025961 | Y61: 0.3256140926 | Z61: 0.3236654876 | AA61: 0.3176858374 | AB61: 0.3241119998 | AC61: 0.3241119998 | AD61: 0.3241119998 | AE61: 0.3241119998 | AF61: 0.3241119998 | AG61: 0.3241119998
D62: GSL Payments | R62: 0 | S62: 0 | T62: 0 | U62: 0 | V62: 0 | W62: 0 | X62: 0 | Y62: 0 | Z62: 0 | AA62: 0 | AB62: 0 | AC62: 0 | AD62: 0 | AE62: 0 | AF62: 0 | AG62: 0
D63: Licence Fees | R63: 0 | S63: 0 | T63: 0 | U63: 0 | V63: 0 | W63: 0 | X63: 0 | Y63: 0 | Z63: 0 | AA63: 0 | AB63: 0 | AC63: 0 | AD63: 0 | AE63: 0 | AF63: 0 | AG63: 0
D64: Corporate | R64: 1.091558101 | S64: 1.142451309 | T64: 1.066472103 | U64: 1.165862083 | V64: 1.310818943 | W64: 1.217384962 | X64: 1.233985238 | Y64: 1.252782854 | Z64: 1.192542642 | AA64: 1.250412624 | AB64: 1.199085577 | AC64: 1.199085577 | AD64: 1.199085577 | AE64: 1.199085577 | AF64: 1.199085577 | AG64: 1.199085577
D65: Other operating expenditure | R65: 0 | S65: 0 | T65: 0 | U65: 0 | V65: 0 | W65: 0 | X65: 0 | Y65: 0 | Z65: 0 | AA65: 0 | AB65: 0 | AC65: 0 | AD65: 0 | AE65: 0 | AF65: 0 | AG65: 0
C66: =+CONCATENATE("Total ",C58) -> Total Drainage | K66: =+SUM(K59:K65) -> 0 | L66: 0 | M66: 0 | N66: 0 | O66: 0 | P66: 0 | Q66: 0 | R66: 2.323860741 | S66: 2.373354175 | T66: 2.379393586 | U66: 2.798692819 | V66: 2.865643472 | W66: 2.718641751 | X66: 2.684584918 | Y66: 2.699801347 | Z66: 2.64598993 | AA66: 2.656052418 | AB66: 2.587706949 | AC66: 2.582944199 | AD66: 2.582944199 | AE66: 2.582944199 | AF66: 2.582944199 | AG66: 2.582944199
C68: Domestic and stock
D69: =+D59 -> Operations & Maintenance | R69: 0.3264153628 | S69: 0.9060761779 | T69: 0.4697271145 | U69: 0.4625125791 | V69: 0.5216028008 | W69: 0.4692170179 | X69: 0.8671653253 | Y69: 0.453638102 | Z69: 0.4440235464 | AA69: 0.4401598905 | AB69: 0.4533071611 | AC69: 0.4410607811 | AD69: 0.4410607811 | AE69: 0.4530607811 | AF69: 0.4410607811 | AG69: 0.4410607811
D70: External bulk charges (excl. temporary purchases) | R70: 0.07315211671 | S70: 0.06577861154 | T70: 0.0672098449 | U70: 0.06742012969 | V70: 0.05756515065 | W70: 0.056353 | X70: 0.056353 | Y70: 0.056353 | Z70: 0.056353 | AA70: 0.056353 | AB70: 0.056353 | AC70: 0.000143 | AD70: 0.000143 | AE70: 0.000143 | AF70: 0.000143 | AG70: 0.000143
D71: Customer Service and billing | R71: 0.01399807764 | S71: 0.01678890244 | T71: 0.01706936594 | U71: 0.01855834289 | V71: 0.01957435992 | W71: 0.02320004049 | X71: 0.02138385799 | Y71: 0.02058791268 | Z71: 0.02046470637 | AA71: 0.02008662533 | AB71: 0.02049293842 | AC71: 0.02049293842 | AD71: 0.02049293842 | AE71: 0.02049293842 | AF71: 0.02049293842 | AG71: 0.02049293842
D72: GSL Payments | R72: 0 | S72: 0 | T72: 0 | U72: 0 | V72: 0 | W72: 0 | X72: 0 | Y72: 0 | Z72: 0 | AA72: 0 | AB72: 0 | AC72: 0 | AD72: 0 | AE72: 0 | AF72: 0 | AG72: 0
D73: Licence Fees | R73: 0 | S73: 0 | T73: 0 | U73: 0 | V73: 0 | W73: 0 | X73: 0 | Y73: 0 | Z73: 0 | AA73: 0 | AB73: 0 | AC73: 0 | AD73: 0 | AE73: 0 | AF73: 0 | AG73: 0
D74: Corporate | R74: 0.07350165617 | S74: 0.0961387243 | T74: 0.08540081958 | U74: 0.0925932737 | V74: 0.09828517514 | W74: 0.09416938297 | X74: 0.09626095055 | Y74: 0.09756252446 | Z74: 0.09159619458 | AA74: 0.09531460905 | AB74: 0.09226176886 | AC74: 0.09226176886 | AD74: 0.09226176886 | AE74: 0.09226176886 | AF74: 0.09226176886 | AG74: 0.09226176886
D75: Other operating expenditure | R75: 0 | S75: 0 | T75: 0 | U75: 0 | V75: 0 | W75: 0 | X75: 0 | Y75: 0 | Z75: 0 | AA75: 0 | AB75: 0 | AC75: 0 | AD75: 0 | AE75: 0 | AF75: 0 | AG75: 0
C76: =+CONCATENATE("Total ",C68) -> Total Domestic and stock | K76: =+SUM(K69:K75) -> 0 | L76: 0 | M76: 0 | N76: 0 | O76: 0 | P76: 0 | Q76: 0 | R76: 0.4870672133 | S76: 1.084782416 | T76: 0.639407145 | U76: 0.6410843253 | V76: 0.6970274865 | W76: 0.6429394414 | X76: 1.041163134 | Y76: 0.6281415391 | Z76: 0.6124374473 | AA76: 0.6119141249 | AB76: 0.6224148684 | AC76: 0.5539584884 | AD76: 0.5539584884 | AE76: 0.5659584884 | AF76: 0.5539584884 | AG76: 0.5539584884
C78: Surface water diversions
D79: =+D59 -> Operations & Maintenance | R79: 0.4752855609 | S79: 0.435212211 | T79: 0.4020072293 | U79: 0.5661997802 | V79: 0.4784231431 | W79: 0.5334839547 | X79: 0.5154409569 | Y79: 0.5196276915 | Z79: 0.521967518 | AA79: 0.499743529 | AB79: 0.4882035867 | AC79: 0.4882035867 | AD79: 0.4882035867 | AE79: 0.4882035867 | AF79: 0.4882035867 | AG79: 0.4882035867
D80: External bulk charges (excl. temporary purchases) | R80: 6.642557938 | S80: 3.127427506 | T80: 2.944961204 | U80: 3.032515781 | V80: 2.454085345 | W80: 2.072385225 | X80: 2.085086987 | Y80: 2.082731446 | Z80: 2.080424935 | AA80: 2.078166432 | AB80: 2.075954938 | AC80: 2.072752448 | AD80: 2.070485412 | AE80: 2.068269344 | AF80: 2.066103101 | AG80: 2.063985561
D81: Customer Service and billing | R81: 0.1114792754 | S81: 0.1319543166 | T81: 0.1301115245 | U81: 0.1419743856 | V81: 0.1449911427 | W81: 0.177663468 | X81: 0.1637553336 | Y81: 0.1576600681 | Z81: 0.1567165672 | AA81: 0.1538212624 | AB81: 0.1569327653 | AC81: 0.1569327653 | AD81: 0.1569327653 | AE81: 0.1569327653 | AF81: 0.1569327653 | AG81: 0.1569327653
D82: GSL Payments | R82: 0 | S82: 0 | T82: 0 | U82: 0 | V82: 0 | W82: 0 | X82: 0 | Y82: 0 | Z82: 0 | AA82: 0 | AB82: 0 | AC82: 0 | AD82: 0 | AE82: 0 | AF82: 0 | AG82: 0
D83: Licence Fees | R83: 0 | S83: 0 | T83: 0 | U83: 0 | V83: 0 | W83: 0 | X83: 0 | Y83: 0 | Z83: 0 | AA83: 0 | AB83: 0 | AC83: 0 | AD83: 0 | AE83: 0 | AF83: 0 | AG83: 0
D84: Corporate | R84: 0.4392532701 | S84: 0.5281992733 | T84: 0.5282374244 | U84: 0.5512809588 | V84: 0.5977872988 | W84: 0.5894492911 | X84: 0.5974870287 | Y84: 0.6065887031 | Z84: 0.5774208135 | AA84: 0.6054410542 | AB84: 0.5805888565 | AC84: 0.5805888565 | AD84: 0.5805888565 | AE84: 0.5805888565 | AF84: 0.5805888565 | AG84: 0.5805888565
D85: Other operating expenditure | R85: 0 | S85: 0 | T85: 0 | U85: 0 | V85: 0 | W85: 0 | X85: 0 | Y85: 0 | Z85: 0 | AA85: 0 | AB85: 0 | AC85: 0 | AD85: 0 | AE85: 0 | AF85: 0 | AG85: 0
C86: =+CONCATENATE("Total ",C78) -> Total Surface water diversions | K86: =+SUM(K79:K85) -> 0 | L86: 0 | M86: 0 | N86: 0 | O86: 0 | P86: 0 | Q86: 0 | R86: 7.668576044 | S86: 4.222793307 | T86: 4.005317383 | U86: 4.291970905 | V86: 3.675286929 | W86: 3.372981939 | X86: 3.361770307 | Y86: 3.366607909 | Z86: 3.336529833 | AA86: 3.337172277 | AB86: 3.301680147 | AC86: 3.298477657 | AD86: 3.29621062 | AE86: 3.293994553 | AF86: 3.291828309 | AG86: 3.289710769
C88: Groundwater diversions
D89: =+D69 -> Operations & Maintenance | R89: 0 | S89: 0 | T89: 0 | U89: 0 | V89: 0 | W89: 0 | X89: 0 | Y89: 0 | Z89: 0 | AA89: 0 | AB89: 0 | AC89: 0 | AD89: 0 | AE89: 0 | AF89: 0 | AG89: 0
D90: External bulk charges (excl. temporary purchases) | R90: 0 | S90: 0 | T90: 0 | U90: 0 | V90: 0 | W90: 0 | X90: 0 | Y90: 0 | Z90: 0 | AA90: 0 | AB90: 0 | AC90: 0 | AD90: 0 | AE90: 0 | AF90: 0 | AG90: 0
D91: Customer Service and billing | R91: 0 | S91: 0 | T91: 0 | U91: 0 | V91: 0 | W91: 0 | X91: 0 | Y91: 0 | Z91: 0 | AA91: 0 | AB91: 0 | AC91: 0 | AD91: 0 | AE91: 0 | AF91: 0 | AG91: 0
D92: GSL Payments | R92: 0 | S92: 0 | T92: 0 | U92: 0 | V92: 0 | W92: 0 | X92: 0 | Y92: 0 | Z92: 0 | AA92: 0 | AB92: 0 | AC92: 0 | AD92: 0 | AE92: 0 | AF92: 0 | AG92: 0
D93: Licence fees | R93: 0 | S93: 0 | T93: 0 | U93: 0 | V93: 0 | W93: 0 | X93: 0 | Y93: 0 | Z93: 0 | AA93: 0 | AB93: 0 | AC93: 0 | AD93: 0 | AE93: 0 | AF93: 0 | AG93: 0
D94: Corporate | R94: 0 | S94: 0 | T94: 0 | U94: 0 | V94: 0 | W94: 0 | X94: 0 | Y94: 0 | Z94: 0 | AA94: 0 | AB94: 0 | AC94: 0 | AD94: 0 | AE94: 0 | AF94: 0 | AG94: 0
D95: Other operating expenditure | R95: 0 | S95: 0 | T95: 0 | U95: 0 | V95: 0 | W95: 0 | X95: 0 | Y95: 0 | Z95: 0 | AA95: 0 | AB95: 0 | AC95: 0 | AD95: 0 | AE95: 0 | AF95: 0 | AG95: 0
C96: =+CONCATENATE("Total ",C88) -> Total Groundwater diversions | K96: =+SUM(K89:K95) -> 0 | L96: 0 | M96: 0 | N96: 0 | O96: 0 | P96: 0 | Q96: 0 | R96: 0 | S96: 0 | T96: 0 | U96: 0 | V96: 0 | W96: 0 | X96: 0 | Y96: 0 | Z96: 0 | AA96: 0 | AB96: 0 | AC96: 0 | AD96: 0 | AE96: 0 | AF96: 0 | AG96: 0
C98: Bulk water services
D99: =+D49 -> Operations & Maintenance | R99: 0 | S99: 0 | T99: 0 | U99: 0 | V99: 0 | W99: 0 | X99: 0 | Y99: 0 | Z99: 0 | AA99: 0 | AB99: 0 | AC99: 0 | AD99: 0 | AE99: 0 | AF99: 0 | AG99: 0
D100: Customer Service and billing | R100: 0 | S100: 0 | T100: 0 | U100: 0 | V100: 0 | W100: 0 | X100: 0 | Y100: 0 | Z100: 0 | AA100: 0 | AB100: 0 | AC100: 0 | AD100: 0 | AE100: 0 | AF100: 0 | AG100: 0
D101: GSL Payments | R101: 0 | S101: 0 | T101: 0 | U101: 0 | V101: 0 | W101: 0 | X101: 0 | Y101: 0 | Z101: 0 | AA101: 0 | AB101: 0 | AC101: 0 | AD101: 0 | AE101: 0 | AF101: 0 | AG101: 0
D102: Licence fees | R102: 0 | S102: 0 | T102: 0 | U102: 0 | V102: 0 | W102: 0 | X102: 0 | Y102: 0 | Z102: 0 | AA102: 0 | AB102: 0 | AC102: 0 | AD102: 0 | AE102: 0 | AF102: 0 | AG102: 0
D103: Corporate | R103: 0 | S103: 0 | T103: 0 | U103: 0 | V103: 0 | W103: 0 | X103: 0 | Y103: 0 | Z103: 0 | AA103: 0 | AB103: 0 | AC103: 0 | AD103: 0 | AE103: 0 | AF103: 0 | AG103: 0
D104: Other operating expenditure | R104: 0 | S104: 0 | T104: 0 | U104: 0 | V104: 0 | W104: 0 | X104: 0 | Y104: 0 | Z104: 0 | AA104: 0 | AB104: 0 | AC104: 0 | AD104: 0 | AE104: 0 | AF104: 0 | AG104: 0
C105: =+CONCATENATE("Total ",C98) -> Total Bulk water services | K105: =+SUM(K99:K104) -> 0 | L105: 0 | M105: 0 | N105: 0 | O105: 0 | P105: 0 | Q105: 0 | R105: 0 | S105: 0 | T105: 0 | U105: 0 | V105: 0 | W105: 0 | X105: 0 | Y105: 0 | Z105: 0 | AA105: 0 | AB105: 0 | AC105: 0 | AD105: 0 | AE105: 0 | AF105: 0 | AG105: 0
C108: External temporary water purchases | R108: 0 | S108: 0 | T108: 0 | U108: 0 | V108: 0 | W108: 0 | X108: 0 | Y108: 0 | Z108: 0 | AA108: 0 | AB108: 0 | AC108: 0 | AD108: 0 | AE108: 0 | AF108: 0 | AG108: 0
C111: Licence fees
D112: Essential Services Commission | R112: 0.02691713191 | S112: 0.02070040527 | T112: 0.01898563508 | U112: 0.01417260791 | V112: 0.02134426987 | W112: 0.016625 | X112: 0.016625 | Y112: 0.016625 | Z112: 0.016625 | AA112: 0.016625 | AB112: 0.016625 | AC112: 0.016625 | AD112: 0.016625 | AE112: 0.016625 | AF112: 0.016625 | AG112: 0.016625
D113: Department of Human Services | R113: 0 | S113: 0 | T113: 0 | U113: 0 | V113: 0 | W113: 0 | X113: 0 | Y113: 0 | Z113: 0 | AA113: 0 | AB113: 0 | AC113: 0 | AD113: 0 | AE113: 0 | AF113: 0 | AG113: 0
D114: Environment Protection Authority | R114: 0 | S114: 0 | T114: 0 | U114: 0 | V114: 0 | W114: 0 | X114: 0 | Y114: 0 | Z114: 0 | AA114: 0 | AB114: 0 | AC114: 0 | AD114: 0 | AE114: 0 | AF114: 0 | AG114: 0
C115: =+CONCATENATE("Total ",C111) -> Total Licence fees | K115: =+SUM(K112:K114) -> 0 | L115: =+SUM(L112:L114) -> 0 | M115: 0 | N115: 0 | O115: 0 | P115: 0 | Q115: 0 | R115: 0.02691713191 | S115: 0.02070040527 | T115: 0.01898563508 | U115: 0.01417260791 | V115: 0.02134426987 | W115: 0.016625 | X115: =+SUM(X112:X114) -> 0.016625 | Y115: =+SUM(Y112:Y114) -> 0.016625 | Z115: =+SUM(Z112:Z114) -> 0.016625 | AA115: =+SUM(AA112:AA114) -> 0.016625 | AB115: =+SUM(AB112:AB114) -> 0.016625 | AC115: =+SUM(AC112:AC114) -> 0.016625 | AD115: 0.016625 | AE115: 0.016625 | AF115: 0.016625 | AG115: 0.016625
C117: Environment Contribution | R117: 0.4402302302 | S117: 0.3992675781 | T117: 0.3879032258 | U117: 0.3828183521 | V117: 0.3778650647 | W117: 0.37 | X117: 0.513 | Y117: 0.513 | Z117: 0.513 | AA117: 0.513 | AB117: 0.513 | AC117: 0.513 | AD117: 0.513 | AE117: 0.513 | AF117: 0.513 | AG117: 0.513
C119: Other non-controllable
D120: [Non-controllable 1] | E120: 0 | F120: 0 | G120: 0 | H120: 0 | I120: 0 | J120: 0 | R120: 0 | S120: 0 | T120: 0 | U120: 0 | V120: 0 | W120: 0 | X120: 0 | Y120: 0 | Z120: 0 | AA120: 0 | AB120: 0 | AC120: 0 | AD120: 0 | AE120: 0 | AF120: 0 | AG120: 0
D121: [Non-controllable 2] | E121: 0 | F121: 0 | G121: 0 | H121: 0 | I121: 0 | J121: 0 | R121: 0 | S121: 0 | T121: 0 | U121: 0 | V121: 0 | W121: 0 | X121: 0 | Y121: 0 | Z121: 0 | AA121: 0 | AB121: 0 | AC121: 0 | AD121: 0 | AE121: 0 | AF121: 0 | AG121: 0
D122: [Non-controllable 3] | E122: 0 | F122: 0 | G122: 0 | H122: 0 | I122: 0 | J122: 0 | R122: 0 | S122: 0 | T122: 0 | U122: 0 | V122: 0 | W122: 0 | X122: 0 | Y122: 0 | Z122: 0 | AA122: 0 | AB122: 0 | AC122: 0 | AD122: 0 | AE122: 0 | AF122: 0 | AG122: 0
D123: [Non-controllable 4] | E123: 0 | F123: 0 | G123: 0 | H123: 0 | I123: 0 | J123: 0 | R123: 0 | S123: 0 | T123: 0 | U123: 0 | V123: 0 | W123: 0 | X123: 0 | Y123: 0 | Z123: 0 | AA123: 0 | AB123: 0 | AC123: 0 | AD123: 0 | AE123: 0 | AF123: 0 | AG123: 0
D124: [Non-controllable 5] | E124: 0 | F124: 0 | G124: 0 | H124: 0 | I124: 0 | J124: 0 | R124: 0 | S124: 0 | T124: 0 | U124: 0 | V124: 0 | W124: 0 | X124: 0 | Y124: 0 | Z124: 0 | AA124: 0 | AB124: 0 | AC124: 0 | AD124: 0 | AE124: 0 | AF124: 0 | AG124: 0
D125: [Non-controllable 6] | E125: 0 | F125: 0 | G125: 0 | H125: 0 | I125: 0 | J125: 0 | R125: 0 | S125: 0 | T125: 0 | U125: 0 | V125: 0 | W125: 0 | X125: 0 | Y125: 0 | Z125: 0 | AA125: 0 | AB125: 0 | AC125: 0 | AD125: 0 | AE125: 0 | AF125: 0 | AG125: 0
D126: [Non-controllable 7] | E126: 0 | F126: 0 | G126: 0 | H126: 0 | I126: 0 | J126: 0 | R126: 0 | S126: 0 | T126: 0 | U126: 0 | V126: 0 | W126: 0 | X126: 0 | Y126: 0 | Z126: 0 | AA126: 0 | AB126: 0 | AC126: 0 | AD126: 0 | AE126: 0 | AF126: 0 | AG126: 0
D127: [Non-controllable 8] | E127: 0 | F127: 0 | G127: 0 | H127: 0 | I127: 0 | J127: 0 | R127: 0 | S127: 0 | T127: 0 | U127: 0 | V127: 0 | W127: 0 | X127: 0 | Y127: 0 | Z127: 0 | AA127: 0 | AB127: 0 | AC127: 0 | AD127: 0 | AE127: 0 | AF127: 0 | AG127: 0
D128: [Non-controllable 9] | E128: 0 | F128: 0 | G128: 0 | H128: 0 | I128: 0 | J128: 0 | R128: 0 | S128: 0 | T128: 0 | U128: 0 | V128: 0 | W128: 0 | X128: 0 | Y128: 0 | Z128: 0 | AA128: 0 | AB128: 0 | AC128: 0 | AD128: 0 | AE128: 0 | AF128: 0 | AG128: 0
D129: [Non-controllable 10] | E129: 0 | F129: 0 | G129: 0 | H129: 0 | I129: 0 | J129: 0 | R129: 0 | S129: 0 | T129: 0 | U129: 0 | V129: 0 | W129: 0 | X129: 0 | Y129: 0 | Z129: 0 | AA129: 0 | AB129: 0 | AC129: 0 | AD129: 0 | AE129: 0 | AF129: 0 | AG129: 0
K130: =SUM(K120:K129) -> 0 | L130: 0 | M130: 0 | N130: 0 | O130: 0 | P130: 0 | Q130: 0 | R130: 0 | S130: 0 | T130: 0 | U130: 0 | V130: 0 | W130: 0 | X130: 0 | Y130: 0 | Z130: 0 | AA130: 0 | AB130: 0 | AC130: 0 | AD130: 0 | AE130: 0 | AF130: 0 | AG130: =SUM(AG120:AG129) -> 0

Sheet Capex_FO input
B1: Capital Expenditure - Forecast Input
B2: =+Contents!H7 -> Lower Murray Water - Rural
B3: Go to Table of Contents
C7: Input Summary | F7: FOURTH REG PERIOD | K7: FIFTH REG PERIOD
D9: =+O39 -> 2018-19 | E9: 2019-20 | F9: 2020-21 | G9: 2021-22 | H9: 2022-23 | I9: 2023-24 | J9: 2024-25 | K9: 2025-26 | L9: 2026-27 | M9: 2027-28 | P9: 4th Reg Period | S9: 5th Reg Period
C10: By Cost Driver | P10: Total | Q10: % of Total | S10: Total | T10: % of Total
C11: Net capital expenditure - Renewals | D11: =+SUMIF($F$42:$F$1019,"Renewals",AV$42:AV$1019) -> 13.29145 | E11: 5.651125 | F11: 4.904675 | G11: 4.1249 | H11: 4.692325 | I11: 3.918625 | J11: 7.918625 | K11: 3.918625 | L11: 4.113625 | M11: 3.993625 | P11: =SUM(D11:H11) -> 32.664475 | Q11: =IFERROR(P11/$P$16,"-") -> 0.9512223178 | S11: =SUM(I11:M11) -> 23.863125 | T11: =IFERROR(S11/$S$16,"-") -> 0.9502252308
C12: Net capital expenditure - Growth | D12: =+SUMIF($F$42:$F$1019,"Growth",AV$42:AV$1019) -> 0.3 | E12: 0.3 | F12: 0.25 | G12: 0.25 | H12: 0.25 | I12: 0.25 | J12: 0.25 | K12: 0.25 | L12: 0.25 | M12: 0.25 | P12: =SUM(D12:H12) -> 1.35 | Q12: =IFERROR(P12/$P$16,"-") -> 0.03931335584 | S12: =SUM(I12:M12) -> 1.25 | T12: =IFERROR(S12/$S$16,"-") -> 0.04977476917
C13: Net capital expenditure - Improvements / Compliance | D13: =+SUMIF($F$42:$F$1019,"Improvements / Compliance",AV$42:AV$1019) -> -1.025 | E13: -0.3 | F13: -0.3 | G13: -0.3 | H13: -0.3 | I13: -0.3 | J13: -0.3 | K13: -0.3 | L13: -0.3 | M13: -0.3 | P13: -2.225 | Q13: -0.06479423462 | S13: -1.5 | T13: -0.059729723
C14: Government Contributions | D14: =+Z41 -> 1.05 | E14: =+AA41 -> 0 | F14: 0 | G14: 0 | H14: 0 | I14: 0 | J14: 0 | K14: 0 | L14: 0 | M14: 0 | P14: 1.05 | Q14: 0.03057705454 | S14: 0 | T14: 0
C15: Customer Contributions | D15: =+AK41 -> 0.3 | E15: =+AL41 -> 0.3 | F15: 0.3 | G15: 0.3 | H15: 0.3 | I15: 0.3 | J15: 0.3 | K15: 0.3 | L15: 0.3 | M15: 0.3 | P15: 1.5 | Q15: 0.04368150649 | S15: 1.5 | T15: 0.059729723
C16: Total prescribed capex | D16: =SUM(D11:D15) -> 13.91645 | E16: 5.951125 | F16: 5.154675 | G16: 4.3749 | H16: 4.942325 | I16: 4.168625 | J16: 8.168625 | K16: 4.168625 | L16: 4.363625 | M16: 4.243625 | P16: 34.339475 | Q16: 1 | S16: 25.113125 | T16: 1
C18: By Capital Type
C19: Top 10 Major Projects | D19: =+SUMIF($H$42:$H$1019,$C$19,O$42:O$1019) -> 7.695 | E19: 2.26 | F19: 2.3 | G19: 1.905 | H19: 1.92 | I19: 1.895 | J19: 5.895 | K19: 1.895 | L19: 1.895 | M19: 1.895 | P19: =SUM(D19:H19) -> 16.08 | Q19: =IFERROR(P19/$P$23,"-") -> 0.4682657495 | S19: =SUM(I19:M19) -> 13.475 | T19: =IFERROR(S19/$S$23,"-") -> 0.5365720116
C20: Significant projects | D20: =+SUMIF($H$42:$H$1019,$C$20,O$42:O$1019) -> 3.755 | E20: 1.665 | F20: 1.2 | G20: 0.905 | H20: 0.905 | I20: 0.77 | J20: 0.77 | K20: 0.77 | L20: 0.965 | M20: 0.845 | P20: =SUM(D20:H20) -> 8.43 | Q20: =IFERROR(P20/$P$23,"-") -> 0.2454900665 | S20: =SUM(I20:M20) -> 4.12 | T20: =IFERROR(S20/$S$23,"-") -> 0.1640576392
C21: Capital Programs / Allocation | D21: =+SUMIF($H$42:$H$1019,$C$21,O$42:O$1019) -> 0.955 | E21: 0.955 | F21: 0.955 | G21: 0.955 | H21: 0.955 | I21: 0.955 | J21: 0.955 | K21: 0.955 | L21: 0.955 | M21: 0.955 | P21: 4.775 | Q21: 0.1390527957 | S21: 4.775 | T21: 0.1901396182
C22: Other Capital expenditure | D22: =+SUMIF($H$42:$H$1019,$C$22,O$42:O$1019) -> 1.51145 | E22: 1.071125 | F22: 0.699675 | G22: 0.6099 | H22: 1.162325 | I22: 0.548625 | J22: 0.548625 | K22: 0.548625 | L22: 0.548625 | M22: 0.548625 | P22: 5.054475 | Q22: 0.1471913883 | S22: 2.743125 | T22: 0.1092307309
C23: Total prescribed capex | D23: =SUM(D19:D22) -> 13.91645 | E23: =SUM(E19:E22) -> 5.951125 | F23: 5.154675 | G23: 4.3749 | H23: 4.942325 | I23: 4.168625 | J23: 8.168625 | K23: 4.168625 | L23: 4.363625 | M23: 4.243625 | P23: 34.339475 | Q23: 1 | S23: 25.113125 | T23: 1
C25: Difference | D25: =+D23-D16 -> 0 | E25: =+E23-E16 -> 0 | F25: 0 | G25: 0 | H25: 0 | I25: 0 | J25: 0 | K25: 0 | L25: 0 | M25: 0
C26: Test | D26: =+D23=D16 -> TRUE | E26: TRUE | F26: TRUE | G26: TRUE | H26: TRUE | I26: TRUE | J26: TRUE | K26: TRUE | L26: TRUE | M26: TRUE
C29: Total prescribed capex | D29: =+D23 -> 13.91645 | E29: =+E23 -> 5.951125 | F29: 5.154675 | G29: 4.3749 | H29: 4.942325 | I29: 4.168625 | J29: 8.168625 | K29: 4.168625 | L29: 4.363625 | M29: 4.243625
C32: Regulatory Depreciation | D32: =+BG41 -> 0.214098125 | E32: =+BH41 -> 0.5679272396 | F32: 0.8095497743 | G32: 0.9934942535 | H32: 1.212936372 | I32: 1.306915017 | J32: 1.259438941 | K32: 1.263452865 | L32: 1.290755955 | M32: 1.272627378
B35: $m, 01/01/18
O36: Gross capital expenditure | Z36: Government contributions | AK36: Customer contributions | AV36: Net capital expenditure | BG36: Regulatory Depreciation | BR36: Accumulated capex | CC36: Gross capital expenditure | CN36: Tax Depreciation
O37: $m, 01/01/18 | Z37: $m, 01/01/18 | AK37: $m, 01/01/18 | AV37: $m, 01/01/18 | BG37: $m, 01/01/18 | BR37: $m, 01/01/18 | CC37: Nominal,$ | CN37: Nominal,$
O39: 2018-19 | P39: 2019-20 | Q39: 2020-21 | R39: 2021-22 | S39: 2022-23 | T39: 2023-24 | U39: 2024-25 | V39: 2025-26 | W39: 2026-27 | X39: 2027-28 | Z39: 2018-19 | AA39: 2019-20 | AB39: 2020-21 | AC39: 2021-22 | AD39: 2022-23 | AE39: 2023-24 | AF39: 2024-25 | AG39: 2025-26 | AH39: 2026-27 | AI39: 2027-28 | AK39: 2018-19 | AL39: 2019-20 | AM39: 2020-21 | AN39: 2021-22 | AO39: 2022-23 | AP39: 2023-24 | AQ39: 2024-25 | AR39: 2025-26 | AS39: 2026-27 | AT39: 2027-28 | AV39: 2018-19 | AW39: 2019-20 | AX39: 2020-21 | AY39: 2021-22 | AZ39: 2022-23 | BA39: 2023-24 | BB39: 2024-25 | BC39: 2025-26 | BD39: 2026-27 | BE39: 2027-28 | BG39: 2018-19 | BH39: 2019-20 | BI39: 2020-21 | BJ39: 2021-22 | BK39: 2022-23 | BL39: 2023-24 | BM39: 2024-25 | BN39: 2025-26 | BO39: 2026-27 | BP39: 2027-28 | BR39: 2018-19 | BS39: 2019-20 | BT39: 2020-21 | BU39: 2021-22 | BV39: 2022-23 | BW39: 2023-24 | BX39: 2024-25 | BY39: 2025-26 | BZ39: 2026-27 | CA39: 2027-28 | CC39: 2018-19 | CD39: 2019-20 | CE39: 2020-21 | CF39: 2021-22 | CG39: 2022-23 | CH39: 2023-24 | CI39: 2024-25 | CJ39: 2025-26 | CK39: 2026-27 | CL39: 2027-28 | CN39: 2018-19 | CO39: 2019-20 | CP39: 2020-21 | CQ39: 2021-22 | CR39: 2022-23 | CS39: 2023-24 | CT39: 2024-25 | CU39: 2025-26 | CV39: 2026-27 | CW39: 2027-28
BG40: 1 | BH40: 2 | BI40: 3 | BJ40: 4 | BK40: 5 | BL40: 6 | BM40: 7 | BN40: 8 | BO40: 9 | BP40: 10 | CN40: 1 | CO40: 2 | CP40: 3 | CQ40: 4 | CR40: 5 | CS40: 6 | CT40: 7 | CU40: 8 | CV40: 9 | CW40: 10
C41: Project/program Name | E41: Service | F41: Major cost driver | G41: Asset category | H41: Capital type | J41: Depreciation Method | K41: Year asset operational | L41: Asset life (Regulatory) | M41: Asset life (Tax) | O41: =SUM(O42:O1019) -> 13.91645 | P41: 5.951125 | Q41: 5.154675 | R41: 4.3749 | S41: 4.942325 | T41: 4.168625 | U41: 8.168625 | V41: 4.168625 | W41: 4.363625 | X41: 4.243625 | Z41: =SUM(Z42:Z1019) -> 1.05 | AA41: 0 | AB41: 0 | AC41: 0 | AD41: 0 | AE41: 0 | AF41: 0 | AG41: 0 | AH41: 0 | AI41: 0 | AK41: =SUM(AK42:AK1019) -> 0.3 | AL41: 0.3 | AM41: 0.3 | AN41: 0.3 | AO41: 0.3 | AP41: 0.3 | AQ41: 0.3 | AR41: 0.3 | AS41: 0.3 | AT41: 0.3 | AV41: =SUM(AV42:AV1019) -> 12.56645 | AW41: 5.651125 | AX41: 4.854675 | AY41: 4.0749 | AZ41: 4.642325 | BA41: 3.868625 | BB41: 7.868625 | BC41: 3.868625 | BD41: 4.063625 | BE41: 3.943625 | BG41: =SUM(BG42:BG1019) -> 0.214098125 | BH41: 0.5679272396 | BI41: 0.8095497743 | BJ41: 0.9934942535 | BK41: 1.212936372 | BL41: 1.306915017 | BM41: 1.259438941 | BN41: 1.263452865 | BO41: 1.290755955 | BP41: 1.272627378 | BR41: =SUM(BR42:BR1019) -> 12.26645 | BS41: 5.611125 | BT41: 5.194675 | BU41: 4.0749 | BV41: 4.642325 | BW41: 3.868625 | BX41: 7.868625 | BY41: 3.868625 | BZ41: 4.063625 | CA41: 3.943625 | CC41: =SUM(CC42:CC1019) -> 14.23652835 | CD41: 6.228024895 | CE41: 5.518590761 | CF41: 4.791490875 | CG41: 5.537445554 | CH41: 4.778005342 | CI41: 9.578078568 | CJ41: 5.000321153 | CK41: 5.354613451 | CL41: 5.327130505 | CN41: =SUM(CN42:CN1019) -> 0.4704895284 | CO41: 1.219455518 | CP41: 1.686562766 | CQ41: 2.09724179 | CR41: 2.500093923 | CS41: 2.704117715 | CT41: 3.193160217 | CU41: 3.641419781 | CV41: 3.763726668 | CW41: 3.786378934
C42: MER Mains Replacement (Irr) TOTAL Allocation | D42: 0 | E42: Irrigation | F42: Renewals | G42: Pipelines/network | H42: Top 10 Major Projects | I42: 0 | J42: Straight line | K42: Ongoing | L42: 80 | M42: 22.22222222 | O42: 0.47 | P42: 0.4 | Q42: 0.475 | R42: 0.65 | S42: 0.625 | T42: 0.625 | U42: 0.625 | V42: 0.625 | W42: 0.625 | X42: 0.625 | AV42: =+O42-Z42-AK42 -> 0.47 | AW42: =+P42-AA42-AL42 -> 0.4 | AX42: 0.475 | AY42: 0.65 | AZ42: 0.625 | BA42: 0.625 | BB42: 0.625 | BC42: 0.625 | BD42: 0.625 | BE42: 0.625 | BG42: =IF($L42=0,0, IF($L42<=0.5,BR42, IF($J42="straight line", IF((LEFT(BG$39,4)*1)-INT($L42)<LEFT($BG$39,4)*1,0,((OFFSET(BR42,0,-INT($L42+0.5),1,1))/$L42)*(IF($L42-INT($L42)>0.5,$L42-0.5-INT($L42),IF($L42-INT($L42)<=0.5,$L42-0.5-INT($L42)+1,0)))) +BR42/$L42*0.5, IF($J42="Declining Balance",-$BG$38,0)))) -> 0.0029375 | BH42: =IF($L42=0,0, IF($L42<=0.5,BS42, IF(AND($J42="straight line",$L42<1.51),(BR42-((BR42/$L42)*0.5))+BS42/$L42*0.5, IF($J42="straight line", IF((LEFT(BH$39,4)*1)-INT($L42)<LEFT($BG$39,4)*1,0,((OFFSET(BS42,0,-INT($L42+0.5),1,1))/$L42)*(IF($L42-INT($L42)>0.5,$L42-0.5-INT($L42),IF($L42-INT($L42)<=0.5,$L42-0.5-INT($L42)+1,0)))) +BS42/$L42*0.5 +SUM(OFFSET(BS42,0,MAX(-INT($L42+(0.5-(10^-12))),-BH$40)+1,1,MIN(INT($L42+(0.5-(10^-12))),BH$40)-1))*1/$L42, IF($J42="Declining Balance",-$BG$38,0))))) -> 0.008375 | BI42: =IF($L42=0,0, IF($L42<=0.5,BT42, IF(AND($J42="straight line",$L42<1.51),(BS42-((BS42/$L42)*0.5))+BT42/$L42*0.5, IF($J42="straight line", IF((LEFT(BI$39,4)*1)-INT($L42)<LEFT($BG$39,4)*1,0,((OFFSET(BT42,0,-INT($L42+0.5),1,1))/$L42)*(IF($L42-INT($L42)>0.5,$L42-0.5-INT($L42),IF($L42-INT($L42)<=0.5,$L42-0.5-INT($L42)+1,0)))) +BT42/$L42*0.5 +SUM(OFFSET(BT42,0,MAX(-INT($L42+(0.5-(10^-12))),-BI$40)+1,1,MIN(INT($L42+(0.5-(10^-12))),BI$40)-1))*1/$L42, IF($J42="Declining Balance",-$BG$38,0))))) -> 0.01384375 | BJ42: 0.020875 | BK42: 0.02884375 | BL42: 0.03665625 | BM42: 0.04446875 | BN42: 0.05228125 | BO42: 0.06009375 | BP42: 0.06790625 | BR42: =+IF($K42="Ongoing",AV42,IF(RIGHT($K42,2)=RIGHT(BR$39,2),SUM($AV42:AV42),0)+IF(RIGHT(BR$39,2)>RIGHT($K42,2),AV42,0)) -> 0.47 | BS42: =+IF($K42="Ongoing",AW42,IF(RIGHT($K42,2)=RIGHT(BS$39,2),SUM($AV42:AW42),0)+IF(RIGHT(BS$39,2)>RIGHT($K42,2),AW42,0)) -> 0.4 | BT42: =+IF($K42="Ongoing",AX42,IF(RIGHT($K42,2)=RIGHT(BT$39,2),SUM($AV42:AX42),0)+IF(RIGHT(BT$39,2)>RIGHT($K42,2),AX42,0)) -> 0.475 | BU42: =+IF($K42="Ongoing",AY42,IF(RIGHT($K42,2)=RIGHT(BU$39,2),SUM($AV42:AY42),0)+IF(RIGHT(BU$39,2)>RIGHT($K42,2),AY42,0)) -> 0.65 | BV42: =+IF($K42="Ongoing",AZ42,IF(RIGHT($K42,2)=RIGHT(BV$39,2),SUM($AV42:AZ42),0)+IF(RIGHT(BV$39,2)>RIGHT($K42,2),AZ42,0)) -> 0.625 | BW42: =+IF($K42="Ongoing",BA42,IF(RIGHT($K42,2)=RIGHT(BW$39,2),SUM($AV42:BA42),0)+IF(RIGHT(BW$39,2)>RIGHT($K42,2),BA42,0)) -> 0.625 | BX42: =+IF($K42="Ongoing",BB42,IF(RIGHT($K42,2)=RIGHT(BX$39,2),SUM($AV42:BB42),0)+IF(RIGHT(BX$39,2)>RIGHT($K42,2),BB42,0)) -> 0.625 | BY42: =+IF($K42="Ongoing",BC42,IF(RIGHT($K42,2)=RIGHT(BY$39,2),SUM($AV42:BC42),0)+IF(RIGHT(BY$39,2)>RIGHT($K42,2),BC42,0)) -> 0.625 | BZ42: =+IF($K42="Ongoing",BD42,IF(RIGHT($K42,2)=RIGHT(BZ$39,2),SUM($AV42:BD42),0)+IF(RIGHT(BZ$39,2)>RIGHT($K42,2),BD42,0)) -> 0.625 | CA42: =+IF($K42="Ongoing",BE42,IF(RIGHT($K42,2)=RIGHT(CA$39,2),SUM($AV42:BE42),0)+IF(RIGHT(CA$39,2)>RIGHT($K42,2),BE42,0)) -> 0.625 | CC42: =+O42*KeyAssumptionsPriceControl_FO!X$15 -> 0.48081 | CD42: =+P42*KeyAssumptionsPriceControl_FO!Y$15 -> 0.4186116 | CE42: =+Q42*KeyAssumptionsPriceControl_FO!Z$15 -> 0.5085346043 | CF42: =+R42*KeyAssumptionsPriceControl_FO!AA$15 -> 0.7118949161 | CG42: =+S42*KeyAssumptionsPriceControl_FO!AB$15 -> 0.7002581723 | CH42: =+T42*KeyAssumptionsPriceControl_FO!AC$15 -> 0.7163641102 | CI42: =+U42*KeyAssumptionsPriceControl_FO!AD$15 -> 0.7328404848 | CJ42: =+V42*KeyAssumptionsPriceControl_FO!AE$15 -> 0.7496958159 | CK42: =+W42*KeyAssumptionsPriceControl_FO!AF$15 -> 0.7669388197 | CL42: =+X42*KeyAssumptionsPriceControl_FO!AG$15 -> 0.7845784125 | CN42: =IF($M42=0,0, IF($M42<=0.5,CC42, IF($J42="straight line", IF((LEFT(CN$39,4)*1)-INT($M42)<LEFT($CN$39,4)*1,0,((OFFSET(CC42,0,-INT($M42+0.5),1,1))/$M42)*(IF($M42-INT($M42)>0.5,$M42-0.5-INT($M42),IF($M42-INT($M42)<=0.5,$M42-0.5-INT($M42)+1,0)))) +CC42/$M42*0.5, IF($J42="Declining Balance",-$CN$38,0)))) -> 0.010818225 | CO42: =IF($M42=0,0, IF($M42<=0.5,CD42, IF(AND($J42="straight line",$M42<1.51),(CC42-((CC42/$M42)*0.5))+CD42/$M42*0.5, IF($J42="straight line", IF((LEFT(CO$39,4)*1)-INT($M42)<LEFT($CN$39,4)*1,0,((OFFSET(CD42,0,-INT($M42+0.5),1,1))/$M42)*(IF($M42-INT($M42)>0.5,$M42-0.5-INT($M42),IF($M42-INT($M42)<=0.5,$M42-0.5-INT($M42)+1,0)))) +CD42/$M42*0.5 +SUM(OFFSET(CD42,0,MAX(-INT($M42+(0.5-(10^-12))),-CO$40)+1,1,MIN(INT($M42+(0.5-(10^-12))),CO$40)-1))*1/$M42, IF($J42="Declining Balance",-$CN$38,0))))) -> 0.031055211 | CP42: =IF($M42=0,0, IF($M42<=0.5,CE42, IF(AND($J42="straight line",$M42<1.51),(CD42-((CD42/$M42)*0.5))+CE42/$M42*0.5, IF($J42="straight line", IF((LEFT(CP$39,4)*1)-INT($M42)<LEFT($CN$39,4)*1,0,((OFFSET(CE42,0,-INT($M42+0.5),1,1))/$M42)*(IF($M42-INT($M42)>0.5,$M42-0.5-INT($M42),IF($M42-INT($M42)<=0.5,$M42-0.5-INT($M42)+1,0)))) +CE42/$M42*0.5 +SUM(OFFSET(CE42,0,MAX(-INT($M42+(0.5-(10^-12))),-CP$40)+1,1,MIN(INT($M42+(0.5-(10^-12))),CP$40)-1))*1/$M42, IF($J42="Declining Balance",-$CN$38,0))))) -> 0.0519160006 | CQ42: 0.07937566481 | CR42: 0.1111491093 | CS42: 0.1430231107 | CT42: 0.175630214 | CU42: 0.2089872808 | CV42: 0.2431115601 | CW42: 0.2780206978
C43: MDA Central PS Replace Manifold/Rising Main | D43: 0 | E43: Irrigation | F43: Renewals | G43: Pipelines/network | H43: Top 10 Major Projects | I43: 0 | J43: Straight line | K43: 2018-19 | L43: 45 | M43: 22.22222222 | O43: 4 | P43: 0 | Q43: 0 | R43: 0 | S43: 0 | T43: 0 | U43: 0 | V43: 0 | W43: 0 | X43: 0 | AV43: =+O43-Z43-AK43 -> 4 | AW43: 0 | AX43: 0 | AY43: 0 | AZ43: 0 | BA43: 0 | BB43: 0 | BC43: 0 | BD43: 0 | BE43: 0 | BG43: =IF($L43=0,0, IF($L43<=0.5,BR43, IF($J43="straight line", IF((LEFT(BG$39,4)*1)-INT($L43)<LEFT($BG$39,4)*1,0,((OFFSET(BR43,0,-INT($L43+0.5),1,1))/$L43)*(IF($L43-INT($L43)>0.5,$L43-0.5-INT($L43),IF($L43-INT($L43)<=0.5,$L43-0.5-INT($L43)+1,0)))) +BR43/$L43*0.5, IF($J43="Declining Balance",-$BG$38,0)))) -> 0.04444444444 | BH43: =IF($L43=0,0, IF($L43<=0.5,BS43, IF(AND($J43="straight line",$L43<1.51),(BR43-((BR43/$L43)*0.5))+BS43/$L43*0.5, IF($J43="straight line", IF((LEFT(BH$39,4)*1)-INT($L43)<LEFT($BG$39,4)*1,0,((OFFSET(BS43,0,-INT($L43+0.5),1,1))/$L43)*(IF($L43-INT($L43)>0.5,$L43-0.5-INT($L43),IF($L43-INT($L43)<=0.5,$L43-0.5-INT($L43)+1,0)))) +BS43/$L43*0.5 +SUM(OFFSET(BS43,0,MAX(-INT($L43+(0.5-(10^-12))),-BH$40)+1,1,MIN(INT($L43+(0.5-(10^-12))),BH$40)-1))*1/$L43, IF($J43="Declining Balance",-$BG$38,0))))) -> 0.08888888889 | BI43: 0.08888888889 | BJ43: 0.08888888889 | BK43: 0.08888888889 | BL43: 0.08888888889 | BM43: 0.08888888889 | BN43: 0.08888888889 | BO43: 0.08888888889 | BP43: 0.08888888889 | BR43: =+IF($K43="Ongoing",AV43,IF(RIGHT($K43,2)=RIGHT(BR$39,2),SUM($AV43:AV43),0)+IF(RIGHT(BR$39,2)>RIGHT($K43,2),AV43,0)) -> 4 | BS43: =+IF($K43="Ongoing",AW43,IF(RIGHT($K43,2)=RIGHT(BS$39,2),SUM($AV43:AW43),0)+IF(RIGHT(BS$39,2)>RIGHT($K43,2),AW43,0)) -> 0 | BT43: =+IF($K43="Ongoing",AX43,IF(RIGHT($K43,2)=RIGHT(BT$39,2),SUM($AV43:AX43),0)+IF(RIGHT(BT$39,2)>RIGHT($K43,2),AX43,0)) -> 0 | BU43: =+IF($K43="Ongoing",AY43,IF(RIGHT($K43,2)=RIGHT(BU$39,2),SUM($AV43:AY43),0)+IF(RIGHT(BU$39,2)>RIGHT($K43,2),AY43,0)) -> 0 | BV43: =+IF($K43="Ongoing",AZ43,IF(RIGHT($K43,2)=RIGHT(BV$39,2),SUM($AV43:AZ43),0)+IF(RIGHT(BV$39,2)>RIGHT($K43,2),AZ43,0)) -> 0 | BW43: =+IF($K43="Ongoing",BA43,IF(RIGHT($K43,2)=RIGHT(BW$39,2),SUM($AV43:BA43),0)+IF(RIGHT(BW$39,2)>RIGHT($K43,2),BA43,0)) -> 0 | BX43: =+IF($K43="Ongoing",BB43,IF(RIGHT($K43,2)=RIGHT(BX$39,2),SUM($AV43:BB43),0)+IF(RIGHT(BX$39,2)>RIGHT($K43,2),BB43,0)) -> 0 | BY43: =+IF($K43="Ongoing",BC43,IF(RIGHT($K43,2)=RIGHT(BY$39,2),SUM($AV43:BC43),0)+IF(RIGHT(BY$39,2)>RIGHT($K43,2),BC43,0)) -> 0 | BZ43: =+IF($K43="Ongoing",BD43,IF(RIGHT($K43,2)=RIGHT(BZ$39,2),SUM($AV43:BD43),0)+IF(RIGHT(BZ$39,2)>RIGHT($K43,2),BD43,0)) -> 0 | CA43: =+IF($K43="Ongoing",BE43,IF(RIGHT($K43,2)=RIGHT(CA$39,2),SUM($AV43:BE43),0)+IF(RIGHT(CA$39,2)>RIGHT($K43,2),BE43,0)) -> 0 | CC43: =+O43*KeyAssumptionsPriceControl_FO!X$15 -> 4.092 | CD43: =+P43*KeyAssumptionsPriceControl_FO!Y$15 -> 0 | CE43: =+Q43*KeyAssumptionsPriceControl_FO!Z$15 -> 0 | CF43: =+R43*KeyAssumptionsPriceControl_FO!AA$15 -> 0 | CG43: =+S43*KeyAssumptionsPriceControl_FO!AB$15 -> 0 | CH43: =+T43*KeyAssumptionsPriceControl_FO!AC$15 -> 0 | CI43: =+U43*KeyAssumptionsPriceControl_FO!AD$15 -> 0 | CJ43: =+V43*KeyAssumptionsPriceControl_FO!AE$15 -> 0 | CK43: =+W43*KeyAssumptionsPriceControl_FO!AF$15 -> 0 | CL43: =+X43*KeyAssumptionsPriceControl_FO!AG$15 -> 0 | CN43: =IF($M43=0,0, IF($M43<=0.5,CC43, IF($J43="straight line", IF((LEFT(CN$39,4)*1)-INT($M43)<LEFT($CN$39,4)*1,0,((OFFSET(CC43,0,-INT($M43+0.5),1,1))/$M43)*(IF($M43-INT($M43)>0.5,$M43-0.5-INT($M43),IF($M43-INT($M43)<=0.5,$M43-0.5-INT($M43)+1,0)))) +CC43/$M43*0.5, IF($J43="Declining Balance",-$CN$38,0)))) -> 0.09207 | CO43: =IF($M43=0,0, IF($M43<=0.5,CD43, IF(AND($J43="straight line",$M43<1.51),(CC43-((CC43/$M43)*0.5))+CD43/$M43*0.5, IF($J43="straight line", IF((LEFT(CO$39,4)*1)-INT($M43)<LEFT($CN$39,4)*1,0,((OFFSET(CD43,0,-INT($M43+0.5),1,1))/$M43)*(IF($M43-INT($M43)>0.5,$M43-0.5-INT($M43),IF($M43-INT($M43)<=0.5,$M43-0.5-INT($M43)+1,0)))) +CD43/$M43*0.5 +SUM(OFFSET(CD43,0,MAX(-INT($M43+(0.5-(10^-12))),-CO$40)+1,1,MIN(INT($M43+(0.5-(10^-12))),CO$40)-1))*1/$M43, IF($J43="Declining Balance",-$CN$38,0))))) -> 0.18414 | CP43: 0.18414 | CQ43: 0.18414 | CR43: 0.18414 | CS43: 0.18414 | CT43: 0.18414 | CU43: 0.18414 | CV43: 0.18414 | CW43: 0.18414
C44: MDA Minor IRR Pipeline Replacements | D44: 0 | E44: Irrigation | F44: Renewals | G44: Pipelines/network | H44: Top 10 Major Projects | I44: 0 | J44: Straight line | K44: Ongoing | L44: 80 | M44: 22.22222222 | O44: 1.35 | P44: 1.35 | Q44: 1.3 | R44: 1.1 | S44: 1 | T44: 1 | U44: 1 | V44: 1 | W44: 1 | X44: 1 | AV44: 1.35 | AW44: 1.35 | AX44: 1.3 | AY44: 1.1 | AZ44: 1 | BA44: 1 | BB44: 1 | BC44: 1 | BD44: 1 | BE44: 1 | BG44: 0.0084375 | BH44: 0.0253125 | BI44: 0.041875 | BJ44: 0.056875 | BK44: 0.07 | BL44: 0.0825 | BM44: 0.095 | BN44: 0.1075 | BO44: 0.12 | BP44: 0.1325 | BR44: =+IF($K44="Ongoing",AV44,IF(RIGHT($K44,2)=RIGHT(BR$39,2),SUM($AV44:AV44),0)+IF(RIGHT(BR$39,2)>RIGHT($K44,2),AV44,0)) -> 1.35 | BS44: =+IF($K44="Ongoing",AW44,IF(RIGHT($K44,2)=RIGHT(BS$39,2),SUM($AV44:AW44),0)+IF(RIGHT(BS$39,2)>RIGHT($K44,2),AW44,0)) -> 1.35 | BT44: =+IF($K44="Ongoing",AX44,IF(RIGHT($K44,2)=RIGHT(BT$39,2),SUM($AV44:AX44),0)+IF(RIGHT(BT$39,2)>RIGHT($K44,2),AX44,0)) -> 1.3 | BU44: =+IF($K44="Ongoing",AY44,IF(RIGHT($K44,2)=RIGHT(BU$39,2),SUM($AV44:AY44),0)+IF(RIGHT(BU$39,2)>RIGHT($K44,2),AY44,0)) -> 1.1 | BV44: =+IF($K44="Ongoing",AZ44,IF(RIGHT($K44,2)=RIGHT(BV$39,2),SUM($AV44:AZ44),0)+IF(RIGHT(BV$39,2)>RIGHT($K44,2),AZ44,0)) -> 1 | BW44: =+IF($K44="Ongoing",BA44,IF(RIGHT($K44,2)=RIGHT(BW$39,2),SUM($AV44:BA44),0)+IF(RIGHT(BW$39,2)>RIGHT($K44,2),BA44,0)) -> 1 | BX44: =+IF($K44="Ongoing",BB44,IF(RIGHT($K44,2)=RIGHT(BX$39,2),SUM($AV44:BB44),0)+IF(RIGHT(BX$39,2)>RIGHT($K44,2),BB44,0)) -> 1 | BY44: =+IF($K44="Ongoing",BC44,IF(RIGHT($K44,2)=RIGHT(BY$39,2),SUM($AV44:BC44),0)+IF(RIGHT(BY$39,2)>RIGHT($K44,2),BC44,0)) -> 1 | BZ44: =+IF($K44="Ongoing",BD44,IF(RIGHT($K44,2)=RIGHT(BZ$39,2),SUM($AV44:BD44),0)+IF(RIGHT(BZ$39,2)>RIGHT($K44,2),BD44,0)) -> 1 | CA44: =+IF($K44="Ongoing",BE44,IF(RIGHT($K44,2)=RIGHT(CA$39,2),SUM($AV44:BE44),0)+IF(RIGHT(CA$39,2)>RIGHT($K44,2),BE44,0)) -> 1 | CC44: =+O44*KeyAssumptionsPriceControl_FO!X$15 -> 1.38105 | CD44: =+P44*KeyAssumptionsPriceControl_FO!Y$15 -> 1.41281415 | CE44: =+Q44*KeyAssumptionsPriceControl_FO!Z$15 -> 1.391778917 | CF44: =+R44*KeyAssumptionsPriceControl_FO!AA$15 -> 1.204745243 | CG44: =+S44*KeyAssumptionsPriceControl_FO!AB$15 -> 1.120413076 | CH44: =+T44*KeyAssumptionsPriceControl_FO!AC$15 -> 1.146182576 | CI44: =+U44*KeyAssumptionsPriceControl_FO!AD$15 -> 1.172544776 | CJ44: =+V44*KeyAssumptionsPriceControl_FO!AE$15 -> 1.199513305 | CK44: =+W44*KeyAssumptionsPriceControl_FO!AF$15 -> 1.227102112 | CL44: =+X44*KeyAssumptionsPriceControl_FO!AG$15 -> 1.25532546 | CN44: 0.031073625 | CO44: 0.09393556838 | CP44: 0.1570389124 | CQ44: 0.215460706 | CR44: 0.2677767681 | CS44: 0.3187751703 | CT44: 0.3709465357 | CU44: 0.4243178426 | CV44: 0.4789166894 | CW44: 0.5347713098
C45: MILL - Millewa Replace River Pump Station | D45: 0 | E45: Irrigation | F45: Renewals | G45: Pipelines/network | H45: Top 10 Major Projects | I45: 0 | J45: Straight line | K45: 2018-19 | L45: 80 | M45: 22.22222222 | O45: 1.25 | P45: 0 | Q45: 0 | R45: 0 | S45: 0 | T45: 0 | U45: 0 | V45: 0 | W45: 0 | X45: 0 | AV45: 1.25 | AW45: 0 | AX45: 0 | AY45: 0 | AZ45: 0 | BA45: 0 | BB45: 0 | BC45: 0 | BD45: 0 | BE45: 0 | BG45: 0.0078125 | BH45: 0.015625 | BI45: 0.015625 | BJ45: 0.015625 | BK45: 0.015625 | BL45: 0.015625 | BM45: 0.015625 | BN45: 0.015625 | BO45: 0.015625 | BP45: 0.015625 | BR45: =+IF($K45="Ongoing",AV45,IF(RIGHT($K45,2)=RIGHT(BR$39,2),SUM($AV45:AV45),0)+IF(RIGHT(BR$39,2)>RIGHT($K45,2),AV45,0)) -> 1.25 | BS45: =+IF($K45="Ongoing",AW45,IF(RIGHT($K45,2)=RIGHT(BS$39,2),SUM($AV45:AW45),0)+IF(RIGHT(BS$39,2)>RIGHT($K45,2),AW45,0)) -> 0 | BT45: =+IF($K45="Ongoing",AX45,IF(RIGHT($K45,2)=RIGHT(BT$39,2),SUM($AV45:AX45),0)+IF(RIGHT(BT$39,2)>RIGHT($K45,2),AX45,0)) -> 0 | BU45: =+IF($K45="Ongoing",AY45,IF(RIGHT($K45,2)=RIGHT(BU$39,2),SUM($AV45:AY45),0)+IF(RIGHT(BU$39,2)>RIGHT($K45,2),AY45,0)) -> 0 | BV45: =+IF($K45="Ongoing",AZ45,IF(RIGHT($K45,2)=RIGHT(BV$39,2),SUM($AV45:AZ45),0)+IF(RIGHT(BV$39,2)>RIGHT($K45,2),AZ45,0)) -> 0 | BW45: =+IF($K45="Ongoing",BA45,IF(RIGHT($K45,2)=RIGHT(BW$39,2),SUM($AV45:BA45),0)+IF(RIGHT(BW$39,2)>RIGHT($K45,2),BA45,0)) -> 0 | BX45: =+IF($K45="Ongoing",BB45,IF(RIGHT($K45,2)=RIGHT(BX$39,2),SUM($AV45:BB45),0)+IF(RIGHT(BX$39,2)>RIGHT($K45,2),BB45,0)) -> 0 | BY45: =+IF($K45="Ongoing",BC45,IF(RIGHT($K45,2)=RIGHT(BY$39,2),SUM($AV45:BC45),0)+IF(RIGHT(BY$39,2)>RIGHT($K45,2),BC45,0)) -> 0 | BZ45: =+IF($K45="Ongoing",BD45,IF(RIGHT($K45,2)=RIGHT(BZ$39,2),SUM($AV45:BD45),0)+IF(RIGHT(BZ$39,2)>RIGHT($K45,2),BD45,0)) -> 0 | CA45: =+IF($K45="Ongoing",BE45,IF(RIGHT($K45,2)=RIGHT(CA$39,2),SUM($AV45:BE45),0)+IF(RIGHT(CA$39,2)>RIGHT($K45,2),BE45,0)) -> 0 | CC45: =+O45*KeyAssumptionsPriceControl_FO!X$15 -> 1.27875 | CD45: =+P45*KeyAssumptionsPriceControl_FO!Y$15 -> 0 | CE45: =+Q45*KeyAssumptionsPriceControl_FO!Z$15 -> 0 | CF45: =+R45*KeyAssumptionsPriceControl_FO!AA$15 -> 0 | CG45: =+S45*KeyAssumptionsPriceControl_FO!AB$15 -> 0 | CH45: =+T45*KeyAssumptionsPriceControl_FO!AC$15 -> 0 | CI45: =+U45*KeyAssumptionsPriceControl_FO!AD$15 -> 0 | CJ45: =+V45*KeyAssumptionsPriceControl_FO!AE$15 -> 0 | CK45: =+W45*KeyAssumptionsPriceControl_FO!AF$15 -> 0 | CL45: =+X45*KeyAssumptionsPriceControl_FO!AG$15 -> 0 | CN45: 0.028771875 | CO45: 0.05754375 | CP45: 0.05754375 | CQ45: 0.05754375 | CR45: 0.05754375 | CS45: 0.05754375 | CT45: 0.05754375 | CU45: 0.05754375 | CV45: 0.05754375 | CW45: 0.05754375
C46: MILL - Millewa Upgrade to ClearSCADA | D46: 0 | E46: Irrigation | F46: Renewals | G46: Pipelines/network | H46: Top 10 Major Projects | I46: 0 | J46: Straight line | K46: Ongoing | L46: 45 | M46: 22.22222222 | O46: 0 | P46: 0.3 | Q46: 0.3 | R46: 0 | S46: 0 | T46: 0 | U46: 0 | V46: 0 | W46: 0 | X46: 0 | AV46: 0 | AW46: 0.3 | AX46: 0.3 | AY46: 0 | AZ46: 0 | BA46: 0 | BB46: 0 | BC46: 0 | BD46: 0 | BE46: 0 | BG46: 0 | BH46: 0.003333333333 | BI46: 0.01 | BJ46: 0.01333333333 | BK46: 0.01333333333 | BL46: 0.01333333333 | BM46: 0.01333333333 | BN46: 0.01333333333 | BO46: 0.01333333333 | BP46: 0.01333333333 | BR46: =+IF($K46="Ongoing",AV46,IF(RIGHT($K46,2)=RIGHT(BR$39,2),SUM($AV46:AV46),0)+IF(RIGHT(BR$39,2)>RIGHT($K46,2),AV46,0)) -> 0 | BS46: =+IF($K46="Ongoing",AW46,IF(RIGHT($K46,2)=RIGHT(BS$39,2),SUM($AV46:AW46),0)+IF(RIGHT(BS$39,2)>RIGHT($K46,2),AW46,0)) -> 0.3 | BT46: =+IF($K46="Ongoing",AX46,IF(RIGHT($K46,2)=RIGHT(BT$39,2),SUM($AV46:AX46),0)+IF(RIGHT(BT$39,2)>RIGHT($K46,2),AX46,0)) -> 0.3 | BU46: =+IF($K46="Ongoing",AY46,IF(RIGHT($K46,2)=RIGHT(BU$39,2),SUM($AV46:AY46),0)+IF(RIGHT(BU$39,2)>RIGHT($K46,2),AY46,0)) -> 0 | BV46: =+IF($K46="Ongoing",AZ46,IF(RIGHT($K46,2)=RIGHT(BV$39,2),SUM($AV46:AZ46),0)+IF(RIGHT(BV$39,2)>RIGHT($K46,2),AZ46,0)) -> 0 | BW46: =+IF($K46="Ongoing",BA46,IF(RIGHT($K46,2)=RIGHT(BW$39,2),SUM($AV46:BA46),0)+IF(RIGHT(BW$39,2)>RIGHT($K46,2),BA46,0)) -> 0 | BX46: =+IF($K46="Ongoing",BB46,IF(RIGHT($K46,2)=RIGHT(BX$39,2),SUM($AV46:BB46),0)+IF(RIGHT(BX$39,2)>RIGHT($K46,2),BB46,0)) -> 0 | BY46: =+IF($K46="Ongoing",BC46,IF(RIGHT($K46,2)=RIGHT(BY$39,2),SUM($AV46:BC46),0)+IF(RIGHT(BY$39,2)>RIGHT($K46,2),BC46,0)) -> 0 | BZ46: =+IF($K46="Ongoing",BD46,IF(RIGHT($K46,2)=RIGHT(BZ$39,2),SUM($AV46:BD46),0)+IF(RIGHT(BZ$39,2)>RIGHT($K46,2),BD46,0)) -> 0 | CA46: =+IF($K46="Ongoing",BE46,IF(RIGHT($K46,2)=RIGHT(CA$39,2),SUM($AV46:BE46),0)+IF(RIGHT(CA$39,2)>RIGHT($K46,2),BE46,0)) -> 0 | CC46: =+O46*KeyAssumptionsPriceControl_FO!X$15 -> 0 | CD46: =+P46*KeyAssumptionsPriceControl_FO!Y$15 -> 0.3139587 | CE46: =+Q46*KeyAssumptionsPriceControl_FO!Z$15 -> 0.3211797501 | CF46: =+R46*KeyAssumptionsPriceControl_FO!AA$15 -> 0 | CG46: =+S46*KeyAssumptionsPriceControl_FO!AB$15 -> 0 | CH46: =+T46*KeyAssumptionsPriceControl_FO!AC$15 -> 0 | CI46: =+U46*KeyAssumptionsPriceControl_FO!AD$15 -> 0 | CJ46: =+V46*KeyAssumptionsPriceControl_FO!AE$15 -> 0 | CK46: =+W46*KeyAssumptionsPriceControl_FO!AF$15 -> 0 | CL46: =+X46*KeyAssumptionsPriceControl_FO!AG$15 -> 0 | CN46: 0 | CO46: 0.00706407075 | CP46: 0.02135468588 | CQ46: 0.02858123025 | CR46: 0.02858123025 | CS46: 0.02858123025 | CT46: 0.02858123025 | CU46: 0.02858123025 | CV46: 0.02858123025 | CW46: 0.02858123025
C47: RC - Red Cliffs Main Pump Station Extend Suctions | D47: 0 | E47: Irrigation | F47: Renewals | G47: Pipelines/network | H47: Top 10 Major Projects | I47: 0 | J47: Straight line | K47: Ongoing | L47: 80 | M47: 6.666666667 | O47: 0 | P47: 0 | Q47: 0 | R47: 0 | S47: 0 | T47: 0 | U47: 4 | V47: 0 | W47: 0 | X47: 0 | AV47: 0 | AW47: 0 | AX47: 0 | AY47: 0 | AZ47: 0 | BA47: 0 | BB47: 4 | BC47: 0 | BD47: 0 | BE47: 0 | BG47: 0 | BH47: 0 | BI47: 0 | BJ47: 0 | BK47: 0 | BL47: 0 | BM47: 0.025 | BN47: 0.05 | BO47: 0.05 | BP47: 0.05 | BR47: =+IF($K47="Ongoing",AV47,IF(RIGHT($K47,2)=RIGHT(BR$39,2),SUM($AV47:AV47),0)+IF(RIGHT(BR$39,2)>RIGHT($K47,2),AV47,0)) -> 0 | BS47: =+IF($K47="Ongoing",AW47,IF(RIGHT($K47,2)=RIGHT(BS$39,2),SUM($AV47:AW47),0)+IF(RIGHT(BS$39,2)>RIGHT($K47,2),AW47,0)) -> 0 | BT47: =+IF($K47="Ongoing",AX47,IF(RIGHT($K47,2)=RIGHT(BT$39,2),SUM($AV47:AX47),0)+IF(RIGHT(BT$39,2)>RIGHT($K47,2),AX47,0)) -> 0 | BU47: =+IF($K47="Ongoing",AY47,IF(RIGHT($K47,2)=RIGHT(BU$39,2),SUM($AV47:AY47),0)+IF(RIGHT(BU$39,2)>RIGHT($K47,2),AY47,0)) -> 0 | BV47: =+IF($K47="Ongoing",AZ47,IF(RIGHT($K47,2)=RIGHT(BV$39,2),SUM($AV47:AZ47),0)+IF(RIGHT(BV$39,2)>RIGHT($K47,2),AZ47,0)) -> 0 | BW47: =+IF($K47="Ongoing",BA47,IF(RIGHT($K47,2)=RIGHT(BW$39,2),SUM($AV47:BA47),0)+IF(RIGHT(BW$39,2)>RIGHT($K47,2),BA47,0)) -> 0 | BX47: =+IF($K47="Ongoing",BB47,IF(RIGHT($K47,2)=RIGHT(BX$39,2),SUM($AV47:BB47),0)+IF(RIGHT(BX$39,2)>RIGHT($K47,2),BB47,0)) -> 4 | BY47: =+IF($K47="Ongoing",BC47,IF(RIGHT($K47,2)=RIGHT(BY$39,2),SUM($AV47:BC47),0)+IF(RIGHT(BY$39,2)>RIGHT($K47,2),BC47,0)) -> 0 | BZ47: =+IF($K47="Ongoing",BD47,IF(RIGHT($K47,2)=RIGHT(BZ$39,2),SUM($AV47:BD47),0)+IF(RIGHT(BZ$39,2)>RIGHT($K47,2),BD47,0)) -> 0 | CA47: =+IF($K47="Ongoing",BE47,IF(RIGHT($K47,2)=RIGHT(CA$39,2),SUM($AV47:BE47),0)+IF(RIGHT(CA$39,2)>RIGHT($K47,2),BE47,0)) -> 0 | CC47: =+O47*KeyAssumptionsPriceControl_FO!X$15 -> 0 | CD47: =+P47*KeyAssumptionsPriceControl_FO!Y$15 -> 0 | CE47: =+Q47*KeyAssumptionsPriceControl_FO!Z$15 -> 0 | CF47: =+R47*KeyAssumptionsPriceControl_FO!AA$15 -> 0 | CG47: =+S47*KeyAssumptionsPriceControl_FO!AB$15 -> 0 | CH47: =+T47*KeyAssumptionsPriceControl_FO!AC$15 -> 0 | CI47: =+U47*KeyAssumptionsPriceControl_FO!AD$15 -> 4.690179103 | CJ47: =+V47*KeyAssumptionsPriceControl_FO!AE$15 -> 0 | CK47: =+W47*KeyAssumptionsPriceControl_FO!AF$15 -> 0 | CL47: =+X47*KeyAssumptionsPriceControl_FO!AG$15 -> 0 | CN47: 0 | CO47: 0 | CP47: 0 | CQ47: 0 | CR47: 0 | CS47: 0 | CT47: 0.3517634327 | CU47: 0.7035268654 | CV47: 0.7035268654 | CW47: 0.7035268654
C48: RC - Red Cliffs Main Pump Station Upgrade to ClearSCADA | D48: 0 | E48: Irrigation | F48: Renewals | G48: Pipelines/network | H48: Top 10 Major Projects | I48: 0 | J48: Straight line | K48: 2018-19 | L48: 80 | M48: 6.666666667 | O48: 0.2 | P48: 0 | Q48: 0 | R48: 0 | S48: 0 | T48: 0 | U48: 0 | V48: 0 | W48: 0 | X48: 0 | AV48: 0.2 | AW48: 0 | AX48: 0 | AY48: 0 | AZ48: 0 | BA48: 0 | BB48: 0 | BC48: 0 | BD48: 0 | BE48: 0 | BG48: 0.00125 | BH48: 0.0025 | BI48: 0.0025 | BJ48: 0.0025 | BK48: 0.0025 | BL48: 0.0025 | BM48: 0.0025 | BN48: 0.0025 | BO48: 0.0025 | BP48: 0.0025 | BR48: =+IF($K48="Ongoing",AV48,IF(RIGHT($K48,2)=RIGHT(BR$39,2),SUM($AV48:AV48),0)+IF(RIGHT(BR$39,2)>RIGHT($K48,2),AV48,0)) -> 0.2 | BS48: =+IF($K48="Ongoing",AW48,IF(RIGHT($K48,2)=RIGHT(BS$39,2),SUM($AV48:AW48),0)+IF(RIGHT(BS$39,2)>RIGHT($K48,2),AW48,0)) -> 0 | BT48: =+IF($K48="Ongoing",AX48,IF(RIGHT($K48,2)=RIGHT(BT$39,2),SUM($AV48:AX48),0)+IF(RIGHT(BT$39,2)>RIGHT($K48,2),AX48,0)) -> 0 | BU48: =+IF($K48="Ongoing",AY48,IF(RIGHT($K48,2)=RIGHT(BU$39,2),SUM($AV48:AY48),0)+IF(RIGHT(BU$39,2)>RIGHT($K48,2),AY48,0)) -> 0 | BV48: =+IF($K48="Ongoing",AZ48,IF(RIGHT($K48,2)=RIGHT(BV$39,2),SUM($AV48:AZ48),0)+IF(RIGHT(BV$39,2)>RIGHT($K48,2),AZ48,0)) -> 0 | BW48: =+IF($K48="Ongoing",BA48,IF(RIGHT($K48,2)=RIGHT(BW$39,2),SUM($AV48:BA48),0)+IF(RIGHT(BW$39,2)>RIGHT($K48,2),BA48,0)) -> 0 | BX48: =+IF($K48="Ongoing",BB48,IF(RIGHT($K48,2)=RIGHT(BX$39,2),SUM($AV48:BB48),0)+IF(RIGHT(BX$39,2)>RIGHT($K48,2),BB48,0)) -> 0 | BY48: =+IF($K48="Ongoing",BC48,IF(RIGHT($K48,2)=RIGHT(BY$39,2),SUM($AV48:BC48),0)+IF(RIGHT(BY$39,2)>RIGHT($K48,2),BC48,0)) -> 0 | BZ48: =+IF($K48="Ongoing",BD48,IF(RIGHT($K48,2)=RIGHT(BZ$39,2),SUM($AV48:BD48),0)+IF(RIGHT(BZ$39,2)>RIGHT($K48,2),BD48,0)) -> 0 | CA48: =+IF($K48="Ongoing",BE48,IF(RIGHT($K48,2)=RIGHT(CA$39,2),SUM($AV48:BE48),0)+IF(RIGHT(CA$39,2)>RIGHT($K48,2),BE48,0)) -> 0 | CC48: =+O48*KeyAssumptionsPriceControl_FO!X$15 -> 0.2046 | CD48: =+P48*KeyAssumptionsPriceControl_FO!Y$15 -> 0 | CE48: =+Q48*KeyAssumptionsPriceControl_FO!Z$15 -> 0 | CF48: =+R48*KeyAssumptionsPriceControl_FO!AA$15 -> 0 | CG48: =+S48*KeyAssumptionsPriceControl_FO!AB$15 -> 0 | CH48: =+T48*KeyAssumptionsPriceControl_FO!AC$15 -> 0 | CI48: =+U48*KeyAssumptionsPriceControl_FO!AD$15 -> 0 | CJ48: =+V48*KeyAssumptionsPriceControl_FO!AE$15 -> 0 | CK48: =+W48*KeyAssumptionsPriceControl_FO!AF$15 -> 0 | CL48: =+X48*KeyAssumptionsPriceControl_FO!AG$15 -> 0 | CN48: 0.015345 | CO48: 0.03069 | CP48: 0.03069 | CQ48: 0.03069 | CR48: 0.03069 | CS48: 0.03069 | CT48: 0.03069 | CU48: 0.005115 | CV48: 0 | CW48: 0
C49: RC - Upgrade Tight Spurs | D49: 0 | E49: Irrigation | F49: Renewals | G49: Pipelines/network | H49: Top 10 Major Projects | I49: 0 | J49: Straight line | K49: Ongoing | L49: 80 | M49: 6.666666667 | O49: 0.1 | P49: 0.1 | Q49: 0.1 | R49: 0.075 | S49: 0.075 | T49: 0.05 | U49: 0.05 | V49: 0.05 | W49: 0.05 | X49: 0.05 | AV49: 0.1 | AW49: 0.1 | AX49: 0.1 | AY49: 0.075 | AZ49: 0.075 | BA49: 0.05 | BB49: 0.05 | BC49: 0.05 | BD49: 0.05 | BE49: 0.05 | BG49: 0.000625 | BH49: 0.001875 | BI49: 0.003125 | BJ49: 0.00421875 | BK49: 0.00515625 | BL49: 0.0059375 | BM49: 0.0065625 | BN49: 0.0071875 | BO49: 0.0078125 | BP49: 0.0084375 | BR49: =+IF($K49="Ongoing",AV49,IF(RIGHT($K49,2)=RIGHT(BR$39,2),SUM($AV49:AV49),0)+IF(RIGHT(BR$39,2)>RIGHT($K49,2),AV49,0)) -> 0.1 | BS49: =+IF($K49="Ongoing",AW49,IF(RIGHT($K49,2)=RIGHT(BS$39,2),SUM($AV49:AW49),0)+IF(RIGHT(BS$39,2)>RIGHT($K49,2),AW49,0)) -> 0.1 | BT49: =+IF($K49="Ongoing",AX49,IF(RIGHT($K49,2)=RIGHT(BT$39,2),SUM($AV49:AX49),0)+IF(RIGHT(BT$39,2)>RIGHT($K49,2),AX49,0)) -> 0.1 | BU49: =+IF($K49="Ongoing",AY49,IF(RIGHT($K49,2)=RIGHT(BU$39,2),SUM($AV49:AY49),0)+IF(RIGHT(BU$39,2)>RIGHT($K49,2),AY49,0)) -> 0.075 | BV49: =+IF($K49="Ongoing",AZ49,IF(RIGHT($K49,2)=RIGHT(BV$39,2),SUM($AV49:AZ49),0)+IF(RIGHT(BV$39,2)>RIGHT($K49,2),AZ49,0)) -> 0.075 | BW49: =+IF($K49="Ongoing",BA49,IF(RIGHT($K49,2)=RIGHT(BW$39,2),SUM($AV49:BA49),0)+IF(RIGHT(BW$39,2)>RIGHT($K49,2),BA49,0)) -> 0.05 | BX49: =+IF($K49="Ongoing",BB49,IF(RIGHT($K49,2)=RIGHT(BX$39,2),SUM($AV49:BB49),0)+IF(RIGHT(BX$39,2)>RIGHT($K49,2),BB49,0)) -> 0.05 | BY49: =+IF($K49="Ongoing",BC49,IF(RIGHT($K49,2)=RIGHT(BY$39,2),SUM($AV49:BC49),0)+IF(RIGHT(BY$39,2)>RIGHT($K49,2),BC49,0)) -> 0.05 | BZ49: =+IF($K49="Ongoing",BD49,IF(RIGHT($K49,2)=RIGHT(BZ$39,2),SUM($AV49:BD49),0)+IF(RIGHT(BZ$39,2)>RIGHT($K49,2),BD49,0)) -> 0.05 | CA49: =+IF($K49="Ongoing",BE49,IF(RIGHT($K49,2)=RIGHT(CA$39,2),SUM($AV49:BE49),0)+IF(RIGHT(CA$39,2)>RIGHT($K49,2),BE49,0)) -> 0.05 | CC49: =+O49*KeyAssumptionsPriceControl_FO!X$15 -> 0.1023 | CD49: =+P49*KeyAssumptionsPriceControl_FO!Y$15 -> 0.1046529 | CE49: =+Q49*KeyAssumptionsPriceControl_FO!Z$15 -> 0.1070599167 | CF49: =+R49*KeyAssumptionsPriceControl_FO!AA$15 -> 0.08214172109 | CG49: =+S49*KeyAssumptionsPriceControl_FO!AB$15 -> 0.08403098067 | CH49: =+T49*KeyAssumptionsPriceControl_FO!AC$15 -> 0.05730912882 | CI49: =+U49*KeyAssumptionsPriceControl_FO!AD$15 -> 0.05862723878 | CJ49: =+V49*KeyAssumptionsPriceControl_FO!AE$15 -> 0.05997566527 | CK49: =+W49*KeyAssumptionsPriceControl_FO!AF$15 -> 0.06135510558 | CL49: =+X49*KeyAssumptionsPriceControl_FO!AG$15 -> 0.062766273 | CN49: 0.0076725 | CO49: 0.0231939675 | CP49: 0.03907242875 | CQ49: 0.05326255159 | CR49: 0.06572550422 | CS49: 0.07632601243 | CT49: 0.08502124 | CU49: 0.0811289578 | CV49: 0.07458965312 | CW49: 0.06789994442
C50: RC Mains Replacement (Irr) TOTAL Allocation | D50: 0 | E50: Irrigation | F50: Renewals | G50: Pipelines/network | H50: Top 10 Major Projects | I50: 0 | J50: Straight line | K50: Ongoing | L50: 80 | M50: 22.22222222 | O50: 0.05 | P50: 0.11 | Q50: 0.125 | R50: 0.08 | S50: 0.22 | T50: 0.22 | U50: 0.22 | V50: 0.22 | W50: 0.22 | X50: 0.22 | AV50: 0.05 | AW50: 0.11 | AX50: 0.125 | AY50: 0.08 | AZ50: 0.22 | BA50: 0.22 | BB50: 0.22 | BC50: 0.22 | BD50: 0.22 | BE50: 0.22 | BG50: 0.0003125 | BH50: 0.0013125 | BI50: 0.00278125 | BJ50: 0.0040625 | BK50: 0.0059375 | BL50: 0.0086875 | BM50: 0.0114375 | BN50: 0.0141875 | BO50: 0.0169375 | BP50: 0.0196875 | BR50: =+IF($K50="Ongoing",AV50,IF(RIGHT($K50,2)=RIGHT(BR$39,2),SUM($AV50:AV50),0)+IF(RIGHT(BR$39,2)>RIGHT($K50,2),AV50,0)) -> 0.05 | BS50: =+IF($K50="Ongoing",AW50,IF(RIGHT($K50,2)=RIGHT(BS$39,2),SUM($AV50:AW50),0)+IF(RIGHT(BS$39,2)>RIGHT($K50,2),AW50,0)) -> 0.11 | BT50: =+IF($K50="Ongoing",AX50,IF(RIGHT($K50,2)=RIGHT(BT$39,2),SUM($AV50:AX50),0)+IF(RIGHT(BT$39,2)>RIGHT($K50,2),AX50,0)) -> 0.125 | BU50: =+IF($K50="Ongoing",AY50,IF(RIGHT($K50,2)=RIGHT(BU$39,2),SUM($AV50:AY50),0)+IF(RIGHT(BU$39,2)>RIGHT($K50,2),AY50,0)) -> 0.08 | BV50: =+IF($K50="Ongoing",AZ50,IF(RIGHT($K50,2)=RIGHT(BV$39,2),SUM($AV50:AZ50),0)+IF(RIGHT(BV$39,2)>RIGHT($K50,2),AZ50,0)) -> 0.22 | BW50: =+IF($K50="Ongoing",BA50,IF(RIGHT($K50,2)=RIGHT(BW$39,2),SUM($AV50:BA50),0)+IF(RIGHT(BW$39,2)>RIGHT($K50,2),BA50,0)) -> 0.22 | BX50: =+IF($K50="Ongoing",BB50,IF(RIGHT($K50,2)=RIGHT(BX$39,2),SUM($AV50:BB50),0)+IF(RIGHT(BX$39,2)>RIGHT($K50,2),BB50,0)) -> 0.22 | BY50: =+IF($K50="Ongoing",BC50,IF(RIGHT($K50,2)=RIGHT(BY$39,2),SUM($AV50:BC50),0)+IF(RIGHT(BY$39,2)>RIGHT($K50,2),BC50,0)) -> 0.22 | BZ50: =+IF($K50="Ongoing",BD50,IF(RIGHT($K50,2)=RIGHT(BZ$39,2),SUM($AV50:BD50),0)+IF(RIGHT(BZ$39,2)>RIGHT($K50,2),BD50,0)) -> 0.22 | CA50: =+IF($K50="Ongoing",BE50,IF(RIGHT($K50,2)=RIGHT(CA$39,2),SUM($AV50:BE50),0)+IF(RIGHT(CA$39,2)>RIGHT($K50,2),BE50,0)) -> 0.22 | CC50: =+O50*KeyAssumptionsPriceControl_FO!X$15 -> 0.05115 | CD50: =+P50*KeyAssumptionsPriceControl_FO!Y$15 -> 0.11511819 | CE50: =+Q50*KeyAssumptionsPriceControl_FO!Z$15 -> 0.1338248959 | CF50: =+R50*KeyAssumptionsPriceControl_FO!AA$15 -> 0.08761783583 | CG50: =+S50*KeyAssumptionsPriceControl_FO!AB$15 -> 0.2464908766 | CH50: =+T50*KeyAssumptionsPriceControl_FO!AC$15 -> 0.2521601668 | CI50: =+U50*KeyAssumptionsPriceControl_FO!AD$15 -> 0.2579598506 | CJ50: =+V50*KeyAssumptionsPriceControl_FO!AE$15 -> 0.2638929272 | CK50: =+W50*KeyAssumptionsPriceControl_FO!AF$15 -> 0.2699624645 | CL50: =+X50*KeyAssumptionsPriceControl_FO!AG$15 -> 0.2761716012 | CN50: 0.001150875 | CO50: 0.004891909275 | CP50: 0.01049312871 | CQ50: 0.01547559017 | CR50: 0.0229930362 | CS50: 0.03421268468 | CT50: 0.04569038507 | CU50: 0.05743207257 | CV50: 0.06944381889 | CW50: 0.08173183537
C51: ROB - HPPS 100 kW Solar PV Pilot | D51: 0 | E51: Irrigation | F51: Renewals | G51: Pipelines/network | H51: Top 10 Major Projects | I51: 0 | J51: Straight line | K51: 2018-19 | L51: 45 | M51: 22.22222222 | O51: 0.275 | P51: 0 | Q51: 0 | R51: 0 | S51: 0 | T51: 0 | U51: 0 | V51: 0 | W51: 0 | X51: 0 | AV51: 0.275 | AW51: 0 | AX51: 0 | AY51: 0 | AZ51: 0 | BA51: 0 | BB51: 0 | BC51: 0 | BD51: 0 | BE51: 0 | BG51: 0.003055555556 | BH51: 0.006111111111 | BI51: 0.006111111111 | BJ51: 0.006111111111 | BK51: 0.006111111111 | BL51: 0.006111111111 | BM51: 0.006111111111 | BN51: 0.006111111111 | BO51: 0.006111111111 | BP51: 0.006111111111 | BR51: =+IF($K51="Ongoing",AV51,IF(RIGHT($K51,2)=RIGHT(BR$39,2),SUM($AV51:AV51),0)+IF(RIGHT(BR$39,2)>RIGHT($K51,2),AV51,0)) -> 0.275 | BS51: =+IF($K51="Ongoing",AW51,IF(RIGHT($K51,2)=RIGHT(BS$39,2),SUM($AV51:AW51),0)+IF(RIGHT(BS$39,2)>RIGHT($K51,2),AW51,0)) -> 0 | BT51: =+IF($K51="Ongoing",AX51,IF(RIGHT($K51,2)=RIGHT(BT$39,2),SUM($AV51:AX51),0)+IF(RIGHT(BT$39,2)>RIGHT($K51,2),AX51,0)) -> 0 | BU51: =+IF($K51="Ongoing",AY51,IF(RIGHT($K51,2)=RIGHT(BU$39,2),SUM($AV51:AY51),0)+IF(RIGHT(BU$39,2)>RIGHT($K51,2),AY51,0)) -> 0 | BV51: =+IF($K51="Ongoing",AZ51,IF(RIGHT($K51,2)=RIGHT(BV$39,2),SUM($AV51:AZ51),0)+IF(RIGHT(BV$39,2)>RIGHT($K51,2),AZ51,0)) -> 0 | BW51: =+IF($K51="Ongoing",BA51,IF(RIGHT($K51,2)=RIGHT(BW$39,2),SUM($AV51:BA51),0)+IF(RIGHT(BW$39,2)>RIGHT($K51,2),BA51,0)) -> 0 | BX51: =+IF($K51="Ongoing",BB51,IF(RIGHT($K51,2)=RIGHT(BX$39,2),SUM($AV51:BB51),0)+IF(RIGHT(BX$39,2)>RIGHT($K51,2),BB51,0)) -> 0 | BY51: =+IF($K51="Ongoing",BC51,IF(RIGHT($K51,2)=RIGHT(BY$39,2),SUM($AV51:BC51),0)+IF(RIGHT(BY$39,2)>RIGHT($K51,2),BC51,0)) -> 0 | BZ51: =+IF($K51="Ongoing",BD51,IF(RIGHT($K51,2)=RIGHT(BZ$39,2),SUM($AV51:BD51),0)+IF(RIGHT(BZ$39,2)>RIGHT($K51,2),BD51,0)) -> 0 | CA51: =+IF($K51="Ongoing",BE51,IF(RIGHT($K51,2)=RIGHT(CA$39,2),SUM($AV51:BE51),0)+IF(RIGHT(CA$39,2)>RIGHT($K51,2),BE51,0)) -> 0 | CC51: =+O51*KeyAssumptionsPriceControl_FO!X$15 -> 0.281325 | CD51: =+P51*KeyAssumptionsPriceControl_FO!Y$15 -> 0 | CE51: =+Q51*KeyAssumptionsPriceControl_FO!Z$15 -> 0 | CF51: =+R51*KeyAssumptionsPriceControl_FO!AA$15 -> 0 | CG51: =+S51*KeyAssumptionsPriceControl_FO!AB$15 -> 0 | CH51: =+T51*KeyAssumptionsPriceControl_FO!AC$15 -> 0 | CI51: =+U51*KeyAssumptionsPriceControl_FO!AD$15 -> 0 | CJ51: =+V51*KeyAssumptionsPriceControl_FO!AE$15 -> 0 | CK51: =+W51*KeyAssumptionsPriceControl_FO!AF$15 -> 0 | CL51: =+X51*KeyAssumptionsPriceControl_FO!AG$15 -> 0 | CN51: 0.0063298125 | CO51: 0.012659625 | CP51: 0.012659625 | CQ51: 0.012659625 | CR51: 0.012659625 | CS51: 0.012659625 | CT51: 0.012659625 | CU51: 0.012659625 | CV51: 0.012659625 | CW51: 0.012659625
AV53: 0 | AW53: 0 | AX53: 0 | AY53: 0 | AZ53: 0 | BA53: 0 | BB53: 0 | BC53: 0 | BD53: 0 | BE53: 0 | BG53: 0 | BH53: 0 | BI53: 0 | BJ53: 0 | BK53: 0 | BL53: 0 | BM53: 0 | BN53: 0 | BO53: 0 | BP53: 0 | BR53: =+IF($K53="Ongoing",AV53,IF(RIGHT($K53,2)=RIGHT(BR$39,2),SUM($AV53:AV53),0)+IF(RIGHT(BR$39,2)>RIGHT($K53,2),AV53,0)) -> 0 | BS53: =+IF($K53="Ongoing",AW53,IF(RIGHT($K53,2)=RIGHT(BS$39,2),SUM($AV53:AW53),0)+IF(RIGHT(BS$39,2)>RIGHT($K53,2),AW53,0)) -> 0 | BT53: =+IF($K53="Ongoing",AX53,IF(RIGHT($K53,2)=RIGHT(BT$39,2),SUM($AV53:AX53),0)+IF(RIGHT(BT$39,2)>RIGHT($K53,2),AX53,0)) -> 0 | BU53: =+IF($K53="Ongoing",AY53,IF(RIGHT($K53,2)=RIGHT(BU$39,2),SUM($AV53:AY53),0)+IF(RIGHT(BU$39,2)>RIGHT($K53,2),AY53,0)) -> 0 | BV53: =+IF($K53="Ongoing",AZ53,IF(RIGHT($K53,2)=RIGHT(BV$39,2),SUM($AV53:AZ53),0)+IF(RIGHT(BV$39,2)>RIGHT($K53,2),AZ53,0)) -> 0 | BW53: =+IF($K53="Ongoing",BA53,IF(RIGHT($K53,2)=RIGHT(BW$39,2),SUM($AV53:BA53),0)+IF(RIGHT(BW$39,2)>RIGHT($K53,2),BA53,0)) -> 0 | BX53: =+IF($K53="Ongoing",BB53,IF(RIGHT($K53,2)=RIGHT(BX$39,2),SUM($AV53:BB53),0)+IF(RIGHT(BX$39,2)>RIGHT($K53,2),BB53,0)) -> 0 | BY53: =+IF($K53="Ongoing",BC53,IF(RIGHT($K53,2)=RIGHT(BY$39,2),SUM($AV53:BC53),0)+IF(RIGHT(BY$39,2)>RIGHT($K53,2),BC53,0)) -> 0 | BZ53: =+IF($K53="Ongoing",BD53,IF(RIGHT($K53,2)=RIGHT(BZ$39,2),SUM($AV53:BD53),0)+IF(RIGHT(BZ$39,2)>RIGHT($K53,2),BD53,0)) -> 0 | CA53: =+IF($K53="Ongoing",BE53,IF(RIGHT($K53,2)=RIGHT(CA$39,2),SUM($AV53:BE53),0)+IF(RIGHT(CA$39,2)>RIGHT($K53,2),BE53,0)) -> 0 | CC53: =+O53*KeyAssumptionsPriceControl_FO!X$15 -> 0 | CD53: =+P53*KeyAssumptionsPriceControl_FO!Y$15 -> 0 | CE53: =+Q53*KeyAssumptionsPriceControl_FO!Z$15 -> 0 | CF53: =+R53*KeyAssumptionsPriceControl_FO!AA$15 -> 0 | CG53: =+S53*KeyAssumptionsPriceControl_FO!AB$15 -> 0 | CH53: =+T53*KeyAssumptionsPriceControl_FO!AC$15 -> 0 | CI53: =+U53*KeyAssumptionsPriceControl_FO!AD$15 -> 0 | CJ53: =+V53*KeyAssumptionsPriceControl_FO!AE$15 -> 0 | CK53: =+W53*KeyAssumptionsPriceControl_FO!AF$15 -> 0 | CL53: =+X53*KeyAssumptionsPriceControl_FO!AG$15 -> 0 | CN53: 0 | CO53: 0 | CP53: 0 | CQ53: 0 | CR53: 0 | CS53: 0 | CT53: 0 | CU53: 0 | CV53: 0 | CW53: 0
C54: RURAL - Upgrade Irrigation PS Flow Meters | D54: 0 | E54: Irrigation | F54: Renewals | G54: Pipelines/network | H54: Capital Programs / Allocation | I54: 0 | J54: Straight line | K54: 2016-17 | L54: 45 | M54: 6.666666667 | O54: 0 | P54: 0 | Q54: 0 | R54: 0 | S54: 0 | T54: 0 | U54: 0 | V54: 0 | W54: 0 | X54: 0 | AV54: 0 | AW54: 0 | AX54: 0 | AY54: 0 | AZ54: 0 | BA54: 0 | BB54: 0 | BC54: 0 | BD54: 0 | BE54: 0 | BG54: 0 | BH54: 0 | BI54: 0 | BJ54: 0 | BK54: 0 | BL54: 0 | BM54: 0 | BN54: 0 | BO54: 0 | BP54: 0 | BR54: =+IF($K54="Ongoing",AV54,IF(RIGHT($K54,2)=RIGHT(BR$39,2),SUM($AV54:AV54),0)+IF(RIGHT(BR$39,2)>RIGHT($K54,2),AV54,0)) -> 0 | BS54: =+IF($K54="Ongoing",AW54,IF(RIGHT($K54,2)=RIGHT(BS$39,2),SUM($AV54:AW54),0)+IF(RIGHT(BS$39,2)>RIGHT($K54,2),AW54,0)) -> 0 | BT54: =+IF($K54="Ongoing",AX54,IF(RIGHT($K54,2)=RIGHT(BT$39,2),SUM($AV54:AX54),0)+IF(RIGHT(BT$39,2)>RIGHT($K54,2),AX54,0)) -> 0 | BU54: =+IF($K54="Ongoing",AY54,IF(RIGHT($K54,2)=RIGHT(BU$39,2),SUM($AV54:AY54),0)+IF(RIGHT(BU$39,2)>RIGHT($K54,2),AY54,0)) -> 0 | BV54: =+IF($K54="Ongoing",AZ54,IF(RIGHT($K54,2)=RIGHT(BV$39,2),SUM($AV54:AZ54),0)+IF(RIGHT(BV$39,2)>RIGHT($K54,2),AZ54,0)) -> 0 | BW54: =+IF($K54="Ongoing",BA54,IF(RIGHT($K54,2)=RIGHT(BW$39,2),SUM($AV54:BA54),0)+IF(RIGHT(BW$39,2)>RIGHT($K54,2),BA54,0)) -> 0 | BX54: =+IF($K54="Ongoing",BB54,IF(RIGHT($K54,2)=RIGHT(BX$39,2),SUM($AV54:BB54),0)+IF(RIGHT(BX$39,2)>RIGHT($K54,2),BB54,0)) -> 0 | BY54: =+IF($K54="Ongoing",BC54,IF(RIGHT($K54,2)=RIGHT(BY$39,2),SUM($AV54:BC54),0)+IF(RIGHT(BY$39,2)>RIGHT($K54,2),BC54,0)) -> 0 | BZ54: =+IF($K54="Ongoing",BD54,IF(RIGHT($K54,2)=RIGHT(BZ$39,2),SUM($AV54:BD54),0)+IF(RIGHT(BZ$39,2)>RIGHT($K54,2),BD54,0)) -> 0 | CA54: =+IF($K54="Ongoing",BE54,IF(RIGHT($K54,2)=RIGHT(CA$39,2),SUM($AV54:BE54),0)+IF(RIGHT(CA$39,2)>RIGHT($K54,2),BE54,0)) -> 0 | CC54: =+O54*KeyAssumptionsPriceControl_FO!X$15 -> 0 | CD54: =+P54*KeyAssumptionsPriceControl_FO!Y$15 -> 0 | CE54: =+Q54*KeyAssumptionsPriceControl_FO!Z$15 -> 0 | CF54: =+R54*KeyAssumptionsPriceControl_FO!AA$15 -> 0 | CG54: =+S54*KeyAssumptionsPriceControl_FO!AB$15 -> 0 | CH54: =+T54*KeyAssumptionsPriceControl_FO!AC$15 -> 0 | CI54: =+U54*KeyAssumptionsPriceControl_FO!AD$15 -> 0 | CJ54: =+V54*KeyAssumptionsPriceControl_FO!AE$15 -> 0 | CK54: =+W54*KeyAssumptionsPriceControl_FO!AF$15 -> 0 | CL54: =+X54*KeyAssumptionsPriceControl_FO!AG$15 -> 0 | CN54: 0 | CO54: 0 | CP54: 0 | CQ54: 0 | CR54: 0 | CS54: 0 | CT54: 0 | CU54: 0 | CV54: 0 | CW54: 0
C55: ALL - SMS Alarming Configuration - Stage 2 | D55: 0 | E55: Irrigation | F55: Renewals | G55: Pipelines/network | H55: Capital Programs / Allocation | I55: 0 | J55: Straight line | K55: 2015-16 | L55: 45 | M55: 6.666666667 | O55: 0 | P55: 0 | Q55: 0 | R55: 0 | S55: 0 | T55: 0 | U55: 0 | V55: 0 | W55: 0 | X55: 0 | AV55: 0 | AW55: 0 | AX55: 0 | AY55: 0 | AZ55: 0 | BA55: 0 | BB55: 0 | BC55: 0 | BD55: 0 | BE55: 0 | BG55: 0 | BH55: 0 | BI55: 0 | BJ55: 0 | BK55: 0 | BL55: 0 | BM55: 0 | BN55: 0 | BO55: 0 | BP55: 0 | BR55: =+IF($K55="Ongoing",AV55,IF(RIGHT($K55,2)=RIGHT(BR$39,2),SUM($AV55:AV55),0)+IF(RIGHT(BR$39,2)>RIGHT($K55,2),AV55,0)) -> 0 | BS55: =+IF($K55="Ongoing",AW55,IF(RIGHT($K55,2)=RIGHT(BS$39,2),SUM($AV55:AW55),0)+IF(RIGHT(BS$39,2)>RIGHT($K55,2),AW55,0)) -> 0 | BT55: =+IF($K55="Ongoing",AX55,IF(RIGHT($K55,2)=RIGHT(BT$39,2),SUM($AV55:AX55),0)+IF(RIGHT(BT$39,2)>RIGHT($K55,2),AX55,0)) -> 0 | BU55: =+IF($K55="Ongoing",AY55,IF(RIGHT($K55,2)=RIGHT(BU$39,2),SUM($AV55:AY55),0)+IF(RIGHT(BU$39,2)>RIGHT($K55,2),AY55,0)) -> 0 | BV55: =+IF($K55="Ongoing",AZ55,IF(RIGHT($K55,2)=RIGHT(BV$39,2),SUM($AV55:AZ55),0)+IF(RIGHT(BV$39,2)>RIGHT($K55,2),AZ55,0)) -> 0 | BW55: =+IF($K55="Ongoing",BA55,IF(RIGHT($K55,2)=RIGHT(BW$39,2),SUM($AV55:BA55),0)+IF(RIGHT(BW$39,2)>RIGHT($K55,2),BA55,0)) -> 0 | BX55: =+IF($K55="Ongoing",BB55,IF(RIGHT($K55,2)=RIGHT(BX$39,2),SUM($AV55:BB55),0)+IF(RIGHT(BX$39,2)>RIGHT($K55,2),BB55,0)) -> 0 | BY55: =+IF($K55="Ongoing",BC55,IF(RIGHT($K55,2)=RIGHT(BY$39,2),SUM($AV55:BC55),0)+IF(RIGHT(BY$39,2)>RIGHT($K55,2),BC55,0)) -> 0 | BZ55: =+IF($K55="Ongoing",BD55,IF(RIGHT($K55,2)=RIGHT(BZ$39,2),SUM($AV55:BD55),0)+IF(RIGHT(BZ$39,2)>RIGHT($K55,2),BD55,0)) -> 0 | CA55: =+IF($K55="Ongoing",BE55,IF(RIGHT($K55,2)=RIGHT(CA$39,2),SUM($AV55:BE55),0)+IF(RIGHT(CA$39,2)>RIGHT($K55,2),BE55,0)) -> 0 | CC55: =+O55*KeyAssumptionsPriceControl_FO!X$15 -> 0 | CD55: =+P55*KeyAssumptionsPriceControl_FO!Y$15 -> 0 | CE55: =+Q55*KeyAssumptionsPriceControl_FO!Z$15 -> 0 | CF55: =+R55*KeyAssumptionsPriceControl_FO!AA$15 -> 0 | CG55: =+S55*KeyAssumptionsPriceControl_FO!AB$15 -> 0 | CH55: =+T55*KeyAssumptionsPriceControl_FO!AC$15 -> 0 | CI55: =+U55*KeyAssumptionsPriceControl_FO!AD$15 -> 0 | CJ55: =+V55*KeyAssumptionsPriceControl_FO!AE$15 -> 0 | CK55: =+W55*KeyAssumptionsPriceControl_FO!AF$15 -> 0 | CL55: =+X55*KeyAssumptionsPriceControl_FO!AG$15 -> 0 | CN55: 0 | CO55: 0 | CP55: 0 | CQ55: 0 | CR55: 0 | CS55: 0 | CT55: 0 | CU55: 0 | CV55: 0 | CW55: 0
C56: Rural ClearScada Secondary Licence | D56: 0 | E56: Irrigation | F56: Renewals | G56: Pipelines/network | H56: Capital Programs / Allocation | I56: 0 | J56: Straight line | K56: 2016-17 | L56: 45 | M56: 6.666666667 | O56: 0 | P56: 0 | Q56: 0 | R56: 0 | S56: 0 | T56: 0 | U56: 0 | V56: 0 | W56: 0 | X56: 0 | AV56: 0 | AW56: 0 | AX56: 0 | AY56: 0 | AZ56: 0 | BA56: 0 | BB56: 0 | BC56: 0 | BD56: 0 | BE56: 0 | BG56: 0 | BH56: 0 | BI56: 0 | BJ56: 0 | BK56: 0 | BL56: 0 | BM56: 0 | BN56: 0 | BO56: 0 | BP56: 0 | BR56: =+IF($K56="Ongoing",AV56,IF(RIGHT($K56,2)=RIGHT(BR$39,2),SUM($AV56:AV56),0)+IF(RIGHT(BR$39,2)>RIGHT($K56,2),AV56,0)) -> 0 | BS56: =+IF($K56="Ongoing",AW56,IF(RIGHT($K56,2)=RIGHT(BS$39,2),SUM($AV56:AW56),0)+IF(RIGHT(BS$39,2)>RIGHT($K56,2),AW56,0)) -> 0 | BT56: =+IF($K56="Ongoing",AX56,IF(RIGHT($K56,2)=RIGHT(BT$39,2),SUM($AV56:AX56),0)+IF(RIGHT(BT$39,2)>RIGHT($K56,2),AX56,0)) -> 0 | BU56: =+IF($K56="Ongoing",AY56,IF(RIGHT($K56,2)=RIGHT(BU$39,2),SUM($AV56:AY56),0)+IF(RIGHT(BU$39,2)>RIGHT($K56,2),AY56,0)) -> 0 | BV56: =+IF($K56="Ongoing",AZ56,IF(RIGHT($K56,2)=RIGHT(BV$39,2),SUM($AV56:AZ56),0)+IF(RIGHT(BV$39,2)>RIGHT($K56,2),AZ56,0)) -> 0 | BW56: =+IF($K56="Ongoing",BA56,IF(RIGHT($K56,2)=RIGHT(BW$39,2),SUM($AV56:BA56),0)+IF(RIGHT(BW$39,2)>RIGHT($K56,2),BA56,0)) -> 0 | BX56: =+IF($K56="Ongoing",BB56,IF(RIGHT($K56,2)=RIGHT(BX$39,2),SUM($AV56:BB56),0)+IF(RIGHT(BX$39,2)>RIGHT($K56,2),BB56,0)) -> 0 | BY56: =+IF($K56="Ongoing",BC56,IF(RIGHT($K56,2)=RIGHT(BY$39,2),SUM($AV56:BC56),0)+IF(RIGHT(BY$39,2)>RIGHT($K56,2),BC56,0)) -> 0 | BZ56: =+IF($K56="Ongoing",BD56,IF(RIGHT($K56,2)=RIGHT(BZ$39,2),SUM($AV56:BD56),0)+IF(RIGHT(BZ$39,2)>RIGHT($K56,2),BD56,0)) -> 0 | CA56: =+IF($K56="Ongoing",BE56,IF(RIGHT($K56,2)=RIGHT(CA$39,2),SUM($AV56:BE56),0)+IF(RIGHT(CA$39,2)>RIGHT($K56,2),BE56,0)) -> 0 | CC56: =+O56*KeyAssumptionsPriceControl_FO!X$15 -> 0 | CD56: =+P56*KeyAssumptionsPriceControl_FO!Y$15 -> 0 | CE56: =+Q56*KeyAssumptionsPriceControl_FO!Z$15 -> 0 | CF56: =+R56*KeyAssumptionsPriceControl_FO!AA$15 -> 0 | CG56: =+S56*KeyAssumptionsPriceControl_FO!AB$15 -> 0 | CH56: =+T56*KeyAssumptionsPriceControl_FO!AC$15 -> 0 | CI56: =+U56*KeyAssumptionsPriceControl_FO!AD$15 -> 0 | CJ56: =+V56*KeyAssumptionsPriceControl_FO!AE$15 -> 0 | CK56: =+W56*KeyAssumptionsPriceControl_FO!AF$15 -> 0 | CL56: =+X56*KeyAssumptionsPriceControl_FO!AG$15 -> 0 | CN56: 0 | CO56: 0 | CP56: 0 | CQ56: 0 | CR56: 0 | CS56: 0 | CT56: 0 | CU56: 0 | CV56: 0 | CW56: 0
AV57: 0 | AW57: 0 | AX57: 0 | AY57: 0 | AZ57: 0 | BA57: 0 | BB57: 0 | BC57: 0 | BD57: 0 | BE57: 0 | BG57: 0 | BH57: 0 | BI57: 0 | BJ57: 0 | BK57: 0 | BL57: 0 | BM57: 0 | BN57: 0 | BO57: 0 | BP57: 0 | BR57: =+IF($K57="Ongoing",AV57,IF(RIGHT($K57,2)=RIGHT(BR$39,2),SUM($AV57:AV57),0)+IF(RIGHT(BR$39,2)>RIGHT($K57,2),AV57,0)) -> 0 | BS57: =+IF($K57="Ongoing",AW57,IF(RIGHT($K57,2)=RIGHT(BS$39,2),SUM($AV57:AW57),0)+IF(RIGHT(BS$39,2)>RIGHT($K57,2),AW57,0)) -> 0 | BT57: =+IF($K57="Ongoing",AX57,IF(RIGHT($K57,2)=RIGHT(BT$39,2),SUM($AV57:AX57),0)+IF(RIGHT(BT$39,2)>RIGHT($K57,2),AX57,0)) -> 0 | BU57: =+IF($K57="Ongoing",AY57,IF(RIGHT($K57,2)=RIGHT(BU$39,2),SUM($AV57:AY57),0)+IF(RIGHT(BU$39,2)>RIGHT($K57,2),AY57,0)) -> 0 | BV57: =+IF($K57="Ongoing",AZ57,IF(RIGHT($K57,2)=RIGHT(BV$39,2),SUM($AV57:AZ57),0)+IF(RIGHT(BV$39,2)>RIGHT($K57,2),AZ57,0)) -> 0 | BW57: =+IF($K57="Ongoing",BA57,IF(RIGHT($K57,2)=RIGHT(BW$39,2),SUM($AV57:BA57),0)+IF(RIGHT(BW$39,2)>RIGHT($K57,2),BA57,0)) -> 0 | BX57: =+IF($K57="Ongoing",BB57,IF(RIGHT($K57,2)=RIGHT(BX$39,2),SUM($AV57:BB57),0)+IF(RIGHT(BX$39,2)>RIGHT($K57,2),BB57,0)) -> 0 | BY57: =+IF($K57="Ongoing",BC57,IF(RIGHT($K57,2)=RIGHT(BY$39,2),SUM($AV57:BC57),0)+IF(RIGHT(BY$39,2)>RIGHT($K57,2),BC57,0)) -> 0 | BZ57: =+IF($K57="Ongoing",BD57,IF(RIGHT($K57,2)=RIGHT(BZ$39,2),SUM($AV57:BD57),0)+IF(RIGHT(BZ$39,2)>RIGHT($K57,2),BD57,0)) -> 0 | CA57: =+IF($K57="Ongoing",BE57,IF(RIGHT($K57,2)=RIGHT(CA$39,2),SUM($AV57:BE57),0)+IF(RIGHT(CA$39,2)>RIGHT($K57,2),BE57,0)) -> 0 | CC57: =+O57*KeyAssumptionsPriceControl_FO!X$15 -> 0 | CD57: =+P57*KeyAssumptionsPriceControl_FO!Y$15 -> 0 | CE57: =+Q57*KeyAssumptionsPriceControl_FO!Z$15 -> 0 | CF57: =+R57*KeyAssumptionsPriceControl_FO!AA$15 -> 0 | CG57: =+S57*KeyAssumptionsPriceControl_FO!AB$15 -> 0 | CH57: =+T57*KeyAssumptionsPriceControl_FO!AC$15 -> 0 | CI57: =+U57*KeyAssumptionsPriceControl_FO!AD$15 -> 0 | CJ57: =+V57*KeyAssumptionsPriceControl_FO!AE$15 -> 0 | CK57: =+W57*KeyAssumptionsPriceControl_FO!AF$15 -> 0 | CL57: =+X57*KeyAssumptionsPriceControl_FO!AG$15 -> 0 | CN57: 0 | CO57: 0 | CP57: 0 | CQ57: 0 | CR57: 0 | CS57: 0 | CT57: 0 | CU57: 0 | CV57: 0 | CW57: 0
AV58: 0 | AW58: 0 | AX58: 0 | AY58: 0 | AZ58: 0 | BA58: 0 | BB58: 0 | BC58: 0 | BD58: 0 | BE58: 0 | BG58: 0 | BH58: 0 | BI58: 0 | BJ58: 0 | BK58: 0 | BL58: 0 | BM58: 0 | BN58: 0 | BO58: 0 | BP58: 0 | BR58: =+IF($K58="Ongoing",AV58,IF(RIGHT($K58,2)=RIGHT(BR$39,2),SUM($AV58:AV58),0)+IF(RIGHT(BR$39,2)>RIGHT($K58,2),AV58,0)) -> 0 | BS58: =+IF($K58="Ongoing",AW58,IF(RIGHT($K58,2)=RIGHT(BS$39,2),SUM($AV58:AW58),0)+IF(RIGHT(BS$39,2)>RIGHT($K58,2),AW58,0)) -> 0 | BT58: =+IF($K58="Ongoing",AX58,IF(RIGHT($K58,2)=RIGHT(BT$39,2),SUM($AV58:AX58),0)+IF(RIGHT(BT$39,2)>RIGHT($K58,2),AX58,0)) -> 0 | BU58: =+IF($K58="Ongoing",AY58,IF(RIGHT($K58,2)=RIGHT(BU$39,2),SUM($AV58:AY58),0)+IF(RIGHT(BU$39,2)>RIGHT($K58,2),AY58,0)) -> 0 | BV58: =+IF($K58="Ongoing",AZ58,IF(RIGHT($K58,2)=RIGHT(BV$39,2),SUM($AV58:AZ58),0)+IF(RIGHT(BV$39,2)>RIGHT($K58,2),AZ58,0)) -> 0 | BW58: =+IF($K58="Ongoing",BA58,IF(RIGHT($K58,2)=RIGHT(BW$39,2),SUM($AV58:BA58),0)+IF(RIGHT(BW$39,2)>RIGHT($K58,2),BA58,0)) -> 0 | BX58: =+IF($K58="Ongoing",BB58,IF(RIGHT($K58,2)=RIGHT(BX$39,2),SUM($AV58:BB58),0)+IF(RIGHT(BX$39,2)>RIGHT($K58,2),BB58,0)) -> 0 | BY58: =+IF($K58="Ongoing",BC58,IF(RIGHT($K58,2)=RIGHT(BY$39,2),SUM($AV58:BC58),0)+IF(RIGHT(BY$39,2)>RIGHT($K58,2),BC58,0)) -> 0 | BZ58: =+IF($K58="Ongoing",BD58,IF(RIGHT($K58,2)=RIGHT(BZ$39,2),SUM($AV58:BD58),0)+IF(RIGHT(BZ$39,2)>RIGHT($K58,2),BD58,0)) -> 0 | CA58: =+IF($K58="Ongoing",BE58,IF(RIGHT($K58,2)=RIGHT(CA$39,2),SUM($AV58:BE58),0)+IF(RIGHT(CA$39,2)>RIGHT($K58,2),BE58,0)) -> 0 | CC58: =+O58*KeyAssumptionsPriceControl_FO!X$15 -> 0 | CD58: =+P58*KeyAssumptionsPriceControl_FO!Y$15 -> 0 | CE58: =+Q58*KeyAssumptionsPriceControl_FO!Z$15 -> 0 | CF58: =+R58*KeyAssumptionsPriceControl_FO!AA$15 -> 0 | CG58: =+S58*KeyAssumptionsPriceControl_FO!AB$15 -> 0 | CH58: =+T58*KeyAssumptionsPriceControl_FO!AC$15 -> 0 | CI58: =+U58*KeyAssumptionsPriceControl_FO!AD$15 -> 0 | CJ58: =+V58*KeyAssumptionsPriceControl_FO!AE$15 -> 0 | CK58: =+W58*KeyAssumptionsPriceControl_FO!AF$15 -> 0 | CL58: =+X58*KeyAssumptionsPriceControl_FO!AG$15 -> 0 | CN58: 0 | CO58: 0 | CP58: 0 | CQ58: 0 | CR58: 0 | CS58: 0 | CT58: 0 | CU58: 0 | CV58: 0 | CW58: 0
AV59: 0 | AW59: 0 | AX59: 0 | AY59: 0 | AZ59: 0 | BA59: 0 | BB59: 0 | BC59: 0 | BD59: 0 | BE59: 0 | BG59: 0 | BH59: 0 | BI59: 0 | BJ59: 0 | BK59: 0 | BL59: 0 | BM59: 0 | BN59: 0 | BO59: 0 | BP59: 0 | BR59: =+IF($K59="Ongoing",AV59,IF(RIGHT($K59,2)=RIGHT(BR$39,2),SUM($AV59:AV59),0)+IF(RIGHT(BR$39,2)>RIGHT($K59,2),AV59,0)) -> 0 | BS59: =+IF($K59="Ongoing",AW59,IF(RIGHT($K59,2)=RIGHT(BS$39,2),SUM($AV59:AW59),0)+IF(RIGHT(BS$39,2)>RIGHT($K59,2),AW59,0)) -> 0 | BT59: =+IF($K59="Ongoing",AX59,IF(RIGHT($K59,2)=RIGHT(BT$39,2),SUM($AV59:AX59),0)+IF(RIGHT(BT$39,2)>RIGHT($K59,2),AX59,0)) -> 0 | BU59: =+IF($K59="Ongoing",AY59,IF(RIGHT($K59,2)=RIGHT(BU$39,2),SUM($AV59:AY59),0)+IF(RIGHT(BU$39,2)>RIGHT($K59,2),AY59,0)) -> 0 | BV59: =+IF($K59="Ongoing",AZ59,IF(RIGHT($K59,2)=RIGHT(BV$39,2),SUM($AV59:AZ59),0)+IF(RIGHT(BV$39,2)>RIGHT($K59,2),AZ59,0)) -> 0 | BW59: =+IF($K59="Ongoing",BA59,IF(RIGHT($K59,2)=RIGHT(BW$39,2),SUM($AV59:BA59),0)+IF(RIGHT(BW$39,2)>RIGHT($K59,2),BA59,0)) -> 0 | BX59: =+IF($K59="Ongoing",BB59,IF(RIGHT($K59,2)=RIGHT(BX$39,2),SUM($AV59:BB59),0)+IF(RIGHT(BX$39,2)>RIGHT($K59,2),BB59,0)) -> 0 | BY59: =+IF($K59="Ongoing",BC59,IF(RIGHT($K59,2)=RIGHT(BY$39,2),SUM($AV59:BC59),0)+IF(RIGHT(BY$39,2)>RIGHT($K59,2),BC59,0)) -> 0 | BZ59: =+IF($K59="Ongoing",BD59,IF(RIGHT($K59,2)=RIGHT(BZ$39,2),SUM($AV59:BD59),0)+IF(RIGHT(BZ$39,2)>RIGHT($K59,2),BD59,0)) -> 0 | CA59: =+IF($K59="Ongoing",BE59,IF(RIGHT($K59,2)=RIGHT(CA$39,2),SUM($AV59:BE59),0)+IF(RIGHT(CA$39,2)>RIGHT($K59,2),BE59,0)) -> 0 | CC59: =+O59*KeyAssumptionsPriceControl_FO!X$15 -> 0 | CD59: =+P59*KeyAssumptionsPriceControl_FO!Y$15 -> 0 | CE59: =+Q59*KeyAssumptionsPriceControl_FO!Z$15 -> 0 | CF59: =+R59*KeyAssumptionsPriceControl_FO!AA$15 -> 0 | CG59: =+S59*KeyAssumptionsPriceControl_FO!AB$15 -> 0 | CH59: =+T59*KeyAssumptionsPriceControl_FO!AC$15 -> 0 | CI59: =+U59*KeyAssumptionsPriceControl_FO!AD$15 -> 0 | CJ59: =+V59*KeyAssumptionsPriceControl_FO!AE$15 -> 0 | CK59: =+W59*KeyAssumptionsPriceControl_FO!AF$15 -> 0 | CL59: =+X59*KeyAssumptionsPriceControl_FO!AG$15 -> 0 | CN59: 0 | CO59: 0 | CP59: 0 | CQ59: 0 | CR59: 0 | CS59: 0 | CT59: 0 | CU59: 0 | CV59: 0 | CW59: 0
AV60: 0 | AW60: 0 | AX60: 0 | AY60: 0 | AZ60: 0 | BA60: 0 | BB60: 0 | BC60: 0 | BD60: 0 | BE60: 0 | BG60: 0 | BH60: 0 | BI60: 0 | BJ60: 0 | BK60: 0 | BL60: 0 | BM60: 0 | BN60: 0 | BO60: 0 | BP60: 0 | BR60: =+IF($K60="Ongoing",AV60,IF(RIGHT($K60,2)=RIGHT(BR$39,2),SUM($AV60:AV60),0)+IF(RIGHT(BR$39,2)>RIGHT($K60,2),AV60,0)) -> 0 | BS60: =+IF($K60="Ongoing",AW60,IF(RIGHT($K60,2)=RIGHT(BS$39,2),SUM($AV60:AW60),0)+IF(RIGHT(BS$39,2)>RIGHT($K60,2),AW60,0)) -> 0 | BT60: =+IF($K60="Ongoing",AX60,IF(RIGHT($K60,2)=RIGHT(BT$39,2),SUM($AV60:AX60),0)+IF(RIGHT(BT$39,2)>RIGHT($K60,2),AX60,0)) -> 0 | BU60: =+IF($K60="Ongoing",AY60,IF(RIGHT($K60,2)=RIGHT(BU$39,2),SUM($AV60:AY60),0)+IF(RIGHT(BU$39,2)>RIGHT($K60,2),AY60,0)) -> 0 | BV60: =+IF($K60="Ongoing",AZ60,IF(RIGHT($K60,2)=RIGHT(BV$39,2),SUM($AV60:AZ60),0)+IF(RIGHT(BV$39,2)>RIGHT($K60,2),AZ60,0)) -> 0 | BW60: =+IF($K60="Ongoing",BA60,IF(RIGHT($K60,2)=RIGHT(BW$39,2),SUM($AV60:BA60),0)+IF(RIGHT(BW$39,2)>RIGHT($K60,2),BA60,0)) -> 0 | BX60: =+IF($K60="Ongoing",BB60,IF(RIGHT($K60,2)=RIGHT(BX$39,2),SUM($AV60:BB60),0)+IF(RIGHT(BX$39,2)>RIGHT($K60,2),BB60,0)) -> 0 | BY60: =+IF($K60="Ongoing",BC60,IF(RIGHT($K60,2)=RIGHT(BY$39,2),SUM($AV60:BC60),0)+IF(RIGHT(BY$39,2)>RIGHT($K60,2),BC60,0)) -> 0 | BZ60: =+IF($K60="Ongoing",BD60,IF(RIGHT($K60,2)=RIGHT(BZ$39,2),SUM($AV60:BD60),0)+IF(RIGHT(BZ$39,2)>RIGHT($K60,2),BD60,0)) -> 0 | CA60: =+IF($K60="Ongoing",BE60,IF(RIGHT($K60,2)=RIGHT(CA$39,2),SUM($AV60:BE60),0)+IF(RIGHT(CA$39,2)>RIGHT($K60,2),BE60,0)) -> 0 | CC60: =+O60*KeyAssumptionsPriceControl_FO!X$15 -> 0 | CD60: =+P60*KeyAssumptionsPriceControl_FO!Y$15 -> 0 | CE60: =+Q60*KeyAssumptionsPriceControl_FO!Z$15 -> 0 | CF60: =+R60*KeyAssumptionsPriceControl_FO!AA$15 -> 0 | CG60: =+S60*KeyAssumptionsPriceControl_FO!AB$15 -> 0 | CH60: =+T60*KeyAssumptionsPriceControl_FO!AC$15 -> 0 | CI60: =+U60*KeyAssumptionsPriceControl_FO!AD$15 -> 0 | CJ60: =+V60*KeyAssumptionsPriceControl_FO!AE$15 -> 0 | CK60: =+W60*KeyAssumptionsPriceControl_FO!AF$15 -> 0 | CL60: =+X60*KeyAssumptionsPriceControl_FO!AG$15 -> 0 | CN60: 0 | CO60: 0 | CP60: 0 | CQ60: 0 | CR60: 0 | CS60: 0 | CT60: 0 | CU60: 0 | CV60: 0 | CW60: 0
AV61: 0 | AW61: 0 | AX61: 0 | AY61: 0 | AZ61: 0 | BA61: 0 | BB61: 0 | BC61: 0 | BD61: 0 | BE61: 0 | BG61: 0 | BH61: 0 | BI61: 0 | BJ61: 0 | BK61: 0 | BL61: 0 | BM61: 0 | BN61: 0 | BO61: 0 | BP61: 0 | BR61: =+IF($K61="Ongoing",AV61,IF(RIGHT($K61,2)=RIGHT(BR$39,2),SUM($AV61:AV61),0)+IF(RIGHT(BR$39,2)>RIGHT($K61,2),AV61,0)) -> 0 | BS61: =+IF($K61="Ongoing",AW61,IF(RIGHT($K61,2)=RIGHT(BS$39,2),SUM($AV61:AW61),0)+IF(RIGHT(BS$39,2)>RIGHT($K61,2),AW61,0)) -> 0 | BT61: =+IF($K61="Ongoing",AX61,IF(RIGHT($K61,2)=RIGHT(BT$39,2),SUM($AV61:AX61),0)+IF(RIGHT(BT$39,2)>RIGHT($K61,2),AX61,0)) -> 0 | BU61: =+IF($K61="Ongoing",AY61,IF(RIGHT($K61,2)=RIGHT(BU$39,2),SUM($AV61:AY61),0)+IF(RIGHT(BU$39,2)>RIGHT($K61,2),AY61,0)) -> 0 | BV61: =+IF($K61="Ongoing",AZ61,IF(RIGHT($K61,2)=RIGHT(BV$39,2),SUM($AV61:AZ61),0)+IF(RIGHT(BV$39,2)>RIGHT($K61,2),AZ61,0)) -> 0 | BW61: =+IF($K61="Ongoing",BA61,IF(RIGHT($K61,2)=RIGHT(BW$39,2),SUM($AV61:BA61),0)+IF(RIGHT(BW$39,2)>RIGHT($K61,2),BA61,0)) -> 0 | BX61: =+IF($K61="Ongoing",BB61,IF(RIGHT($K61,2)=RIGHT(BX$39,2),SUM($AV61:BB61),0)+IF(RIGHT(BX$39,2)>RIGHT($K61,2),BB61,0)) -> 0 | BY61: =+IF($K61="Ongoing",BC61,IF(RIGHT($K61,2)=RIGHT(BY$39,2),SUM($AV61:BC61),0)+IF(RIGHT(BY$39,2)>RIGHT($K61,2),BC61,0)) -> 0 | BZ61: =+IF($K61="Ongoing",BD61,IF(RIGHT($K61,2)=RIGHT(BZ$39,2),SUM($AV61:BD61),0)+IF(RIGHT(BZ$39,2)>RIGHT($K61,2),BD61,0)) -> 0 | CA61: =+IF($K61="Ongoing",BE61,IF(RIGHT($K61,2)=RIGHT(CA$39,2),SUM($AV61:BE61),0)+IF(RIGHT(CA$39,2)>RIGHT($K61,2),BE61,0)) -> 0 | CC61: =+O61*KeyAssumptionsPriceControl_FO!X$15 -> 0 | CD61: =+P61*KeyAssumptionsPriceControl_FO!Y$15 -> 0 | CE61: =+Q61*KeyAssumptionsPriceControl_FO!Z$15 -> 0 | CF61: =+R61*KeyAssumptionsPriceControl_FO!AA$15 -> 0 | CG61: =+S61*KeyAssumptionsPriceControl_FO!AB$15 -> 0 | CH61: =+T61*KeyAssumptionsPriceControl_FO!AC$15 -> 0 | CI61: =+U61*KeyAssumptionsPriceControl_FO!AD$15 -> 0 | CJ61: =+V61*KeyAssumptionsPriceControl_FO!AE$15 -> 0 | CK61: =+W61*KeyAssumptionsPriceControl_FO!AF$15 -> 0 | CL61: =+X61*KeyAssumptionsPriceControl_FO!AG$15 -> 0 | CN61: 0 | CO61: 0 | CP61: 0 | CQ61: 0 | CR61: 0 | CS61: 0 | CT61: 0 | CU61: 0 | CV61: 0 | CW61: 0
C62: MER Minor Capital - New | D62: 0 | E62: Irrigation | F62: Growth | G62: Pipelines/network | H62: Capital Programs / Allocation | I62: 0 | J62: Straight line | K62: Ongoing | L62: 45 | M62: 22.22222222 | O62: 0.085 | P62: 0.085 | Q62: 0.085 | R62: 0.085 | S62: 0.085 | T62: 0.085 | U62: 0.085 | V62: 0.085 | W62: 0.085 | X62: 0.085 | AV62: 0.085 | AW62: 0.085 | AX62: 0.085 | AY62: 0.085 | AZ62: 0.085 | BA62: 0.085 | BB62: 0.085 | BC62: 0.085 | BD62: 0.085 | BE62: 0.085 | BG62: 0.0009444444444 | BH62: 0.002833333333 | BI62: 0.004722222222 | BJ62: 0.006611111111 | BK62: 0.0085 | BL62: 0.01038888889 | BM62: 0.01227777778 | BN62: 0.01416666667 | BO62: 0.01605555556 | BP62: 0.01794444444 | BR62: =+IF($K62="Ongoing",AV62,IF(RIGHT($K62,2)=RIGHT(BR$39,2),SUM($AV62:AV62),0)+IF(RIGHT(BR$39,2)>RIGHT($K62,2),AV62,0)) -> 0.085 | BS62: =+IF($K62="Ongoing",AW62,IF(RIGHT($K62,2)=RIGHT(BS$39,2),SUM($AV62:AW62),0)+IF(RIGHT(BS$39,2)>RIGHT($K62,2),AW62,0)) -> 0.085 | BT62: =+IF($K62="Ongoing",AX62,IF(RIGHT($K62,2)=RIGHT(BT$39,2),SUM($AV62:AX62),0)+IF(RIGHT(BT$39,2)>RIGHT($K62,2),AX62,0)) -> 0.085 | BU62: =+IF($K62="Ongoing",AY62,IF(RIGHT($K62,2)=RIGHT(BU$39,2),SUM($AV62:AY62),0)+IF(RIGHT(BU$39,2)>RIGHT($K62,2),AY62,0)) -> 0.085 | BV62: =+IF($K62="Ongoing",AZ62,IF(RIGHT($K62,2)=RIGHT(BV$39,2),SUM($AV62:AZ62),0)+IF(RIGHT(BV$39,2)>RIGHT($K62,2),AZ62,0)) -> 0.085 | BW62: =+IF($K62="Ongoing",BA62,IF(RIGHT($K62,2)=RIGHT(BW$39,2),SUM($AV62:BA62),0)+IF(RIGHT(BW$39,2)>RIGHT($K62,2),BA62,0)) -> 0.085 | BX62: =+IF($K62="Ongoing",BB62,IF(RIGHT($K62,2)=RIGHT(BX$39,2),SUM($AV62:BB62),0)+IF(RIGHT(BX$39,2)>RIGHT($K62,2),BB62,0)) -> 0.085 | BY62: =+IF($K62="Ongoing",BC62,IF(RIGHT($K62,2)=RIGHT(BY$39,2),SUM($AV62:BC62),0)+IF(RIGHT(BY$39,2)>RIGHT($K62,2),BC62,0)) -> 0.085 | BZ62: =+IF($K62="Ongoing",BD62,IF(RIGHT($K62,2)=RIGHT(BZ$39,2),SUM($AV62:BD62),0)+IF(RIGHT(BZ$39,2)>RIGHT($K62,2),BD62,0)) -> 0.085 | CA62: =+IF($K62="Ongoing",BE62,IF(RIGHT($K62,2)=RIGHT(CA$39,2),SUM($AV62:BE62),0)+IF(RIGHT(CA$39,2)>RIGHT($K62,2),BE62,0)) -> 0.085 | CC62: =+O62*KeyAssumptionsPriceControl_FO!X$15 -> 0.086955 | CD62: =+P62*KeyAssumptionsPriceControl_FO!Y$15 -> 0.088954965 | CE62: =+Q62*KeyAssumptionsPriceControl_FO!Z$15 -> 0.09100092919 | CF62: =+R62*KeyAssumptionsPriceControl_FO!AA$15 -> 0.09309395057 | CG62: =+S62*KeyAssumptionsPriceControl_FO!AB$15 -> 0.09523511143 | CH62: =+T62*KeyAssumptionsPriceControl_FO!AC$15 -> 0.09742551899 | CI62: =+U62*KeyAssumptionsPriceControl_FO!AD$15 -> 0.09966630593 | CJ62: =+V62*KeyAssumptionsPriceControl_FO!AE$15 -> 0.101958631 | CK62: =+W62*KeyAssumptionsPriceControl_FO!AF$15 -> 0.1043036795 | CL62: =+X62*KeyAssumptionsPriceControl_FO!AG$15 -> 0.1067026641 | CN62: 0.0019564875 | CO62: 0.005914461713 | CP62: 0.009963469332 | CQ62: 0.01410560413 | CR62: 0.01834300802 | CS62: 0.02267787221 | CT62: 0.02711243827 | CU62: 0.03164899935 | CV62: 0.03628990133 | CW62: 0.04103754406
C63: MER Minor Capital - Replacement | D63: 0 | E63: Irrigation | F63: Renewals | G63: Pipelines/network | H63: Capital Programs / Allocation | I63: 0 | J63: Straight line | K63: Ongoing | L63: 45 | M63: 22.22222222 | O63: 0.1 | P63: 0.1 | Q63: 0.1 | R63: 0.1 | S63: 0.1 | T63: 0.1 | U63: 0.1 | V63: 0.1 | W63: 0.1 | X63: 0.1 | AV63: 0.1 | AW63: 0.1 | AX63: 0.1 | AY63: 0.1 | AZ63: 0.1 | BA63: 0.1 | BB63: 0.1 | BC63: 0.1 | BD63: 0.1 | BE63: 0.1 | BG63: 0.001111111111 | BH63: 0.003333333333 | BI63: 0.005555555556 | BJ63: 0.007777777778 | BK63: 0.01 | BL63: 0.01222222222 | BM63: 0.01444444444 | BN63: 0.01666666667 | BO63: 0.01888888889 | BP63: 0.02111111111 | BR63: =+IF($K63="Ongoing",AV63,IF(RIGHT($K63,2)=RIGHT(BR$39,2),SUM($AV63:AV63),0)+IF(RIGHT(BR$39,2)>RIGHT($K63,2),AV63,0)) -> 0.1 | BS63: =+IF($K63="Ongoing",AW63,IF(RIGHT($K63,2)=RIGHT(BS$39,2),SUM($AV63:AW63),0)+IF(RIGHT(BS$39,2)>RIGHT($K63,2),AW63,0)) -> 0.1 | BT63: =+IF($K63="Ongoing",AX63,IF(RIGHT($K63,2)=RIGHT(BT$39,2),SUM($AV63:AX63),0)+IF(RIGHT(BT$39,2)>RIGHT($K63,2),AX63,0)) -> 0.1 | BU63: =+IF($K63="Ongoing",AY63,IF(RIGHT($K63,2)=RIGHT(BU$39,2),SUM($AV63:AY63),0)+IF(RIGHT(BU$39,2)>RIGHT($K63,2),AY63,0)) -> 0.1 | BV63: =+IF($K63="Ongoing",AZ63,IF(RIGHT($K63,2)=RIGHT(BV$39,2),SUM($AV63:AZ63),0)+IF(RIGHT(BV$39,2)>RIGHT($K63,2),AZ63,0)) -> 0.1 | BW63: =+IF($K63="Ongoing",BA63,IF(RIGHT($K63,2)=RIGHT(BW$39,2),SUM($AV63:BA63),0)+IF(RIGHT(BW$39,2)>RIGHT($K63,2),BA63,0)) -> 0.1 | BX63: =+IF($K63="Ongoing",BB63,IF(RIGHT($K63,2)=RIGHT(BX$39,2),SUM($AV63:BB63),0)+IF(RIGHT(BX$39,2)>RIGHT($K63,2),BB63,0)) -> 0.1 | BY63: =+IF($K63="Ongoing",BC63,IF(RIGHT($K63,2)=RIGHT(BY$39,2),SUM($AV63:BC63),0)+IF(RIGHT(BY$39,2)>RIGHT($K63,2),BC63,0)) -> 0.1 | BZ63: =+IF($K63="Ongoing",BD63,IF(RIGHT($K63,2)=RIGHT(BZ$39,2),SUM($AV63:BD63),0)+IF(RIGHT(BZ$39,2)>RIGHT($K63,2),BD63,0)) -> 0.1 | CA63: =+IF($K63="Ongoing",BE63,IF(RIGHT($K63,2)=RIGHT(CA$39,2),SUM($AV63:BE63),0)+IF(RIGHT(CA$39,2)>RIGHT($K63,2),BE63,0)) -> 0.1 | CC63: =+O63*KeyAssumptionsPriceControl_FO!X$15 -> 0.1023 | CD63: =+P63*KeyAssumptionsPriceControl_FO!Y$15 -> 0.1046529 | CE63: =+Q63*KeyAssumptionsPriceControl_FO!Z$15 -> 0.1070599167 | CF63: =+R63*KeyAssumptionsPriceControl_FO!AA$15 -> 0.1095222948 | CG63: =+S63*KeyAssumptionsPriceControl_FO!AB$15 -> 0.1120413076 | CH63: =+T63*KeyAssumptionsPriceControl_FO!AC$15 -> 0.1146182576 | CI63: =+U63*KeyAssumptionsPriceControl_FO!AD$15 -> 0.1172544776 | CJ63: =+V63*KeyAssumptionsPriceControl_FO!AE$15 -> 0.1199513305 | CK63: =+W63*KeyAssumptionsPriceControl_FO!AF$15 -> 0.1227102112 | CL63: =+X63*KeyAssumptionsPriceControl_FO!AG$15 -> 0.125532546 | CN63: 0.00230175 | CO63: 0.00695819025 | CP63: 0.01172172863 | CQ63: 0.01659482838 | CR63: 0.02158000944 | CS63: 0.02667984965 | CT63: 0.0318969862 | CU63: 0.03723411688 | CV63: 0.04269400157 | CW63: 0.0482794636
C64: MDA Minor Capital - New | D64: 0 | E64: Irrigation | F64: Renewals | G64: Pipelines/network | H64: Capital Programs / Allocation | I64: 0 | J64: Straight line | K64: Ongoing | L64: 80 | M64: 22.22222222 | O64: 0.12 | P64: 0.12 | Q64: 0.12 | R64: 0.12 | S64: 0.12 | T64: 0.12 | U64: 0.12 | V64: 0.12 | W64: 0.12 | X64: 0.12 | AV64: 0.12 | AW64: 0.12 | AX64: 0.12 | AY64: 0.12 | AZ64: 0.12 | BA64: 0.12 | BB64: 0.12 | BC64: 0.12 | BD64: 0.12 | BE64: 0.12 | BG64: 0.00075 | BH64: 0.00225 | BI64: 0.00375 | BJ64: 0.00525 | BK64: 0.00675 | BL64: 0.00825 | BM64: 0.00975 | BN64: 0.01125 | BO64: 0.01275 | BP64: 0.01425 | BR64: =+IF($K64="Ongoing",AV64,IF(RIGHT($K64,2)=RIGHT(BR$39,2),SUM($AV64:AV64),0)+IF(RIGHT(BR$39,2)>RIGHT($K64,2),AV64,0)) -> 0.12 | BS64: =+IF($K64="Ongoing",AW64,IF(RIGHT($K64,2)=RIGHT(BS$39,2),SUM($AV64:AW64),0)+IF(RIGHT(BS$39,2)>RIGHT($K64,2),AW64,0)) -> 0.12 | BT64: =+IF($K64="Ongoing",AX64,IF(RIGHT($K64,2)=RIGHT(BT$39,2),SUM($AV64:AX64),0)+IF(RIGHT(BT$39,2)>RIGHT($K64,2),AX64,0)) -> 0.12 | BU64: =+IF($K64="Ongoing",AY64,IF(RIGHT($K64,2)=RIGHT(BU$39,2),SUM($AV64:AY64),0)+IF(RIGHT(BU$39,2)>RIGHT($K64,2),AY64,0)) -> 0.12 | BV64: =+IF($K64="Ongoing",AZ64,IF(RIGHT($K64,2)=RIGHT(BV$39,2),SUM($AV64:AZ64),0)+IF(RIGHT(BV$39,2)>RIGHT($K64,2),AZ64,0)) -> 0.12 | BW64: =+IF($K64="Ongoing",BA64,IF(RIGHT($K64,2)=RIGHT(BW$39,2),SUM($AV64:BA64),0)+IF(RIGHT(BW$39,2)>RIGHT($K64,2),BA64,0)) -> 0.12 | BX64: =+IF($K64="Ongoing",BB64,IF(RIGHT($K64,2)=RIGHT(BX$39,2),SUM($AV64:BB64),0)+IF(RIGHT(BX$39,2)>RIGHT($K64,2),BB64,0)) -> 0.12 | BY64: =+IF($K64="Ongoing",BC64,IF(RIGHT($K64,2)=RIGHT(BY$39,2),SUM($AV64:BC64),0)+IF(RIGHT(BY$39,2)>RIGHT($K64,2),BC64,0)) -> 0.12 | BZ64: =+IF($K64="Ongoing",BD64,IF(RIGHT($K64,2)=RIGHT(BZ$39,2),SUM($AV64:BD64),0)+IF(RIGHT(BZ$39,2)>RIGHT($K64,2),BD64,0)) -> 0.12 | CA64: =+IF($K64="Ongoing",BE64,IF(RIGHT($K64,2)=RIGHT(CA$39,2),SUM($AV64:BE64),0)+IF(RIGHT(CA$39,2)>RIGHT($K64,2),BE64,0)) -> 0.12 | CC64: =+O64*KeyAssumptionsPriceControl_FO!X$15 -> 0.12276 | CD64: =+P64*KeyAssumptionsPriceControl_FO!Y$15 -> 0.12558348 | CE64: =+Q64*KeyAssumptionsPriceControl_FO!Z$15 -> 0.1284719 | CF64: =+R64*KeyAssumptionsPriceControl_FO!AA$15 -> 0.1314267537 | CG64: =+S64*KeyAssumptionsPriceControl_FO!AB$15 -> 0.1344495691 | CH64: =+T64*KeyAssumptionsPriceControl_FO!AC$15 -> 0.1375419092 | CI64: =+U64*KeyAssumptionsPriceControl_FO!AD$15 -> 0.1407053731 | CJ64: =+V64*KeyAssumptionsPriceControl_FO!AE$15 -> 0.1439415967 | CK64: =+W64*KeyAssumptionsPriceControl_FO!AF$15 -> 0.1472522534 | CL64: =+X64*KeyAssumptionsPriceControl_FO!AG$15 -> 0.1506390552 | CN64: 0.0027621 | CO64: 0.0083498283 | CP64: 0.01406607435 | CQ64: 0.01991379406 | CR64: 0.02589601132 | CS64: 0.03201581958 | CT64: 0.03827638344 | CU64: 0.04468094025 | CV64: 0.05123280188 | CW64: 0.05793535632
C65: MDA Minor Capital - Replacement | D65: 0 | E65: Irrigation | F65: Renewals | G65: Pipelines/network | H65: Capital Programs / Allocation | I65: 0 | J65: Straight line | K65: Ongoing | L65: 80 | M65: 22.22222222 | O65: 0.2 | P65: 0.2 | Q65: 0.2 | R65: 0.2 | S65: 0.2 | T65: 0.2 | U65: 0.2 | V65: 0.2 | W65: 0.2 | X65: 0.2 | AV65: 0.2 | AW65: 0.2 | AX65: 0.2 | AY65: 0.2 | AZ65: 0.2 | BA65: 0.2 | BB65: 0.2 | BC65: 0.2 | BD65: 0.2 | BE65: 0.2 | BG65: 0.00125 | BH65: 0.00375 | BI65: 0.00625 | BJ65: 0.00875 | BK65: 0.01125 | BL65: 0.01375 | BM65: 0.01625 | BN65: 0.01875 | BO65: 0.02125 | BP65: 0.02375 | BR65: =+IF($K65="Ongoing",AV65,IF(RIGHT($K65,2)=RIGHT(BR$39,2),SUM($AV65:AV65),0)+IF(RIGHT(BR$39,2)>RIGHT($K65,2),AV65,0)) -> 0.2 | BS65: =+IF($K65="Ongoing",AW65,IF(RIGHT($K65,2)=RIGHT(BS$39,2),SUM($AV65:AW65),0)+IF(RIGHT(BS$39,2)>RIGHT($K65,2),AW65,0)) -> 0.2 | BT65: =+IF($K65="Ongoing",AX65,IF(RIGHT($K65,2)=RIGHT(BT$39,2),SUM($AV65:AX65),0)+IF(RIGHT(BT$39,2)>RIGHT($K65,2),AX65,0)) -> 0.2 | BU65: =+IF($K65="Ongoing",AY65,IF(RIGHT($K65,2)=RIGHT(BU$39,2),SUM($AV65:AY65),0)+IF(RIGHT(BU$39,2)>RIGHT($K65,2),AY65,0)) -> 0.2 | BV65: =+IF($K65="Ongoing",AZ65,IF(RIGHT($K65,2)=RIGHT(BV$39,2),SUM($AV65:AZ65),0)+IF(RIGHT(BV$39,2)>RIGHT($K65,2),AZ65,0)) -> 0.2 | BW65: =+IF($K65="Ongoing",BA65,IF(RIGHT($K65,2)=RIGHT(BW$39,2),SUM($AV65:BA65),0)+IF(RIGHT(BW$39,2)>RIGHT($K65,2),BA65,0)) -> 0.2 | BX65: =+IF($K65="Ongoing",BB65,IF(RIGHT($K65,2)=RIGHT(BX$39,2),SUM($AV65:BB65),0)+IF(RIGHT(BX$39,2)>RIGHT($K65,2),BB65,0)) -> 0.2 | BY65: =+IF($K65="Ongoing",BC65,IF(RIGHT($K65,2)=RIGHT(BY$39,2),SUM($AV65:BC65),0)+IF(RIGHT(BY$39,2)>RIGHT($K65,2),BC65,0)) -> 0.2 | BZ65: =+IF($K65="Ongoing",BD65,IF(RIGHT($K65,2)=RIGHT(BZ$39,2),SUM($AV65:BD65),0)+IF(RIGHT(BZ$39,2)>RIGHT($K65,2),BD65,0)) -> 0.2 | CA65: =+IF($K65="Ongoing",BE65,IF(RIGHT($K65,2)=RIGHT(CA$39,2),SUM($AV65:BE65),0)+IF(RIGHT(CA$39,2)>RIGHT($K65,2),BE65,0)) -> 0.2 | CC65: =+O65*KeyAssumptionsPriceControl_FO!X$15 -> 0.2046 | CD65: =+P65*KeyAssumptionsPriceControl_FO!Y$15 -> 0.2093058 | CE65: =+Q65*KeyAssumptionsPriceControl_FO!Z$15 -> 0.2141198334 | CF65: =+R65*KeyAssumptionsPriceControl_FO!AA$15 -> 0.2190445896 | CG65: =+S65*KeyAssumptionsPriceControl_FO!AB$15 -> 0.2240826151 | CH65: =+T65*KeyAssumptionsPriceControl_FO!AC$15 -> 0.2292365153 | CI65: =+U65*KeyAssumptionsPriceControl_FO!AD$15 -> 0.2345089551 | CJ65: =+V65*KeyAssumptionsPriceControl_FO!AE$15 -> 0.2399026611 | CK65: =+W65*KeyAssumptionsPriceControl_FO!AF$15 -> 0.2454204223 | CL65: =+X65*KeyAssumptionsPriceControl_FO!AG$15 -> 0.251065092 | CN65: 0.0046035 | CO65: 0.0139163805 | CP65: 0.02344345725 | CQ65: 0.03318965677 | CR65: 0.04316001887 | CS65: 0.05335969931 | CT65: 0.06379397239 | CU65: 0.07446823376 | CV65: 0.08538800313 | CW65: 0.09655892721
C66: MILL Minor Capital - New | D66: 0 | E66: Domestic and stock | F66: Growth | G66: Pipelines/network | H66: Capital Programs / Allocation | I66: 0 | J66: Straight line | K66: Ongoing | L66: 45 | M66: 22.22222222 | O66: 0.01 | P66: 0.01 | Q66: 0.01 | R66: 0.01 | S66: 0.01 | T66: 0.01 | U66: 0.01 | V66: 0.01 | W66: 0.01 | X66: 0.01 | AV66: 0.01 | AW66: 0.01 | AX66: 0.01 | AY66: 0.01 | AZ66: 0.01 | BA66: 0.01 | BB66: 0.01 | BC66: 0.01 | BD66: 0.01 | BE66: 0.01 | BG66: 0.0001111111111 | BH66: 0.0003333333333 | BI66: 0.0005555555556 | BJ66: 0.0007777777778 | BK66: 0.001 | BL66: 0.001222222222 | BM66: 0.001444444444 | BN66: 0.001666666667 | BO66: 0.001888888889 | BP66: 0.002111111111 | BR66: =+IF($K66="Ongoing",AV66,IF(RIGHT($K66,2)=RIGHT(BR$39,2),SUM($AV66:AV66),0)+IF(RIGHT(BR$39,2)>RIGHT($K66,2),AV66,0)) -> 0.01 | BS66: =+IF($K66="Ongoing",AW66,IF(RIGHT($K66,2)=RIGHT(BS$39,2),SUM($AV66:AW66),0)+IF(RIGHT(BS$39,2)>RIGHT($K66,2),AW66,0)) -> 0.01 | BT66: =+IF($K66="Ongoing",AX66,IF(RIGHT($K66,2)=RIGHT(BT$39,2),SUM($AV66:AX66),0)+IF(RIGHT(BT$39,2)>RIGHT($K66,2),AX66,0)) -> 0.01 | BU66: =+IF($K66="Ongoing",AY66,IF(RIGHT($K66,2)=RIGHT(BU$39,2),SUM($AV66:AY66),0)+IF(RIGHT(BU$39,2)>RIGHT($K66,2),AY66,0)) -> 0.01 | BV66: =+IF($K66="Ongoing",AZ66,IF(RIGHT($K66,2)=RIGHT(BV$39,2),SUM($AV66:AZ66),0)+IF(RIGHT(BV$39,2)>RIGHT($K66,2),AZ66,0)) -> 0.01 | BW66: =+IF($K66="Ongoing",BA66,IF(RIGHT($K66,2)=RIGHT(BW$39,2),SUM($AV66:BA66),0)+IF(RIGHT(BW$39,2)>RIGHT($K66,2),BA66,0)) -> 0.01 | BX66: =+IF($K66="Ongoing",BB66,IF(RIGHT($K66,2)=RIGHT(BX$39,2),SUM($AV66:BB66),0)+IF(RIGHT(BX$39,2)>RIGHT($K66,2),BB66,0)) -> 0.01 | BY66: =+IF($K66="Ongoing",BC66,IF(RIGHT($K66,2)=RIGHT(BY$39,2),SUM($AV66:BC66),0)+IF(RIGHT(BY$39,2)>RIGHT($K66,2),BC66,0)) -> 0.01 | BZ66: =+IF($K66="Ongoing",BD66,IF(RIGHT($K66,2)=RIGHT(BZ$39,2),SUM($AV66:BD66),0)+IF(RIGHT(BZ$39,2)>RIGHT($K66,2),BD66,0)) -> 0.01 | CA66: =+IF($K66="Ongoing",BE66,IF(RIGHT($K66,2)=RIGHT(CA$39,2),SUM($AV66:BE66),0)+IF(RIGHT(CA$39,2)>RIGHT($K66,2),BE66,0)) -> 0.01 | CC66: =+O66*KeyAssumptionsPriceControl_FO!X$15 -> 0.01023 | CD66: =+P66*KeyAssumptionsPriceControl_FO!Y$15 -> 0.01046529 | CE66: =+Q66*KeyAssumptionsPriceControl_FO!Z$15 -> 0.01070599167 | CF66: =+R66*KeyAssumptionsPriceControl_FO!AA$15 -> 0.01095222948 | CG66: =+S66*KeyAssumptionsPriceControl_FO!AB$15 -> 0.01120413076 | CH66: =+T66*KeyAssumptionsPriceControl_FO!AC$15 -> 0.01146182576 | CI66: =+U66*KeyAssumptionsPriceControl_FO!AD$15 -> 0.01172544776 | CJ66: =+V66*KeyAssumptionsPriceControl_FO!AE$15 -> 0.01199513305 | CK66: =+W66*KeyAssumptionsPriceControl_FO!AF$15 -> 0.01227102112 | CL66: =+X66*KeyAssumptionsPriceControl_FO!AG$15 -> 0.0125532546 | CN66: 0.000230175 | CO66: 0.000695819025 | CP66: 0.001172172863 | CQ66: 0.001659482838 | CR66: 0.002158000944 | CS66: 0.002667984965 | CT66: 0.00318969862 | CU66: 0.003723411688 | CV66: 0.004269400157 | CW66: 0.00482794636
C67: MILL Minor Capital - Replacement | D67: 0 | E67: Domestic and stock | F67: Renewals | G67: Pipelines/network | H67: Capital Programs / Allocation | I67: 0 | J67: Straight line | K67: Ongoing | L67: 80 | M67: 22.22222222 | O67: 0.05 | P67: 0.05 | Q67: 0.05 | R67: 0.05 | S67: 0.05 | T67: 0.05 | U67: 0.05 | V67: 0.05 | W67: 0.05 | X67: 0.05 | AV67: 0.05 | AW67: 0.05 | AX67: 0.05 | AY67: 0.05 | AZ67: 0.05 | BA67: 0.05 | BB67: 0.05 | BC67: 0.05 | BD67: 0.05 | BE67: 0.05 | BG67: 0.0003125 | BH67: 0.0009375 | BI67: 0.0015625 | BJ67: 0.0021875 | BK67: 0.0028125 | BL67: 0.0034375 | BM67: 0.0040625 | BN67: 0.0046875 | BO67: 0.0053125 | BP67: 0.0059375 | BR67: =+IF($K67="Ongoing",AV67,IF(RIGHT($K67,2)=RIGHT(BR$39,2),SUM($AV67:AV67),0)+IF(RIGHT(BR$39,2)>RIGHT($K67,2),AV67,0)) -> 0.05 | BS67: =+IF($K67="Ongoing",AW67,IF(RIGHT($K67,2)=RIGHT(BS$39,2),SUM($AV67:AW67),0)+IF(RIGHT(BS$39,2)>RIGHT($K67,2),AW67,0)) -> 0.05 | BT67: =+IF($K67="Ongoing",AX67,IF(RIGHT($K67,2)=RIGHT(BT$39,2),SUM($AV67:AX67),0)+IF(RIGHT(BT$39,2)>RIGHT($K67,2),AX67,0)) -> 0.05 | BU67: =+IF($K67="Ongoing",AY67,IF(RIGHT($K67,2)=RIGHT(BU$39,2),SUM($AV67:AY67),0)+IF(RIGHT(BU$39,2)>RIGHT($K67,2),AY67,0)) -> 0.05 | BV67: =+IF($K67="Ongoing",AZ67,IF(RIGHT($K67,2)=RIGHT(BV$39,2),SUM($AV67:AZ67),0)+IF(RIGHT(BV$39,2)>RIGHT($K67,2),AZ67,0)) -> 0.05 | BW67: =+IF($K67="Ongoing",BA67,IF(RIGHT($K67,2)=RIGHT(BW$39,2),SUM($AV67:BA67),0)+IF(RIGHT(BW$39,2)>RIGHT($K67,2),BA67,0)) -> 0.05 | BX67: =+IF($K67="Ongoing",BB67,IF(RIGHT($K67,2)=RIGHT(BX$39,2),SUM($AV67:BB67),0)+IF(RIGHT(BX$39,2)>RIGHT($K67,2),BB67,0)) -> 0.05 | BY67: =+IF($K67="Ongoing",BC67,IF(RIGHT($K67,2)=RIGHT(BY$39,2),SUM($AV67:BC67),0)+IF(RIGHT(BY$39,2)>RIGHT($K67,2),BC67,0)) -> 0.05 | BZ67: =+IF($K67="Ongoing",BD67,IF(RIGHT($K67,2)=RIGHT(BZ$39,2),SUM($AV67:BD67),0)+IF(RIGHT(BZ$39,2)>RIGHT($K67,2),BD67,0)) -> 0.05 | CA67: =+IF($K67="Ongoing",BE67,IF(RIGHT($K67,2)=RIGHT(CA$39,2),SUM($AV67:BE67),0)+IF(RIGHT(CA$39,2)>RIGHT($K67,2),BE67,0)) -> 0.05 | CC67: =+O67*KeyAssumptionsPriceControl_FO!X$15 -> 0.05115 | CD67: =+P67*KeyAssumptionsPriceControl_FO!Y$15 -> 0.05232645 | CE67: =+Q67*KeyAssumptionsPriceControl_FO!Z$15 -> 0.05352995835 | CF67: =+R67*KeyAssumptionsPriceControl_FO!AA$15 -> 0.05476114739 | CG67: =+S67*KeyAssumptionsPriceControl_FO!AB$15 -> 0.05602065378 | CH67: =+T67*KeyAssumptionsPriceControl_FO!AC$15 -> 0.05730912882 | CI67: =+U67*KeyAssumptionsPriceControl_FO!AD$15 -> 0.05862723878 | CJ67: =+V67*KeyAssumptionsPriceControl_FO!AE$15 -> 0.05997566527 | CK67: =+W67*KeyAssumptionsPriceControl_FO!AF$15 -> 0.06135510558 | CL67: =+X67*KeyAssumptionsPriceControl_FO!AG$15 -> 0.062766273 | CN67: 0.001150875 | CO67: 0.003479095125 | CP67: 0.005860864313 | CQ67: 0.008297414192 | CR67: 0.01079000472 | CS67: 0.01333992483 | CT67: 0.0159484931 | CU67: 0.01861705844 | CV67: 0.02134700078 | CW67: 0.0241397318
C68: RC Minor Capital - New | D68: 0 | E68: Irrigation | F68: Growth | G68: Pipelines/network | H68: Capital Programs / Allocation | I68: 0 | J68: Straight line | K68: Ongoing | L68: 45 | M68: 22.22222222 | O68: 0.1 | P68: 0.1 | Q68: 0.1 | R68: 0.1 | S68: 0.1 | T68: 0.1 | U68: 0.1 | V68: 0.1 | W68: 0.1 | X68: 0.1 | AV68: 0.1 | AW68: 0.1 | AX68: 0.1 | AY68: 0.1 | AZ68: 0.1 | BA68: 0.1 | BB68: 0.1 | BC68: 0.1 | BD68: 0.1 | BE68: 0.1 | BG68: 0.001111111111 | BH68: 0.003333333333 | BI68: 0.005555555556 | BJ68: 0.007777777778 | BK68: 0.01 | BL68: 0.01222222222 | BM68: 0.01444444444 | BN68: 0.01666666667 | BO68: 0.01888888889 | BP68: 0.02111111111 | BR68: =+IF($K68="Ongoing",AV68,IF(RIGHT($K68,2)=RIGHT(BR$39,2),SUM($AV68:AV68),0)+IF(RIGHT(BR$39,2)>RIGHT($K68,2),AV68,0)) -> 0.1 | BS68: =+IF($K68="Ongoing",AW68,IF(RIGHT($K68,2)=RIGHT(BS$39,2),SUM($AV68:AW68),0)+IF(RIGHT(BS$39,2)>RIGHT($K68,2),AW68,0)) -> 0.1 | BT68: =+IF($K68="Ongoing",AX68,IF(RIGHT($K68,2)=RIGHT(BT$39,2),SUM($AV68:AX68),0)+IF(RIGHT(BT$39,2)>RIGHT($K68,2),AX68,0)) -> 0.1 | BU68: =+IF($K68="Ongoing",AY68,IF(RIGHT($K68,2)=RIGHT(BU$39,2),SUM($AV68:AY68),0)+IF(RIGHT(BU$39,2)>RIGHT($K68,2),AY68,0)) -> 0.1 | BV68: =+IF($K68="Ongoing",AZ68,IF(RIGHT($K68,2)=RIGHT(BV$39,2),SUM($AV68:AZ68),0)+IF(RIGHT(BV$39,2)>RIGHT($K68,2),AZ68,0)) -> 0.1 | BW68: =+IF($K68="Ongoing",BA68,IF(RIGHT($K68,2)=RIGHT(BW$39,2),SUM($AV68:BA68),0)+IF(RIGHT(BW$39,2)>RIGHT($K68,2),BA68,0)) -> 0.1 | BX68: =+IF($K68="Ongoing",BB68,IF(RIGHT($K68,2)=RIGHT(BX$39,2),SUM($AV68:BB68),0)+IF(RIGHT(BX$39,2)>RIGHT($K68,2),BB68,0)) -> 0.1 | BY68: =+IF($K68="Ongoing",BC68,IF(RIGHT($K68,2)=RIGHT(BY$39,2),SUM($AV68:BC68),0)+IF(RIGHT(BY$39,2)>RIGHT($K68,2),BC68,0)) -> 0.1 | BZ68: =+IF($K68="Ongoing",BD68,IF(RIGHT($K68,2)=RIGHT(BZ$39,2),SUM($AV68:BD68),0)+IF(RIGHT(BZ$39,2)>RIGHT($K68,2),BD68,0)) -> 0.1 | CA68: =+IF($K68="Ongoing",BE68,IF(RIGHT($K68,2)=RIGHT(CA$39,2),SUM($AV68:BE68),0)+IF(RIGHT(CA$39,2)>RIGHT($K68,2),BE68,0)) -> 0.1 | CC68: =+O68*KeyAssumptionsPriceControl_FO!X$15 -> 0.1023 | CD68: =+P68*KeyAssumptionsPriceControl_FO!Y$15 -> 0.1046529 | CE68: =+Q68*KeyAssumptionsPriceControl_FO!Z$15 -> 0.1070599167 | CF68: =+R68*KeyAssumptionsPriceControl_FO!AA$15 -> 0.1095222948 | CG68: =+S68*KeyAssumptionsPriceControl_FO!AB$15 -> 0.1120413076 | CH68: =+T68*KeyAssumptionsPriceControl_FO!AC$15 -> 0.1146182576 | CI68: =+U68*KeyAssumptionsPriceControl_FO!AD$15 -> 0.1172544776 | CJ68: =+V68*KeyAssumptionsPriceControl_FO!AE$15 -> 0.1199513305 | CK68: =+W68*KeyAssumptionsPriceControl_FO!AF$15 -> 0.1227102112 | CL68: =+X68*KeyAssumptionsPriceControl_FO!AG$15 -> 0.125532546 | CN68: 0.00230175 | CO68: 0.00695819025 | CP68: 0.01172172863 | CQ68: 0.01659482838 | CR68: 0.02158000944 | CS68: 0.02667984965 | CT68: 0.0318969862 | CU68: 0.03723411688 | CV68: 0.04269400157 | CW68: 0.0482794636
C69: RC Minor Capital - Replacement | D69: 0 | E69: Irrigation | F69: Renewals | G69: Pipelines/network | H69: Capital Programs / Allocation | I69: 0 | J69: Straight line | K69: Ongoing | L69: 80 | M69: 22.22222222 | O69: 0.2 | P69: 0.2 | Q69: 0.2 | R69: 0.2 | S69: 0.2 | T69: 0.2 | U69: 0.2 | V69: 0.2 | W69: 0.2 | X69: 0.2 | AV69: 0.2 | AW69: 0.2 | AX69: 0.2 | AY69: 0.2 | AZ69: 0.2 | BA69: 0.2 | BB69: 0.2 | BC69: 0.2 | BD69: 0.2 | BE69: 0.2 | BG69: 0.00125 | BH69: 0.00375 | BI69: 0.00625 | BJ69: 0.00875 | BK69: 0.01125 | BL69: 0.01375 | BM69: 0.01625 | BN69: 0.01875 | BO69: 0.02125 | BP69: 0.02375 | BR69: =+IF($K69="Ongoing",AV69,IF(RIGHT($K69,2)=RIGHT(BR$39,2),SUM($AV69:AV69),0)+IF(RIGHT(BR$39,2)>RIGHT($K69,2),AV69,0)) -> 0.2 | BS69: =+IF($K69="Ongoing",AW69,IF(RIGHT($K69,2)=RIGHT(BS$39,2),SUM($AV69:AW69),0)+IF(RIGHT(BS$39,2)>RIGHT($K69,2),AW69,0)) -> 0.2 | BT69: =+IF($K69="Ongoing",AX69,IF(RIGHT($K69,2)=RIGHT(BT$39,2),SUM($AV69:AX69),0)+IF(RIGHT(BT$39,2)>RIGHT($K69,2),AX69,0)) -> 0.2 | BU69: =+IF($K69="Ongoing",AY69,IF(RIGHT($K69,2)=RIGHT(BU$39,2),SUM($AV69:AY69),0)+IF(RIGHT(BU$39,2)>RIGHT($K69,2),AY69,0)) -> 0.2 | BV69: =+IF($K69="Ongoing",AZ69,IF(RIGHT($K69,2)=RIGHT(BV$39,2),SUM($AV69:AZ69),0)+IF(RIGHT(BV$39,2)>RIGHT($K69,2),AZ69,0)) -> 0.2 | BW69: =+IF($K69="Ongoing",BA69,IF(RIGHT($K69,2)=RIGHT(BW$39,2),SUM($AV69:BA69),0)+IF(RIGHT(BW$39,2)>RIGHT($K69,2),BA69,0)) -> 0.2 | BX69: =+IF($K69="Ongoing",BB69,IF(RIGHT($K69,2)=RIGHT(BX$39,2),SUM($AV69:BB69),0)+IF(RIGHT(BX$39,2)>RIGHT($K69,2),BB69,0)) -> 0.2 | BY69: =+IF($K69="Ongoing",BC69,IF(RIGHT($K69,2)=RIGHT(BY$39,2),SUM($AV69:BC69),0)+IF(RIGHT(BY$39,2)>RIGHT($K69,2),BC69,0)) -> 0.2 | BZ69: =+IF($K69="Ongoing",BD69,IF(RIGHT($K69,2)=RIGHT(BZ$39,2),SUM($AV69:BD69),0)+IF(RIGHT(BZ$39,2)>RIGHT($K69,2),BD69,0)) -> 0.2 | CA69: =+IF($K69="Ongoing",BE69,IF(RIGHT($K69,2)=RIGHT(CA$39,2),SUM($AV69:BE69),0)+IF(RIGHT(CA$39,2)>RIGHT($K69,2),BE69,0)) -> 0.2 | CC69: =+O69*KeyAssumptionsPriceControl_FO!X$15 -> 0.2046 | CD69: =+P69*KeyAssumptionsPriceControl_FO!Y$15 -> 0.2093058 | CE69: =+Q69*KeyAssumptionsPriceControl_FO!Z$15 -> 0.2141198334 | CF69: =+R69*KeyAssumptionsPriceControl_FO!AA$15 -> 0.2190445896 | CG69: =+S69*KeyAssumptionsPriceControl_FO!AB$15 -> 0.2240826151 | CH69: =+T69*KeyAssumptionsPriceControl_FO!AC$15 -> 0.2292365153 | CI69: =+U69*KeyAssumptionsPriceControl_FO!AD$15 -> 0.2345089551 | CJ69: =+V69*KeyAssumptionsPriceControl_FO!AE$15 -> 0.2399026611 | CK69: =+W69*KeyAssumptionsPriceControl_FO!AF$15 -> 0.2454204223 | CL69: =+X69*KeyAssumptionsPriceControl_FO!AG$15 -> 0.251065092 | CN69: 0.0046035 | CO69: 0.0139163805 | CP69: 0.02344345725 | CQ69: 0.03318965677 | CR69: 0.04316001887 | CS69: 0.05335969931 | CT69: 0.06379397239 | CU69: 0.07446823376 | CV69: 0.08538800313 | CW69: 0.09655892721
C70: ROB Minor Capital - New | D70: 0 | E70: Irrigation | F70: Growth | G70: Pipelines/network | H70: Capital Programs / Allocation | I70: 0 | J70: Straight line | K70: Ongoing | L70: 80 | M70: 22.22222222 | O70: 0.035 | P70: 0.035 | Q70: 0.035 | R70: 0.035 | S70: 0.035 | T70: 0.035 | U70: 0.035 | V70: 0.035 | W70: 0.035 | X70: 0.035 | AV70: 0.035 | AW70: 0.035 | AX70: 0.035 | AY70: 0.035 | AZ70: 0.035 | BA70: 0.035 | BB70: 0.035 | BC70: 0.035 | BD70: 0.035 | BE70: 0.035 | BG70: 0.00021875 | BH70: 0.00065625 | BI70: 0.00109375 | BJ70: 0.00153125 | BK70: 0.00196875 | BL70: 0.00240625 | BM70: 0.00284375 | BN70: 0.00328125 | BO70: 0.00371875 | BP70: 0.00415625 | BR70: =+IF($K70="Ongoing",AV70,IF(RIGHT($K70,2)=RIGHT(BR$39,2),SUM($AV70:AV70),0)+IF(RIGHT(BR$39,2)>RIGHT($K70,2),AV70,0)) -> 0.035 | BS70: =+IF($K70="Ongoing",AW70,IF(RIGHT($K70,2)=RIGHT(BS$39,2),SUM($AV70:AW70),0)+IF(RIGHT(BS$39,2)>RIGHT($K70,2),AW70,0)) -> 0.035 | BT70: =+IF($K70="Ongoing",AX70,IF(RIGHT($K70,2)=RIGHT(BT$39,2),SUM($AV70:AX70),0)+IF(RIGHT(BT$39,2)>RIGHT($K70,2),AX70,0)) -> 0.035 | BU70: =+IF($K70="Ongoing",AY70,IF(RIGHT($K70,2)=RIGHT(BU$39,2),SUM($AV70:AY70),0)+IF(RIGHT(BU$39,2)>RIGHT($K70,2),AY70,0)) -> 0.035 | BV70: =+IF($K70="Ongoing",AZ70,IF(RIGHT($K70,2)=RIGHT(BV$39,2),SUM($AV70:AZ70),0)+IF(RIGHT(BV$39,2)>RIGHT($K70,2),AZ70,0)) -> 0.035 | BW70: =+IF($K70="Ongoing",BA70,IF(RIGHT($K70,2)=RIGHT(BW$39,2),SUM($AV70:BA70),0)+IF(RIGHT(BW$39,2)>RIGHT($K70,2),BA70,0)) -> 0.035 | BX70: =+IF($K70="Ongoing",BB70,IF(RIGHT($K70,2)=RIGHT(BX$39,2),SUM($AV70:BB70),0)+IF(RIGHT(BX$39,2)>RIGHT($K70,2),BB70,0)) -> 0.035 | BY70: =+IF($K70="Ongoing",BC70,IF(RIGHT($K70,2)=RIGHT(BY$39,2),SUM($AV70:BC70),0)+IF(RIGHT(BY$39,2)>RIGHT($K70,2),BC70,0)) -> 0.035 | BZ70: =+IF($K70="Ongoing",BD70,IF(RIGHT($K70,2)=RIGHT(BZ$39,2),SUM($AV70:BD70),0)+IF(RIGHT(BZ$39,2)>RIGHT($K70,2),BD70,0)) -> 0.035 | CA70: =+IF($K70="Ongoing",BE70,IF(RIGHT($K70,2)=RIGHT(CA$39,2),SUM($AV70:BE70),0)+IF(RIGHT(CA$39,2)>RIGHT($K70,2),BE70,0)) -> 0.035 | CC70: =+O70*KeyAssumptionsPriceControl_FO!X$15 -> 0.035805 | CD70: =+P70*KeyAssumptionsPriceControl_FO!Y$15 -> 0.036628515 | CE70: =+Q70*KeyAssumptionsPriceControl_FO!Z$15 -> 0.03747097084 | CF70: =+R70*KeyAssumptionsPriceControl_FO!AA$15 -> 0.03833280317 | CG70: =+S70*KeyAssumptionsPriceControl_FO!AB$15 -> 0.03921445765 | CH70: =+T70*KeyAssumptionsPriceControl_FO!AC$15 -> 0.04011639017 | CI70: =+U70*KeyAssumptionsPriceControl_FO!AD$15 -> 0.04103906715 | CJ70: =+V70*KeyAssumptionsPriceControl_FO!AE$15 -> 0.04198296569 | CK70: =+W70*KeyAssumptionsPriceControl_FO!AF$15 -> 0.0429485739 | CL70: =+X70*KeyAssumptionsPriceControl_FO!AG$15 -> 0.0439363911 | CN70: 0.0008056125 | CO70: 0.002435366588 | CP70: 0.004102605019 | CQ70: 0.005808189934 | CR70: 0.007553003303 | CS70: 0.009337947379 | CT70: 0.01116394517 | CU70: 0.01303194091 | CV70: 0.01494290055 | CW70: 0.01689781226
C71: ROB Minor Capital - Replacement | D71: 0 | E71: Irrigation | F71: Renewals | G71: Pipelines/network | H71: Capital Programs / Allocation | I71: 0 | J71: Straight line | K71: Ongoing | L71: 80 | M71: 22.22222222 | O71: 0.055 | P71: 0.055 | Q71: 0.055 | R71: 0.055 | S71: 0.055 | T71: 0.055 | U71: 0.055 | V71: 0.055 | W71: 0.055 | X71: 0.055 | AV71: 0.055 | AW71: 0.055 | AX71: 0.055 | AY71: 0.055 | AZ71: 0.055 | BA71: 0.055 | BB71: 0.055 | BC71: 0.055 | BD71: 0.055 | BE71: 0.055 | BG71: 0.00034375 | BH71: 0.00103125 | BI71: 0.00171875 | BJ71: 0.00240625 | BK71: 0.00309375 | BL71: 0.00378125 | BM71: 0.00446875 | BN71: 0.00515625 | BO71: 0.00584375 | BP71: 0.00653125 | BR71: =+IF($K71="Ongoing",AV71,IF(RIGHT($K71,2)=RIGHT(BR$39,2),SUM($AV71:AV71),0)+IF(RIGHT(BR$39,2)>RIGHT($K71,2),AV71,0)) -> 0.055 | BS71: =+IF($K71="Ongoing",AW71,IF(RIGHT($K71,2)=RIGHT(BS$39,2),SUM($AV71:AW71),0)+IF(RIGHT(BS$39,2)>RIGHT($K71,2),AW71,0)) -> 0.055 | BT71: =+IF($K71="Ongoing",AX71,IF(RIGHT($K71,2)=RIGHT(BT$39,2),SUM($AV71:AX71),0)+IF(RIGHT(BT$39,2)>RIGHT($K71,2),AX71,0)) -> 0.055 | BU71: =+IF($K71="Ongoing",AY71,IF(RIGHT($K71,2)=RIGHT(BU$39,2),SUM($AV71:AY71),0)+IF(RIGHT(BU$39,2)>RIGHT($K71,2),AY71,0)) -> 0.055 | BV71: =+IF($K71="Ongoing",AZ71,IF(RIGHT($K71,2)=RIGHT(BV$39,2),SUM($AV71:AZ71),0)+IF(RIGHT(BV$39,2)>RIGHT($K71,2),AZ71,0)) -> 0.055 | BW71: =+IF($K71="Ongoing",BA71,IF(RIGHT($K71,2)=RIGHT(BW$39,2),SUM($AV71:BA71),0)+IF(RIGHT(BW$39,2)>RIGHT($K71,2),BA71,0)) -> 0.055 | BX71: =+IF($K71="Ongoing",BB71,IF(RIGHT($K71,2)=RIGHT(BX$39,2),SUM($AV71:BB71),0)+IF(RIGHT(BX$39,2)>RIGHT($K71,2),BB71,0)) -> 0.055 | BY71: =+IF($K71="Ongoing",BC71,IF(RIGHT($K71,2)=RIGHT(BY$39,2),SUM($AV71:BC71),0)+IF(RIGHT(BY$39,2)>RIGHT($K71,2),BC71,0)) -> 0.055 | BZ71: =+IF($K71="Ongoing",BD71,IF(RIGHT($K71,2)=RIGHT(BZ$39,2),SUM($AV71:BD71),0)+IF(RIGHT(BZ$39,2)>RIGHT($K71,2),BD71,0)) -> 0.055 | CA71: =+IF($K71="Ongoing",BE71,IF(RIGHT($K71,2)=RIGHT(CA$39,2),SUM($AV71:BE71),0)+IF(RIGHT(CA$39,2)>RIGHT($K71,2),BE71,0)) -> 0.055 | CC71: =+O71*KeyAssumptionsPriceControl_FO!X$15 -> 0.056265 | CD71: =+P71*KeyAssumptionsPriceControl_FO!Y$15 -> 0.057559095 | CE71: =+Q71*KeyAssumptionsPriceControl_FO!Z$15 -> 0.05888295418 | CF71: =+R71*KeyAssumptionsPriceControl_FO!AA$15 -> 0.06023726213 | CG71: =+S71*KeyAssumptionsPriceControl_FO!AB$15 -> 0.06162271916 | CH71: =+T71*KeyAssumptionsPriceControl_FO!AC$15 -> 0.0630400417 | CI71: =+U71*KeyAssumptionsPriceControl_FO!AD$15 -> 0.06448996266 | CJ71: =+V71*KeyAssumptionsPriceControl_FO!AE$15 -> 0.0659732318 | CK71: =+W71*KeyAssumptionsPriceControl_FO!AF$15 -> 0.06749061613 | CL71: =+X71*KeyAssumptionsPriceControl_FO!AG$15 -> 0.0690429003 | CN71: 0.0012659625 | CO71: 0.003827004638 | CP71: 0.006446950744 | CQ71: 0.009127155611 | CR71: 0.01186900519 | CS71: 0.01467391731 | CT71: 0.01754334241 | CU71: 0.02047876428 | CV71: 0.02348170086 | CW71: 0.02655370498
AV72: 0 | AW72: 0 | AX72: 0 | AY72: 0 | AZ72: 0 | BA72: 0 | BB72: 0 | BC72: 0 | BD72: 0 | BE72: 0 | BG72: 0 | BH72: 0 | BI72: 0 | BJ72: 0 | BK72: 0 | BL72: 0 | BM72: 0 | BN72: 0 | BO72: 0 | BP72: 0 | BR72: =+IF($K72="Ongoing",AV72,IF(RIGHT($K72,2)=RIGHT(BR$39,2),SUM($AV72:AV72),0)+IF(RIGHT(BR$39,2)>RIGHT($K72,2),AV72,0)) -> 0 | BS72: =+IF($K72="Ongoing",AW72,IF(RIGHT($K72,2)=RIGHT(BS$39,2),SUM($AV72:AW72),0)+IF(RIGHT(BS$39,2)>RIGHT($K72,2),AW72,0)) -> 0 | BT72: =+IF($K72="Ongoing",AX72,IF(RIGHT($K72,2)=RIGHT(BT$39,2),SUM($AV72:AX72),0)+IF(RIGHT(BT$39,2)>RIGHT($K72,2),AX72,0)) -> 0 | BU72: =+IF($K72="Ongoing",AY72,IF(RIGHT($K72,2)=RIGHT(BU$39,2),SUM($AV72:AY72),0)+IF(RIGHT(BU$39,2)>RIGHT($K72,2),AY72,0)) -> 0 | BV72: =+IF($K72="Ongoing",AZ72,IF(RIGHT($K72,2)=RIGHT(BV$39,2),SUM($AV72:AZ72),0)+IF(RIGHT(BV$39,2)>RIGHT($K72,2),AZ72,0)) -> 0 | BW72: =+IF($K72="Ongoing",BA72,IF(RIGHT($K72,2)=RIGHT(BW$39,2),SUM($AV72:BA72),0)+IF(RIGHT(BW$39,2)>RIGHT($K72,2),BA72,0)) -> 0 | BX72: =+IF($K72="Ongoing",BB72,IF(RIGHT($K72,2)=RIGHT(BX$39,2),SUM($AV72:BB72),0)+IF(RIGHT(BX$39,2)>RIGHT($K72,2),BB72,0)) -> 0 | BY72: =+IF($K72="Ongoing",BC72,IF(RIGHT($K72,2)=RIGHT(BY$39,2),SUM($AV72:BC72),0)+IF(RIGHT(BY$39,2)>RIGHT($K72,2),BC72,0)) -> 0 | BZ72: =+IF($K72="Ongoing",BD72,IF(RIGHT($K72,2)=RIGHT(BZ$39,2),SUM($AV72:BD72),0)+IF(RIGHT(BZ$39,2)>RIGHT($K72,2),BD72,0)) -> 0 | CA72: =+IF($K72="Ongoing",BE72,IF(RIGHT($K72,2)=RIGHT(CA$39,2),SUM($AV72:BE72),0)+IF(RIGHT(CA$39,2)>RIGHT($K72,2),BE72,0)) -> 0 | CC72: =+O72*KeyAssumptionsPriceControl_FO!X$15 -> 0 | CD72: =+P72*KeyAssumptionsPriceControl_FO!Y$15 -> 0 | CE72: =+Q72*KeyAssumptionsPriceControl_FO!Z$15 -> 0 | CF72: =+R72*KeyAssumptionsPriceControl_FO!AA$15 -> 0 | CG72: =+S72*KeyAssumptionsPriceControl_FO!AB$15 -> 0 | CH72: =+T72*KeyAssumptionsPriceControl_FO!AC$15 -> 0 | CI72: =+U72*KeyAssumptionsPriceControl_FO!AD$15 -> 0 | CJ72: =+V72*KeyAssumptionsPriceControl_FO!AE$15 -> 0 | CK72: =+W72*KeyAssumptionsPriceControl_FO!AF$15 -> 0 | CL72: =+X72*KeyAssumptionsPriceControl_FO!AG$15 -> 0 | CN72: 0 | CO72: 0 | CP72: 0 | CQ72: 0 | CR72: 0 | CS72: 0 | CT72: 0 | CU72: 0 | CV72: 0 | CW72: 0
C73: MER - Main PS 100 kW Solar PV Pilot | D73: 0 | E73: Irrigation | F73: Renewals | G73: Pipelines/network | H73: Significant Projects | I73: 0 | J73: Straight line | K73: Ongoing | L73: 45 | M73: 22.22222222 | O73: 0.18 | P73: 0 | Q73: 0 | R73: 0 | S73: 0 | T73: 0 | U73: 0 | V73: 0 | W73: 0 | X73: 0 | AV73: 0.18 | AW73: 0 | AX73: 0 | AY73: 0 | AZ73: 0 | BA73: 0 | BB73: 0 | BC73: 0 | BD73: 0 | BE73: 0 | BG73: 0.002 | BH73: 0.004 | BI73: 0.004 | BJ73: 0.004 | BK73: 0.004 | BL73: 0.004 | BM73: 0.004 | BN73: 0.004 | BO73: 0.004 | BP73: 0.004 | BR73: =+IF($K73="Ongoing",AV73,IF(RIGHT($K73,2)=RIGHT(BR$39,2),SUM($AV73:AV73),0)+IF(RIGHT(BR$39,2)>RIGHT($K73,2),AV73,0)) -> 0.18 | BS73: =+IF($K73="Ongoing",AW73,IF(RIGHT($K73,2)=RIGHT(BS$39,2),SUM($AV73:AW73),0)+IF(RIGHT(BS$39,2)>RIGHT($K73,2),AW73,0)) -> 0 | BT73: =+IF($K73="Ongoing",AX73,IF(RIGHT($K73,2)=RIGHT(BT$39,2),SUM($AV73:AX73),0)+IF(RIGHT(BT$39,2)>RIGHT($K73,2),AX73,0)) -> 0 | BU73: =+IF($K73="Ongoing",AY73,IF(RIGHT($K73,2)=RIGHT(BU$39,2),SUM($AV73:AY73),0)+IF(RIGHT(BU$39,2)>RIGHT($K73,2),AY73,0)) -> 0 | BV73: =+IF($K73="Ongoing",AZ73,IF(RIGHT($K73,2)=RIGHT(BV$39,2),SUM($AV73:AZ73),0)+IF(RIGHT(BV$39,2)>RIGHT($K73,2),AZ73,0)) -> 0 | BW73: =+IF($K73="Ongoing",BA73,IF(RIGHT($K73,2)=RIGHT(BW$39,2),SUM($AV73:BA73),0)+IF(RIGHT(BW$39,2)>RIGHT($K73,2),BA73,0)) -> 0 | BX73: =+IF($K73="Ongoing",BB73,IF(RIGHT($K73,2)=RIGHT(BX$39,2),SUM($AV73:BB73),0)+IF(RIGHT(BX$39,2)>RIGHT($K73,2),BB73,0)) -> 0 | BY73: =+IF($K73="Ongoing",BC73,IF(RIGHT($K73,2)=RIGHT(BY$39,2),SUM($AV73:BC73),0)+IF(RIGHT(BY$39,2)>RIGHT($K73,2),BC73,0)) -> 0 | BZ73: =+IF($K73="Ongoing",BD73,IF(RIGHT($K73,2)=RIGHT(BZ$39,2),SUM($AV73:BD73),0)+IF(RIGHT(BZ$39,2)>RIGHT($K73,2),BD73,0)) -> 0 | CA73: =+IF($K73="Ongoing",BE73,IF(RIGHT($K73,2)=RIGHT(CA$39,2),SUM($AV73:BE73),0)+IF(RIGHT(CA$39,2)>RIGHT($K73,2),BE73,0)) -> 0 | CC73: =+O73*KeyAssumptionsPriceControl_FO!X$15 -> 0.18414 | CD73: =+P73*KeyAssumptionsPriceControl_FO!Y$15 -> 0 | CE73: =+Q73*KeyAssumptionsPriceControl_FO!Z$15 -> 0 | CF73: =+R73*KeyAssumptionsPriceControl_FO!AA$15 -> 0 | CG73: =+S73*KeyAssumptionsPriceControl_FO!AB$15 -> 0 | CH73: =+T73*KeyAssumptionsPriceControl_FO!AC$15 -> 0 | CI73: =+U73*KeyAssumptionsPriceControl_FO!AD$15 -> 0 | CJ73: =+V73*KeyAssumptionsPriceControl_FO!AE$15 -> 0 | CK73: =+W73*KeyAssumptionsPriceControl_FO!AF$15 -> 0 | CL73: =+X73*KeyAssumptionsPriceControl_FO!AG$15 -> 0 | CN73: 0.00414315 | CO73: 0.0082863 | CP73: 0.0082863 | CQ73: 0.0082863 | CR73: 0.0082863 | CS73: 0.0082863 | CT73: 0.0082863 | CU73: 0.0082863 | CV73: 0.0082863 | CW73: 0.0082863
C74: MDA - 17th St HPPS PS 100 kW Solar PV Pilot | D74: 0 | E74: Irrigation | F74: Renewals | G74: Pipelines/network | H74: Significant Projects | I74: 0 | J74: Straight line | K74: 2018-19 | L74: 45 | M74: 22.22222222 | O74: 0.84 | P74: 0 | Q74: 0 | R74: 0 | S74: 0 | T74: 0 | U74: 0 | V74: 0 | W74: 0 | X74: 0 | AV74: 0.84 | AW74: 0 | AX74: 0 | AY74: 0 | AZ74: 0 | BA74: 0 | BB74: 0 | BC74: 0 | BD74: 0 | BE74: 0 | BG74: 0.009333333333 | BH74: 0.01866666667 | BI74: 0.01866666667 | BJ74: 0.01866666667 | BK74: 0.01866666667 | BL74: 0.01866666667 | BM74: 0.01866666667 | BN74: 0.01866666667 | BO74: 0.01866666667 | BP74: 0.01866666667 | BR74: =+IF($K74="Ongoing",AV74,IF(RIGHT($K74,2)=RIGHT(BR$39,2),SUM($AV74:AV74),0)+IF(RIGHT(BR$39,2)>RIGHT($K74,2),AV74,0)) -> 0.84 | BS74: =+IF($K74="Ongoing",AW74,IF(RIGHT($K74,2)=RIGHT(BS$39,2),SUM($AV74:AW74),0)+IF(RIGHT(BS$39,2)>RIGHT($K74,2),AW74,0)) -> 0 | BT74: =+IF($K74="Ongoing",AX74,IF(RIGHT($K74,2)=RIGHT(BT$39,2),SUM($AV74:AX74),0)+IF(RIGHT(BT$39,2)>RIGHT($K74,2),AX74,0)) -> 0 | BU74: =+IF($K74="Ongoing",AY74,IF(RIGHT($K74,2)=RIGHT(BU$39,2),SUM($AV74:AY74),0)+IF(RIGHT(BU$39,2)>RIGHT($K74,2),AY74,0)) -> 0 | BV74: =+IF($K74="Ongoing",AZ74,IF(RIGHT($K74,2)=RIGHT(BV$39,2),SUM($AV74:AZ74),0)+IF(RIGHT(BV$39,2)>RIGHT($K74,2),AZ74,0)) -> 0 | BW74: =+IF($K74="Ongoing",BA74,IF(RIGHT($K74,2)=RIGHT(BW$39,2),SUM($AV74:BA74),0)+IF(RIGHT(BW$39,2)>RIGHT($K74,2),BA74,0)) -> 0 | BX74: =+IF($K74="Ongoing",BB74,IF(RIGHT($K74,2)=RIGHT(BX$39,2),SUM($AV74:BB74),0)+IF(RIGHT(BX$39,2)>RIGHT($K74,2),BB74,0)) -> 0 | BY74: =+IF($K74="Ongoing",BC74,IF(RIGHT($K74,2)=RIGHT(BY$39,2),SUM($AV74:BC74),0)+IF(RIGHT(BY$39,2)>RIGHT($K74,2),BC74,0)) -> 0 | BZ74: =+IF($K74="Ongoing",BD74,IF(RIGHT($K74,2)=RIGHT(BZ$39,2),SUM($AV74:BD74),0)+IF(RIGHT(BZ$39,2)>RIGHT($K74,2),BD74,0)) -> 0 | CA74: =+IF($K74="Ongoing",BE74,IF(RIGHT($K74,2)=RIGHT(CA$39,2),SUM($AV74:BE74),0)+IF(RIGHT(CA$39,2)>RIGHT($K74,2),BE74,0)) -> 0 | CC74: =+O74*KeyAssumptionsPriceControl_FO!X$15 -> 0.85932 | CD74: =+P74*KeyAssumptionsPriceControl_FO!Y$15 -> 0 | CE74: =+Q74*KeyAssumptionsPriceControl_FO!Z$15 -> 0 | CF74: =+R74*KeyAssumptionsPriceControl_FO!AA$15 -> 0 | CG74: =+S74*KeyAssumptionsPriceControl_FO!AB$15 -> 0 | CH74: =+T74*KeyAssumptionsPriceControl_FO!AC$15 -> 0 | CI74: =+U74*KeyAssumptionsPriceControl_FO!AD$15 -> 0 | CJ74: =+V74*KeyAssumptionsPriceControl_FO!AE$15 -> 0 | CK74: =+W74*KeyAssumptionsPriceControl_FO!AF$15 -> 0 | CL74: =+X74*KeyAssumptionsPriceControl_FO!AG$15 -> 0 | CN74: 0.0193347 | CO74: 0.0386694 | CP74: 0.0386694 | CQ74: 0.0386694 | CR74: 0.0386694 | CS74: 0.0386694 | CT74: 0.0386694 | CU74: 0.0386694 | CV74: 0.0386694 | CW74: 0.0386694
C75: RC - Main PS 100 kW Solar PV Pilot | D75: 0 | E75: Irrigation | F75: Renewals | G75: Channels | H75: Significant Projects | I75: 0 | J75: Straight line | K75: 2018-19 | L75: 45 | M75: 22.22222222 | O75: 0.275 | P75: 0 | Q75: 0 | R75: 0 | S75: 0 | T75: 0 | U75: 0 | V75: 0 | W75: 0 | X75: 0 | AV75: 0.275 | AW75: 0 | AX75: 0 | AY75: 0 | AZ75: 0 | BA75: 0 | BB75: 0 | BC75: 0 | BD75: 0 | BE75: 0 | BG75: 0.003055555556 | BH75: 0.006111111111 | BI75: 0.006111111111 | BJ75: 0.006111111111 | BK75: 0.006111111111 | BL75: 0.006111111111 | BM75: 0.006111111111 | BN75: 0.006111111111 | BO75: 0.006111111111 | BP75: 0.006111111111 | BR75: =+IF($K75="Ongoing",AV75,IF(RIGHT($K75,2)=RIGHT(BR$39,2),SUM($AV75:AV75),0)+IF(RIGHT(BR$39,2)>RIGHT($K75,2),AV75,0)) -> 0.275 | BS75: =+IF($K75="Ongoing",AW75,IF(RIGHT($K75,2)=RIGHT(BS$39,2),SUM($AV75:AW75),0)+IF(RIGHT(BS$39,2)>RIGHT($K75,2),AW75,0)) -> 0 | BT75: =+IF($K75="Ongoing",AX75,IF(RIGHT($K75,2)=RIGHT(BT$39,2),SUM($AV75:AX75),0)+IF(RIGHT(BT$39,2)>RIGHT($K75,2),AX75,0)) -> 0 | BU75: =+IF($K75="Ongoing",AY75,IF(RIGHT($K75,2)=RIGHT(BU$39,2),SUM($AV75:AY75),0)+IF(RIGHT(BU$39,2)>RIGHT($K75,2),AY75,0)) -> 0 | BV75: =+IF($K75="Ongoing",AZ75,IF(RIGHT($K75,2)=RIGHT(BV$39,2),SUM($AV75:AZ75),0)+IF(RIGHT(BV$39,2)>RIGHT($K75,2),AZ75,0)) -> 0 | BW75: =+IF($K75="Ongoing",BA75,IF(RIGHT($K75,2)=RIGHT(BW$39,2),SUM($AV75:BA75),0)+IF(RIGHT(BW$39,2)>RIGHT($K75,2),BA75,0)) -> 0 | BX75: =+IF($K75="Ongoing",BB75,IF(RIGHT($K75,2)=RIGHT(BX$39,2),SUM($AV75:BB75),0)+IF(RIGHT(BX$39,2)>RIGHT($K75,2),BB75,0)) -> 0 | BY75: =+IF($K75="Ongoing",BC75,IF(RIGHT($K75,2)=RIGHT(BY$39,2),SUM($AV75:BC75),0)+IF(RIGHT(BY$39,2)>RIGHT($K75,2),BC75,0)) -> 0 | BZ75: =+IF($K75="Ongoing",BD75,IF(RIGHT($K75,2)=RIGHT(BZ$39,2),SUM($AV75:BD75),0)+IF(RIGHT(BZ$39,2)>RIGHT($K75,2),BD75,0)) -> 0 | CA75: =+IF($K75="Ongoing",BE75,IF(RIGHT($K75,2)=RIGHT(CA$39,2),SUM($AV75:BE75),0)+IF(RIGHT(CA$39,2)>RIGHT($K75,2),BE75,0)) -> 0 | CC75: =+O75*KeyAssumptionsPriceControl_FO!X$15 -> 0.281325 | CD75: =+P75*KeyAssumptionsPriceControl_FO!Y$15 -> 0 | CE75: =+Q75*KeyAssumptionsPriceControl_FO!Z$15 -> 0 | CF75: =+R75*KeyAssumptionsPriceControl_FO!AA$15 -> 0 | CG75: =+S75*KeyAssumptionsPriceControl_FO!AB$15 -> 0 | CH75: =+T75*KeyAssumptionsPriceControl_FO!AC$15 -> 0 | CI75: =+U75*KeyAssumptionsPriceControl_FO!AD$15 -> 0 | CJ75: =+V75*KeyAssumptionsPriceControl_FO!AE$15 -> 0 | CK75: =+W75*KeyAssumptionsPriceControl_FO!AF$15 -> 0 | CL75: =+X75*KeyAssumptionsPriceControl_FO!AG$15 -> 0 | CN75: 0.0063298125 | CO75: 0.012659625 | CP75: 0.012659625 | CQ75: 0.012659625 | CR75: 0.012659625 | CS75: 0.012659625 | CT75: 0.012659625 | CU75: 0.012659625 | CV75: 0.012659625 | CW75: 0.012659625
C76: MER - Main Pump Station Replace Cross Connection and | D76: 0 | E76: Irrigation | F76: Renewals | G76: Pipelines/network | H76: Significant Projects | I76: 0 | J76: Straight line | K76: Ongoing | L76: 80 | M76: 6.666666667 | O76: 0 | P76: 0 | Q76: 0 | R76: 0 | S76: 0 | T76: 0 | U76: 0 | V76: 0 | W76: 0 | X76: 0 | AV76: 0 | AW76: 0 | AX76: 0 | AY76: 0 | AZ76: 0 | BA76: 0 | BB76: 0 | BC76: 0 | BD76: 0 | BE76: 0 | BG76: 0 | BH76: 0 | BI76: 0 | BJ76: 0 | BK76: 0 | BL76: 0 | BM76: 0 | BN76: 0 | BO76: 0 | BP76: 0 | BR76: =+IF($K76="Ongoing",AV76,IF(RIGHT($K76,2)=RIGHT(BR$39,2),SUM($AV76:AV76),0)+IF(RIGHT(BR$39,2)>RIGHT($K76,2),AV76,0)) -> 0 | BS76: =+IF($K76="Ongoing",AW76,IF(RIGHT($K76,2)=RIGHT(BS$39,2),SUM($AV76:AW76),0)+IF(RIGHT(BS$39,2)>RIGHT($K76,2),AW76,0)) -> 0 | BT76: =+IF($K76="Ongoing",AX76,IF(RIGHT($K76,2)=RIGHT(BT$39,2),SUM($AV76:AX76),0)+IF(RIGHT(BT$39,2)>RIGHT($K76,2),AX76,0)) -> 0 | BU76: =+IF($K76="Ongoing",AY76,IF(RIGHT($K76,2)=RIGHT(BU$39,2),SUM($AV76:AY76),0)+IF(RIGHT(BU$39,2)>RIGHT($K76,2),AY76,0)) -> 0 | BV76: =+IF($K76="Ongoing",AZ76,IF(RIGHT($K76,2)=RIGHT(BV$39,2),SUM($AV76:AZ76),0)+IF(RIGHT(BV$39,2)>RIGHT($K76,2),AZ76,0)) -> 0 | BW76: =+IF($K76="Ongoing",BA76,IF(RIGHT($K76,2)=RIGHT(BW$39,2),SUM($AV76:BA76),0)+IF(RIGHT(BW$39,2)>RIGHT($K76,2),BA76,0)) -> 0 | BX76: =+IF($K76="Ongoing",BB76,IF(RIGHT($K76,2)=RIGHT(BX$39,2),SUM($AV76:BB76),0)+IF(RIGHT(BX$39,2)>RIGHT($K76,2),BB76,0)) -> 0 | BY76: =+IF($K76="Ongoing",BC76,IF(RIGHT($K76,2)=RIGHT(BY$39,2),SUM($AV76:BC76),0)+IF(RIGHT(BY$39,2)>RIGHT($K76,2),BC76,0)) -> 0 | BZ76: =+IF($K76="Ongoing",BD76,IF(RIGHT($K76,2)=RIGHT(BZ$39,2),SUM($AV76:BD76),0)+IF(RIGHT(BZ$39,2)>RIGHT($K76,2),BD76,0)) -> 0 | CA76: =+IF($K76="Ongoing",BE76,IF(RIGHT($K76,2)=RIGHT(CA$39,2),SUM($AV76:BE76),0)+IF(RIGHT(CA$39,2)>RIGHT($K76,2),BE76,0)) -> 0 | CC76: =+O76*KeyAssumptionsPriceControl_FO!X$15 -> 0 | CD76: =+P76*KeyAssumptionsPriceControl_FO!Y$15 -> 0 | CE76: =+Q76*KeyAssumptionsPriceControl_FO!Z$15 -> 0 | CF76: =+R76*KeyAssumptionsPriceControl_FO!AA$15 -> 0 | CG76: =+S76*KeyAssumptionsPriceControl_FO!AB$15 -> 0 | CH76: =+T76*KeyAssumptionsPriceControl_FO!AC$15 -> 0 | CI76: =+U76*KeyAssumptionsPriceControl_FO!AD$15 -> 0 | CJ76: =+V76*KeyAssumptionsPriceControl_FO!AE$15 -> 0 | CK76: =+W76*KeyAssumptionsPriceControl_FO!AF$15 -> 0 | CL76: =+X76*KeyAssumptionsPriceControl_FO!AG$15 -> 0 | CN76: 0 | CO76: 0 | CP76: 0 | CQ76: 0 | CR76: 0 | CS76: 0 | CT76: 0 | CU76: 0 | CV76: 0 | CW76: 0
C77: MER Pumping Main PS Replace Pump Sets | D77: 0 | E77: Irrigation | F77: Renewals | G77: Pipelines/network | H77: Significant Projects | I77: 0 | J77: Straight line | K77: Ongoing | L77: 45 | M77: 6.666666667 | O77: 0 | P77: 0 | Q77: 0 | R77: 0 | S77: 0 | T77: 0 | U77: 0 | V77: 0 | W77: 0 | X77: 0 | AV77: 0 | AW77: 0 | AX77: 0 | AY77: 0 | AZ77: 0 | BA77: 0 | BB77: 0 | BC77: 0 | BD77: 0 | BE77: 0 | BG77: 0 | BH77: 0 | BI77: 0 | BJ77: 0 | BK77: 0 | BL77: 0 | BM77: 0 | BN77: 0 | BO77: 0 | BP77: 0 | BR77: =+IF($K77="Ongoing",AV77,IF(RIGHT($K77,2)=RIGHT(BR$39,2),SUM($AV77:AV77),0)+IF(RIGHT(BR$39,2)>RIGHT($K77,2),AV77,0)) -> 0 | BS77: =+IF($K77="Ongoing",AW77,IF(RIGHT($K77,2)=RIGHT(BS$39,2),SUM($AV77:AW77),0)+IF(RIGHT(BS$39,2)>RIGHT($K77,2),AW77,0)) -> 0 | BT77: =+IF($K77="Ongoing",AX77,IF(RIGHT($K77,2)=RIGHT(BT$39,2),SUM($AV77:AX77),0)+IF(RIGHT(BT$39,2)>RIGHT($K77,2),AX77,0)) -> 0 | BU77: =+IF($K77="Ongoing",AY77,IF(RIGHT($K77,2)=RIGHT(BU$39,2),SUM($AV77:AY77),0)+IF(RIGHT(BU$39,2)>RIGHT($K77,2),AY77,0)) -> 0 | BV77: =+IF($K77="Ongoing",AZ77,IF(RIGHT($K77,2)=RIGHT(BV$39,2),SUM($AV77:AZ77),0)+IF(RIGHT(BV$39,2)>RIGHT($K77,2),AZ77,0)) -> 0 | BW77: =+IF($K77="Ongoing",BA77,IF(RIGHT($K77,2)=RIGHT(BW$39,2),SUM($AV77:BA77),0)+IF(RIGHT(BW$39,2)>RIGHT($K77,2),BA77,0)) -> 0 | BX77: =+IF($K77="Ongoing",BB77,IF(RIGHT($K77,2)=RIGHT(BX$39,2),SUM($AV77:BB77),0)+IF(RIGHT(BX$39,2)>RIGHT($K77,2),BB77,0)) -> 0 | BY77: =+IF($K77="Ongoing",BC77,IF(RIGHT($K77,2)=RIGHT(BY$39,2),SUM($AV77:BC77),0)+IF(RIGHT(BY$39,2)>RIGHT($K77,2),BC77,0)) -> 0 | BZ77: =+IF($K77="Ongoing",BD77,IF(RIGHT($K77,2)=RIGHT(BZ$39,2),SUM($AV77:BD77),0)+IF(RIGHT(BZ$39,2)>RIGHT($K77,2),BD77,0)) -> 0 | CA77: =+IF($K77="Ongoing",BE77,IF(RIGHT($K77,2)=RIGHT(CA$39,2),SUM($AV77:BE77),0)+IF(RIGHT(CA$39,2)>RIGHT($K77,2),BE77,0)) -> 0 | CC77: =+O77*KeyAssumptionsPriceControl_FO!X$15 -> 0 | CD77: =+P77*KeyAssumptionsPriceControl_FO!Y$15 -> 0 | CE77: =+Q77*KeyAssumptionsPriceControl_FO!Z$15 -> 0 | CF77: =+R77*KeyAssumptionsPriceControl_FO!AA$15 -> 0 | CG77: =+S77*KeyAssumptionsPriceControl_FO!AB$15 -> 0 | CH77: =+T77*KeyAssumptionsPriceControl_FO!AC$15 -> 0 | CI77: =+U77*KeyAssumptionsPriceControl_FO!AD$15 -> 0 | CJ77: =+V77*KeyAssumptionsPriceControl_FO!AE$15 -> 0 | CK77: =+W77*KeyAssumptionsPriceControl_FO!AF$15 -> 0 | CL77: =+X77*KeyAssumptionsPriceControl_FO!AG$15 -> 0 | CN77: 0 | CO77: 0 | CP77: 0 | CQ77: 0 | CR77: 0 | CS77: 0 | CT77: 0 | CU77: 0 | CV77: 0 | CW77: 0
AV78: 0 | AW78: 0 | AX78: 0 | AY78: 0 | AZ78: 0 | BA78: 0 | BB78: 0 | BC78: 0 | BD78: 0 | BE78: 0 | BG78: 0 | BH78: 0 | BI78: 0 | BJ78: 0 | BK78: 0 | BL78: 0 | BM78: 0 | BN78: 0 | BO78: 0 | BP78: 0 | BR78: =+IF($K78="Ongoing",AV78,IF(RIGHT($K78,2)=RIGHT(BR$39,2),SUM($AV78:AV78),0)+IF(RIGHT(BR$39,2)>RIGHT($K78,2),AV78,0)) -> 0 | BS78: =+IF($K78="Ongoing",AW78,IF(RIGHT($K78,2)=RIGHT(BS$39,2),SUM($AV78:AW78),0)+IF(RIGHT(BS$39,2)>RIGHT($K78,2),AW78,0)) -> 0 | BT78: =+IF($K78="Ongoing",AX78,IF(RIGHT($K78,2)=RIGHT(BT$39,2),SUM($AV78:AX78),0)+IF(RIGHT(BT$39,2)>RIGHT($K78,2),AX78,0)) -> 0 | BU78: =+IF($K78="Ongoing",AY78,IF(RIGHT($K78,2)=RIGHT(BU$39,2),SUM($AV78:AY78),0)+IF(RIGHT(BU$39,2)>RIGHT($K78,2),AY78,0)) -> 0 | BV78: =+IF($K78="Ongoing",AZ78,IF(RIGHT($K78,2)=RIGHT(BV$39,2),SUM($AV78:AZ78),0)+IF(RIGHT(BV$39,2)>RIGHT($K78,2),AZ78,0)) -> 0 | BW78: =+IF($K78="Ongoing",BA78,IF(RIGHT($K78,2)=RIGHT(BW$39,2),SUM($AV78:BA78),0)+IF(RIGHT(BW$39,2)>RIGHT($K78,2),BA78,0)) -> 0 | BX78: =+IF($K78="Ongoing",BB78,IF(RIGHT($K78,2)=RIGHT(BX$39,2),SUM($AV78:BB78),0)+IF(RIGHT(BX$39,2)>RIGHT($K78,2),BB78,0)) -> 0 | BY78: =+IF($K78="Ongoing",BC78,IF(RIGHT($K78,2)=RIGHT(BY$39,2),SUM($AV78:BC78),0)+IF(RIGHT(BY$39,2)>RIGHT($K78,2),BC78,0)) -> 0 | BZ78: =+IF($K78="Ongoing",BD78,IF(RIGHT($K78,2)=RIGHT(BZ$39,2),SUM($AV78:BD78),0)+IF(RIGHT(BZ$39,2)>RIGHT($K78,2),BD78,0)) -> 0 | CA78: =+IF($K78="Ongoing",BE78,IF(RIGHT($K78,2)=RIGHT(CA$39,2),SUM($AV78:BE78),0)+IF(RIGHT(CA$39,2)>RIGHT($K78,2),BE78,0)) -> 0 | CC78: =+O78*KeyAssumptionsPriceControl_FO!X$15 -> 0 | CD78: =+P78*KeyAssumptionsPriceControl_FO!Y$15 -> 0 | CE78: =+Q78*KeyAssumptionsPriceControl_FO!Z$15 -> 0 | CF78: =+R78*KeyAssumptionsPriceControl_FO!AA$15 -> 0 | CG78: =+S78*KeyAssumptionsPriceControl_FO!AB$15 -> 0 | CH78: =+T78*KeyAssumptionsPriceControl_FO!AC$15 -> 0 | CI78: =+U78*KeyAssumptionsPriceControl_FO!AD$15 -> 0 | CJ78: =+V78*KeyAssumptionsPriceControl_FO!AE$15 -> 0 | CK78: =+W78*KeyAssumptionsPriceControl_FO!AF$15 -> 0 | CL78: =+X78*KeyAssumptionsPriceControl_FO!AG$15 -> 0 | CN78: 0 | CO78: 0 | CP78: 0 | CQ78: 0 | CR78: 0 | CS78: 0 | CT78: 0 | CU78: 0 | CV78: 0 | CW78: 0
C79: MER - Drainage PS Switchboards Replacement | D79: 0 | E79: Drainage | F79: Renewals | G79: Pipelines/network | H79: Significant Projects | I79: 0 | J79: Straight line | K79: Ongoing | L79: 45 | M79: 22.22222222 | O79: 0.06 | P79: 0.06 | Q79: 0.06 | R79: 0.12 | S79: 0.06 | T79: 0.01 | U79: 0.01 | V79: 0.01 | W79: 0.13 | X79: 0.01 | AV79: 0.06 | AW79: 0.06 | AX79: 0.06 | AY79: 0.12 | AZ79: 0.06 | BA79: 0.01 | BB79: 0.01 | BC79: 0.01 | BD79: 0.13 | BE79: 0.01 | BG79: 0.0006666666667 | BH79: 0.002 | BI79: 0.003333333333 | BJ79: 0.005333333333 | BK79: 0.007333333333 | BL79: 0.008111111111 | BM79: 0.008333333333 | BN79: 0.008555555556 | BO79: 0.01011111111 | BP79: 0.01166666667 | BR79: =+IF($K79="Ongoing",AV79,IF(RIGHT($K79,2)=RIGHT(BR$39,2),SUM($AV79:AV79),0)+IF(RIGHT(BR$39,2)>RIGHT($K79,2),AV79,0)) -> 0.06 | BS79: =+IF($K79="Ongoing",AW79,IF(RIGHT($K79,2)=RIGHT(BS$39,2),SUM($AV79:AW79),0)+IF(RIGHT(BS$39,2)>RIGHT($K79,2),AW79,0)) -> 0.06 | BT79: =+IF($K79="Ongoing",AX79,IF(RIGHT($K79,2)=RIGHT(BT$39,2),SUM($AV79:AX79),0)+IF(RIGHT(BT$39,2)>RIGHT($K79,2),AX79,0)) -> 0.06 | BU79: =+IF($K79="Ongoing",AY79,IF(RIGHT($K79,2)=RIGHT(BU$39,2),SUM($AV79:AY79),0)+IF(RIGHT(BU$39,2)>RIGHT($K79,2),AY79,0)) -> 0.12 | BV79: =+IF($K79="Ongoing",AZ79,IF(RIGHT($K79,2)=RIGHT(BV$39,2),SUM($AV79:AZ79),0)+IF(RIGHT(BV$39,2)>RIGHT($K79,2),AZ79,0)) -> 0.06 | BW79: =+IF($K79="Ongoing",BA79,IF(RIGHT($K79,2)=RIGHT(BW$39,2),SUM($AV79:BA79),0)+IF(RIGHT(BW$39,2)>RIGHT($K79,2),BA79,0)) -> 0.01 | BX79: =+IF($K79="Ongoing",BB79,IF(RIGHT($K79,2)=RIGHT(BX$39,2),SUM($AV79:BB79),0)+IF(RIGHT(BX$39,2)>RIGHT($K79,2),BB79,0)) -> 0.01 | BY79: =+IF($K79="Ongoing",BC79,IF(RIGHT($K79,2)=RIGHT(BY$39,2),SUM($AV79:BC79),0)+IF(RIGHT(BY$39,2)>RIGHT($K79,2),BC79,0)) -> 0.01 | BZ79: =+IF($K79="Ongoing",BD79,IF(RIGHT($K79,2)=RIGHT(BZ$39,2),SUM($AV79:BD79),0)+IF(RIGHT(BZ$39,2)>RIGHT($K79,2),BD79,0)) -> 0.13 | CA79: =+IF($K79="Ongoing",BE79,IF(RIGHT($K79,2)=RIGHT(CA$39,2),SUM($AV79:BE79),0)+IF(RIGHT(CA$39,2)>RIGHT($K79,2),BE79,0)) -> 0.01 | CC79: =+O79*KeyAssumptionsPriceControl_FO!X$15 -> 0.06138 | CD79: =+P79*KeyAssumptionsPriceControl_FO!Y$15 -> 0.06279174 | CE79: =+Q79*KeyAssumptionsPriceControl_FO!Z$15 -> 0.06423595002 | CF79: =+R79*KeyAssumptionsPriceControl_FO!AA$15 -> 0.1314267537 | CG79: =+S79*KeyAssumptionsPriceControl_FO!AB$15 -> 0.06722478454 | CH79: =+T79*KeyAssumptionsPriceControl_FO!AC$15 -> 0.01146182576 | CI79: =+U79*KeyAssumptionsPriceControl_FO!AD$15 -> 0.01172544776 | CJ79: =+V79*KeyAssumptionsPriceControl_FO!AE$15 -> 0.01199513305 | CK79: =+W79*KeyAssumptionsPriceControl_FO!AF$15 -> 0.1595232745 | CL79: =+X79*KeyAssumptionsPriceControl_FO!AG$15 -> 0.0125532546 | CN79: 0.00138105 | CO79: 0.00417491415 | CP79: 0.007033037175 | CQ79: 0.01143544801 | CR79: 0.01590510762 | CS79: 0.01767555635 | CT79: 0.01819727001 | CU79: 0.01873098308 | CV79: 0.02259014725 | CW79: 0.02646186915
C80: RC - Drainage PS Switchboards Replacement | D80: 0 | E80: Irrigation | F80: Renewals | G80: Channels | H80: Significant Projects | I80: 0 | J80: Straight line | K80: Ongoing | L80: 45 | M80: 22.22222222 | O80: 0 | P80: 0.12 | Q80: 0.12 | R80: 0 | S80: 0 | T80: 0 | U80: 0 | V80: 0 | W80: 0.075 | X80: 0.075 | AV80: 0 | AW80: 0.12 | AX80: 0.12 | AY80: 0 | AZ80: 0 | BA80: 0 | BB80: 0 | BC80: 0 | BD80: 0.075 | BE80: 0.075 | BG80: 0 | BH80: 0.001333333333 | BI80: 0.004 | BJ80: 0.005333333333 | BK80: 0.005333333333 | BL80: 0.005333333333 | BM80: 0.005333333333 | BN80: 0.005333333333 | BO80: 0.006166666667 | BP80: 0.007833333333 | BR80: =+IF($K80="Ongoing",AV80,IF(RIGHT($K80,2)=RIGHT(BR$39,2),SUM($AV80:AV80),0)+IF(RIGHT(BR$39,2)>RIGHT($K80,2),AV80,0)) -> 0 | BS80: =+IF($K80="Ongoing",AW80,IF(RIGHT($K80,2)=RIGHT(BS$39,2),SUM($AV80:AW80),0)+IF(RIGHT(BS$39,2)>RIGHT($K80,2),AW80,0)) -> 0.12 | BT80: =+IF($K80="Ongoing",AX80,IF(RIGHT($K80,2)=RIGHT(BT$39,2),SUM($AV80:AX80),0)+IF(RIGHT(BT$39,2)>RIGHT($K80,2),AX80,0)) -> 0.12 | BU80: =+IF($K80="Ongoing",AY80,IF(RIGHT($K80,2)=RIGHT(BU$39,2),SUM($AV80:AY80),0)+IF(RIGHT(BU$39,2)>RIGHT($K80,2),AY80,0)) -> 0 | BV80: =+IF($K80="Ongoing",AZ80,IF(RIGHT($K80,2)=RIGHT(BV$39,2),SUM($AV80:AZ80),0)+IF(RIGHT(BV$39,2)>RIGHT($K80,2),AZ80,0)) -> 0 | BW80: =+IF($K80="Ongoing",BA80,IF(RIGHT($K80,2)=RIGHT(BW$39,2),SUM($AV80:BA80),0)+IF(RIGHT(BW$39,2)>RIGHT($K80,2),BA80,0)) -> 0 | BX80: =+IF($K80="Ongoing",BB80,IF(RIGHT($K80,2)=RIGHT(BX$39,2),SUM($AV80:BB80),0)+IF(RIGHT(BX$39,2)>RIGHT($K80,2),BB80,0)) -> 0 | BY80: =+IF($K80="Ongoing",BC80,IF(RIGHT($K80,2)=RIGHT(BY$39,2),SUM($AV80:BC80),0)+IF(RIGHT(BY$39,2)>RIGHT($K80,2),BC80,0)) -> 0 | BZ80: =+IF($K80="Ongoing",BD80,IF(RIGHT($K80,2)=RIGHT(BZ$39,2),SUM($AV80:BD80),0)+IF(RIGHT(BZ$39,2)>RIGHT($K80,2),BD80,0)) -> 0.075 | CA80: =+IF($K80="Ongoing",BE80,IF(RIGHT($K80,2)=RIGHT(CA$39,2),SUM($AV80:BE80),0)+IF(RIGHT(CA$39,2)>RIGHT($K80,2),BE80,0)) -> 0.075 | CC80: =+O80*KeyAssumptionsPriceControl_FO!X$15 -> 0 | CD80: =+P80*KeyAssumptionsPriceControl_FO!Y$15 -> 0.12558348 | CE80: =+Q80*KeyAssumptionsPriceControl_FO!Z$15 -> 0.1284719 | CF80: =+R80*KeyAssumptionsPriceControl_FO!AA$15 -> 0 | CG80: =+S80*KeyAssumptionsPriceControl_FO!AB$15 -> 0 | CH80: =+T80*KeyAssumptionsPriceControl_FO!AC$15 -> 0 | CI80: =+U80*KeyAssumptionsPriceControl_FO!AD$15 -> 0 | CJ80: =+V80*KeyAssumptionsPriceControl_FO!AE$15 -> 0 | CK80: =+W80*KeyAssumptionsPriceControl_FO!AF$15 -> 0.09203265836 | CL80: =+X80*KeyAssumptionsPriceControl_FO!AG$15 -> 0.09414940951 | CN80: 0 | CO80: 0.0028256283 | CP80: 0.008541874351 | CQ80: 0.0114324921 | CR80: 0.0114324921 | CS80: 0.0114324921 | CT80: 0.0114324921 | CU80: 0.0114324921 | CV80: 0.01350322691 | CW80: 0.01769232344
C81: RC Drainage Pumps | D81: 0 | E81: Irrigation | F81: Renewals | G81: Channels | H81: Significant Projects | I81: 0 | J81: Straight line | K81: 2017-18 | L81: 45 | M81: 6.666666667 | O81: 0 | P81: 0 | Q81: 0 | R81: 0 | S81: 0 | T81: 0 | U81: 0 | V81: 0 | W81: 0 | X81: 0 | AV81: 0 | AW81: 0 | AX81: 0 | AY81: 0 | AZ81: 0 | BA81: 0 | BB81: 0 | BC81: 0 | BD81: 0 | BE81: 0 | BG81: 0 | BH81: 0 | BI81: 0 | BJ81: 0 | BK81: 0 | BL81: 0 | BM81: 0 | BN81: 0 | BO81: 0 | BP81: 0 | BR81: =+IF($K81="Ongoing",AV81,IF(RIGHT($K81,2)=RIGHT(BR$39,2),SUM($AV81:AV81),0)+IF(RIGHT(BR$39,2)>RIGHT($K81,2),AV81,0)) -> 0 | BS81: =+IF($K81="Ongoing",AW81,IF(RIGHT($K81,2)=RIGHT(BS$39,2),SUM($AV81:AW81),0)+IF(RIGHT(BS$39,2)>RIGHT($K81,2),AW81,0)) -> 0 | BT81: =+IF($K81="Ongoing",AX81,IF(RIGHT($K81,2)=RIGHT(BT$39,2),SUM($AV81:AX81),0)+IF(RIGHT(BT$39,2)>RIGHT($K81,2),AX81,0)) -> 0 | BU81: =+IF($K81="Ongoing",AY81,IF(RIGHT($K81,2)=RIGHT(BU$39,2),SUM($AV81:AY81),0)+IF(RIGHT(BU$39,2)>RIGHT($K81,2),AY81,0)) -> 0 | BV81: =+IF($K81="Ongoing",AZ81,IF(RIGHT($K81,2)=RIGHT(BV$39,2),SUM($AV81:AZ81),0)+IF(RIGHT(BV$39,2)>RIGHT($K81,2),AZ81,0)) -> 0 | BW81: =+IF($K81="Ongoing",BA81,IF(RIGHT($K81,2)=RIGHT(BW$39,2),SUM($AV81:BA81),0)+IF(RIGHT(BW$39,2)>RIGHT($K81,2),BA81,0)) -> 0 | BX81: =+IF($K81="Ongoing",BB81,IF(RIGHT($K81,2)=RIGHT(BX$39,2),SUM($AV81:BB81),0)+IF(RIGHT(BX$39,2)>RIGHT($K81,2),BB81,0)) -> 0 | BY81: =+IF($K81="Ongoing",BC81,IF(RIGHT($K81,2)=RIGHT(BY$39,2),SUM($AV81:BC81),0)+IF(RIGHT(BY$39,2)>RIGHT($K81,2),BC81,0)) -> 0 | BZ81: =+IF($K81="Ongoing",BD81,IF(RIGHT($K81,2)=RIGHT(BZ$39,2),SUM($AV81:BD81),0)+IF(RIGHT(BZ$39,2)>RIGHT($K81,2),BD81,0)) -> 0 | CA81: =+IF($K81="Ongoing",BE81,IF(RIGHT($K81,2)=RIGHT(CA$39,2),SUM($AV81:BE81),0)+IF(RIGHT(CA$39,2)>RIGHT($K81,2),BE81,0)) -> 0 | CC81: =+O81*KeyAssumptionsPriceControl_FO!X$15 -> 0 | CD81: =+P81*KeyAssumptionsPriceControl_FO!Y$15 -> 0 | CE81: =+Q81*KeyAssumptionsPriceControl_FO!Z$15 -> 0 | CF81: =+R81*KeyAssumptionsPriceControl_FO!AA$15 -> 0 | CG81: =+S81*KeyAssumptionsPriceControl_FO!AB$15 -> 0 | CH81: =+T81*KeyAssumptionsPriceControl_FO!AC$15 -> 0 | CI81: =+U81*KeyAssumptionsPriceControl_FO!AD$15 -> 0 | CJ81: =+V81*KeyAssumptionsPriceControl_FO!AE$15 -> 0 | CK81: =+W81*KeyAssumptionsPriceControl_FO!AF$15 -> 0 | CL81: =+X81*KeyAssumptionsPriceControl_FO!AG$15 -> 0 | CN81: 0 | CO81: 0 | CP81: 0 | CQ81: 0 | CR81: 0 | CS81: 0 | CT81: 0 | CU81: 0 | CV81: 0 | CW81: 0
C82: ROB - Drainage PS Switchboards Replacement | D82: 0 | E82: Drainage | F82: Renewals | G82: Pipelines/network | H82: Significant Projects | I82: 0 | J82: Straight line | K82: 2022-23 | L82: 45 | M82: 22.22222222 | O82: 0 | P82: 0 | Q82: 0 | R82: 0 | S82: 0.06 | T82: 0 | U82: 0 | V82: 0 | W82: 0 | X82: 0 | AV82: 0 | AW82: =+P82-AA82-AL82 -> 0 | AX82: 0 | AY82: 0 | AZ82: 0.06 | BA82: 0 | BB82: 0 | BC82: 0 | BD82: 0 | BE82: 0 | BG82: 0 | BH82: 0 | BI82: 0 | BJ82: 0 | BK82: 0.0006666666667 | BL82: 0.001333333333 | BM82: 0.001333333333 | BN82: 0.001333333333 | BO82: 0.001333333333 | BP82: 0.001333333333 | BR82: =+IF($K82="Ongoing",AV82,IF(RIGHT($K82,2)=RIGHT(BR$39,2),SUM($AV82:AV82),0)+IF(RIGHT(BR$39,2)>RIGHT($K82,2),AV82,0)) -> 0 | BS82: =+IF($K82="Ongoing",AW82,IF(RIGHT($K82,2)=RIGHT(BS$39,2),SUM($AV82:AW82),0)+IF(RIGHT(BS$39,2)>RIGHT($K82,2),AW82,0)) -> 0 | BT82: =+IF($K82="Ongoing",AX82,IF(RIGHT($K82,2)=RIGHT(BT$39,2),SUM($AV82:AX82),0)+IF(RIGHT(BT$39,2)>RIGHT($K82,2),AX82,0)) -> 0 | BU82: =+IF($K82="Ongoing",AY82,IF(RIGHT($K82,2)=RIGHT(BU$39,2),SUM($AV82:AY82),0)+IF(RIGHT(BU$39,2)>RIGHT($K82,2),AY82,0)) -> 0 | BV82: =+IF($K82="Ongoing",AZ82,IF(RIGHT($K82,2)=RIGHT(BV$39,2),SUM($AV82:AZ82),0)+IF(RIGHT(BV$39,2)>RIGHT($K82,2),AZ82,0)) -> 0.06 | BW82: =+IF($K82="Ongoing",BA82,IF(RIGHT($K82,2)=RIGHT(BW$39,2),SUM($AV82:BA82),0)+IF(RIGHT(BW$39,2)>RIGHT($K82,2),BA82,0)) -> 0 | BX82: =+IF($K82="Ongoing",BB82,IF(RIGHT($K82,2)=RIGHT(BX$39,2),SUM($AV82:BB82),0)+IF(RIGHT(BX$39,2)>RIGHT($K82,2),BB82,0)) -> 0 | BY82: =+IF($K82="Ongoing",BC82,IF(RIGHT($K82,2)=RIGHT(BY$39,2),SUM($AV82:BC82),0)+IF(RIGHT(BY$39,2)>RIGHT($K82,2),BC82,0)) -> 0 | BZ82: =+IF($K82="Ongoing",BD82,IF(RIGHT($K82,2)=RIGHT(BZ$39,2),SUM($AV82:BD82),0)+IF(RIGHT(BZ$39,2)>RIGHT($K82,2),BD82,0)) -> 0 | CA82: =+IF($K82="Ongoing",BE82,IF(RIGHT($K82,2)=RIGHT(CA$39,2),SUM($AV82:BE82),0)+IF(RIGHT(CA$39,2)>RIGHT($K82,2),BE82,0)) -> 0 | CC82: =+O82*KeyAssumptionsPriceControl_FO!X$15 -> 0 | CD82: =+P82*KeyAssumptionsPriceControl_FO!Y$15 -> 0 | CE82: =+Q82*KeyAssumptionsPriceControl_FO!Z$15 -> 0 | CF82: =+R82*KeyAssumptionsPriceControl_FO!AA$15 -> 0 | CG82: =+S82*KeyAssumptionsPriceControl_FO!AB$15 -> 0.06722478454 | CH82: =+T82*KeyAssumptionsPriceControl_FO!AC$15 -> 0 | CI82: =+U82*KeyAssumptionsPriceControl_FO!AD$15 -> 0 | CJ82: =+V82*KeyAssumptionsPriceControl_FO!AE$15 -> 0 | CK82: =+W82*KeyAssumptionsPriceControl_FO!AF$15 -> 0 | CL82: =+X82*KeyAssumptionsPriceControl_FO!AG$15 -> 0 | CN82: 0 | CO82: 0 | CP82: 0 | CQ82: 0 | CR82: 0.001512557652 | CS82: 0.003025115304 | CT82: 0.003025115304 | CU82: 0.003025115304 | CV82: 0.003025115304 | CW82: 0.003025115304
AV83: =+O83-Z83-AK83 -> 0 | AW83: 0 | AX83: 0 | AY83: 0 | AZ83: 0 | BA83: 0 | BB83: 0 | BC83: 0 | BD83: 0 | BE83: 0 | BG83: 0 | BH83: 0 | BI83: 0 | BJ83: 0 | BK83: 0 | BL83: 0 | BM83: 0 | BN83: 0 | BO83: 0 | BP83: 0 | BR83: =+IF($K83="Ongoing",AV83,IF(RIGHT($K83,2)=RIGHT(BR$39,2),SUM($AV83:AV83),0)+IF(RIGHT(BR$39,2)>RIGHT($K83,2),AV83,0)) -> 0 | BS83: =+IF($K83="Ongoing",AW83,IF(RIGHT($K83,2)=RIGHT(BS$39,2),SUM($AV83:AW83),0)+IF(RIGHT(BS$39,2)>RIGHT($K83,2),AW83,0)) -> 0 | BT83: =+IF($K83="Ongoing",AX83,IF(RIGHT($K83,2)=RIGHT(BT$39,2),SUM($AV83:AX83),0)+IF(RIGHT(BT$39,2)>RIGHT($K83,2),AX83,0)) -> 0 | BU83: =+IF($K83="Ongoing",AY83,IF(RIGHT($K83,2)=RIGHT(BU$39,2),SUM($AV83:AY83),0)+IF(RIGHT(BU$39,2)>RIGHT($K83,2),AY83,0)) -> 0 | BV83: =+IF($K83="Ongoing",AZ83,IF(RIGHT($K83,2)=RIGHT(BV$39,2),SUM($AV83:AZ83),0)+IF(RIGHT(BV$39,2)>RIGHT($K83,2),AZ83,0)) -> 0 | BW83: =+IF($K83="Ongoing",BA83,IF(RIGHT($K83,2)=RIGHT(BW$39,2),SUM($AV83:BA83),0)+IF(RIGHT(BW$39,2)>RIGHT($K83,2),BA83,0)) -> 0 | BX83: =+IF($K83="Ongoing",BB83,IF(RIGHT($K83,2)=RIGHT(BX$39,2),SUM($AV83:BB83),0)+IF(RIGHT(BX$39,2)>RIGHT($K83,2),BB83,0)) -> 0 | BY83: =+IF($K83="Ongoing",BC83,IF(RIGHT($K83,2)=RIGHT(BY$39,2),SUM($AV83:BC83),0)+IF(RIGHT(BY$39,2)>RIGHT($K83,2),BC83,0)) -> 0 | BZ83: =+IF($K83="Ongoing",BD83,IF(RIGHT($K83,2)=RIGHT(BZ$39,2),SUM($AV83:BD83),0)+IF(RIGHT(BZ$39,2)>RIGHT($K83,2),BD83,0)) -> 0 | CA83: =+IF($K83="Ongoing",BE83,IF(RIGHT($K83,2)=RIGHT(CA$39,2),SUM($AV83:BE83),0)+IF(RIGHT(CA$39,2)>RIGHT($K83,2),BE83,0)) -> 0 | CC83: =+O83*KeyAssumptionsPriceControl_FO!X$15 -> 0 | CD83: =+P83*KeyAssumptionsPriceControl_FO!Y$15 -> 0 | CE83: =+Q83*KeyAssumptionsPriceControl_FO!Z$15 -> 0 | CF83: =+R83*KeyAssumptionsPriceControl_FO!AA$15 -> 0 | CG83: =+S83*KeyAssumptionsPriceControl_FO!AB$15 -> 0 | CH83: =+T83*KeyAssumptionsPriceControl_FO!AC$15 -> 0 | CI83: =+U83*KeyAssumptionsPriceControl_FO!AD$15 -> 0 | CJ83: =+V83*KeyAssumptionsPriceControl_FO!AE$15 -> 0 | CK83: =+W83*KeyAssumptionsPriceControl_FO!AF$15 -> 0 | CL83: =+X83*KeyAssumptionsPriceControl_FO!AG$15 -> 0 | CN83: 0 | CO83: 0 | CP83: 0 | CQ83: 0 | CR83: 0 | CS83: 0 | CT83: 0 | CU83: 0 | CV83: 0 | CW83: 0
C84: MER - Upgrade Tight Spurs | D84: 0 | E84: Irrigation | F84: Renewals | G84: Pipelines/network | H84: Significant Projects | I84: 0 | J84: Straight line | K84: Ongoing | L84: 80 | M84: 22.22222222 | O84: 0.2 | P84: 0.2 | Q84: 0.2 | R84: 0.175 | S84: 0.175 | T84: 0.15 | U84: 0.15 | V84: 0.15 | W84: 0.15 | X84: 0.15 | AV84: 0.2 | AW84: 0.2 | AX84: 0.2 | AY84: 0.175 | AZ84: 0.175 | BA84: 0.15 | BB84: 0.15 | BC84: 0.15 | BD84: 0.15 | BE84: 0.15 | BG84: 0.00125 | BH84: 0.00375 | BI84: 0.00625 | BJ84: 0.00859375 | BK84: 0.01078125 | BL84: 0.0128125 | BM84: 0.0146875 | BN84: 0.0165625 | BO84: =IF($L84=0,0, IF($L84<=0.5,BZ84, IF(AND($J84="straight line",$L84<1.51),(BY84-((BY84/$L84)*0.5))+BZ84/$L84*0.5, IF($J84="straight line", IF((LEFT(BO$39,4)*1)-INT($L84)<LEFT($BG$39,4)*1,0,((OFFSET(BZ84,0,-INT($L84+0.5),1,1))/$L84)*(IF($L84-INT($L84)>0.5,$L84-0.5-INT($L84),IF($L84-INT($L84)<=0.5,$L84-0.5-INT($L84)+1,0)))) +BZ84/$L84*0.5 +SUM(OFFSET(BZ84,0,MAX(-INT($L84+(0.5-(10^-12))),-BO$40)+1,1,MIN(INT($L84+(0.5-(10^-12))),BO$40)-1))*1/$L84, IF($J84="Declining Balance",-$BG$38,0))))) -> 0.0184375 | BP84: 0.0203125 | BR84: =+IF($K84="Ongoing",AV84,IF(RIGHT($K84,2)=RIGHT(BR$39,2),SUM($AV84:AV84),0)+IF(RIGHT(BR$39,2)>RIGHT($K84,2),AV84,0)) -> 0.2 | BS84: =+IF($K84="Ongoing",AW84,IF(RIGHT($K84,2)=RIGHT(BS$39,2),SUM($AV84:AW84),0)+IF(RIGHT(BS$39,2)>RIGHT($K84,2),AW84,0)) -> 0.2 | BT84: =+IF($K84="Ongoing",AX84,IF(RIGHT($K84,2)=RIGHT(BT$39,2),SUM($AV84:AX84),0)+IF(RIGHT(BT$39,2)>RIGHT($K84,2),AX84,0)) -> 0.2 | BU84: =+IF($K84="Ongoing",AY84,IF(RIGHT($K84,2)=RIGHT(BU$39,2),SUM($AV84:AY84),0)+IF(RIGHT(BU$39,2)>RIGHT($K84,2),AY84,0)) -> 0.175 | BV84: =+IF($K84="Ongoing",AZ84,IF(RIGHT($K84,2)=RIGHT(BV$39,2),SUM($AV84:AZ84),0)+IF(RIGHT(BV$39,2)>RIGHT($K84,2),AZ84,0)) -> 0.175 | BW84: =+IF($K84="Ongoing",BA84,IF(RIGHT($K84,2)=RIGHT(BW$39,2),SUM($AV84:BA84),0)+IF(RIGHT(BW$39,2)>RIGHT($K84,2),BA84,0)) -> 0.15 | BX84: =+IF($K84="Ongoing",BB84,IF(RIGHT($K84,2)=RIGHT(BX$39,2),SUM($AV84:BB84),0)+IF(RIGHT(BX$39,2)>RIGHT($K84,2),BB84,0)) -> 0.15 | BY84: =+IF($K84="Ongoing",BC84,IF(RIGHT($K84,2)=RIGHT(BY$39,2),SUM($AV84:BC84),0)+IF(RIGHT(BY$39,2)>RIGHT($K84,2),BC84,0)) -> 0.15 | BZ84: =+IF($K84="Ongoing",BD84,IF(RIGHT($K84,2)=RIGHT(BZ$39,2),SUM($AV84:BD84),0)+IF(RIGHT(BZ$39,2)>RIGHT($K84,2),BD84,0)) -> 0.15 | CA84: =+IF($K84="Ongoing",BE84,IF(RIGHT($K84,2)=RIGHT(CA$39,2),SUM($AV84:BE84),0)+IF(RIGHT(CA$39,2)>RIGHT($K84,2),BE84,0)) -> 0.15 | CC84: =+O84*KeyAssumptionsPriceControl_FO!X$15 -> 0.2046 | CD84: =+P84*KeyAssumptionsPriceControl_FO!Y$15 -> 0.2093058 | CE84: =+Q84*KeyAssumptionsPriceControl_FO!Z$15 -> 0.2141198334 | CF84: =+R84*KeyAssumptionsPriceControl_FO!AA$15 -> 0.1916640159 | CG84: =+S84*KeyAssumptionsPriceControl_FO!AB$15 -> 0.1960722882 | CH84: =+T84*KeyAssumptionsPriceControl_FO!AC$15 -> 0.1719273865 | CI84: =+U84*KeyAssumptionsPriceControl_FO!AD$15 -> 0.1758817163 | CJ84: =+V84*KeyAssumptionsPriceControl_FO!AE$15 -> 0.1799269958 | CK84: =+W84*KeyAssumptionsPriceControl_FO!AF$15 -> 0.1840653167 | CL84: =+X84*KeyAssumptionsPriceControl_FO!AG$15 -> 0.188298819 | CN84: 0.0046035 | CO84: 0.0139163805 | CP84: 0.02344345725 | CQ84: 0.03257359386 | CR84: 0.0412976607 | CS84: 0.04957765338 | CT84: 0.0574033582 | CU84: 0.06540905422 | CV84: =IF($M84=0,0, IF($M84<=0.5,CK84, IF(AND($J84="straight line",$M84<1.51),(CJ84-((CJ84/$M84)*0.5))+CK84/$M84*0.5, IF($J84="straight line", IF((LEFT(CV$39,4)*1)-INT($M84)<LEFT($CN$39,4)*1,0,((OFFSET(CK84,0,-INT($M84+0.5),1,1))/$M84)*(IF($M84-INT($M84)>0.5,$M84-0.5-INT($M84),IF($M84-INT($M84)<=0.5,$M84-0.5-INT($M84)+1,0)))) +CK84/$M84*0.5 +SUM(OFFSET(CK84,0,MAX(-INT($M84+(0.5-(10^-12))),-CV$40)+1,1,MIN(INT($M84+(0.5-(10^-12))),CV$40)-1))*1/$M84, IF($J84="Declining Balance",-$CN$38,0))))) -> 0.07359888125 | CW84: 0.08197707431
C85: PD Repl Mag Meters | D85: 0 | E85: Surface water diversions | F85: Renewals | G85: Pipelines/network | H85: Significant Projects | I85: 0 | J85: Straight line | K85: Ongoing | L85: 45 | M85: 22.22222222 | O85: 0.1 | P85: 0.1 | Q85: 0.1 | R85: 0.1 | S85: 0.1 | T85: 0.1 | U85: 0.1 | V85: 0.1 | W85: 0.1 | X85: 0.1 | AV85: 0.1 | AW85: 0.1 | AX85: 0.1 | AY85: 0.1 | AZ85: 0.1 | BA85: 0.1 | BB85: 0.1 | BC85: 0.1 | BD85: 0.1 | BE85: 0.1 | BG85: 0.001111111111 | BH85: =IF($L85=0,0, IF($L85<=0.5,BS85, IF(AND($J85="straight line",$L85<1.51),(BR85-((BR85/$L85)*0.5))+BS85/$L85*0.5, IF($J85="straight line", IF((LEFT(BH$39,4)*1)-INT($L85)<LEFT($BG$39,4)*1,0,((OFFSET(BS85,0,-INT($L85+0.5),1,1))/$L85)*(IF($L85-INT($L85)>0.5,$L85-0.5-INT($L85),IF($L85-INT($L85)<=0.5,$L85-0.5-INT($L85)+1,0)))) +BS85/$L85*0.5 +SUM(OFFSET(BS85,0,MAX(-INT($L85+(0.5-(10^-12))),-BH$40)+1,1,MIN(INT($L85+(0.5-(10^-12))),BH$40)-1))*1/$L85, IF($J85="Declining Balance",-$BG$38,0))))) -> 0.003333333333 | BI85: 0.005555555556 | BJ85: 0.007777777778 | BK85: 0.01 | BL85: 0.01222222222 | BM85: 0.01444444444 | BN85: 0.01666666667 | BO85: 0.01888888889 | BP85: 0.02111111111 | BR85: =+IF($K85="Ongoing",AV85,IF(RIGHT($K85,2)=RIGHT(BR$39,2),SUM($AV85:AV85),0)+IF(RIGHT(BR$39,2)>RIGHT($K85,2),AV85,0)) -> 0.1 | BS85: =+IF($K85="Ongoing",AW85,IF(RIGHT($K85,2)=RIGHT(BS$39,2),SUM($AV85:AW85),0)+IF(RIGHT(BS$39,2)>RIGHT($K85,2),AW85,0)) -> 0.1 | BT85: =+IF($K85="Ongoing",AX85,IF(RIGHT($K85,2)=RIGHT(BT$39,2),SUM($AV85:AX85),0)+IF(RIGHT(BT$39,2)>RIGHT($K85,2),AX85,0)) -> 0.1 | BU85: =+IF($K85="Ongoing",AY85,IF(RIGHT($K85,2)=RIGHT(BU$39,2),SUM($AV85:AY85),0)+IF(RIGHT(BU$39,2)>RIGHT($K85,2),AY85,0)) -> 0.1 | BV85: =+IF($K85="Ongoing",AZ85,IF(RIGHT($K85,2)=RIGHT(BV$39,2),SUM($AV85:AZ85),0)+IF(RIGHT(BV$39,2)>RIGHT($K85,2),AZ85,0)) -> 0.1 | BW85: =+IF($K85="Ongoing",BA85,IF(RIGHT($K85,2)=RIGHT(BW$39,2),SUM($AV85:BA85),0)+IF(RIGHT(BW$39,2)>RIGHT($K85,2),BA85,0)) -> 0.1 | BX85: =+IF($K85="Ongoing",BB85,IF(RIGHT($K85,2)=RIGHT(BX$39,2),SUM($AV85:BB85),0)+IF(RIGHT(BX$39,2)>RIGHT($K85,2),BB85,0)) -> 0.1 | BY85: =+IF($K85="Ongoing",BC85,IF(RIGHT($K85,2)=RIGHT(BY$39,2),SUM($AV85:BC85),0)+IF(RIGHT(BY$39,2)>RIGHT($K85,2),BC85,0)) -> 0.1 | BZ85: =+IF($K85="Ongoing",BD85,IF(RIGHT($K85,2)=RIGHT(BZ$39,2),SUM($AV85:BD85),0)+IF(RIGHT(BZ$39,2)>RIGHT($K85,2),BD85,0)) -> 0.1 | CA85: =+IF($K85="Ongoing",BE85,IF(RIGHT($K85,2)=RIGHT(CA$39,2),SUM($AV85:BE85),0)+IF(RIGHT(CA$39,2)>RIGHT($K85,2),BE85,0)) -> 0.1 | CC85: =+O85*KeyAssumptionsPriceControl_FO!X$15 -> 0.1023 | CD85: =+P85*KeyAssumptionsPriceControl_FO!Y$15 -> 0.1046529 | CE85: =+Q85*KeyAssumptionsPriceControl_FO!Z$15 -> 0.1070599167 | CF85: =+R85*KeyAssumptionsPriceControl_FO!AA$15 -> 0.1095222948 | CG85: =+S85*KeyAssumptionsPriceControl_FO!AB$15 -> 0.1120413076 | CH85: =+T85*KeyAssumptionsPriceControl_FO!AC$15 -> 0.1146182576 | CI85: =+U85*KeyAssumptionsPriceControl_FO!AD$15 -> 0.1172544776 | CJ85: =+V85*KeyAssumptionsPriceControl_FO!AE$15 -> 0.1199513305 | CK85: =+W85*KeyAssumptionsPriceControl_FO!AF$15 -> 0.1227102112 | CL85: =+X85*KeyAssumptionsPriceControl_FO!AG$15 -> 0.125532546 | CN85: 0.00230175 | CO85: =IF($M85=0,0, IF($M85<=0.5,CD85, IF(AND($J85="straight line",$M85<1.51),(CC85-((CC85/$M85)*0.5))+CD85/$M85*0.5, IF($J85="straight line", IF((LEFT(CO$39,4)*1)-INT($M85)<LEFT($CN$39,4)*1,0,((OFFSET(CD85,0,-INT($M85+0.5),1,1))/$M85)*(IF($M85-INT($M85)>0.5,$M85-0.5-INT($M85),IF($M85-INT($M85)<=0.5,$M85-0.5-INT($M85)+1,0)))) +CD85/$M85*0.5 +SUM(OFFSET(CD85,0,MAX(-INT($M85+(0.5-(10^-12))),-CO$40)+1,1,MIN(INT($M85+(0.5-(10^-12))),CO$40)-1))*1/$M85, IF($J85="Declining Balance",-$CN$38,0))))) -> 0.00695819025 | CP85: 0.01172172863 | CQ85: 0.01659482838 | CR85: 0.02158000944 | CS85: 0.02667984965 | CT85: 0.0318969862 | CU85: 0.03723411688 | CV85: 0.04269400157 | CW85: 0.0482794636
C86: PD Telemetry System | D86: 0 | E86: Surface water diversions | F86: Growth | G86: Pipelines/network | H86: Significant Projects | I86: 0 | J86: Straight line | K86: Ongoing | L86: 45 | M86: 22.22222222 | O86: 0.07 | P86: 0.07 | Q86: 0.02 | R86: 0.02 | S86: 0.02 | T86: 0.02 | U86: 0.02 | V86: 0.02 | W86: 0.02 | X86: 0.02 | AV86: 0.07 | AW86: 0.07 | AX86: 0.02 | AY86: 0.02 | AZ86: 0.02 | BA86: 0.02 | BB86: 0.02 | BC86: 0.02 | BD86: 0.02 | BE86: 0.02 | BG86: 0.0007777777778 | BH86: 0.002333333333 | BI86: 0.003333333333 | BJ86: 0.003777777778 | BK86: 0.004222222222 | BL86: 0.004666666667 | BM86: 0.005111111111 | BN86: 0.005555555556 | BO86: 0.006 | BP86: 0.006444444444 | BR86: =+IF($K86="Ongoing",AV86,IF(RIGHT($K86,2)=RIGHT(BR$39,2),SUM($AV86:AV86),0)+IF(RIGHT(BR$39,2)>RIGHT($K86,2),AV86,0)) -> 0.07 | BS86: =+IF($K86="Ongoing",AW86,IF(RIGHT($K86,2)=RIGHT(BS$39,2),SUM($AV86:AW86),0)+IF(RIGHT(BS$39,2)>RIGHT($K86,2),AW86,0)) -> 0.07 | BT86: =+IF($K86="Ongoing",AX86,IF(RIGHT($K86,2)=RIGHT(BT$39,2),SUM($AV86:AX86),0)+IF(RIGHT(BT$39,2)>RIGHT($K86,2),AX86,0)) -> 0.02 | BU86: =+IF($K86="Ongoing",AY86,IF(RIGHT($K86,2)=RIGHT(BU$39,2),SUM($AV86:AY86),0)+IF(RIGHT(BU$39,2)>RIGHT($K86,2),AY86,0)) -> 0.02 | BV86: =+IF($K86="Ongoing",AZ86,IF(RIGHT($K86,2)=RIGHT(BV$39,2),SUM($AV86:AZ86),0)+IF(RIGHT(BV$39,2)>RIGHT($K86,2),AZ86,0)) -> 0.02 | BW86: =+IF($K86="Ongoing",BA86,IF(RIGHT($K86,2)=RIGHT(BW$39,2),SUM($AV86:BA86),0)+IF(RIGHT(BW$39,2)>RIGHT($K86,2),BA86,0)) -> 0.02 | BX86: =+IF($K86="Ongoing",BB86,IF(RIGHT($K86,2)=RIGHT(BX$39,2),SUM($AV86:BB86),0)+IF(RIGHT(BX$39,2)>RIGHT($K86,2),BB86,0)) -> 0.02 | BY86: =+IF($K86="Ongoing",BC86,IF(RIGHT($K86,2)=RIGHT(BY$39,2),SUM($AV86:BC86),0)+IF(RIGHT(BY$39,2)>RIGHT($K86,2),BC86,0)) -> 0.02 | BZ86: =+IF($K86="Ongoing",BD86,IF(RIGHT($K86,2)=RIGHT(BZ$39,2),SUM($AV86:BD86),0)+IF(RIGHT(BZ$39,2)>RIGHT($K86,2),BD86,0)) -> 0.02 | CA86: =+IF($K86="Ongoing",BE86,IF(RIGHT($K86,2)=RIGHT(CA$39,2),SUM($AV86:BE86),0)+IF(RIGHT(CA$39,2)>RIGHT($K86,2),BE86,0)) -> 0.02 | CC86: =+O86*KeyAssumptionsPriceControl_FO!X$15 -> 0.07161 | CD86: =+P86*KeyAssumptionsPriceControl_FO!Y$15 -> 0.07325703 | CE86: =+Q86*KeyAssumptionsPriceControl_FO!Z$15 -> 0.02141198334 | CF86: =+R86*KeyAssumptionsPriceControl_FO!AA$15 -> 0.02190445896 | CG86: =+S86*KeyAssumptionsPriceControl_FO!AB$15 -> 0.02240826151 | CH86: =+T86*KeyAssumptionsPriceControl_FO!AC$15 -> 0.02292365153 | CI86: =+U86*KeyAssumptionsPriceControl_FO!AD$15 -> 0.02345089551 | CJ86: =+V86*KeyAssumptionsPriceControl_FO!AE$15 -> 0.02399026611 | CK86: =+W86*KeyAssumptionsPriceControl_FO!AF$15 -> 0.02454204223 | CL86: =+X86*KeyAssumptionsPriceControl_FO!AG$15 -> 0.0251065092 | CN86: 0.001611225 | CO86: 0.004870733175 | CP86: 0.007000785975 | CQ86: 0.007975405927 | CR86: 0.008972442137 | CS86: 0.009992410181 | CT86: 0.01103583749 | CU86: 0.01210326363 | CV86: 0.01319524056 | CW86: 0.01431233297
C87: MER D&S Metering Program | D87: 0 | E87: Irrigation | F87: Renewals | G87: Pipelines/network | H87: Significant Projects | I87: 0 | J87: Straight line | K87: Ongoing | L87: 45 | M87: 6.666666667 | O87: 0.265 | P87: 0.265 | Q87: 0.215 | R87: 0.175 | S87: 0.175 | T87: 0.175 | U87: 0.175 | V87: 0.175 | W87: 0.175 | X87: 0.175 | AV87: 0.265 | AW87: 0.265 | AX87: 0.215 | AY87: 0.175 | AZ87: 0.175 | BA87: 0.175 | BB87: 0.175 | BC87: 0.175 | BD87: 0.175 | BE87: 0.175 | BG87: 0.002944444444 | BH87: 0.008833333333 | BI87: 0.01416666667 | BJ87: 0.0185 | BK87: 0.02238888889 | BL87: 0.02627777778 | BM87: 0.03016666667 | BN87: 0.03405555556 | BO87: 0.03794444444 | BP87: 0.04183333333 | BR87: =+IF($K87="Ongoing",AV87,IF(RIGHT($K87,2)=RIGHT(BR$39,2),SUM($AV87:AV87),0)+IF(RIGHT(BR$39,2)>RIGHT($K87,2),AV87,0)) -> 0.265 | BS87: =+IF($K87="Ongoing",AW87,IF(RIGHT($K87,2)=RIGHT(BS$39,2),SUM($AV87:AW87),0)+IF(RIGHT(BS$39,2)>RIGHT($K87,2),AW87,0)) -> 0.265 | BT87: =+IF($K87="Ongoing",AX87,IF(RIGHT($K87,2)=RIGHT(BT$39,2),SUM($AV87:AX87),0)+IF(RIGHT(BT$39,2)>RIGHT($K87,2),AX87,0)) -> 0.215 | BU87: =+IF($K87="Ongoing",AY87,IF(RIGHT($K87,2)=RIGHT(BU$39,2),SUM($AV87:AY87),0)+IF(RIGHT(BU$39,2)>RIGHT($K87,2),AY87,0)) -> 0.175 | BV87: =+IF($K87="Ongoing",AZ87,IF(RIGHT($K87,2)=RIGHT(BV$39,2),SUM($AV87:AZ87),0)+IF(RIGHT(BV$39,2)>RIGHT($K87,2),AZ87,0)) -> 0.175 | BW87: =+IF($K87="Ongoing",BA87,IF(RIGHT($K87,2)=RIGHT(BW$39,2),SUM($AV87:BA87),0)+IF(RIGHT(BW$39,2)>RIGHT($K87,2),BA87,0)) -> 0.175 | BX87: =+IF($K87="Ongoing",BB87,IF(RIGHT($K87,2)=RIGHT(BX$39,2),SUM($AV87:BB87),0)+IF(RIGHT(BX$39,2)>RIGHT($K87,2),BB87,0)) -> 0.175 | BY87: =+IF($K87="Ongoing",BC87,IF(RIGHT($K87,2)=RIGHT(BY$39,2),SUM($AV87:BC87),0)+IF(RIGHT(BY$39,2)>RIGHT($K87,2),BC87,0)) -> 0.175 | BZ87: =+IF($K87="Ongoing",BD87,IF(RIGHT($K87,2)=RIGHT(BZ$39,2),SUM($AV87:BD87),0)+IF(RIGHT(BZ$39,2)>RIGHT($K87,2),BD87,0)) -> 0.175 | CA87: =+IF($K87="Ongoing",BE87,IF(RIGHT($K87,2)=RIGHT(CA$39,2),SUM($AV87:BE87),0)+IF(RIGHT(CA$39,2)>RIGHT($K87,2),BE87,0)) -> 0.175 | CC87: =+O87*KeyAssumptionsPriceControl_FO!X$15 -> 0.271095 | CD87: =+P87*KeyAssumptionsPriceControl_FO!Y$15 -> 0.277330185 | CE87: =+Q87*KeyAssumptionsPriceControl_FO!Z$15 -> 0.2301788209 | CF87: =+R87*KeyAssumptionsPriceControl_FO!AA$15 -> 0.1916640159 | CG87: =+S87*KeyAssumptionsPriceControl_FO!AB$15 -> 0.1960722882 | CH87: =+T87*KeyAssumptionsPriceControl_FO!AC$15 -> 0.2005819509 | CI87: =+U87*KeyAssumptionsPriceControl_FO!AD$15 -> 0.2051953357 | CJ87: =+V87*KeyAssumptionsPriceControl_FO!AE$15 -> 0.2099148285 | CK87: =+W87*KeyAssumptionsPriceControl_FO!AF$15 -> 0.2147428695 | CL87: =+X87*KeyAssumptionsPriceControl_FO!AG$15 -> 0.2196819555 | CN87: 0.020332125 | CO87: 0.06146401387 | CP87: 0.09952718932 | CQ87: 0.1311654021 | CR87: 0.1602456249 | CS87: 0.1899946928 | CT87: 0.2204279893 | CU87: 0.2176743766 | CV87: 0.2080800558 | CW87: 0.2049563105
C88: MER Install Isolation Valves | D88: 0 | E88: Irrigation | F88: Renewals | G88: Pipelines/network | H88: Significant Projects | I88: 0 | J88: Straight line | K88: 2020-21 | L88: 45 | M88: 6.666666667 | O88: 0.17 | P88: 0.17 | Q88: 0.17 | R88: 0 | S88: 0 | T88: 0 | U88: 0 | V88: 0 | W88: 0 | X88: 0 | AV88: 0.17 | AW88: 0.17 | AX88: 0.17 | AY88: 0 | AZ88: 0 | BA88: 0 | BB88: 0 | BC88: 0 | BD88: 0 | BE88: 0 | BG88: 0 | BH88: 0 | BI88: 0.005666666667 | BJ88: 0.01133333333 | BK88: 0.01133333333 | BL88: 0.01133333333 | BM88: 0.01133333333 | BN88: 0.01133333333 | BO88: 0.01133333333 | BP88: 0.01133333333 | BR88: =+IF($K88="Ongoing",AV88,IF(RIGHT($K88,2)=RIGHT(BR$39,2),SUM($AV88:AV88),0)+IF(RIGHT(BR$39,2)>RIGHT($K88,2),AV88,0)) -> 0 | BS88: =+IF($K88="Ongoing",AW88,IF(RIGHT($K88,2)=RIGHT(BS$39,2),SUM($AV88:AW88),0)+IF(RIGHT(BS$39,2)>RIGHT($K88,2),AW88,0)) -> 0 | BT88: =+IF($K88="Ongoing",AX88,IF(RIGHT($K88,2)=RIGHT(BT$39,2),SUM($AV88:AX88),0)+IF(RIGHT(BT$39,2)>RIGHT($K88,2),AX88,0)) -> 0.51 | BU88: =+IF($K88="Ongoing",AY88,IF(RIGHT($K88,2)=RIGHT(BU$39,2),SUM($AV88:AY88),0)+IF(RIGHT(BU$39,2)>RIGHT($K88,2),AY88,0)) -> 0 | BV88: =+IF($K88="Ongoing",AZ88,IF(RIGHT($K88,2)=RIGHT(BV$39,2),SUM($AV88:AZ88),0)+IF(RIGHT(BV$39,2)>RIGHT($K88,2),AZ88,0)) -> 0 | BW88: =+IF($K88="Ongoing",BA88,IF(RIGHT($K88,2)=RIGHT(BW$39,2),SUM($AV88:BA88),0)+IF(RIGHT(BW$39,2)>RIGHT($K88,2),BA88,0)) -> 0 | BX88: =+IF($K88="Ongoing",BB88,IF(RIGHT($K88,2)=RIGHT(BX$39,2),SUM($AV88:BB88),0)+IF(RIGHT(BX$39,2)>RIGHT($K88,2),BB88,0)) -> 0 | BY88: =+IF($K88="Ongoing",BC88,IF(RIGHT($K88,2)=RIGHT(BY$39,2),SUM($AV88:BC88),0)+IF(RIGHT(BY$39,2)>RIGHT($K88,2),BC88,0)) -> 0 | BZ88: =+IF($K88="Ongoing",BD88,IF(RIGHT($K88,2)=RIGHT(BZ$39,2),SUM($AV88:BD88),0)+IF(RIGHT(BZ$39,2)>RIGHT($K88,2),BD88,0)) -> 0 | CA88: =+IF($K88="Ongoing",BE88,IF(RIGHT($K88,2)=RIGHT(CA$39,2),SUM($AV88:BE88),0)+IF(RIGHT(CA$39,2)>RIGHT($K88,2),BE88,0)) -> 0 | CC88: =+O88*KeyAssumptionsPriceControl_FO!X$15 -> 0.17391 | CD88: =+P88*KeyAssumptionsPriceControl_FO!Y$15 -> 0.17790993 | CE88: =+Q88*KeyAssumptionsPriceControl_FO!Z$15 -> 0.1820018584 | CF88: =+R88*KeyAssumptionsPriceControl_FO!AA$15 -> 0 | CG88: =+S88*KeyAssumptionsPriceControl_FO!AB$15 -> 0 | CH88: =+T88*KeyAssumptionsPriceControl_FO!AC$15 -> 0 | CI88: =+U88*KeyAssumptionsPriceControl_FO!AD$15 -> 0 | CJ88: =+V88*KeyAssumptionsPriceControl_FO!AE$15 -> 0 | CK88: =+W88*KeyAssumptionsPriceControl_FO!AF$15 -> 0 | CL88: =+X88*KeyAssumptionsPriceControl_FO!AG$15 -> 0 | CN88: 0.01304325 | CO88: 0.03942974475 | CP88: 0.06642312888 | CQ88: 0.08007326826 | CR88: 0.08007326826 | CS88: 0.08007326826 | CT88: 0.08007326826 | CU88: 0.05833451826 | CV88: 0.03174802701 | CW88: 0.00455004646
C89: RC Air Release Valves | D89: 0 | E89: Irrigation | F89: Renewals | G89: Pipelines/network | H89: Significant Projects | I89: 0 | J89: Straight line | K89: 2019-20 | L89: 45 | M89: 6.666666667 | O89: 0.015 | P89: 0.05 | Q89: 0 | R89: 0 | S89: 0 | T89: 0 | U89: 0 | V89: 0 | W89: 0 | X89: 0 | AV89: 0.015 | AW89: 0.05 | AX89: 0 | AY89: 0 | AZ89: 0 | BA89: 0 | BB89: 0 | BC89: 0 | BD89: 0 | BE89: 0 | BG89: 0 | BH89: 0.0007222222222 | BI89: 0.001444444444 | BJ89: 0.001444444444 | BK89: 0.001444444444 | BL89: 0.001444444444 | BM89: 0.001444444444 | BN89: 0.001444444444 | BO89: 0.001444444444 | BP89: 0.001444444444 | BR89: =+IF($K89="Ongoing",AV89,IF(RIGHT($K89,2)=RIGHT(BR$39,2),SUM($AV89:AV89),0)+IF(RIGHT(BR$39,2)>RIGHT($K89,2),AV89,0)) -> 0 | BS89: =+IF($K89="Ongoing",AW89,IF(RIGHT($K89,2)=RIGHT(BS$39,2),SUM($AV89:AW89),0)+IF(RIGHT(BS$39,2)>RIGHT($K89,2),AW89,0)) -> 0.065 | BT89: =+IF($K89="Ongoing",AX89,IF(RIGHT($K89,2)=RIGHT(BT$39,2),SUM($AV89:AX89),0)+IF(RIGHT(BT$39,2)>RIGHT($K89,2),AX89,0)) -> 0 | BU89: =+IF($K89="Ongoing",AY89,IF(RIGHT($K89,2)=RIGHT(BU$39,2),SUM($AV89:AY89),0)+IF(RIGHT(BU$39,2)>RIGHT($K89,2),AY89,0)) -> 0 | BV89: =+IF($K89="Ongoing",AZ89,IF(RIGHT($K89,2)=RIGHT(BV$39,2),SUM($AV89:AZ89),0)+IF(RIGHT(BV$39,2)>RIGHT($K89,2),AZ89,0)) -> 0 | BW89: =+IF($K89="Ongoing",BA89,IF(RIGHT($K89,2)=RIGHT(BW$39,2),SUM($AV89:BA89),0)+IF(RIGHT(BW$39,2)>RIGHT($K89,2),BA89,0)) -> 0 | BX89: =+IF($K89="Ongoing",BB89,IF(RIGHT($K89,2)=RIGHT(BX$39,2),SUM($AV89:BB89),0)+IF(RIGHT(BX$39,2)>RIGHT($K89,2),BB89,0)) -> 0 | BY89: =+IF($K89="Ongoing",BC89,IF(RIGHT($K89,2)=RIGHT(BY$39,2),SUM($AV89:BC89),0)+IF(RIGHT(BY$39,2)>RIGHT($K89,2),BC89,0)) -> 0 | BZ89: =+IF($K89="Ongoing",BD89,IF(RIGHT($K89,2)=RIGHT(BZ$39,2),SUM($AV89:BD89),0)+IF(RIGHT(BZ$39,2)>RIGHT($K89,2),BD89,0)) -> 0 | CA89: =+IF($K89="Ongoing",BE89,IF(RIGHT($K89,2)=RIGHT(CA$39,2),SUM($AV89:BE89),0)+IF(RIGHT(CA$39,2)>RIGHT($K89,2),BE89,0)) -> 0 | CC89: =+O89*KeyAssumptionsPriceControl_FO!X$15 -> 0.015345 | CD89: =+P89*KeyAssumptionsPriceControl_FO!Y$15 -> 0.05232645 | CE89: =+Q89*KeyAssumptionsPriceControl_FO!Z$15 -> 0 | CF89: =+R89*KeyAssumptionsPriceControl_FO!AA$15 -> 0 | CG89: =+S89*KeyAssumptionsPriceControl_FO!AB$15 -> 0 | CH89: =+T89*KeyAssumptionsPriceControl_FO!AC$15 -> 0 | CI89: =+U89*KeyAssumptionsPriceControl_FO!AD$15 -> 0 | CJ89: =+V89*KeyAssumptionsPriceControl_FO!AE$15 -> 0 | CK89: =+W89*KeyAssumptionsPriceControl_FO!AF$15 -> 0 | CL89: =+X89*KeyAssumptionsPriceControl_FO!AG$15 -> 0 | CN89: 0.001150875 | CO89: 0.00622623375 | CP89: 0.0101507175 | CQ89: 0.0101507175 | CR89: 0.0101507175 | CS89: 0.0101507175 | CT89: 0.0101507175 | CU89: 0.0082325925 | CV89: 0.00130816125 | CW89: 0
C90: MDA Install Isolation Valves | D90: 0 | E90: Irrigation | F90: Renewals | G90: Pipelines/network | H90: Significant Projects | I90: 0 | J90: Straight line | K90: Ongoing | L90: 45 | M90: 22.22222222 | O90: 0.2 | P90: 0.2 | Q90: 0.155 | R90: 0.155 | S90: 0.155 | T90: 0.155 | U90: 0.155 | V90: 0.155 | W90: 0.155 | X90: 0.155 | AV90: 0.2 | AW90: 0.2 | AX90: 0.155 | AY90: 0.155 | AZ90: 0.155 | BA90: 0.155 | BB90: 0.155 | BC90: 0.155 | BD90: 0.155 | BE90: 0.155 | BG90: 0.002222222222 | BH90: 0.006666666667 | BI90: 0.01061111111 | BJ90: 0.01405555556 | BK90: 0.0175 | BL90: 0.02094444444 | BM90: 0.02438888889 | BN90: 0.02783333333 | BO90: 0.03127777778 | BP90: 0.03472222222 | BR90: =+IF($K90="Ongoing",AV90,IF(RIGHT($K90,2)=RIGHT(BR$39,2),SUM($AV90:AV90),0)+IF(RIGHT(BR$39,2)>RIGHT($K90,2),AV90,0)) -> 0.2 | BS90: =+IF($K90="Ongoing",AW90,IF(RIGHT($K90,2)=RIGHT(BS$39,2),SUM($AV90:AW90),0)+IF(RIGHT(BS$39,2)>RIGHT($K90,2),AW90,0)) -> 0.2 | BT90: =+IF($K90="Ongoing",AX90,IF(RIGHT($K90,2)=RIGHT(BT$39,2),SUM($AV90:AX90),0)+IF(RIGHT(BT$39,2)>RIGHT($K90,2),AX90,0)) -> 0.155 | BU90: =+IF($K90="Ongoing",AY90,IF(RIGHT($K90,2)=RIGHT(BU$39,2),SUM($AV90:AY90),0)+IF(RIGHT(BU$39,2)>RIGHT($K90,2),AY90,0)) -> 0.155 | BV90: =+IF($K90="Ongoing",AZ90,IF(RIGHT($K90,2)=RIGHT(BV$39,2),SUM($AV90:AZ90),0)+IF(RIGHT(BV$39,2)>RIGHT($K90,2),AZ90,0)) -> 0.155 | BW90: =+IF($K90="Ongoing",BA90,IF(RIGHT($K90,2)=RIGHT(BW$39,2),SUM($AV90:BA90),0)+IF(RIGHT(BW$39,2)>RIGHT($K90,2),BA90,0)) -> 0.155 | BX90: =+IF($K90="Ongoing",BB90,IF(RIGHT($K90,2)=RIGHT(BX$39,2),SUM($AV90:BB90),0)+IF(RIGHT(BX$39,2)>RIGHT($K90,2),BB90,0)) -> 0.155 | BY90: =+IF($K90="Ongoing",BC90,IF(RIGHT($K90,2)=RIGHT(BY$39,2),SUM($AV90:BC90),0)+IF(RIGHT(BY$39,2)>RIGHT($K90,2),BC90,0)) -> 0.155 | BZ90: =+IF($K90="Ongoing",BD90,IF(RIGHT($K90,2)=RIGHT(BZ$39,2),SUM($AV90:BD90),0)+IF(RIGHT(BZ$39,2)>RIGHT($K90,2),BD90,0)) -> 0.155 | CA90: =+IF($K90="Ongoing",BE90,IF(RIGHT($K90,2)=RIGHT(CA$39,2),SUM($AV90:BE90),0)+IF(RIGHT(CA$39,2)>RIGHT($K90,2),BE90,0)) -> 0.155 | CC90: =+O90*KeyAssumptionsPriceControl_FO!X$15 -> 0.2046 | CD90: =+P90*KeyAssumptionsPriceControl_FO!Y$15 -> 0.2093058 | CE90: =+Q90*KeyAssumptionsPriceControl_FO!Z$15 -> 0.1659428709 | CF90: =+R90*KeyAssumptionsPriceControl_FO!AA$15 -> 0.1697595569 | CG90: =+S90*KeyAssumptionsPriceControl_FO!AB$15 -> 0.1736640267 | CH90: =+T90*KeyAssumptionsPriceControl_FO!AC$15 -> 0.1776582993 | CI90: =+U90*KeyAssumptionsPriceControl_FO!AD$15 -> 0.1817444402 | CJ90: =+V90*KeyAssumptionsPriceControl_FO!AE$15 -> 0.1859245623 | CK90: =+W90*KeyAssumptionsPriceControl_FO!AF$15 -> 0.1902008273 | CL90: =+X90*KeyAssumptionsPriceControl_FO!AG$15 -> 0.1945754463 | CN90: 0.0046035 | CO90: 0.0139163805 | CP90: 0.02235947559 | CQ90: 0.02991278022 | CR90: 0.03763981085 | CS90: 0.04554456319 | CT90: 0.05363112483 | CU90: 0.06190367739 | CV90: 0.07036649865 | CW90: 0.07902396481
C91: RC Channel No 3 Fillbank | D91: 0 | E91: Irrigation | F91: Improvements / Compliance | G91: Channels | H91: Significant Projects | I91: 0 | J91: Straight line | K91: 2011-12 | L91: 80 | M91: 6.666666667 | O91: 0 | P91: 0 | Q91: 0 | R91: 0 | S91: 0 | T91: 0 | U91: 0 | V91: 0 | W91: 0 | X91: 0 | AV91: 0 | AW91: 0 | AX91: 0 | AY91: 0 | AZ91: 0 | BA91: 0 | BB91: 0 | BC91: 0 | BD91: 0 | BE91: 0 | BG91: 0 | BH91: 0 | BI91: 0 | BJ91: 0 | BK91: 0 | BL91: 0 | BM91: 0 | BN91: 0 | BO91: 0 | BP91: 0 | BR91: =+IF($K91="Ongoing",AV91,IF(RIGHT($K91,2)=RIGHT(BR$39,2),SUM($AV91:AV91),0)+IF(RIGHT(BR$39,2)>RIGHT($K91,2),AV91,0)) -> 0 | BS91: =+IF($K91="Ongoing",AW91,IF(RIGHT($K91,2)=RIGHT(BS$39,2),SUM($AV91:AW91),0)+IF(RIGHT(BS$39,2)>RIGHT($K91,2),AW91,0)) -> 0 | BT91: =+IF($K91="Ongoing",AX91,IF(RIGHT($K91,2)=RIGHT(BT$39,2),SUM($AV91:AX91),0)+IF(RIGHT(BT$39,2)>RIGHT($K91,2),AX91,0)) -> 0 | BU91: =+IF($K91="Ongoing",AY91,IF(RIGHT($K91,2)=RIGHT(BU$39,2),SUM($AV91:AY91),0)+IF(RIGHT(BU$39,2)>RIGHT($K91,2),AY91,0)) -> 0 | BV91: =+IF($K91="Ongoing",AZ91,IF(RIGHT($K91,2)=RIGHT(BV$39,2),SUM($AV91:AZ91),0)+IF(RIGHT(BV$39,2)>RIGHT($K91,2),AZ91,0)) -> 0 | BW91: =+IF($K91="Ongoing",BA91,IF(RIGHT($K91,2)=RIGHT(BW$39,2),SUM($AV91:BA91),0)+IF(RIGHT(BW$39,2)>RIGHT($K91,2),BA91,0)) -> 0 | BX91: =+IF($K91="Ongoing",BB91,IF(RIGHT($K91,2)=RIGHT(BX$39,2),SUM($AV91:BB91),0)+IF(RIGHT(BX$39,2)>RIGHT($K91,2),BB91,0)) -> 0 | BY91: =+IF($K91="Ongoing",BC91,IF(RIGHT($K91,2)=RIGHT(BY$39,2),SUM($AV91:BC91),0)+IF(RIGHT(BY$39,2)>RIGHT($K91,2),BC91,0)) -> 0 | BZ91: =+IF($K91="Ongoing",BD91,IF(RIGHT($K91,2)=RIGHT(BZ$39,2),SUM($AV91:BD91),0)+IF(RIGHT(BZ$39,2)>RIGHT($K91,2),BD91,0)) -> 0 | CA91: =+IF($K91="Ongoing",BE91,IF(RIGHT($K91,2)=RIGHT(CA$39,2),SUM($AV91:BE91),0)+IF(RIGHT(CA$39,2)>RIGHT($K91,2),BE91,0)) -> 0 | CC91: =+O91*KeyAssumptionsPriceControl_FO!X$15 -> 0 | CD91: =+P91*KeyAssumptionsPriceControl_FO!Y$15 -> 0 | CE91: =+Q91*KeyAssumptionsPriceControl_FO!Z$15 -> 0 | CF91: =+R91*KeyAssumptionsPriceControl_FO!AA$15 -> 0 | CG91: =+S91*KeyAssumptionsPriceControl_FO!AB$15 -> 0 | CH91: =+T91*KeyAssumptionsPriceControl_FO!AC$15 -> 0 | CI91: =+U91*KeyAssumptionsPriceControl_FO!AD$15 -> 0 | CJ91: =+V91*KeyAssumptionsPriceControl_FO!AE$15 -> 0 | CK91: =+W91*KeyAssumptionsPriceControl_FO!AF$15 -> 0 | CL91: =+X91*KeyAssumptionsPriceControl_FO!AG$15 -> 0 | CN91: 0 | CO91: 0 | CP91: 0 | CQ91: 0 | CR91: 0 | CS91: 0 | CT91: 0 | CU91: 0 | CV91: 0 | CW91: 0
C92: MILL Water Reticulation System (Cullulleraine) Stage2 MWQP | D92: 0 | E92: Domestic and stock | F92: Improvements / Compliance | G92: Pipelines/network | H92: Significant Projects | I92: 0 | J92: Straight line | K92: 2013-14 | L92: 80 | M92: 22.22222222 | O92: 0 | P92: 0 | Q92: 0 | R92: 0 | S92: 0 | T92: 0 | U92: 0 | V92: 0 | W92: 0 | X92: 0 | AV92: 0 | AW92: 0 | AX92: 0 | AY92: 0 | AZ92: 0 | BA92: 0 | BB92: 0 | BC92: 0 | BD92: 0 | BE92: 0 | BG92: 0 | BH92: 0 | BI92: 0 | BJ92: 0 | BK92: 0 | BL92: 0 | BM92: 0 | BN92: 0 | BO92: 0 | BP92: 0 | BR92: =+IF($K92="Ongoing",AV92,IF(RIGHT($K92,2)=RIGHT(BR$39,2),SUM($AV92:AV92),0)+IF(RIGHT(BR$39,2)>RIGHT($K92,2),AV92,0)) -> 0 | BS92: =+IF($K92="Ongoing",AW92,IF(RIGHT($K92,2)=RIGHT(BS$39,2),SUM($AV92:AW92),0)+IF(RIGHT(BS$39,2)>RIGHT($K92,2),AW92,0)) -> 0 | BT92: =+IF($K92="Ongoing",AX92,IF(RIGHT($K92,2)=RIGHT(BT$39,2),SUM($AV92:AX92),0)+IF(RIGHT(BT$39,2)>RIGHT($K92,2),AX92,0)) -> 0 | BU92: =+IF($K92="Ongoing",AY92,IF(RIGHT($K92,2)=RIGHT(BU$39,2),SUM($AV92:AY92),0)+IF(RIGHT(BU$39,2)>RIGHT($K92,2),AY92,0)) -> 0 | BV92: =+IF($K92="Ongoing",AZ92,IF(RIGHT($K92,2)=RIGHT(BV$39,2),SUM($AV92:AZ92),0)+IF(RIGHT(BV$39,2)>RIGHT($K92,2),AZ92,0)) -> 0 | BW92: =+IF($K92="Ongoing",BA92,IF(RIGHT($K92,2)=RIGHT(BW$39,2),SUM($AV92:BA92),0)+IF(RIGHT(BW$39,2)>RIGHT($K92,2),BA92,0)) -> 0 | BX92: =+IF($K92="Ongoing",BB92,IF(RIGHT($K92,2)=RIGHT(BX$39,2),SUM($AV92:BB92),0)+IF(RIGHT(BX$39,2)>RIGHT($K92,2),BB92,0)) -> 0 | BY92: =+IF($K92="Ongoing",BC92,IF(RIGHT($K92,2)=RIGHT(BY$39,2),SUM($AV92:BC92),0)+IF(RIGHT(BY$39,2)>RIGHT($K92,2),BC92,0)) -> 0 | BZ92: =+IF($K92="Ongoing",BD92,IF(RIGHT($K92,2)=RIGHT(BZ$39,2),SUM($AV92:BD92),0)+IF(RIGHT(BZ$39,2)>RIGHT($K92,2),BD92,0)) -> 0 | CA92: =+IF($K92="Ongoing",BE92,IF(RIGHT($K92,2)=RIGHT(CA$39,2),SUM($AV92:BE92),0)+IF(RIGHT(CA$39,2)>RIGHT($K92,2),BE92,0)) -> 0 | CC92: =+O92*KeyAssumptionsPriceControl_FO!X$15 -> 0 | CD92: =+P92*KeyAssumptionsPriceControl_FO!Y$15 -> 0 | CE92: =+Q92*KeyAssumptionsPriceControl_FO!Z$15 -> 0 | CF92: =+R92*KeyAssumptionsPriceControl_FO!AA$15 -> 0 | CG92: =+S92*KeyAssumptionsPriceControl_FO!AB$15 -> 0 | CH92: =+T92*KeyAssumptionsPriceControl_FO!AC$15 -> 0 | CI92: =+U92*KeyAssumptionsPriceControl_FO!AD$15 -> 0 | CJ92: =+V92*KeyAssumptionsPriceControl_FO!AE$15 -> 0 | CK92: =+W92*KeyAssumptionsPriceControl_FO!AF$15 -> 0 | CL92: =+X92*KeyAssumptionsPriceControl_FO!AG$15 -> 0 | CN92: 0 | CO92: 0 | CP92: 0 | CQ92: 0 | CR92: 0 | CS92: 0 | CT92: 0 | CU92: 0 | CV92: 0 | CW92: 0
C93: MDA SMP - 'T' Area (3908, 3903, 3902) | D93: 0 | E93: Irrigation | F93: Renewals | G93: Pipelines/network | H93: Significant Projects | I93: 0 | J93: Straight line | K93: Ongoing | L93: 80 | M93: 6.666666667 | O93: 0 | P93: 0 | Q93: 0 | R93: 0 | S93: 0 | T93: 0 | U93: 0 | V93: 0 | W93: 0 | X93: 0 | AV93: 0 | AW93: 0 | AX93: 0 | AY93: 0 | AZ93: 0 | BA93: 0 | BB93: 0 | BC93: 0 | BD93: 0 | BE93: 0 | BG93: 0 | BH93: 0 | BI93: 0 | BJ93: 0 | BK93: 0 | BL93: 0 | BM93: 0 | BN93: 0 | BO93: 0 | BP93: 0 | BR93: =+IF($K93="Ongoing",AV93,IF(RIGHT($K93,2)=RIGHT(BR$39,2),SUM($AV93:AV93),0)+IF(RIGHT(BR$39,2)>RIGHT($K93,2),AV93,0)) -> 0 | BS93: =+IF($K93="Ongoing",AW93,IF(RIGHT($K93,2)=RIGHT(BS$39,2),SUM($AV93:AW93),0)+IF(RIGHT(BS$39,2)>RIGHT($K93,2),AW93,0)) -> 0 | BT93: =+IF($K93="Ongoing",AX93,IF(RIGHT($K93,2)=RIGHT(BT$39,2),SUM($AV93:AX93),0)+IF(RIGHT(BT$39,2)>RIGHT($K93,2),AX93,0)) -> 0 | BU93: =+IF($K93="Ongoing",AY93,IF(RIGHT($K93,2)=RIGHT(BU$39,2),SUM($AV93:AY93),0)+IF(RIGHT(BU$39,2)>RIGHT($K93,2),AY93,0)) -> 0 | BV93: =+IF($K93="Ongoing",AZ93,IF(RIGHT($K93,2)=RIGHT(BV$39,2),SUM($AV93:AZ93),0)+IF(RIGHT(BV$39,2)>RIGHT($K93,2),AZ93,0)) -> 0 | BW93: =+IF($K93="Ongoing",BA93,IF(RIGHT($K93,2)=RIGHT(BW$39,2),SUM($AV93:BA93),0)+IF(RIGHT(BW$39,2)>RIGHT($K93,2),BA93,0)) -> 0 | BX93: =+IF($K93="Ongoing",BB93,IF(RIGHT($K93,2)=RIGHT(BX$39,2),SUM($AV93:BB93),0)+IF(RIGHT(BX$39,2)>RIGHT($K93,2),BB93,0)) -> 0 | BY93: =+IF($K93="Ongoing",BC93,IF(RIGHT($K93,2)=RIGHT(BY$39,2),SUM($AV93:BC93),0)+IF(RIGHT(BY$39,2)>RIGHT($K93,2),BC93,0)) -> 0 | BZ93: =+IF($K93="Ongoing",BD93,IF(RIGHT($K93,2)=RIGHT(BZ$39,2),SUM($AV93:BD93),0)+IF(RIGHT(BZ$39,2)>RIGHT($K93,2),BD93,0)) -> 0 | CA93: =+IF($K93="Ongoing",BE93,IF(RIGHT($K93,2)=RIGHT(CA$39,2),SUM($AV93:BE93),0)+IF(RIGHT(CA$39,2)>RIGHT($K93,2),BE93,0)) -> 0 | CC93: =+O93*KeyAssumptionsPriceControl_FO!X$15 -> 0 | CD93: =+P93*KeyAssumptionsPriceControl_FO!Y$15 -> 0 | CE93: =+Q93*KeyAssumptionsPriceControl_FO!Z$15 -> 0 | CF93: =+R93*KeyAssumptionsPriceControl_FO!AA$15 -> 0 | CG93: =+S93*KeyAssumptionsPriceControl_FO!AB$15 -> 0 | CH93: =+T93*KeyAssumptionsPriceControl_FO!AC$15 -> 0 | CI93: =+U93*KeyAssumptionsPriceControl_FO!AD$15 -> 0 | CJ93: =+V93*KeyAssumptionsPriceControl_FO!AE$15 -> 0 | CK93: =+W93*KeyAssumptionsPriceControl_FO!AF$15 -> 0 | CL93: =+X93*KeyAssumptionsPriceControl_FO!AG$15 -> 0 | CN93: 0 | CO93: 0 | CP93: 0 | CQ93: 0 | CR93: 0 | CS93: 0 | CT93: 0 | CU93: 0 | CV93: 0 | CW93: 0
C94: MDA Air Release Valves | D94: 0 | E94: Irrigation | F94: Renewals | G94: Pipelines/network | H94: Significant Projects | I94: 0 | J94: Straight line | K94: 2019-20 | L94: 45 | M94: 22.22222222 | O94: 0.115 | P94: 0.27 | Q94: 0 | R94: 0 | S94: 0 | T94: 0 | U94: 0 | V94: 0 | W94: 0 | X94: 0 | AV94: 0.115 | AW94: 0.27 | AX94: 0 | AY94: 0 | AZ94: 0 | BA94: 0 | BB94: 0 | BC94: 0 | BD94: 0 | BE94: 0 | BG94: 0 | BH94: 0.004277777778 | BI94: 0.008555555556 | BJ94: 0.008555555556 | BK94: 0.008555555556 | BL94: 0.008555555556 | BM94: 0.008555555556 | BN94: 0.008555555556 | BO94: 0.008555555556 | BP94: 0.008555555556 | BR94: =+IF($K94="Ongoing",AV94,IF(RIGHT($K94,2)=RIGHT(BR$39,2),SUM($AV94:AV94),0)+IF(RIGHT(BR$39,2)>RIGHT($K94,2),AV94,0)) -> 0 | BS94: =+IF($K94="Ongoing",AW94,IF(RIGHT($K94,2)=RIGHT(BS$39,2),SUM($AV94:AW94),0)+IF(RIGHT(BS$39,2)>RIGHT($K94,2),AW94,0)) -> 0.385 | BT94: =+IF($K94="Ongoing",AX94,IF(RIGHT($K94,2)=RIGHT(BT$39,2),SUM($AV94:AX94),0)+IF(RIGHT(BT$39,2)>RIGHT($K94,2),AX94,0)) -> 0 | BU94: =+IF($K94="Ongoing",AY94,IF(RIGHT($K94,2)=RIGHT(BU$39,2),SUM($AV94:AY94),0)+IF(RIGHT(BU$39,2)>RIGHT($K94,2),AY94,0)) -> 0 | BV94: =+IF($K94="Ongoing",AZ94,IF(RIGHT($K94,2)=RIGHT(BV$39,2),SUM($AV94:AZ94),0)+IF(RIGHT(BV$39,2)>RIGHT($K94,2),AZ94,0)) -> 0 | BW94: =+IF($K94="Ongoing",BA94,IF(RIGHT($K94,2)=RIGHT(BW$39,2),SUM($AV94:BA94),0)+IF(RIGHT(BW$39,2)>RIGHT($K94,2),BA94,0)) -> 0 | BX94: =+IF($K94="Ongoing",BB94,IF(RIGHT($K94,2)=RIGHT(BX$39,2),SUM($AV94:BB94),0)+IF(RIGHT(BX$39,2)>RIGHT($K94,2),BB94,0)) -> 0 | BY94: =+IF($K94="Ongoing",BC94,IF(RIGHT($K94,2)=RIGHT(BY$39,2),SUM($AV94:BC94),0)+IF(RIGHT(BY$39,2)>RIGHT($K94,2),BC94,0)) -> 0 | BZ94: =+IF($K94="Ongoing",BD94,IF(RIGHT($K94,2)=RIGHT(BZ$39,2),SUM($AV94:BD94),0)+IF(RIGHT(BZ$39,2)>RIGHT($K94,2),BD94,0)) -> 0 | CA94: =+IF($K94="Ongoing",BE94,IF(RIGHT($K94,2)=RIGHT(CA$39,2),SUM($AV94:BE94),0)+IF(RIGHT(CA$39,2)>RIGHT($K94,2),BE94,0)) -> 0 | CC94: =+O94*KeyAssumptionsPriceControl_FO!X$15 -> 0.117645 | CD94: =+P94*KeyAssumptionsPriceControl_FO!Y$15 -> 0.28256283 | CE94: =+Q94*KeyAssumptionsPriceControl_FO!Z$15 -> 0 | CF94: =+R94*KeyAssumptionsPriceControl_FO!AA$15 -> 0 | CG94: =+S94*KeyAssumptionsPriceControl_FO!AB$15 -> 0 | CH94: =+T94*KeyAssumptionsPriceControl_FO!AC$15 -> 0 | CI94: =+U94*KeyAssumptionsPriceControl_FO!AD$15 -> 0 | CJ94: =+V94*KeyAssumptionsPriceControl_FO!AE$15 -> 0 | CK94: =+W94*KeyAssumptionsPriceControl_FO!AF$15 -> 0 | CL94: =+X94*KeyAssumptionsPriceControl_FO!AG$15 -> 0 | CN94: 0.0026470125 | CO94: 0.01165168868 | CP94: 0.01800935235 | CQ94: 0.01800935235 | CR94: 0.01800935235 | CS94: 0.01800935235 | CT94: 0.01800935235 | CU94: 0.01800935235 | CV94: 0.01800935235 | CW94: 0.01800935235
C95: MER Replace Main Dow Avenue | D95: 0 | E95: Irrigation | F95: Improvements / Compliance | G95: Pipelines/network | H95: Significant Projects | I95: 0 | J95: Straight line | K95: 2018-19 | L95: 45 | M95: 22.22222222 | O95: 0.325 | P95: 0 | Q95: 0 | R95: 0 | S95: 0 | T95: 0 | U95: 0 | V95: 0 | W95: 0 | X95: 0 | AV95: 0.325 | AW95: 0 | AX95: 0 | AY95: 0 | AZ95: 0 | BA95: 0 | BB95: 0 | BC95: 0 | BD95: 0 | BE95: 0 | BG95: 0.003611111111 | BH95: 0.007222222222 | BI95: 0.007222222222 | BJ95: 0.007222222222 | BK95: 0.007222222222 | BL95: 0.007222222222 | BM95: 0.007222222222 | BN95: 0.007222222222 | BO95: 0.007222222222 | BP95: 0.007222222222 | BR95: =+IF($K95="Ongoing",AV95,IF(RIGHT($K95,2)=RIGHT(BR$39,2),SUM($AV95:AV95),0)+IF(RIGHT(BR$39,2)>RIGHT($K95,2),AV95,0)) -> 0.325 | BS95: =+IF($K95="Ongoing",AW95,IF(RIGHT($K95,2)=RIGHT(BS$39,2),SUM($AV95:AW95),0)+IF(RIGHT(BS$39,2)>RIGHT($K95,2),AW95,0)) -> 0 | BT95: =+IF($K95="Ongoing",AX95,IF(RIGHT($K95,2)=RIGHT(BT$39,2),SUM($AV95:AX95),0)+IF(RIGHT(BT$39,2)>RIGHT($K95,2),AX95,0)) -> 0 | BU95: =+IF($K95="Ongoing",AY95,IF(RIGHT($K95,2)=RIGHT(BU$39,2),SUM($AV95:AY95),0)+IF(RIGHT(BU$39,2)>RIGHT($K95,2),AY95,0)) -> 0 | BV95: =+IF($K95="Ongoing",AZ95,IF(RIGHT($K95,2)=RIGHT(BV$39,2),SUM($AV95:AZ95),0)+IF(RIGHT(BV$39,2)>RIGHT($K95,2),AZ95,0)) -> 0 | BW95: =+IF($K95="Ongoing",BA95,IF(RIGHT($K95,2)=RIGHT(BW$39,2),SUM($AV95:BA95),0)+IF(RIGHT(BW$39,2)>RIGHT($K95,2),BA95,0)) -> 0 | BX95: =+IF($K95="Ongoing",BB95,IF(RIGHT($K95,2)=RIGHT(BX$39,2),SUM($AV95:BB95),0)+IF(RIGHT(BX$39,2)>RIGHT($K95,2),BB95,0)) -> 0 | BY95: =+IF($K95="Ongoing",BC95,IF(RIGHT($K95,2)=RIGHT(BY$39,2),SUM($AV95:BC95),0)+IF(RIGHT(BY$39,2)>RIGHT($K95,2),BC95,0)) -> 0 | BZ95: =+IF($K95="Ongoing",BD95,IF(RIGHT($K95,2)=RIGHT(BZ$39,2),SUM($AV95:BD95),0)+IF(RIGHT(BZ$39,2)>RIGHT($K95,2),BD95,0)) -> 0 | CA95: =+IF($K95="Ongoing",BE95,IF(RIGHT($K95,2)=RIGHT(CA$39,2),SUM($AV95:BE95),0)+IF(RIGHT(CA$39,2)>RIGHT($K95,2),BE95,0)) -> 0 | CC95: =+O95*KeyAssumptionsPriceControl_FO!X$15 -> 0.332475 | CD95: =+P95*KeyAssumptionsPriceControl_FO!Y$15 -> 0 | CE95: =+Q95*KeyAssumptionsPriceControl_FO!Z$15 -> 0 | CF95: =+R95*KeyAssumptionsPriceControl_FO!AA$15 -> 0 | CG95: =+S95*KeyAssumptionsPriceControl_FO!AB$15 -> 0 | CH95: =+T95*KeyAssumptionsPriceControl_FO!AC$15 -> 0 | CI95: =+U95*KeyAssumptionsPriceControl_FO!AD$15 -> 0 | CJ95: =+V95*KeyAssumptionsPriceControl_FO!AE$15 -> 0 | CK95: =+W95*KeyAssumptionsPriceControl_FO!AF$15 -> 0 | CL95: =+X95*KeyAssumptionsPriceControl_FO!AG$15 -> 0 | CN95: 0.0074806875 | CO95: 0.014961375 | CP95: 0.014961375 | CQ95: 0.014961375 | CR95: 0.014961375 | CS95: 0.014961375 | CT95: 0.014961375 | CU95: 0.014961375 | CV95: 0.014961375 | CW95: 0.014961375
C96: MDA Reline K Channel Inverted Syphon Stage 2 | D96: 0 | E96: Irrigation | F96: Renewals | G96: Pipelines/network | H96: Significant Projects | I96: 0 | J96: Straight line | K96: 2018-19 | L96: 80 | M96: 22.22222222 | O96: 0.78 | P96: 0 | Q96: 0 | R96: 0 | S96: 0 | T96: 0 | U96: 0 | V96: 0 | W96: 0 | X96: 0 | AV96: 0.78 | AW96: 0 | AX96: 0 | AY96: 0 | AZ96: 0 | BA96: 0 | BB96: 0 | BC96: 0 | BD96: 0 | BE96: 0 | BG96: 0.004875 | BH96: 0.00975 | BI96: 0.00975 | BJ96: 0.00975 | BK96: 0.00975 | BL96: 0.00975 | BM96: 0.00975 | BN96: 0.00975 | BO96: 0.00975 | BP96: 0.00975 | BR96: =+IF($K96="Ongoing",AV96,IF(RIGHT($K96,2)=RIGHT(BR$39,2),SUM($AV96:AV96),0)+IF(RIGHT(BR$39,2)>RIGHT($K96,2),AV96,0)) -> 0.78 | BS96: =+IF($K96="Ongoing",AW96,IF(RIGHT($K96,2)=RIGHT(BS$39,2),SUM($AV96:AW96),0)+IF(RIGHT(BS$39,2)>RIGHT($K96,2),AW96,0)) -> 0 | BT96: =+IF($K96="Ongoing",AX96,IF(RIGHT($K96,2)=RIGHT(BT$39,2),SUM($AV96:AX96),0)+IF(RIGHT(BT$39,2)>RIGHT($K96,2),AX96,0)) -> 0 | BU96: =+IF($K96="Ongoing",AY96,IF(RIGHT($K96,2)=RIGHT(BU$39,2),SUM($AV96:AY96),0)+IF(RIGHT(BU$39,2)>RIGHT($K96,2),AY96,0)) -> 0 | BV96: =+IF($K96="Ongoing",AZ96,IF(RIGHT($K96,2)=RIGHT(BV$39,2),SUM($AV96:AZ96),0)+IF(RIGHT(BV$39,2)>RIGHT($K96,2),AZ96,0)) -> 0 | BW96: =+IF($K96="Ongoing",BA96,IF(RIGHT($K96,2)=RIGHT(BW$39,2),SUM($AV96:BA96),0)+IF(RIGHT(BW$39,2)>RIGHT($K96,2),BA96,0)) -> 0 | BX96: =+IF($K96="Ongoing",BB96,IF(RIGHT($K96,2)=RIGHT(BX$39,2),SUM($AV96:BB96),0)+IF(RIGHT(BX$39,2)>RIGHT($K96,2),BB96,0)) -> 0 | BY96: =+IF($K96="Ongoing",BC96,IF(RIGHT($K96,2)=RIGHT(BY$39,2),SUM($AV96:BC96),0)+IF(RIGHT(BY$39,2)>RIGHT($K96,2),BC96,0)) -> 0 | BZ96: =+IF($K96="Ongoing",BD96,IF(RIGHT($K96,2)=RIGHT(BZ$39,2),SUM($AV96:BD96),0)+IF(RIGHT(BZ$39,2)>RIGHT($K96,2),BD96,0)) -> 0 | CA96: =+IF($K96="Ongoing",BE96,IF(RIGHT($K96,2)=RIGHT(CA$39,2),SUM($AV96:BE96),0)+IF(RIGHT(CA$39,2)>RIGHT($K96,2),BE96,0)) -> 0 | CC96: =+O96*KeyAssumptionsPriceControl_FO!X$15 -> 0.79794 | CD96: =+P96*KeyAssumptionsPriceControl_FO!Y$15 -> 0 | CE96: =+Q96*KeyAssumptionsPriceControl_FO!Z$15 -> 0 | CF96: =+R96*KeyAssumptionsPriceControl_FO!AA$15 -> 0 | CG96: =+S96*KeyAssumptionsPriceControl_FO!AB$15 -> 0 | CH96: =+T96*KeyAssumptionsPriceControl_FO!AC$15 -> 0 | CI96: =+U96*KeyAssumptionsPriceControl_FO!AD$15 -> 0 | CJ96: =+V96*KeyAssumptionsPriceControl_FO!AE$15 -> 0 | CK96: =+W96*KeyAssumptionsPriceControl_FO!AF$15 -> 0 | CL96: =+X96*KeyAssumptionsPriceControl_FO!AG$15 -> 0 | CN96: 0.01795365 | CO96: 0.0359073 | CP96: 0.0359073 | CQ96: 0.0359073 | CR96: 0.0359073 | CS96: 0.0359073 | CT96: 0.0359073 | CU96: 0.0359073 | CV96: 0.0359073 | CW96: 0.0359073
C97: PD Minor Capital - Replacement | D97: 0 | E97: Surface water diversions | F97: Renewals | G97: Pipelines/network | H97: Significant Projects | I97: 0 | J97: Straight line | K97: 2017-18 | L97: 45 | M97: 22.22222222 | O97: 0 | P97: 0 | Q97: 0 | R97: 0 | S97: 0 | T97: 0 | U97: 0 | V97: 0 | W97: 0 | X97: 0 | AV97: 0 | AW97: 0 | AX97: 0 | AY97: 0 | AZ97: 0 | BA97: 0 | BB97: 0 | BC97: 0 | BD97: 0 | BE97: 0 | BG97: 0 | BH97: 0 | BI97: 0 | BJ97: 0 | BK97: 0 | BL97: 0 | BM97: 0 | BN97: 0 | BO97: 0 | BP97: 0 | BR97: =+IF($K97="Ongoing",AV97,IF(RIGHT($K97,2)=RIGHT(BR$39,2),SUM($AV97:AV97),0)+IF(RIGHT(BR$39,2)>RIGHT($K97,2),AV97,0)) -> 0 | BS97: =+IF($K97="Ongoing",AW97,IF(RIGHT($K97,2)=RIGHT(BS$39,2),SUM($AV97:AW97),0)+IF(RIGHT(BS$39,2)>RIGHT($K97,2),AW97,0)) -> 0 | BT97: =+IF($K97="Ongoing",AX97,IF(RIGHT($K97,2)=RIGHT(BT$39,2),SUM($AV97:AX97),0)+IF(RIGHT(BT$39,2)>RIGHT($K97,2),AX97,0)) -> 0 | BU97: =+IF($K97="Ongoing",AY97,IF(RIGHT($K97,2)=RIGHT(BU$39,2),SUM($AV97:AY97),0)+IF(RIGHT(BU$39,2)>RIGHT($K97,2),AY97,0)) -> 0 | BV97: =+IF($K97="Ongoing",AZ97,IF(RIGHT($K97,2)=RIGHT(BV$39,2),SUM($AV97:AZ97),0)+IF(RIGHT(BV$39,2)>RIGHT($K97,2),AZ97,0)) -> 0 | BW97: =+IF($K97="Ongoing",BA97,IF(RIGHT($K97,2)=RIGHT(BW$39,2),SUM($AV97:BA97),0)+IF(RIGHT(BW$39,2)>RIGHT($K97,2),BA97,0)) -> 0 | BX97: =+IF($K97="Ongoing",BB97,IF(RIGHT($K97,2)=RIGHT(BX$39,2),SUM($AV97:BB97),0)+IF(RIGHT(BX$39,2)>RIGHT($K97,2),BB97,0)) -> 0 | BY97: =+IF($K97="Ongoing",BC97,IF(RIGHT($K97,2)=RIGHT(BY$39,2),SUM($AV97:BC97),0)+IF(RIGHT(BY$39,2)>RIGHT($K97,2),BC97,0)) -> 0 | BZ97: =+IF($K97="Ongoing",BD97,IF(RIGHT($K97,2)=RIGHT(BZ$39,2),SUM($AV97:BD97),0)+IF(RIGHT(BZ$39,2)>RIGHT($K97,2),BD97,0)) -> 0 | CA97: =+IF($K97="Ongoing",BE97,IF(RIGHT($K97,2)=RIGHT(CA$39,2),SUM($AV97:BE97),0)+IF(RIGHT(CA$39,2)>RIGHT($K97,2),BE97,0)) -> 0 | CC97: =+O97*KeyAssumptionsPriceControl_FO!X$15 -> 0 | CD97: =+P97*KeyAssumptionsPriceControl_FO!Y$15 -> 0 | CE97: =+Q97*KeyAssumptionsPriceControl_FO!Z$15 -> 0 | CF97: =+R97*KeyAssumptionsPriceControl_FO!AA$15 -> 0 | CG97: =+S97*KeyAssumptionsPriceControl_FO!AB$15 -> 0 | CH97: =+T97*KeyAssumptionsPriceControl_FO!AC$15 -> 0 | CI97: =+U97*KeyAssumptionsPriceControl_FO!AD$15 -> 0 | CJ97: =+V97*KeyAssumptionsPriceControl_FO!AE$15 -> 0 | CK97: =+W97*KeyAssumptionsPriceControl_FO!AF$15 -> 0 | CL97: =+X97*KeyAssumptionsPriceControl_FO!AG$15 -> 0 | CN97: 0 | CO97: 0 | CP97: 0 | CQ97: 0 | CR97: 0 | CS97: 0 | CT97: 0 | CU97: 0 | CV97: 0 | CW97: 0
AV98: 0 | AW98: 0 | AX98: 0 | AY98: 0 | AZ98: 0 | BA98: 0 | BB98: 0 | BC98: 0 | BD98: 0 | BE98: 0 | BG98: 0 | BH98: 0 | BI98: 0 | BJ98: 0 | BK98: 0 | BL98: 0 | BM98: 0 | BN98: 0 | BO98: 0 | BP98: 0 | BR98: =+IF($K98="Ongoing",AV98,IF(RIGHT($K98,2)=RIGHT(BR$39,2),SUM($AV98:AV98),0)+IF(RIGHT(BR$39,2)>RIGHT($K98,2),AV98,0)) -> 0 | BS98: =+IF($K98="Ongoing",AW98,IF(RIGHT($K98,2)=RIGHT(BS$39,2),SUM($AV98:AW98),0)+IF(RIGHT(BS$39,2)>RIGHT($K98,2),AW98,0)) -> 0 | BT98: =+IF($K98="Ongoing",AX98,IF(RIGHT($K98,2)=RIGHT(BT$39,2),SUM($AV98:AX98),0)+IF(RIGHT(BT$39,2)>RIGHT($K98,2),AX98,0)) -> 0 | BU98: =+IF($K98="Ongoing",AY98,IF(RIGHT($K98,2)=RIGHT(BU$39,2),SUM($AV98:AY98),0)+IF(RIGHT(BU$39,2)>RIGHT($K98,2),AY98,0)) -> 0 | BV98: =+IF($K98="Ongoing",AZ98,IF(RIGHT($K98,2)=RIGHT(BV$39,2),SUM($AV98:AZ98),0)+IF(RIGHT(BV$39,2)>RIGHT($K98,2),AZ98,0)) -> 0 | BW98: =+IF($K98="Ongoing",BA98,IF(RIGHT($K98,2)=RIGHT(BW$39,2),SUM($AV98:BA98),0)+IF(RIGHT(BW$39,2)>RIGHT($K98,2),BA98,0)) -> 0 | BX98: =+IF($K98="Ongoing",BB98,IF(RIGHT($K98,2)=RIGHT(BX$39,2),SUM($AV98:BB98),0)+IF(RIGHT(BX$39,2)>RIGHT($K98,2),BB98,0)) -> 0 | BY98: =+IF($K98="Ongoing",BC98,IF(RIGHT($K98,2)=RIGHT(BY$39,2),SUM($AV98:BC98),0)+IF(RIGHT(BY$39,2)>RIGHT($K98,2),BC98,0)) -> 0 | BZ98: =+IF($K98="Ongoing",BD98,IF(RIGHT($K98,2)=RIGHT(BZ$39,2),SUM($AV98:BD98),0)+IF(RIGHT(BZ$39,2)>RIGHT($K98,2),BD98,0)) -> 0 | CA98: =+IF($K98="Ongoing",BE98,IF(RIGHT($K98,2)=RIGHT(CA$39,2),SUM($AV98:BE98),0)+IF(RIGHT(CA$39,2)>RIGHT($K98,2),BE98,0)) -> 0 | CC98: =+O98*KeyAssumptionsPriceControl_FO!X$15 -> 0 | CD98: =+P98*KeyAssumptionsPriceControl_FO!Y$15 -> 0 | CE98: =+Q98*KeyAssumptionsPriceControl_FO!Z$15 -> 0 | CF98: =+R98*KeyAssumptionsPriceControl_FO!AA$15 -> 0 | CG98: =+S98*KeyAssumptionsPriceControl_FO!AB$15 -> 0 | CH98: =+T98*KeyAssumptionsPriceControl_FO!AC$15 -> 0 | CI98: =+U98*KeyAssumptionsPriceControl_FO!AD$15 -> 0 | CJ98: =+V98*KeyAssumptionsPriceControl_FO!AE$15 -> 0 | CK98: =+W98*KeyAssumptionsPriceControl_FO!AF$15 -> 0 | CL98: =+X98*KeyAssumptionsPriceControl_FO!AG$15 -> 0 | CN98: 0 | CO98: 0 | CP98: 0 | CQ98: 0 | CR98: 0 | CS98: 0 | CT98: 0 | CU98: 0 | CV98: 0 | CW98: 0
C99: MER Drainage Pit Lids | D99: 0 | E99: Drainage | F99: Renewals | G99: Pipelines/network | H99: Significant Projects | I99: 0 | J99: Straight line | K99: Ongoing | L99: 80 | M99: 6.666666667 | O99: 0.09 | P99: 0.09 | Q99: 0.09 | R99: 0.09 | S99: 0.09 | T99: 0.09 | U99: 0.09 | V99: 0.09 | W99: 0.09 | X99: 0.09 | AV99: 0.09 | AW99: 0.09 | AX99: 0.09 | AY99: 0.09 | AZ99: 0.09 | BA99: 0.09 | BB99: 0.09 | BC99: 0.09 | BD99: 0.09 | BE99: 0.09 | BG99: 0.0005625 | BH99: 0.0016875 | BI99: 0.0028125 | BJ99: 0.0039375 | BK99: 0.0050625 | BL99: 0.0061875 | BM99: 0.0073125 | BN99: 0.0084375 | BO99: 0.0095625 | BP99: 0.0106875 | BR99: =+IF($K99="Ongoing",AV99,IF(RIGHT($K99,2)=RIGHT(BR$39,2),SUM($AV99:AV99),0)+IF(RIGHT(BR$39,2)>RIGHT($K99,2),AV99,0)) -> 0.09 | BS99: =+IF($K99="Ongoing",AW99,IF(RIGHT($K99,2)=RIGHT(BS$39,2),SUM($AV99:AW99),0)+IF(RIGHT(BS$39,2)>RIGHT($K99,2),AW99,0)) -> 0.09 | BT99: =+IF($K99="Ongoing",AX99,IF(RIGHT($K99,2)=RIGHT(BT$39,2),SUM($AV99:AX99),0)+IF(RIGHT(BT$39,2)>RIGHT($K99,2),AX99,0)) -> 0.09 | BU99: =+IF($K99="Ongoing",AY99,IF(RIGHT($K99,2)=RIGHT(BU$39,2),SUM($AV99:AY99),0)+IF(RIGHT(BU$39,2)>RIGHT($K99,2),AY99,0)) -> 0.09 | BV99: =+IF($K99="Ongoing",AZ99,IF(RIGHT($K99,2)=RIGHT(BV$39,2),SUM($AV99:AZ99),0)+IF(RIGHT(BV$39,2)>RIGHT($K99,2),AZ99,0)) -> 0.09 | BW99: =+IF($K99="Ongoing",BA99,IF(RIGHT($K99,2)=RIGHT(BW$39,2),SUM($AV99:BA99),0)+IF(RIGHT(BW$39,2)>RIGHT($K99,2),BA99,0)) -> 0.09 | BX99: =+IF($K99="Ongoing",BB99,IF(RIGHT($K99,2)=RIGHT(BX$39,2),SUM($AV99:BB99),0)+IF(RIGHT(BX$39,2)>RIGHT($K99,2),BB99,0)) -> 0.09 | BY99: =+IF($K99="Ongoing",BC99,IF(RIGHT($K99,2)=RIGHT(BY$39,2),SUM($AV99:BC99),0)+IF(RIGHT(BY$39,2)>RIGHT($K99,2),BC99,0)) -> 0.09 | BZ99: =+IF($K99="Ongoing",BD99,IF(RIGHT($K99,2)=RIGHT(BZ$39,2),SUM($AV99:BD99),0)+IF(RIGHT(BZ$39,2)>RIGHT($K99,2),BD99,0)) -> 0.09 | CA99: =+IF($K99="Ongoing",BE99,IF(RIGHT($K99,2)=RIGHT(CA$39,2),SUM($AV99:BE99),0)+IF(RIGHT(CA$39,2)>RIGHT($K99,2),BE99,0)) -> 0.09 | CC99: =+O99*KeyAssumptionsPriceControl_FO!X$15 -> 0.09207 | CD99: =+P99*KeyAssumptionsPriceControl_FO!Y$15 -> 0.09418761 | CE99: =+Q99*KeyAssumptionsPriceControl_FO!Z$15 -> 0.09635392503 | CF99: =+R99*KeyAssumptionsPriceControl_FO!AA$15 -> 0.09857006531 | CG99: =+S99*KeyAssumptionsPriceControl_FO!AB$15 -> 0.1008371768 | CH99: =+T99*KeyAssumptionsPriceControl_FO!AC$15 -> 0.1031564319 | CI99: =+U99*KeyAssumptionsPriceControl_FO!AD$15 -> 0.1055290298 | CJ99: =+V99*KeyAssumptionsPriceControl_FO!AE$15 -> 0.1079561975 | CK99: =+W99*KeyAssumptionsPriceControl_FO!AF$15 -> 0.11043919 | CL99: =+X99*KeyAssumptionsPriceControl_FO!AG$15 -> 0.1129792914 | CN99: 0.00690525 | CO99: 0.02087457075 | CP99: 0.03516518588 | CQ99: 0.04978448515 | CR99: 0.06474002831 | CS99: 0.08003954896 | CT99: 0.09569095859 | CU99: 0.1001936006 | CV99: 0.1024980535 | CW99: 0.1048555087
C100: MDA Drainage Pit Lids | D100: 0 | E100: Drainage | F100: Renewals | G100: Pipelines/network | H100: Significant Projects | I100: 0 | J100: Straight line | K100: Ongoing | L100: 80 | M100: 22.22222222 | O100: 0.07 | P100: 0.07 | Q100: 0.07 | R100: 0.07 | S100: 0.07 | T100: 0.07 | U100: 0.07 | V100: 0.07 | W100: 0.07 | X100: 0.07 | AV100: 0.07 | AW100: 0.07 | AX100: 0.07 | AY100: 0.07 | AZ100: 0.07 | BA100: 0.07 | BB100: 0.07 | BC100: 0.07 | BD100: 0.07 | BE100: 0.07 | BG100: 0.0004375 | BH100: 0.0013125 | BI100: 0.0021875 | BJ100: 0.0030625 | BK100: 0.0039375 | BL100: 0.0048125 | BM100: 0.0056875 | BN100: 0.0065625 | BO100: 0.0074375 | BP100: 0.0083125 | BR100: =+IF($K100="Ongoing",AV100,IF(RIGHT($K100,2)=RIGHT(BR$39,2),SUM($AV100:AV100),0)+IF(RIGHT(BR$39,2)>RIGHT($K100,2),AV100,0)) -> 0.07 | BS100: =+IF($K100="Ongoing",AW100,IF(RIGHT($K100,2)=RIGHT(BS$39,2),SUM($AV100:AW100),0)+IF(RIGHT(BS$39,2)>RIGHT($K100,2),AW100,0)) -> 0.07 | BT100: =+IF($K100="Ongoing",AX100,IF(RIGHT($K100,2)=RIGHT(BT$39,2),SUM($AV100:AX100),0)+IF(RIGHT(BT$39,2)>RIGHT($K100,2),AX100,0)) -> 0.07 | BU100: =+IF($K100="Ongoing",AY100,IF(RIGHT($K100,2)=RIGHT(BU$39,2),SUM($AV100:AY100),0)+IF(RIGHT(BU$39,2)>RIGHT($K100,2),AY100,0)) -> 0.07 | BV100: =+IF($K100="Ongoing",AZ100,IF(RIGHT($K100,2)=RIGHT(BV$39,2),SUM($AV100:AZ100),0)+IF(RIGHT(BV$39,2)>RIGHT($K100,2),AZ100,0)) -> 0.07 | BW100: =+IF($K100="Ongoing",BA100,IF(RIGHT($K100,2)=RIGHT(BW$39,2),SUM($AV100:BA100),0)+IF(RIGHT(BW$39,2)>RIGHT($K100,2),BA100,0)) -> 0.07 | BX100: =+IF($K100="Ongoing",BB100,IF(RIGHT($K100,2)=RIGHT(BX$39,2),SUM($AV100:BB100),0)+IF(RIGHT(BX$39,2)>RIGHT($K100,2),BB100,0)) -> 0.07 | BY100: =+IF($K100="Ongoing",BC100,IF(RIGHT($K100,2)=RIGHT(BY$39,2),SUM($AV100:BC100),0)+IF(RIGHT(BY$39,2)>RIGHT($K100,2),BC100,0)) -> 0.07 | BZ100: =+IF($K100="Ongoing",BD100,IF(RIGHT($K100,2)=RIGHT(BZ$39,2),SUM($AV100:BD100),0)+IF(RIGHT(BZ$39,2)>RIGHT($K100,2),BD100,0)) -> 0.07 | CA100: =+IF($K100="Ongoing",BE100,IF(RIGHT($K100,2)=RIGHT(CA$39,2),SUM($AV100:BE100),0)+IF(RIGHT(CA$39,2)>RIGHT($K100,2),BE100,0)) -> 0.07 | CC100: =+O100*KeyAssumptionsPriceControl_FO!X$15 -> 0.07161 | CD100: =+P100*KeyAssumptionsPriceControl_FO!Y$15 -> 0.07325703 | CE100: =+Q100*KeyAssumptionsPriceControl_FO!Z$15 -> 0.07494194169 | CF100: =+R100*KeyAssumptionsPriceControl_FO!AA$15 -> 0.07666560635 | CG100: =+S100*KeyAssumptionsPriceControl_FO!AB$15 -> 0.07842891529 | CH100: =+T100*KeyAssumptionsPriceControl_FO!AC$15 -> 0.08023278035 | CI100: =+U100*KeyAssumptionsPriceControl_FO!AD$15 -> 0.08207813429 | CJ100: =+V100*KeyAssumptionsPriceControl_FO!AE$15 -> 0.08396593138 | CK100: =+W100*KeyAssumptionsPriceControl_FO!AF$15 -> 0.08589714781 | CL100: =+X100*KeyAssumptionsPriceControl_FO!AG$15 -> 0.0878727822 | CN100: 0.001611225 | CO100: 0.004870733175 | CP100: 0.008205210038 | CQ100: 0.01161637987 | CR100: 0.01510600661 | CS100: 0.01867589476 | CT100: 0.02232789034 | CU100: 0.02606388182 | CV100: 0.0298858011 | CW100: 0.03379562452
AV101: 0 | AW101: 0 | AX101: 0 | AY101: 0 | AZ101: 0 | BA101: 0 | BB101: 0 | BC101: 0 | BD101: 0 | BE101: 0 | BG101: 0 | BH101: 0 | BI101: 0 | BJ101: 0 | BK101: 0 | BL101: 0 | BM101: 0 | BN101: 0 | BO101: 0 | BP101: 0 | BR101: =+IF($K101="Ongoing",AV101,IF(RIGHT($K101,2)=RIGHT(BR$39,2),SUM($AV101:AV101),0)+IF(RIGHT(BR$39,2)>RIGHT($K101,2),AV101,0)) -> 0 | BS101: =+IF($K101="Ongoing",AW101,IF(RIGHT($K101,2)=RIGHT(BS$39,2),SUM($AV101:AW101),0)+IF(RIGHT(BS$39,2)>RIGHT($K101,2),AW101,0)) -> 0 | BT101: =+IF($K101="Ongoing",AX101,IF(RIGHT($K101,2)=RIGHT(BT$39,2),SUM($AV101:AX101),0)+IF(RIGHT(BT$39,2)>RIGHT($K101,2),AX101,0)) -> 0 | BU101: =+IF($K101="Ongoing",AY101,IF(RIGHT($K101,2)=RIGHT(BU$39,2),SUM($AV101:AY101),0)+IF(RIGHT(BU$39,2)>RIGHT($K101,2),AY101,0)) -> 0 | BV101: =+IF($K101="Ongoing",AZ101,IF(RIGHT($K101,2)=RIGHT(BV$39,2),SUM($AV101:AZ101),0)+IF(RIGHT(BV$39,2)>RIGHT($K101,2),AZ101,0)) -> 0 | BW101: =+IF($K101="Ongoing",BA101,IF(RIGHT($K101,2)=RIGHT(BW$39,2),SUM($AV101:BA101),0)+IF(RIGHT(BW$39,2)>RIGHT($K101,2),BA101,0)) -> 0 | BX101: =+IF($K101="Ongoing",BB101,IF(RIGHT($K101,2)=RIGHT(BX$39,2),SUM($AV101:BB101),0)+IF(RIGHT(BX$39,2)>RIGHT($K101,2),BB101,0)) -> 0 | BY101: =+IF($K101="Ongoing",BC101,IF(RIGHT($K101,2)=RIGHT(BY$39,2),SUM($AV101:BC101),0)+IF(RIGHT(BY$39,2)>RIGHT($K101,2),BC101,0)) -> 0 | BZ101: =+IF($K101="Ongoing",BD101,IF(RIGHT($K101,2)=RIGHT(BZ$39,2),SUM($AV101:BD101),0)+IF(RIGHT(BZ$39,2)>RIGHT($K101,2),BD101,0)) -> 0 | CA101: =+IF($K101="Ongoing",BE101,IF(RIGHT($K101,2)=RIGHT(CA$39,2),SUM($AV101:BE101),0)+IF(RIGHT(CA$39,2)>RIGHT($K101,2),BE101,0)) -> 0 | CC101: =+O101*KeyAssumptionsPriceControl_FO!X$15 -> 0 | CD101: =+P101*KeyAssumptionsPriceControl_FO!Y$15 -> 0 | CE101: =+Q101*KeyAssumptionsPriceControl_FO!Z$15 -> 0 | CF101: =+R101*KeyAssumptionsPriceControl_FO!AA$15 -> 0 | CG101: =+S101*KeyAssumptionsPriceControl_FO!AB$15 -> 0 | CH101: =+T101*KeyAssumptionsPriceControl_FO!AC$15 -> 0 | CI101: =+U101*KeyAssumptionsPriceControl_FO!AD$15 -> 0 | CJ101: =+V101*KeyAssumptionsPriceControl_FO!AE$15 -> 0 | CK101: =+W101*KeyAssumptionsPriceControl_FO!AF$15 -> 0 | CL101: =+X101*KeyAssumptionsPriceControl_FO!AG$15 -> 0 | CN101: 0 | CO101: 0 | CP101: 0 | CQ101: 0 | CR101: 0 | CS101: 0 | CT101: 0 | CU101: 0 | CV101: 0 | CW101: 0
C102: MILL Fencing Bambill Storage | D102: 0 | E102: Domestic and stock | F102: Renewals | G102: Pipelines/network | H102: Significant Projects | I102: 0 | J102: Straight line | K102: Ongoing | L102: 80 | M102: 6.666666667 | O102: 0 | P102: 0 | Q102: 0 | R102: 0 | S102: 0 | T102: 0 | U102: 0 | V102: 0 | W102: 0 | X102: 0 | AV102: 0 | AW102: 0 | AX102: 0 | AY102: 0 | AZ102: 0 | BA102: 0 | BB102: 0 | BC102: 0 | BD102: 0 | BE102: 0 | BG102: 0 | BH102: 0 | BI102: 0 | BJ102: 0 | BK102: 0 | BL102: 0 | BM102: 0 | BN102: 0 | BO102: 0 | BP102: 0 | BR102: =+IF($K102="Ongoing",AV102,IF(RIGHT($K102,2)=RIGHT(BR$39,2),SUM($AV102:AV102),0)+IF(RIGHT(BR$39,2)>RIGHT($K102,2),AV102,0)) -> 0 | BS102: =+IF($K102="Ongoing",AW102,IF(RIGHT($K102,2)=RIGHT(BS$39,2),SUM($AV102:AW102),0)+IF(RIGHT(BS$39,2)>RIGHT($K102,2),AW102,0)) -> 0 | BT102: =+IF($K102="Ongoing",AX102,IF(RIGHT($K102,2)=RIGHT(BT$39,2),SUM($AV102:AX102),0)+IF(RIGHT(BT$39,2)>RIGHT($K102,2),AX102,0)) -> 0 | BU102: =+IF($K102="Ongoing",AY102,IF(RIGHT($K102,2)=RIGHT(BU$39,2),SUM($AV102:AY102),0)+IF(RIGHT(BU$39,2)>RIGHT($K102,2),AY102,0)) -> 0 | BV102: =+IF($K102="Ongoing",AZ102,IF(RIGHT($K102,2)=RIGHT(BV$39,2),SUM($AV102:AZ102),0)+IF(RIGHT(BV$39,2)>RIGHT($K102,2),AZ102,0)) -> 0 | BW102: =+IF($K102="Ongoing",BA102,IF(RIGHT($K102,2)=RIGHT(BW$39,2),SUM($AV102:BA102),0)+IF(RIGHT(BW$39,2)>RIGHT($K102,2),BA102,0)) -> 0 | BX102: =+IF($K102="Ongoing",BB102,IF(RIGHT($K102,2)=RIGHT(BX$39,2),SUM($AV102:BB102),0)+IF(RIGHT(BX$39,2)>RIGHT($K102,2),BB102,0)) -> 0 | BY102: =+IF($K102="Ongoing",BC102,IF(RIGHT($K102,2)=RIGHT(BY$39,2),SUM($AV102:BC102),0)+IF(RIGHT(BY$39,2)>RIGHT($K102,2),BC102,0)) -> 0 | BZ102: =+IF($K102="Ongoing",BD102,IF(RIGHT($K102,2)=RIGHT(BZ$39,2),SUM($AV102:BD102),0)+IF(RIGHT(BZ$39,2)>RIGHT($K102,2),BD102,0)) -> 0 | CA102: =+IF($K102="Ongoing",BE102,IF(RIGHT($K102,2)=RIGHT(CA$39,2),SUM($AV102:BE102),0)+IF(RIGHT(CA$39,2)>RIGHT($K102,2),BE102,0)) -> 0 | CC102: =+O102*KeyAssumptionsPriceControl_FO!X$15 -> 0 | CD102: =+P102*KeyAssumptionsPriceControl_FO!Y$15 -> 0 | CE102: =+Q102*KeyAssumptionsPriceControl_FO!Z$15 -> 0 | CF102: =+R102*KeyAssumptionsPriceControl_FO!AA$15 -> 0 | CG102: =+S102*KeyAssumptionsPriceControl_FO!AB$15 -> 0 | CH102: =+T102*KeyAssumptionsPriceControl_FO!AC$15 -> 0 | CI102: =+U102*KeyAssumptionsPriceControl_FO!AD$15 -> 0 | CJ102: =+V102*KeyAssumptionsPriceControl_FO!AE$15 -> 0 | CK102: =+W102*KeyAssumptionsPriceControl_FO!AF$15 -> 0 | CL102: =+X102*KeyAssumptionsPriceControl_FO!AG$15 -> 0 | CN102: 0 | CO102: 0 | CP102: 0 | CQ102: 0 | CR102: 0 | CS102: 0 | CT102: 0 | CU102: 0 | CV102: 0 | CW102: 0
AV103: 0 | AW103: 0 | AX103: 0 | AY103: 0 | AZ103: 0 | BA103: 0 | BB103: 0 | BC103: 0 | BD103: 0 | BE103: 0 | BG103: 0 | BH103: 0 | BI103: 0 | BJ103: 0 | BK103: 0 | BL103: 0 | BM103: 0 | BN103: 0 | BO103: 0 | BP103: 0 | BR103: =+IF($K103="Ongoing",AV103,IF(RIGHT($K103,2)=RIGHT(BR$39,2),SUM($AV103:AV103),0)+IF(RIGHT(BR$39,2)>RIGHT($K103,2),AV103,0)) -> 0 | BS103: =+IF($K103="Ongoing",AW103,IF(RIGHT($K103,2)=RIGHT(BS$39,2),SUM($AV103:AW103),0)+IF(RIGHT(BS$39,2)>RIGHT($K103,2),AW103,0)) -> 0 | BT103: =+IF($K103="Ongoing",AX103,IF(RIGHT($K103,2)=RIGHT(BT$39,2),SUM($AV103:AX103),0)+IF(RIGHT(BT$39,2)>RIGHT($K103,2),AX103,0)) -> 0 | BU103: =+IF($K103="Ongoing",AY103,IF(RIGHT($K103,2)=RIGHT(BU$39,2),SUM($AV103:AY103),0)+IF(RIGHT(BU$39,2)>RIGHT($K103,2),AY103,0)) -> 0 | BV103: =+IF($K103="Ongoing",AZ103,IF(RIGHT($K103,2)=RIGHT(BV$39,2),SUM($AV103:AZ103),0)+IF(RIGHT(BV$39,2)>RIGHT($K103,2),AZ103,0)) -> 0 | BW103: =+IF($K103="Ongoing",BA103,IF(RIGHT($K103,2)=RIGHT(BW$39,2),SUM($AV103:BA103),0)+IF(RIGHT(BW$39,2)>RIGHT($K103,2),BA103,0)) -> 0 | BX103: =+IF($K103="Ongoing",BB103,IF(RIGHT($K103,2)=RIGHT(BX$39,2),SUM($AV103:BB103),0)+IF(RIGHT(BX$39,2)>RIGHT($K103,2),BB103,0)) -> 0 | BY103: =+IF($K103="Ongoing",BC103,IF(RIGHT($K103,2)=RIGHT(BY$39,2),SUM($AV103:BC103),0)+IF(RIGHT(BY$39,2)>RIGHT($K103,2),BC103,0)) -> 0 | BZ103: =+IF($K103="Ongoing",BD103,IF(RIGHT($K103,2)=RIGHT(BZ$39,2),SUM($AV103:BD103),0)+IF(RIGHT(BZ$39,2)>RIGHT($K103,2),BD103,0)) -> 0 | CA103: =+IF($K103="Ongoing",BE103,IF(RIGHT($K103,2)=RIGHT(CA$39,2),SUM($AV103:BE103),0)+IF(RIGHT(CA$39,2)>RIGHT($K103,2),BE103,0)) -> 0 | CC103: =+O103*KeyAssumptionsPriceControl_FO!X$15 -> 0 | CD103: =+P103*KeyAssumptionsPriceControl_FO!Y$15 -> 0 | CE103: =+Q103*KeyAssumptionsPriceControl_FO!Z$15 -> 0 | CF103: =+R103*KeyAssumptionsPriceControl_FO!AA$15 -> 0 | CG103: =+S103*KeyAssumptionsPriceControl_FO!AB$15 -> 0 | CH103: =+T103*KeyAssumptionsPriceControl_FO!AC$15 -> 0 | CI103: =+U103*KeyAssumptionsPriceControl_FO!AD$15 -> 0 | CJ103: =+V103*KeyAssumptionsPriceControl_FO!AE$15 -> 0 | CK103: =+W103*KeyAssumptionsPriceControl_FO!AF$15 -> 0 | CL103: =+X103*KeyAssumptionsPriceControl_FO!AG$15 -> 0 | CN103: 0 | CO103: 0 | CP103: 0 | CQ103: 0 | CR103: 0 | CS103: 0 | CT103: 0 | CU103: 0 | CV103: 0 | CW103: 0
C104: Corporate Motor Vehicles | D104: 0 | E104: Irrigation | F104: Renewals | G104: Corporate | H104: Other capital expenditure | I104: 0 | J104: Straight line | K104: Ongoing | L104: 5 | M104: 4.444444444 | O104: 0.891575 | P104: 0.855 | Q104: 0.466925 | R104: 0.393775 | S104: 0.9462 | T104: 0.3325 | U104: 0.3325 | V104: 0.3325 | W104: 0.3325 | X104: 0.3325 | AV104: 0.891575 | AW104: 0.855 | AX104: 0.466925 | AY104: 0.393775 | AZ104: 0.9462 | BA104: 0.3325 | BB104: 0.3325 | BC104: 0.3325 | BD104: 0.3325 | BE104: 0.3325 | BG104: 0.0891575 | BH104: 0.263815 | BI104: 0.3960075 | BJ104: 0.4820775 | BK104: 0.616075 | BL104: 0.6547875 | BM104: 0.54663 | BN104: 0.4809375 | BO104: 0.4613675 | BP104: 0.39387 | BR104: =+IF($K104="Ongoing",AV104,IF(RIGHT($K104,2)=RIGHT(BR$39,2),SUM($AV104:AV104),0)+IF(RIGHT(BR$39,2)>RIGHT($K104,2),AV104,0)) -> 0.891575 | BS104: =+IF($K104="Ongoing",AW104,IF(RIGHT($K104,2)=RIGHT(BS$39,2),SUM($AV104:AW104),0)+IF(RIGHT(BS$39,2)>RIGHT($K104,2),AW104,0)) -> 0.855 | BT104: =+IF($K104="Ongoing",AX104,IF(RIGHT($K104,2)=RIGHT(BT$39,2),SUM($AV104:AX104),0)+IF(RIGHT(BT$39,2)>RIGHT($K104,2),AX104,0)) -> 0.466925 | BU104: =+IF($K104="Ongoing",AY104,IF(RIGHT($K104,2)=RIGHT(BU$39,2),SUM($AV104:AY104),0)+IF(RIGHT(BU$39,2)>RIGHT($K104,2),AY104,0)) -> 0.393775 | BV104: =+IF($K104="Ongoing",AZ104,IF(RIGHT($K104,2)=RIGHT(BV$39,2),SUM($AV104:AZ104),0)+IF(RIGHT(BV$39,2)>RIGHT($K104,2),AZ104,0)) -> 0.9462 | BW104: =+IF($K104="Ongoing",BA104,IF(RIGHT($K104,2)=RIGHT(BW$39,2),SUM($AV104:BA104),0)+IF(RIGHT(BW$39,2)>RIGHT($K104,2),BA104,0)) -> 0.3325 | BX104: =+IF($K104="Ongoing",BB104,IF(RIGHT($K104,2)=RIGHT(BX$39,2),SUM($AV104:BB104),0)+IF(RIGHT(BX$39,2)>RIGHT($K104,2),BB104,0)) -> 0.3325 | BY104: =+IF($K104="Ongoing",BC104,IF(RIGHT($K104,2)=RIGHT(BY$39,2),SUM($AV104:BC104),0)+IF(RIGHT(BY$39,2)>RIGHT($K104,2),BC104,0)) -> 0.3325 | BZ104: =+IF($K104="Ongoing",BD104,IF(RIGHT($K104,2)=RIGHT(BZ$39,2),SUM($AV104:BD104),0)+IF(RIGHT(BZ$39,2)>RIGHT($K104,2),BD104,0)) -> 0.3325 | CA104: =+IF($K104="Ongoing",BE104,IF(RIGHT($K104,2)=RIGHT(CA$39,2),SUM($AV104:BE104),0)+IF(RIGHT(CA$39,2)>RIGHT($K104,2),BE104,0)) -> 0.3325 | CC104: =+O104*KeyAssumptionsPriceControl_FO!X$15 -> 0.912081225 | CD104: =+P104*KeyAssumptionsPriceControl_FO!Y$15 -> 0.894782295 | CE104: =+Q104*KeyAssumptionsPriceControl_FO!Z$15 -> 0.4998895161 | CF104: =+R104*KeyAssumptionsPriceControl_FO!AA$15 -> 0.4312714163 | CG104: =+S104*KeyAssumptionsPriceControl_FO!AB$15 -> 1.060134852 | CH104: =+T104*KeyAssumptionsPriceControl_FO!AC$15 -> 0.3811057066 | CI104: =+U104*KeyAssumptionsPriceControl_FO!AD$15 -> 0.3898711379 | CJ104: =+V104*KeyAssumptionsPriceControl_FO!AE$15 -> 0.3988381741 | CK104: =+W104*KeyAssumptionsPriceControl_FO!AF$15 -> 0.4080114521 | CL104: =+X104*KeyAssumptionsPriceControl_FO!AG$15 -> 0.4173957155 | CN104: 0.1026091378 | CO104: 0.3058812838 | CP104: 0.4627818626 | CQ104: 0.5675374674 | CR104: 0.7239196573 | CS104: 0.6810571812 | CT104: 0.5714022196 | CU104: 0.5485146023 | CV104: 0.5343883236 | CW104: 0.3972041526
C105: Corporate Computer Hardware | D105: 0 | E105: Irrigation | F105: Renewals | G105: Corporate | H105: Other capital expenditure | I105: 0 | J105: Straight line | K105: Ongoing | L105: 5 | M105: 2.5 | O105: 0.0855 | P105: 0.0855 | Q105: 0.0855 | R105: 0.0855 | S105: 0.0855 | T105: 0.0855 | U105: 0.0855 | V105: 0.0855 | W105: 0.0855 | X105: 0.0855 | AV105: 0.0855 | AW105: 0.0855 | AX105: 0.0855 | AY105: 0.0855 | AZ105: 0.0855 | BA105: 0.0855 | BB105: 0.0855 | BC105: 0.0855 | BD105: 0.0855 | BE105: 0.0855 | BG105: 0.00855 | BH105: 0.02565 | BI105: 0.04275 | BJ105: 0.05985 | BK105: 0.07695 | BL105: 0.0855 | BM105: 0.0855 | BN105: 0.0855 | BO105: 0.0855 | BP105: 0.0855 | BR105: =+IF($K105="Ongoing",AV105,IF(RIGHT($K105,2)=RIGHT(BR$39,2),SUM($AV105:AV105),0)+IF(RIGHT(BR$39,2)>RIGHT($K105,2),AV105,0)) -> 0.0855 | BS105: =+IF($K105="Ongoing",AW105,IF(RIGHT($K105,2)=RIGHT(BS$39,2),SUM($AV105:AW105),0)+IF(RIGHT(BS$39,2)>RIGHT($K105,2),AW105,0)) -> 0.0855 | BT105: =+IF($K105="Ongoing",AX105,IF(RIGHT($K105,2)=RIGHT(BT$39,2),SUM($AV105:AX105),0)+IF(RIGHT(BT$39,2)>RIGHT($K105,2),AX105,0)) -> 0.0855 | BU105: =+IF($K105="Ongoing",AY105,IF(RIGHT($K105,2)=RIGHT(BU$39,2),SUM($AV105:AY105),0)+IF(RIGHT(BU$39,2)>RIGHT($K105,2),AY105,0)) -> 0.0855 | BV105: =+IF($K105="Ongoing",AZ105,IF(RIGHT($K105,2)=RIGHT(BV$39,2),SUM($AV105:AZ105),0)+IF(RIGHT(BV$39,2)>RIGHT($K105,2),AZ105,0)) -> 0.0855 | BW105: =+IF($K105="Ongoing",BA105,IF(RIGHT($K105,2)=RIGHT(BW$39,2),SUM($AV105:BA105),0)+IF(RIGHT(BW$39,2)>RIGHT($K105,2),BA105,0)) -> 0.0855 | BX105: =+IF($K105="Ongoing",BB105,IF(RIGHT($K105,2)=RIGHT(BX$39,2),SUM($AV105:BB105),0)+IF(RIGHT(BX$39,2)>RIGHT($K105,2),BB105,0)) -> 0.0855 | BY105: =+IF($K105="Ongoing",BC105,IF(RIGHT($K105,2)=RIGHT(BY$39,2),SUM($AV105:BC105),0)+IF(RIGHT(BY$39,2)>RIGHT($K105,2),BC105,0)) -> 0.0855 | BZ105: =+IF($K105="Ongoing",BD105,IF(RIGHT($K105,2)=RIGHT(BZ$39,2),SUM($AV105:BD105),0)+IF(RIGHT(BZ$39,2)>RIGHT($K105,2),BD105,0)) -> 0.0855 | CA105: =+IF($K105="Ongoing",BE105,IF(RIGHT($K105,2)=RIGHT(CA$39,2),SUM($AV105:BE105),0)+IF(RIGHT(CA$39,2)>RIGHT($K105,2),BE105,0)) -> 0.0855 | CC105: =+O105*KeyAssumptionsPriceControl_FO!X$15 -> 0.0874665 | CD105: =+P105*KeyAssumptionsPriceControl_FO!Y$15 -> 0.0894782295 | CE105: =+Q105*KeyAssumptionsPriceControl_FO!Z$15 -> 0.09153622878 | CF105: =+R105*KeyAssumptionsPriceControl_FO!AA$15 -> 0.09364156204 | CG105: =+S105*KeyAssumptionsPriceControl_FO!AB$15 -> 0.09579531797 | CH105: =+T105*KeyAssumptionsPriceControl_FO!AC$15 -> 0.09799861028 | CI105: =+U105*KeyAssumptionsPriceControl_FO!AD$15 -> 0.1002525783 | CJ105: =+V105*KeyAssumptionsPriceControl_FO!AE$15 -> 0.1025583876 | CK105: =+W105*KeyAssumptionsPriceControl_FO!AF$15 -> 0.1049172305 | CL105: =+X105*KeyAssumptionsPriceControl_FO!AG$15 -> 0.1073303268 | CN105: 0.0174933 | CO105: 0.0528822459 | CP105: 0.05409853756 | CQ105: 0.09032940392 | CR105: 0.09240698021 | CS105: 0.09453234075 | CT105: 0.09670658459 | CU105: 0.09893083604 | CV105: 0.1012062453 | CW105: 0.1035339889
C106: Corporate General Equipment | D106: 0 | E106: Irrigation | F106: Renewals | G106: Corporate | H106: Other capital expenditure | I106: 0 | J106: Straight line | K106: Ongoing | L106: 5 | M106: 6.666666667 | O106: 0.201875 | P106: 0.095 | Q106: 0.111625 | R106: 0.095 | S106: 0.095 | T106: 0.095 | U106: 0.095 | V106: 0.095 | W106: 0.095 | X106: 0.095 | AV106: 0.201875 | AW106: 0.095 | AX106: 0.111625 | AY106: 0.095 | AZ106: 0.095 | BA106: 0.095 | BB106: 0.095 | BC106: 0.095 | BD106: 0.095 | BE106: 0.095 | BG106: 0.0201875 | BH106: 0.049875 | BI106: 0.0705375 | BJ106: 0.0912 | BK106: 0.1102 | BL106: 0.1090125 | BM106: 0.098325 | BN106: 0.0966625 | BO106: 0.095 | BP106: 0.095 | BR106: =+IF($K106="Ongoing",AV106,IF(RIGHT($K106,2)=RIGHT(BR$39,2),SUM($AV106:AV106),0)+IF(RIGHT(BR$39,2)>RIGHT($K106,2),AV106,0)) -> 0.201875 | BS106: =+IF($K106="Ongoing",AW106,IF(RIGHT($K106,2)=RIGHT(BS$39,2),SUM($AV106:AW106),0)+IF(RIGHT(BS$39,2)>RIGHT($K106,2),AW106,0)) -> 0.095 | BT106: =+IF($K106="Ongoing",AX106,IF(RIGHT($K106,2)=RIGHT(BT$39,2),SUM($AV106:AX106),0)+IF(RIGHT(BT$39,2)>RIGHT($K106,2),AX106,0)) -> 0.111625 | BU106: =+IF($K106="Ongoing",AY106,IF(RIGHT($K106,2)=RIGHT(BU$39,2),SUM($AV106:AY106),0)+IF(RIGHT(BU$39,2)>RIGHT($K106,2),AY106,0)) -> 0.095 | BV106: =+IF($K106="Ongoing",AZ106,IF(RIGHT($K106,2)=RIGHT(BV$39,2),SUM($AV106:AZ106),0)+IF(RIGHT(BV$39,2)>RIGHT($K106,2),AZ106,0)) -> 0.095 | BW106: =+IF($K106="Ongoing",BA106,IF(RIGHT($K106,2)=RIGHT(BW$39,2),SUM($AV106:BA106),0)+IF(RIGHT(BW$39,2)>RIGHT($K106,2),BA106,0)) -> 0.095 | BX106: =+IF($K106="Ongoing",BB106,IF(RIGHT($K106,2)=RIGHT(BX$39,2),SUM($AV106:BB106),0)+IF(RIGHT(BX$39,2)>RIGHT($K106,2),BB106,0)) -> 0.095 | BY106: =+IF($K106="Ongoing",BC106,IF(RIGHT($K106,2)=RIGHT(BY$39,2),SUM($AV106:BC106),0)+IF(RIGHT(BY$39,2)>RIGHT($K106,2),BC106,0)) -> 0.095 | BZ106: =+IF($K106="Ongoing",BD106,IF(RIGHT($K106,2)=RIGHT(BZ$39,2),SUM($AV106:BD106),0)+IF(RIGHT(BZ$39,2)>RIGHT($K106,2),BD106,0)) -> 0.095 | CA106: =+IF($K106="Ongoing",BE106,IF(RIGHT($K106,2)=RIGHT(CA$39,2),SUM($AV106:BE106),0)+IF(RIGHT(CA$39,2)>RIGHT($K106,2),BE106,0)) -> 0.095 | CC106: =+O106*KeyAssumptionsPriceControl_FO!X$15 -> 0.206518125 | CD106: =+P106*KeyAssumptionsPriceControl_FO!Y$15 -> 0.099420255 | CE106: =+Q106*KeyAssumptionsPriceControl_FO!Z$15 -> 0.119505632 | CF106: =+R106*KeyAssumptionsPriceControl_FO!AA$15 -> 0.10404618 | CG106: =+S106*KeyAssumptionsPriceControl_FO!AB$15 -> 0.1064392422 | CH106: =+T106*KeyAssumptionsPriceControl_FO!AC$15 -> 0.1088873448 | CI106: =+U106*KeyAssumptionsPriceControl_FO!AD$15 -> 0.1113917537 | CJ106: =+V106*KeyAssumptionsPriceControl_FO!AE$15 -> 0.113953764 | CK106: =+W106*KeyAssumptionsPriceControl_FO!AF$15 -> 0.1165747006 | CL106: =+X106*KeyAssumptionsPriceControl_FO!AG$15 -> 0.1192559187 | CN106: 0.01548885937 | CO106: 0.03843423787 | CP106: 0.0548536794 | CQ106: 0.07162006531 | CR106: 0.08740647197 | CS106: 0.103555966 | CT106: 0.1200768984 | CU106: 0.1111630466 | CV106: 0.1108621964 | CW106: 0.1111257825
C107: Corporate Buildings Combined | D107: 0 | E107: Irrigation | F107: Renewals | G107: Corporate | H107: Other capital expenditure | I107: 0 | J107: Straight line | K107: Ongoing | L107: 80 | M107: 40 | O107: 0.3325 | P107: 0.035625 | Q107: 0.035625 | R107: 0.035625 | S107: 0.035625 | T107: 0.035625 | U107: 0.035625 | V107: 0.035625 | W107: 0.035625 | X107: 0.035625 | AV107: 0.3325 | AW107: 0.035625 | AX107: 0.035625 | AY107: 0.035625 | AZ107: 0.035625 | BA107: 0.035625 | BB107: 0.035625 | BC107: 0.035625 | BD107: 0.035625 | BE107: 0.035625 | BG107: =IF($L107=0,0, IF($L107<=0.5,BR107, IF($J107="straight line", IF((LEFT(BG$39,4)*1)-INT($L107)<LEFT($BG$39,4)*1,0,((OFFSET(BR107,0,-INT($L107+0.5),1,1))/$L107)*(IF($L107-INT($L107)>0.5,$L107-0.5-INT($L107),IF($L107-INT($L107)<=0.5,$L107-0.5-INT($L107)+1,0)))) +BR107/$L107*0.5, IF($J107="Declining Balance",-$BG$38,0)))) -> 0.002078125 | BH107: 0.00437890625 | BI107: 0.00482421875 | BJ107: 0.00526953125 | BK107: 0.00571484375 | BL107: 0.00616015625 | BM107: 0.00660546875 | BN107: 0.00705078125 | BO107: 0.00749609375 | BP107: 0.00794140625 | BR107: =+IF($K107="Ongoing",AV107,IF(RIGHT($K107,2)=RIGHT(BR$39,2),SUM($AV107:AV107),0)+IF(RIGHT(BR$39,2)>RIGHT($K107,2),AV107,0)) -> 0.3325 | BS107: =+IF($K107="Ongoing",AW107,IF(RIGHT($K107,2)=RIGHT(BS$39,2),SUM($AV107:AW107),0)+IF(RIGHT(BS$39,2)>RIGHT($K107,2),AW107,0)) -> 0.035625 | BT107: =+IF($K107="Ongoing",AX107,IF(RIGHT($K107,2)=RIGHT(BT$39,2),SUM($AV107:AX107),0)+IF(RIGHT(BT$39,2)>RIGHT($K107,2),AX107,0)) -> 0.035625 | BU107: =+IF($K107="Ongoing",AY107,IF(RIGHT($K107,2)=RIGHT(BU$39,2),SUM($AV107:AY107),0)+IF(RIGHT(BU$39,2)>RIGHT($K107,2),AY107,0)) -> 0.035625 | BV107: =+IF($K107="Ongoing",AZ107,IF(RIGHT($K107,2)=RIGHT(BV$39,2),SUM($AV107:AZ107),0)+IF(RIGHT(BV$39,2)>RIGHT($K107,2),AZ107,0)) -> 0.035625 | BW107: =+IF($K107="Ongoing",BA107,IF(RIGHT($K107,2)=RIGHT(BW$39,2),SUM($AV107:BA107),0)+IF(RIGHT(BW$39,2)>RIGHT($K107,2),BA107,0)) -> 0.035625 | BX107: =+IF($K107="Ongoing",BB107,IF(RIGHT($K107,2)=RIGHT(BX$39,2),SUM($AV107:BB107),0)+IF(RIGHT(BX$39,2)>RIGHT($K107,2),BB107,0)) -> 0.035625 | BY107: =+IF($K107="Ongoing",BC107,IF(RIGHT($K107,2)=RIGHT(BY$39,2),SUM($AV107:BC107),0)+IF(RIGHT(BY$39,2)>RIGHT($K107,2),BC107,0)) -> 0.035625 | BZ107: =+IF($K107="Ongoing",BD107,IF(RIGHT($K107,2)=RIGHT(BZ$39,2),SUM($AV107:BD107),0)+IF(RIGHT(BZ$39,2)>RIGHT($K107,2),BD107,0)) -> 0.035625 | CA107: =+IF($K107="Ongoing",BE107,IF(RIGHT($K107,2)=RIGHT(CA$39,2),SUM($AV107:BE107),0)+IF(RIGHT(CA$39,2)>RIGHT($K107,2),BE107,0)) -> 0.035625 | CC107: =+O107*KeyAssumptionsPriceControl_FO!X$15 -> 0.3401475 | CD107: =+P107*KeyAssumptionsPriceControl_FO!Y$15 -> 0.03728259562 | CE107: =+Q107*KeyAssumptionsPriceControl_FO!Z$15 -> 0.03814009532 | CF107: =+R107*KeyAssumptionsPriceControl_FO!AA$15 -> 0.03901731752 | CG107: =+S107*KeyAssumptionsPriceControl_FO!AB$15 -> 0.03991471582 | CH107: =+T107*KeyAssumptionsPriceControl_FO!AC$15 -> 0.04083275428 | CI107: =+U107*KeyAssumptionsPriceControl_FO!AD$15 -> 0.04177190763 | CJ107: =+V107*KeyAssumptionsPriceControl_FO!AE$15 -> 0.04273266151 | CK107: =+W107*KeyAssumptionsPriceControl_FO!AF$15 -> 0.04371551272 | CL107: =+X107*KeyAssumptionsPriceControl_FO!AG$15 -> 0.04472096951 | CN107: =IF($M107=0,0, IF($M107<=0.5,CC107, IF($J107="straight line", IF((LEFT(CN$39,4)*1)-INT($M107)<LEFT($CN$39,4)*1,0,((OFFSET(CC107,0,-INT($M107+0.5),1,1))/$M107)*(IF($M107-INT($M107)>0.5,$M107-0.5-INT($M107),IF($M107-INT($M107)<=0.5,$M107-0.5-INT($M107)+1,0)))) +CC107/$M107*0.5, IF($J107="Declining Balance",-$CN$38,0)))) -> 0.00425184375 | CO107: 0.008969719945 | CP107: 0.009912503582 | CQ107: 0.01087697124 | CR107: 0.01186362166 | CS107: 0.01287296504 | CT107: 0.01390552331 | CU107: 0.01496183042 | CV107: 0.0160424326 | CW107: 0.01714788863
AV108: 0 | AW108: 0 | AX108: 0 | AY108: 0 | AZ108: 0 | BA108: 0 | BB108: 0 | BC108: 0 | BD108: 0 | BE108: 0 | BG108: 0 | BH108: 0 | BI108: 0 | BJ108: 0 | BK108: 0 | BL108: 0 | BM108: 0 | BN108: 0 | BO108: 0 | BP108: 0 | BR108: =+IF($K108="Ongoing",AV108,IF(RIGHT($K108,2)=RIGHT(BR$39,2),SUM($AV108:AV108),0)+IF(RIGHT(BR$39,2)>RIGHT($K108,2),AV108,0)) -> 0 | BS108: =+IF($K108="Ongoing",AW108,IF(RIGHT($K108,2)=RIGHT(BS$39,2),SUM($AV108:AW108),0)+IF(RIGHT(BS$39,2)>RIGHT($K108,2),AW108,0)) -> 0 | BT108: =+IF($K108="Ongoing",AX108,IF(RIGHT($K108,2)=RIGHT(BT$39,2),SUM($AV108:AX108),0)+IF(RIGHT(BT$39,2)>RIGHT($K108,2),AX108,0)) -> 0 | BU108: =+IF($K108="Ongoing",AY108,IF(RIGHT($K108,2)=RIGHT(BU$39,2),SUM($AV108:AY108),0)+IF(RIGHT(BU$39,2)>RIGHT($K108,2),AY108,0)) -> 0 | BV108: =+IF($K108="Ongoing",AZ108,IF(RIGHT($K108,2)=RIGHT(BV$39,2),SUM($AV108:AZ108),0)+IF(RIGHT(BV$39,2)>RIGHT($K108,2),AZ108,0)) -> 0 | BW108: =+IF($K108="Ongoing",BA108,IF(RIGHT($K108,2)=RIGHT(BW$39,2),SUM($AV108:BA108),0)+IF(RIGHT(BW$39,2)>RIGHT($K108,2),BA108,0)) -> 0 | BX108: =+IF($K108="Ongoing",BB108,IF(RIGHT($K108,2)=RIGHT(BX$39,2),SUM($AV108:BB108),0)+IF(RIGHT(BX$39,2)>RIGHT($K108,2),BB108,0)) -> 0 | BY108: =+IF($K108="Ongoing",BC108,IF(RIGHT($K108,2)=RIGHT(BY$39,2),SUM($AV108:BC108),0)+IF(RIGHT(BY$39,2)>RIGHT($K108,2),BC108,0)) -> 0 | BZ108: =+IF($K108="Ongoing",BD108,IF(RIGHT($K108,2)=RIGHT(BZ$39,2),SUM($AV108:BD108),0)+IF(RIGHT(BZ$39,2)>RIGHT($K108,2),BD108,0)) -> 0 | CA108: =+IF($K108="Ongoing",BE108,IF(RIGHT($K108,2)=RIGHT(CA$39,2),SUM($AV108:BE108),0)+IF(RIGHT(CA$39,2)>RIGHT($K108,2),BE108,0)) -> 0 | CC108: =+O108*KeyAssumptionsPriceControl_FO!X$15 -> 0 | CD108: =+P108*KeyAssumptionsPriceControl_FO!Y$15 -> 0 | CE108: =+Q108*KeyAssumptionsPriceControl_FO!Z$15 -> 0 | CF108: =+R108*KeyAssumptionsPriceControl_FO!AA$15 -> 0 | CG108: =+S108*KeyAssumptionsPriceControl_FO!AB$15 -> 0 | CH108: =+T108*KeyAssumptionsPriceControl_FO!AC$15 -> 0 | CI108: =+U108*KeyAssumptionsPriceControl_FO!AD$15 -> 0 | CJ108: =+V108*KeyAssumptionsPriceControl_FO!AE$15 -> 0 | CK108: =+W108*KeyAssumptionsPriceControl_FO!AF$15 -> 0 | CL108: =+X108*KeyAssumptionsPriceControl_FO!AG$15 -> 0 | CN108: 0 | CO108: 0 | CP108: 0 | CQ108: 0 | CR108: 0 | CS108: 0 | CT108: 0 | CU108: 0 | CV108: 0 | CW108: 0
C109: Customer contributions Mildura Customer Contributions (Mainly meters) | D109: 0 | E109: Irrigation | F109: Improvements / Compliance | G109: Pipelines/network | H109: Capital programs / Allocation | I109: 0 | J109: Straight line | K109: Ongoing | L109: 45 | M109: 6.666666667 | O109: 0 | P109: 0 | Q109: 0 | R109: 0 | S109: 0 | T109: 0 | U109: 0 | V109: 0 | W109: 0 | X109: 0 | AK109: 0.13 | AL109: 0.13 | AM109: 0.13 | AN109: 0.13 | AO109: 0.13 | AP109: 0.13 | AQ109: 0.13 | AR109: 0.13 | AS109: 0.13 | AT109: 0.13 | AV109: -0.13 | AW109: -0.13 | AX109: -0.13 | AY109: -0.13 | AZ109: -0.13 | BA109: -0.13 | BB109: -0.13 | BC109: -0.13 | BD109: -0.13 | BE109: -0.13 | BG109: -0.001444444444 | BH109: -0.004333333333 | BI109: -0.007222222222 | BJ109: -0.01011111111 | BK109: -0.013 | BL109: -0.01588888889 | BM109: -0.01877777778 | BN109: -0.02166666667 | BO109: -0.02455555556 | BP109: -0.02744444444 | BR109: =+IF($K109="Ongoing",AV109,IF(RIGHT($K109,2)=RIGHT(BR$39,2),SUM($AV109:AV109),0)+IF(RIGHT(BR$39,2)>RIGHT($K109,2),AV109,0)) -> -0.13 | BS109: =+IF($K109="Ongoing",AW109,IF(RIGHT($K109,2)=RIGHT(BS$39,2),SUM($AV109:AW109),0)+IF(RIGHT(BS$39,2)>RIGHT($K109,2),AW109,0)) -> -0.13 | BT109: =+IF($K109="Ongoing",AX109,IF(RIGHT($K109,2)=RIGHT(BT$39,2),SUM($AV109:AX109),0)+IF(RIGHT(BT$39,2)>RIGHT($K109,2),AX109,0)) -> -0.13 | BU109: =+IF($K109="Ongoing",AY109,IF(RIGHT($K109,2)=RIGHT(BU$39,2),SUM($AV109:AY109),0)+IF(RIGHT(BU$39,2)>RIGHT($K109,2),AY109,0)) -> -0.13 | BV109: =+IF($K109="Ongoing",AZ109,IF(RIGHT($K109,2)=RIGHT(BV$39,2),SUM($AV109:AZ109),0)+IF(RIGHT(BV$39,2)>RIGHT($K109,2),AZ109,0)) -> -0.13 | BW109: =+IF($K109="Ongoing",BA109,IF(RIGHT($K109,2)=RIGHT(BW$39,2),SUM($AV109:BA109),0)+IF(RIGHT(BW$39,2)>RIGHT($K109,2),BA109,0)) -> -0.13 | BX109: =+IF($K109="Ongoing",BB109,IF(RIGHT($K109,2)=RIGHT(BX$39,2),SUM($AV109:BB109),0)+IF(RIGHT(BX$39,2)>RIGHT($K109,2),BB109,0)) -> -0.13 | BY109: =+IF($K109="Ongoing",BC109,IF(RIGHT($K109,2)=RIGHT(BY$39,2),SUM($AV109:BC109),0)+IF(RIGHT(BY$39,2)>RIGHT($K109,2),BC109,0)) -> -0.13 | BZ109: =+IF($K109="Ongoing",BD109,IF(RIGHT($K109,2)=RIGHT(BZ$39,2),SUM($AV109:BD109),0)+IF(RIGHT(BZ$39,2)>RIGHT($K109,2),BD109,0)) -> -0.13 | CA109: =+IF($K109="Ongoing",BE109,IF(RIGHT($K109,2)=RIGHT(CA$39,2),SUM($AV109:BE109),0)+IF(RIGHT(CA$39,2)>RIGHT($K109,2),BE109,0)) -> -0.13 | CC109: =+O109*KeyAssumptionsPriceControl_FO!X$15 -> 0 | CD109: =+P109*KeyAssumptionsPriceControl_FO!Y$15 -> 0 | CE109: =+Q109*KeyAssumptionsPriceControl_FO!Z$15 -> 0 | CF109: =+R109*KeyAssumptionsPriceControl_FO!AA$15 -> 0 | CG109: =+S109*KeyAssumptionsPriceControl_FO!AB$15 -> 0 | CH109: =+T109*KeyAssumptionsPriceControl_FO!AC$15 -> 0 | CI109: =+U109*KeyAssumptionsPriceControl_FO!AD$15 -> 0 | CJ109: =+V109*KeyAssumptionsPriceControl_FO!AE$15 -> 0 | CK109: =+W109*KeyAssumptionsPriceControl_FO!AF$15 -> 0 | CL109: =+X109*KeyAssumptionsPriceControl_FO!AG$15 -> 0 | CN109: 0 | CO109: 0 | CP109: 0 | CQ109: 0 | CR109: 0 | CS109: 0 | CT109: 0 | CU109: 0 | CV109: 0 | CW109: 0
C110: Customer contributions Merbein Customer Contributions (Mainly meters) | D110: 0 | E110: Irrigation | F110: Improvements / Compliance | G110: Pipelines/network | H110: Capital programs / Allocation | I110: 0 | J110: Straight line | K110: Ongoing | L110: 45 | M110: 6.666666667 | O110: 0 | P110: 0 | Q110: 0 | R110: 0 | S110: 0 | T110: 0 | U110: 0 | V110: 0 | W110: 0 | X110: 0 | AK110: 0.05 | AL110: 0.05 | AM110: 0.05 | AN110: 0.05 | AO110: 0.05 | AP110: 0.05 | AQ110: 0.05 | AR110: 0.05 | AS110: 0.05 | AT110: 0.05 | AV110: -0.05 | AW110: -0.05 | AX110: -0.05 | AY110: -0.05 | AZ110: =+S110-AD110-AO110 -> -0.05 | BA110: -0.05 | BB110: -0.05 | BC110: -0.05 | BD110: -0.05 | BE110: -0.05 | BG110: -0.0005555555556 | BH110: -0.001666666667 | BI110: -0.002777777778 | BJ110: -0.003888888889 | BK110: -0.005 | BL110: -0.006111111111 | BM110: -0.007222222222 | BN110: -0.008333333333 | BO110: -0.009444444444 | BP110: -0.01055555556 | BR110: =+IF($K110="Ongoing",AV110,IF(RIGHT($K110,2)=RIGHT(BR$39,2),SUM($AV110:AV110),0)+IF(RIGHT(BR$39,2)>RIGHT($K110,2),AV110,0)) -> -0.05 | BS110: =+IF($K110="Ongoing",AW110,IF(RIGHT($K110,2)=RIGHT(BS$39,2),SUM($AV110:AW110),0)+IF(RIGHT(BS$39,2)>RIGHT($K110,2),AW110,0)) -> -0.05 | BT110: =+IF($K110="Ongoing",AX110,IF(RIGHT($K110,2)=RIGHT(BT$39,2),SUM($AV110:AX110),0)+IF(RIGHT(BT$39,2)>RIGHT($K110,2),AX110,0)) -> -0.05 | BU110: =+IF($K110="Ongoing",AY110,IF(RIGHT($K110,2)=RIGHT(BU$39,2),SUM($AV110:AY110),0)+IF(RIGHT(BU$39,2)>RIGHT($K110,2),AY110,0)) -> -0.05 | BV110: =+IF($K110="Ongoing",AZ110,IF(RIGHT($K110,2)=RIGHT(BV$39,2),SUM($AV110:AZ110),0)+IF(RIGHT(BV$39,2)>RIGHT($K110,2),AZ110,0)) -> -0.05 | BW110: =+IF($K110="Ongoing",BA110,IF(RIGHT($K110,2)=RIGHT(BW$39,2),SUM($AV110:BA110),0)+IF(RIGHT(BW$39,2)>RIGHT($K110,2),BA110,0)) -> -0.05 | BX110: =+IF($K110="Ongoing",BB110,IF(RIGHT($K110,2)=RIGHT(BX$39,2),SUM($AV110:BB110),0)+IF(RIGHT(BX$39,2)>RIGHT($K110,2),BB110,0)) -> -0.05 | BY110: =+IF($K110="Ongoing",BC110,IF(RIGHT($K110,2)=RIGHT(BY$39,2),SUM($AV110:BC110),0)+IF(RIGHT(BY$39,2)>RIGHT($K110,2),BC110,0)) -> -0.05 | BZ110: =+IF($K110="Ongoing",BD110,IF(RIGHT($K110,2)=RIGHT(BZ$39,2),SUM($AV110:BD110),0)+IF(RIGHT(BZ$39,2)>RIGHT($K110,2),BD110,0)) -> -0.05 | CA110: =+IF($K110="Ongoing",BE110,IF(RIGHT($K110,2)=RIGHT(CA$39,2),SUM($AV110:BE110),0)+IF(RIGHT(CA$39,2)>RIGHT($K110,2),BE110,0)) -> -0.05 | CC110: =+O110*KeyAssumptionsPriceControl_FO!X$15 -> 0 | CD110: =+P110*KeyAssumptionsPriceControl_FO!Y$15 -> 0 | CE110: =+Q110*KeyAssumptionsPriceControl_FO!Z$15 -> 0 | CF110: =+R110*KeyAssumptionsPriceControl_FO!AA$15 -> 0 | CG110: =+S110*KeyAssumptionsPriceControl_FO!AB$15 -> 0 | CH110: =+T110*KeyAssumptionsPriceControl_FO!AC$15 -> 0 | CI110: =+U110*KeyAssumptionsPriceControl_FO!AD$15 -> 0 | CJ110: =+V110*KeyAssumptionsPriceControl_FO!AE$15 -> 0 | CK110: =+W110*KeyAssumptionsPriceControl_FO!AF$15 -> 0 | CL110: =+X110*KeyAssumptionsPriceControl_FO!AG$15 -> 0 | CN110: 0 | CO110: 0 | CP110: 0 | CQ110: 0 | CR110: 0 | CS110: 0 | CT110: 0 | CU110: 0 | CV110: 0 | CW110: 0
C111: Customer contributions Red Cliffs Customer Contributions (Mainly meters) | D111: 0 | E111: Irrigation | F111: Improvements / Compliance | G111: Pipelines/network | H111: Capital programs / Allocation | I111: 0 | J111: Straight line | K111: Ongoing | L111: 45 | M111: 6.666666667 | O111: 0 | P111: 0 | Q111: 0 | R111: 0 | S111: 0 | T111: 0 | U111: 0 | V111: 0 | W111: 0 | X111: 0 | AK111: 0.08 | AL111: 0.08 | AM111: 0.08 | AN111: 0.08 | AO111: 0.08 | AP111: 0.08 | AQ111: 0.08 | AR111: 0.08 | AS111: 0.08 | AT111: 0.08 | AV111: -0.08 | AW111: -0.08 | AX111: -0.08 | AY111: -0.08 | AZ111: -0.08 | BA111: -0.08 | BB111: -0.08 | BC111: -0.08 | BD111: -0.08 | BE111: -0.08 | BG111: -0.0008888888889 | BH111: -0.002666666667 | BI111: -0.004444444444 | BJ111: -0.006222222222 | BK111: -0.008 | BL111: -0.009777777778 | BM111: -0.01155555556 | BN111: -0.01333333333 | BO111: -0.01511111111 | BP111: -0.01688888889 | BR111: =+IF($K111="Ongoing",AV111,IF(RIGHT($K111,2)=RIGHT(BR$39,2),SUM($AV111:AV111),0)+IF(RIGHT(BR$39,2)>RIGHT($K111,2),AV111,0)) -> -0.08 | BS111: =+IF($K111="Ongoing",AW111,IF(RIGHT($K111,2)=RIGHT(BS$39,2),SUM($AV111:AW111),0)+IF(RIGHT(BS$39,2)>RIGHT($K111,2),AW111,0)) -> -0.08 | BT111: =+IF($K111="Ongoing",AX111,IF(RIGHT($K111,2)=RIGHT(BT$39,2),SUM($AV111:AX111),0)+IF(RIGHT(BT$39,2)>RIGHT($K111,2),AX111,0)) -> -0.08 | BU111: =+IF($K111="Ongoing",AY111,IF(RIGHT($K111,2)=RIGHT(BU$39,2),SUM($AV111:AY111),0)+IF(RIGHT(BU$39,2)>RIGHT($K111,2),AY111,0)) -> -0.08 | BV111: =+IF($K111="Ongoing",AZ111,IF(RIGHT($K111,2)=RIGHT(BV$39,2),SUM($AV111:AZ111),0)+IF(RIGHT(BV$39,2)>RIGHT($K111,2),AZ111,0)) -> -0.08 | BW111: =+IF($K111="Ongoing",BA111,IF(RIGHT($K111,2)=RIGHT(BW$39,2),SUM($AV111:BA111),0)+IF(RIGHT(BW$39,2)>RIGHT($K111,2),BA111,0)) -> -0.08 | BX111: =+IF($K111="Ongoing",BB111,IF(RIGHT($K111,2)=RIGHT(BX$39,2),SUM($AV111:BB111),0)+IF(RIGHT(BX$39,2)>RIGHT($K111,2),BB111,0)) -> -0.08 | BY111: =+IF($K111="Ongoing",BC111,IF(RIGHT($K111,2)=RIGHT(BY$39,2),SUM($AV111:BC111),0)+IF(RIGHT(BY$39,2)>RIGHT($K111,2),BC111,0)) -> -0.08 | BZ111: =+IF($K111="Ongoing",BD111,IF(RIGHT($K111,2)=RIGHT(BZ$39,2),SUM($AV111:BD111),0)+IF(RIGHT(BZ$39,2)>RIGHT($K111,2),BD111,0)) -> -0.08 | CA111: =+IF($K111="Ongoing",BE111,IF(RIGHT($K111,2)=RIGHT(CA$39,2),SUM($AV111:BE111),0)+IF(RIGHT(CA$39,2)>RIGHT($K111,2),BE111,0)) -> -0.08 | CC111: =+O111*KeyAssumptionsPriceControl_FO!X$15 -> 0 | CD111: =+P111*KeyAssumptionsPriceControl_FO!Y$15 -> 0 | CE111: =+Q111*KeyAssumptionsPriceControl_FO!Z$15 -> 0 | CF111: =+R111*KeyAssumptionsPriceControl_FO!AA$15 -> 0 | CG111: =+S111*KeyAssumptionsPriceControl_FO!AB$15 -> 0 | CH111: =+T111*KeyAssumptionsPriceControl_FO!AC$15 -> 0 | CI111: =+U111*KeyAssumptionsPriceControl_FO!AD$15 -> 0 | CJ111: =+V111*KeyAssumptionsPriceControl_FO!AE$15 -> 0 | CK111: =+W111*KeyAssumptionsPriceControl_FO!AF$15 -> 0 | CL111: =+X111*KeyAssumptionsPriceControl_FO!AG$15 -> 0 | CN111: 0 | CO111: 0 | CP111: 0 | CQ111: 0 | CR111: 0 | CS111: 0 | CT111: 0 | CU111: 0 | CV111: 0 | CW111: 0
C112: Customer contributions Divertors Customer Contributions (Mainly meters) | D112: 0 | E112: Irrigation | F112: Improvements / Compliance | G112: Pipelines/network | H112: Capital programs / Allocation | J112: Straight line | K112: Ongoing | L112: 45 | M112: 6.666666667 | O112: 0 | P112: 0 | Q112: 0 | R112: 0 | S112: 0 | T112: 0 | U112: 0 | V112: 0 | W112: 0 | X112: 0 | AK112: 0.04 | AL112: 0.04 | AM112: 0.04 | AN112: 0.04 | AO112: 0.04 | AP112: 0.04 | AQ112: 0.04 | AR112: 0.04 | AS112: 0.04 | AT112: 0.04 | AV112: -0.04 | AW112: -0.04 | AX112: -0.04 | AY112: -0.04 | AZ112: -0.04 | BA112: -0.04 | BB112: -0.04 | BC112: -0.04 | BD112: -0.04 | BE112: -0.04 | BG112: -0.0004444444444 | BH112: -0.001333333333 | BI112: -0.002222222222 | BJ112: -0.003111111111 | BK112: -0.004 | BL112: -0.004888888889 | BM112: -0.005777777778 | BN112: -0.006666666667 | BO112: -0.007555555556 | BP112: -0.008444444444 | BR112: =+IF($K112="Ongoing",AV112,IF(RIGHT($K112,2)=RIGHT(BR$39,2),SUM($AV112:AV112),0)+IF(RIGHT(BR$39,2)>RIGHT($K112,2),AV112,0)) -> -0.04 | BS112: =+IF($K112="Ongoing",AW112,IF(RIGHT($K112,2)=RIGHT(BS$39,2),SUM($AV112:AW112),0)+IF(RIGHT(BS$39,2)>RIGHT($K112,2),AW112,0)) -> -0.04 | BT112: =+IF($K112="Ongoing",AX112,IF(RIGHT($K112,2)=RIGHT(BT$39,2),SUM($AV112:AX112),0)+IF(RIGHT(BT$39,2)>RIGHT($K112,2),AX112,0)) -> -0.04 | BU112: =+IF($K112="Ongoing",AY112,IF(RIGHT($K112,2)=RIGHT(BU$39,2),SUM($AV112:AY112),0)+IF(RIGHT(BU$39,2)>RIGHT($K112,2),AY112,0)) -> -0.04 | BV112: =+IF($K112="Ongoing",AZ112,IF(RIGHT($K112,2)=RIGHT(BV$39,2),SUM($AV112:AZ112),0)+IF(RIGHT(BV$39,2)>RIGHT($K112,2),AZ112,0)) -> -0.04 | BW112: =+IF($K112="Ongoing",BA112,IF(RIGHT($K112,2)=RIGHT(BW$39,2),SUM($AV112:BA112),0)+IF(RIGHT(BW$39,2)>RIGHT($K112,2),BA112,0)) -> -0.04 | BX112: =+IF($K112="Ongoing",BB112,IF(RIGHT($K112,2)=RIGHT(BX$39,2),SUM($AV112:BB112),0)+IF(RIGHT(BX$39,2)>RIGHT($K112,2),BB112,0)) -> -0.04 | BY112: =+IF($K112="Ongoing",BC112,IF(RIGHT($K112,2)=RIGHT(BY$39,2),SUM($AV112:BC112),0)+IF(RIGHT(BY$39,2)>RIGHT($K112,2),BC112,0)) -> -0.04 | BZ112: =+IF($K112="Ongoing",BD112,IF(RIGHT($K112,2)=RIGHT(BZ$39,2),SUM($AV112:BD112),0)+IF(RIGHT(BZ$39,2)>RIGHT($K112,2),BD112,0)) -> -0.04 | CA112: =+IF($K112="Ongoing",BE112,IF(RIGHT($K112,2)=RIGHT(CA$39,2),SUM($AV112:BE112),0)+IF(RIGHT(CA$39,2)>RIGHT($K112,2),BE112,0)) -> -0.04 | CC112: =+O112*KeyAssumptionsPriceControl_FO!X$15 -> 0 | CD112: =+P112*KeyAssumptionsPriceControl_FO!Y$15 -> 0 | CE112: =+Q112*KeyAssumptionsPriceControl_FO!Z$15 -> 0 | CF112: =+R112*KeyAssumptionsPriceControl_FO!AA$15 -> 0 | CG112: =+S112*KeyAssumptionsPriceControl_FO!AB$15 -> 0 | CH112: =+T112*KeyAssumptionsPriceControl_FO!AC$15 -> 0 | CI112: =+U112*KeyAssumptionsPriceControl_FO!AD$15 -> 0 | CJ112: =+V112*KeyAssumptionsPriceControl_FO!AE$15 -> 0 | CK112: =+W112*KeyAssumptionsPriceControl_FO!AF$15 -> 0 | CL112: =+X112*KeyAssumptionsPriceControl_FO!AG$15 -> 0 | CN112: 0 | CO112: 0 | CP112: 0 | CQ112: 0 | CR112: 0 | CS112: 0 | CT112: 0 | CU112: 0 | CV112: 0 | CW112: 0
AV113: 0 | AW113: 0 | AX113: 0 | AY113: 0 | AZ113: 0 | BA113: 0 | BB113: 0 | BC113: 0 | BD113: 0 | BE113: 0 | BG113: 0 | BH113: 0 | BI113: 0 | BJ113: 0 | BK113: 0 | BL113: 0 | BM113: 0 | BN113: 0 | BO113: 0 | BP113: 0 | BR113: =+IF($K113="Ongoing",AV113,IF(RIGHT($K113,2)=RIGHT(BR$39,2),SUM($AV113:AV113),0)+IF(RIGHT(BR$39,2)>RIGHT($K113,2),AV113,0)) -> 0 | BS113: =+IF($K113="Ongoing",AW113,IF(RIGHT($K113,2)=RIGHT(BS$39,2),SUM($AV113:AW113),0)+IF(RIGHT(BS$39,2)>RIGHT($K113,2),AW113,0)) -> 0 | BT113: =+IF($K113="Ongoing",AX113,IF(RIGHT($K113,2)=RIGHT(BT$39,2),SUM($AV113:AX113),0)+IF(RIGHT(BT$39,2)>RIGHT($K113,2),AX113,0)) -> 0 | BU113: =+IF($K113="Ongoing",AY113,IF(RIGHT($K113,2)=RIGHT(BU$39,2),SUM($AV113:AY113),0)+IF(RIGHT(BU$39,2)>RIGHT($K113,2),AY113,0)) -> 0 | BV113: =+IF($K113="Ongoing",AZ113,IF(RIGHT($K113,2)=RIGHT(BV$39,2),SUM($AV113:AZ113),0)+IF(RIGHT(BV$39,2)>RIGHT($K113,2),AZ113,0)) -> 0 | BW113: =+IF($K113="Ongoing",BA113,IF(RIGHT($K113,2)=RIGHT(BW$39,2),SUM($AV113:BA113),0)+IF(RIGHT(BW$39,2)>RIGHT($K113,2),BA113,0)) -> 0 | BX113: =+IF($K113="Ongoing",BB113,IF(RIGHT($K113,2)=RIGHT(BX$39,2),SUM($AV113:BB113),0)+IF(RIGHT(BX$39,2)>RIGHT($K113,2),BB113,0)) -> 0 | BY113: =+IF($K113="Ongoing",BC113,IF(RIGHT($K113,2)=RIGHT(BY$39,2),SUM($AV113:BC113),0)+IF(RIGHT(BY$39,2)>RIGHT($K113,2),BC113,0)) -> 0 | BZ113: =+IF($K113="Ongoing",BD113,IF(RIGHT($K113,2)=RIGHT(BZ$39,2),SUM($AV113:BD113),0)+IF(RIGHT(BZ$39,2)>RIGHT($K113,2),BD113,0)) -> 0 | CA113: =+IF($K113="Ongoing",BE113,IF(RIGHT($K113,2)=RIGHT(CA$39,2),SUM($AV113:BE113),0)+IF(RIGHT(CA$39,2)>RIGHT($K113,2),BE113,0)) -> 0 | CC113: =+O113*KeyAssumptionsPriceControl_FO!X$15 -> 0 | CD113: =+P113*KeyAssumptionsPriceControl_FO!Y$15 -> 0 | CE113: =+Q113*KeyAssumptionsPriceControl_FO!Z$15 -> 0 | CF113: =+R113*KeyAssumptionsPriceControl_FO!AA$15 -> 0 | CG113: =+S113*KeyAssumptionsPriceControl_FO!AB$15 -> 0 | CH113: =+T113*KeyAssumptionsPriceControl_FO!AC$15 -> 0 | CI113: =+U113*KeyAssumptionsPriceControl_FO!AD$15 -> 0 | CJ113: =+V113*KeyAssumptionsPriceControl_FO!AE$15 -> 0 | CK113: =+W113*KeyAssumptionsPriceControl_FO!AF$15 -> 0 | CL113: =+X113*KeyAssumptionsPriceControl_FO!AG$15 -> 0 | CN113: 0 | CO113: 0 | CP113: 0 | CQ113: 0 | CR113: 0 | CS113: 0 | CT113: 0 | CU113: 0 | CV113: 0 | CW113: 0
AV114: 0 | AW114: 0 | AX114: 0 | AY114: 0 | AZ114: 0 | BA114: 0 | BB114: 0 | BC114: 0 | BD114: 0 | BE114: 0 | BG114: 0 | BH114: 0 | BI114: 0 | BJ114: 0 | BK114: 0 | BL114: 0 | BM114: 0 | BN114: 0 | BO114: 0 | BP114: 0 | BR114: =+IF($K114="Ongoing",AV114,IF(RIGHT($K114,2)=RIGHT(BR$39,2),SUM($AV114:AV114),0)+IF(RIGHT(BR$39,2)>RIGHT($K114,2),AV114,0)) -> 0 | BS114: =+IF($K114="Ongoing",AW114,IF(RIGHT($K114,2)=RIGHT(BS$39,2),SUM($AV114:AW114),0)+IF(RIGHT(BS$39,2)>RIGHT($K114,2),AW114,0)) -> 0 | BT114: =+IF($K114="Ongoing",AX114,IF(RIGHT($K114,2)=RIGHT(BT$39,2),SUM($AV114:AX114),0)+IF(RIGHT(BT$39,2)>RIGHT($K114,2),AX114,0)) -> 0 | BU114: =+IF($K114="Ongoing",AY114,IF(RIGHT($K114,2)=RIGHT(BU$39,2),SUM($AV114:AY114),0)+IF(RIGHT(BU$39,2)>RIGHT($K114,2),AY114,0)) -> 0 | BV114: =+IF($K114="Ongoing",AZ114,IF(RIGHT($K114,2)=RIGHT(BV$39,2),SUM($AV114:AZ114),0)+IF(RIGHT(BV$39,2)>RIGHT($K114,2),AZ114,0)) -> 0 | BW114: =+IF($K114="Ongoing",BA114,IF(RIGHT($K114,2)=RIGHT(BW$39,2),SUM($AV114:BA114),0)+IF(RIGHT(BW$39,2)>RIGHT($K114,2),BA114,0)) -> 0 | BX114: =+IF($K114="Ongoing",BB114,IF(RIGHT($K114,2)=RIGHT(BX$39,2),SUM($AV114:BB114),0)+IF(RIGHT(BX$39,2)>RIGHT($K114,2),BB114,0)) -> 0 | BY114: =+IF($K114="Ongoing",BC114,IF(RIGHT($K114,2)=RIGHT(BY$39,2),SUM($AV114:BC114),0)+IF(RIGHT(BY$39,2)>RIGHT($K114,2),BC114,0)) -> 0 | BZ114: =+IF($K114="Ongoing",BD114,IF(RIGHT($K114,2)=RIGHT(BZ$39,2),SUM($AV114:BD114),0)+IF(RIGHT(BZ$39,2)>RIGHT($K114,2),BD114,0)) -> 0 | CA114: =+IF($K114="Ongoing",BE114,IF(RIGHT($K114,2)=RIGHT(CA$39,2),SUM($AV114:BE114),0)+IF(RIGHT(CA$39,2)>RIGHT($K114,2),BE114,0)) -> 0 | CC114: =+O114*KeyAssumptionsPriceControl_FO!X$15 -> 0 | CD114: =+P114*KeyAssumptionsPriceControl_FO!Y$15 -> 0 | CE114: =+Q114*KeyAssumptionsPriceControl_FO!Z$15 -> 0 | CF114: =+R114*KeyAssumptionsPriceControl_FO!AA$15 -> 0 | CG114: =+S114*KeyAssumptionsPriceControl_FO!AB$15 -> 0 | CH114: =+T114*KeyAssumptionsPriceControl_FO!AC$15 -> 0 | CI114: =+U114*KeyAssumptionsPriceControl_FO!AD$15 -> 0 | CJ114: =+V114*KeyAssumptionsPriceControl_FO!AE$15 -> 0 | CK114: =+W114*KeyAssumptionsPriceControl_FO!AF$15 -> 0 | CL114: =+X114*KeyAssumptionsPriceControl_FO!AG$15 -> 0 | CN114: 0 | CO114: 0 | CP114: 0 | CQ114: 0 | CR114: 0 | CS114: 0 | CT114: 0 | CU114: 0 | CV114: 0 | CW114: 0
C115: Government contributions Millewa 0 | D115: 0 | E115: Domestic and stock | F115: Improvements / Compliance | G115: Pipelines/network | H115: Capital programs / Allocation | I115: 0 | J115: Straight line | K115: Ongoing | L115: 45 | M115: 22.22222222 | O115: 0 | P115: 0 | Q115: 0 | R115: 0 | S115: 0 | T115: 0 | U115: 0 | V115: 0 | W115: 0 | X115: 0 | Z115: 1.05 | AA115: 0 | AB115: 0 | AC115: 0 | AD115: 0 | AE115: 0 | AF115: 0 | AG115: 0 | AH115: 0 | AI115: 0 | AV115: -1.05 | AW115: 0 | AX115: 0 | AY115: 0 | AZ115: 0 | BA115: 0 | BB115: 0 | BC115: 0 | BD115: 0 | BE115: 0 | BG115: -0.01166666667 | BH115: -0.02333333333 | BI115: -0.02333333333 | BJ115: -0.02333333333 | BK115: -0.02333333333 | BL115: -0.02333333333 | BM115: -0.02333333333 | BN115: -0.02333333333 | BO115: -0.02333333333 | BP115: -0.02333333333 | BR115: =+IF($K115="Ongoing",AV115,IF(RIGHT($K115,2)=RIGHT(BR$39,2),SUM($AV115:AV115),0)+IF(RIGHT(BR$39,2)>RIGHT($K115,2),AV115,0)) -> -1.05 | BS115: =+IF($K115="Ongoing",AW115,IF(RIGHT($K115,2)=RIGHT(BS$39,2),SUM($AV115:AW115),0)+IF(RIGHT(BS$39,2)>RIGHT($K115,2),AW115,0)) -> 0 | BT115: =+IF($K115="Ongoing",AX115,IF(RIGHT($K115,2)=RIGHT(BT$39,2),SUM($AV115:AX115),0)+IF(RIGHT(BT$39,2)>RIGHT($K115,2),AX115,0)) -> 0 | BU115: =+IF($K115="Ongoing",AY115,IF(RIGHT($K115,2)=RIGHT(BU$39,2),SUM($AV115:AY115),0)+IF(RIGHT(BU$39,2)>RIGHT($K115,2),AY115,0)) -> 0 | BV115: =+IF($K115="Ongoing",AZ115,IF(RIGHT($K115,2)=RIGHT(BV$39,2),SUM($AV115:AZ115),0)+IF(RIGHT(BV$39,2)>RIGHT($K115,2),AZ115,0)) -> 0 | BW115: =+IF($K115="Ongoing",BA115,IF(RIGHT($K115,2)=RIGHT(BW$39,2),SUM($AV115:BA115),0)+IF(RIGHT(BW$39,2)>RIGHT($K115,2),BA115,0)) -> 0 | BX115: =+IF($K115="Ongoing",BB115,IF(RIGHT($K115,2)=RIGHT(BX$39,2),SUM($AV115:BB115),0)+IF(RIGHT(BX$39,2)>RIGHT($K115,2),BB115,0)) -> 0 | BY115: =+IF($K115="Ongoing",BC115,IF(RIGHT($K115,2)=RIGHT(BY$39,2),SUM($AV115:BC115),0)+IF(RIGHT(BY$39,2)>RIGHT($K115,2),BC115,0)) -> 0 | BZ115: =+IF($K115="Ongoing",BD115,IF(RIGHT($K115,2)=RIGHT(BZ$39,2),SUM($AV115:BD115),0)+IF(RIGHT(BZ$39,2)>RIGHT($K115,2),BD115,0)) -> 0 | CA115: =+IF($K115="Ongoing",BE115,IF(RIGHT($K115,2)=RIGHT(CA$39,2),SUM($AV115:BE115),0)+IF(RIGHT(CA$39,2)>RIGHT($K115,2),BE115,0)) -> 0 | CC115: =+O115*KeyAssumptionsPriceControl_FO!X$15 -> 0 | CD115: =+P115*KeyAssumptionsPriceControl_FO!Y$15 -> 0 | CE115: =+Q115*KeyAssumptionsPriceControl_FO!Z$15 -> 0 | CF115: =+R115*KeyAssumptionsPriceControl_FO!AA$15 -> 0 | CG115: =+S115*KeyAssumptionsPriceControl_FO!AB$15 -> 0 | CH115: =+T115*KeyAssumptionsPriceControl_FO!AC$15 -> 0 | CI115: =+U115*KeyAssumptionsPriceControl_FO!AD$15 -> 0 | CJ115: =+V115*KeyAssumptionsPriceControl_FO!AE$15 -> 0 | CK115: =+W115*KeyAssumptionsPriceControl_FO!AF$15 -> 0 | CL115: =+X115*KeyAssumptionsPriceControl_FO!AG$15 -> 0 | CN115: 0 | CO115: 0 | CP115: 0 | CQ115: 0 | CR115: 0 | CS115: 0 | CT115: 0 | CU115: 0 | CV115: 0 | CW115: 0
C116: [Capex Item - Significant Project / Capital Program / Other Capex] | E116: [Service] | F116: [Major Cost Driver] | G116: [Asset category] | H116: [Capital type] | J116: Straight line | K116: [Year finalised?] | AV116: 0 | AW116: 0 | AX116: 0 | AY116: 0 | AZ116: 0 | BA116: 0 | BB116: 0 | BC116: 0 | BD116: 0 | BE116: 0 | BG116: 0 | BH116: 0 | BI116: 0 | BJ116: 0 | BK116: 0 | BL116: 0 | BM116: 0 | BN116: 0 | BO116: 0 | BP116: 0 | BR116: =+IF($K116="Ongoing",AV116,IF(RIGHT($K116,2)=RIGHT(BR$39,2),SUM($AV116:AV116),0)+IF(RIGHT(BR$39,2)>RIGHT($K116,2),AV116,0)) -> 0 | BS116: =+IF($K116="Ongoing",AW116,IF(RIGHT($K116,2)=RIGHT(BS$39,2),SUM($AV116:AW116),0)+IF(RIGHT(BS$39,2)>RIGHT($K116,2),AW116,0)) -> 0 | BT116: =+IF($K116="Ongoing",AX116,IF(RIGHT($K116,2)=RIGHT(BT$39,2),SUM($AV116:AX116),0)+IF(RIGHT(BT$39,2)>RIGHT($K116,2),AX116,0)) -> 0 | BU116: =+IF($K116="Ongoing",AY116,IF(RIGHT($K116,2)=RIGHT(BU$39,2),SUM($AV116:AY116),0)+IF(RIGHT(BU$39,2)>RIGHT($K116,2),AY116,0)) -> 0 | BV116: =+IF($K116="Ongoing",AZ116,IF(RIGHT($K116,2)=RIGHT(BV$39,2),SUM($AV116:AZ116),0)+IF(RIGHT(BV$39,2)>RIGHT($K116,2),AZ116,0)) -> 0 | BW116: =+IF($K116="Ongoing",BA116,IF(RIGHT($K116,2)=RIGHT(BW$39,2),SUM($AV116:BA116),0)+IF(RIGHT(BW$39,2)>RIGHT($K116,2),BA116,0)) -> 0 | BX116: =+IF($K116="Ongoing",BB116,IF(RIGHT($K116,2)=RIGHT(BX$39,2),SUM($AV116:BB116),0)+IF(RIGHT(BX$39,2)>RIGHT($K116,2),BB116,0)) -> 0 | BY116: =+IF($K116="Ongoing",BC116,IF(RIGHT($K116,2)=RIGHT(BY$39,2),SUM($AV116:BC116),0)+IF(RIGHT(BY$39,2)>RIGHT($K116,2),BC116,0)) -> 0 | BZ116: =+IF($K116="Ongoing",BD116,IF(RIGHT($K116,2)=RIGHT(BZ$39,2),SUM($AV116:BD116),0)+IF(RIGHT(BZ$39,2)>RIGHT($K116,2),BD116,0)) -> 0 | CA116: =+IF($K116="Ongoing",BE116,IF(RIGHT($K116,2)=RIGHT(CA$39,2),SUM($AV116:BE116),0)+IF(RIGHT(CA$39,2)>RIGHT($K116,2),BE116,0)) -> 0 | CC116: =+O116*KeyAssumptionsPriceControl_FO!X$15 -> 0 | CD116: =+P116*KeyAssumptionsPriceControl_FO!Y$15 -> 0 | CE116: =+Q116*KeyAssumptionsPriceControl_FO!Z$15 -> 0 | CF116: =+R116*KeyAssumptionsPriceControl_FO!AA$15 -> 0 | CG116: =+S116*KeyAssumptionsPriceControl_FO!AB$15 -> 0 | CH116: =+T116*KeyAssumptionsPriceControl_FO!AC$15 -> 0 | CI116: =+U116*KeyAssumptionsPriceControl_FO!AD$15 -> 0 | CJ116: =+V116*KeyAssumptionsPriceControl_FO!AE$15 -> 0 | CK116: =+W116*KeyAssumptionsPriceControl_FO!AF$15 -> 0 | CL116: =+X116*KeyAssumptionsPriceControl_FO!AG$15 -> 0 | CN116: 0 | CO116: 0 | CP116: 0 | CQ116: 0 | CR116: 0 | CS116: 0 | CT116: 0 | CU116: 0 | CV116: 0 | CW116: 0
C117: [Capex Item - Significant Project / Capital Program / Other Capex] | E117: [Service] | F117: [Major Cost Driver] | G117: [Asset category] | H117: [Capital type] | J117: Straight line | K117: [Year finalised?] | AV117: 0 | AW117: 0 | AX117: 0 | AY117: 0 | AZ117: 0 | BA117: 0 | BB117: 0 | BC117: 0 | BD117: 0 | BE117: 0 | BG117: 0 | BH117: 0 | BI117: 0 | BJ117: 0 | BK117: 0 | BL117: 0 | BM117: 0 | BN117: 0 | BO117: 0 | BP117: 0 | BR117: =+IF($K117="Ongoing",AV117,IF(RIGHT($K117,2)=RIGHT(BR$39,2),SUM($AV117:AV117),0)+IF(RIGHT(BR$39,2)>RIGHT($K117,2),AV117,0)) -> 0 | BS117: =+IF($K117="Ongoing",AW117,IF(RIGHT($K117,2)=RIGHT(BS$39,2),SUM($AV117:AW117),0)+IF(RIGHT(BS$39,2)>RIGHT($K117,2),AW117,0)) -> 0 | BT117: =+IF($K117="Ongoing",AX117,IF(RIGHT($K117,2)=RIGHT(BT$39,2),SUM($AV117:AX117),0)+IF(RIGHT(BT$39,2)>RIGHT($K117,2),AX117,0)) -> 0 | BU117: =+IF($K117="Ongoing",AY117,IF(RIGHT($K117,2)=RIGHT(BU$39,2),SUM($AV117:AY117),0)+IF(RIGHT(BU$39,2)>RIGHT($K117,2),AY117,0)) -> 0 | BV117: =+IF($K117="Ongoing",AZ117,IF(RIGHT($K117,2)=RIGHT(BV$39,2),SUM($AV117:AZ117),0)+IF(RIGHT(BV$39,2)>RIGHT($K117,2),AZ117,0)) -> 0 | BW117: =+IF($K117="Ongoing",BA117,IF(RIGHT($K117,2)=RIGHT(BW$39,2),SUM($AV117:BA117),0)+IF(RIGHT(BW$39,2)>RIGHT($K117,2),BA117,0)) -> 0 | BX117: =+IF($K117="Ongoing",BB117,IF(RIGHT($K117,2)=RIGHT(BX$39,2),SUM($AV117:BB117),0)+IF(RIGHT(BX$39,2)>RIGHT($K117,2),BB117,0)) -> 0 | BY117: =+IF($K117="Ongoing",BC117,IF(RIGHT($K117,2)=RIGHT(BY$39,2),SUM($AV117:BC117),0)+IF(RIGHT(BY$39,2)>RIGHT($K117,2),BC117,0)) -> 0 | BZ117: =+IF($K117="Ongoing",BD117,IF(RIGHT($K117,2)=RIGHT(BZ$39,2),SUM($AV117:BD117),0)+IF(RIGHT(BZ$39,2)>RIGHT($K117,2),BD117,0)) -> 0 | CA117: =+IF($K117="Ongoing",BE117,IF(RIGHT($K117,2)=RIGHT(CA$39,2),SUM($AV117:BE117),0)+IF(RIGHT(CA$39,2)>RIGHT($K117,2),BE117,0)) -> 0 | CC117: =+O117*KeyAssumptionsPriceControl_FO!X$15 -> 0 | CD117: =+P117*KeyAssumptionsPriceControl_FO!Y$15 -> 0 | CE117: =+Q117*KeyAssumptionsPriceControl_FO!Z$15 -> 0 | CF117: =+R117*KeyAssumptionsPriceControl_FO!AA$15 -> 0 | CG117: =+S117*KeyAssumptionsPriceControl_FO!AB$15 -> 0 | CH117: =+T117*KeyAssumptionsPriceControl_FO!AC$15 -> 0 | CI117: =+U117*KeyAssumptionsPriceControl_FO!AD$15 -> 0 | CJ117: =+V117*KeyAssumptionsPriceControl_FO!AE$15 -> 0 | CK117: =+W117*KeyAssumptionsPriceControl_FO!AF$15 -> 0 | CL117: =+X117*KeyAssumptionsPriceControl_FO!AG$15 -> 0 | CN117: 0 | CO117: 0 | CP117: 0 | CQ117: 0 | CR117: 0 | CS117: 0 | CT117: 0 | CU117: 0 | CV117: 0 | CW117: 0
C118: [Capex Item - Significant Project / Capital Program / Other Capex] | E118: [Service] | F118: [Major Cost Driver] | G118: [Asset category] | H118: [Capital type] | J118: Straight line | K118: [Year finalised?] | AV118: 0 | AW118: 0 | AX118: 0 | AY118: 0 | AZ118: 0 | BA118: 0 | BB118: 0 | BC118: 0 | BD118: 0 | BE118: 0 | BG118: 0 | BH118: 0 | BI118: 0 | BJ118: 0 | BK118: 0 | BL118: 0 | BM118: 0 | BN118: 0 | BO118: 0 | BP118: 0 | BR118: =+IF($K118="Ongoing",AV118,IF(RIGHT($K118,2)=RIGHT(BR$39,2),SUM($AV118:AV118),0)+IF(RIGHT(BR$39,2)>RIGHT($K118,2),AV118,0)) -> 0 | BS118: =+IF($K118="Ongoing",AW118,IF(RIGHT($K118,2)=RIGHT(BS$39,2),SUM($AV118:AW118),0)+IF(RIGHT(BS$39,2)>RIGHT($K118,2),AW118,0)) -> 0 | BT118: =+IF($K118="Ongoing",AX118,IF(RIGHT($K118,2)=RIGHT(BT$39,2),SUM($AV118:AX118),0)+IF(RIGHT(BT$39,2)>RIGHT($K118,2),AX118,0)) -> 0 | BU118: =+IF($K118="Ongoing",AY118,IF(RIGHT($K118,2)=RIGHT(BU$39,2),SUM($AV118:AY118),0)+IF(RIGHT(BU$39,2)>RIGHT($K118,2),AY118,0)) -> 0 | BV118: =+IF($K118="Ongoing",AZ118,IF(RIGHT($K118,2)=RIGHT(BV$39,2),SUM($AV118:AZ118),0)+IF(RIGHT(BV$39,2)>RIGHT($K118,2),AZ118,0)) -> 0 | BW118: =+IF($K118="Ongoing",BA118,IF(RIGHT($K118,2)=RIGHT(BW$39,2),SUM($AV118:BA118),0)+IF(RIGHT(BW$39,2)>RIGHT($K118,2),BA118,0)) -> 0 | BX118: =+IF($K118="Ongoing",BB118,IF(RIGHT($K118,2)=RIGHT(BX$39,2),SUM($AV118:BB118),0)+IF(RIGHT(BX$39,2)>RIGHT($K118,2),BB118,0)) -> 0 | BY118: =+IF($K118="Ongoing",BC118,IF(RIGHT($K118,2)=RIGHT(BY$39,2),SUM($AV118:BC118),0)+IF(RIGHT(BY$39,2)>RIGHT($K118,2),BC118,0)) -> 0 | BZ118: =+IF($K118="Ongoing",BD118,IF(RIGHT($K118,2)=RIGHT(BZ$39,2),SUM($AV118:BD118),0)+IF(RIGHT(BZ$39,2)>RIGHT($K118,2),BD118,0)) -> 0 | CA118: =+IF($K118="Ongoing",BE118,IF(RIGHT($K118,2)=RIGHT(CA$39,2),SUM($AV118:BE118),0)+IF(RIGHT(CA$39,2)>RIGHT($K118,2),BE118,0)) -> 0 | CC118: =+O118*KeyAssumptionsPriceControl_FO!X$15 -> 0 | CD118: =+P118*KeyAssumptionsPriceControl_FO!Y$15 -> 0 | CE118: =+Q118*KeyAssumptionsPriceControl_FO!Z$15 -> 0 | CF118: =+R118*KeyAssumptionsPriceControl_FO!AA$15 -> 0 | CG118: =+S118*KeyAssumptionsPriceControl_FO!AB$15 -> 0 | CH118: =+T118*KeyAssumptionsPriceControl_FO!AC$15 -> 0 | CI118: =+U118*KeyAssumptionsPriceControl_FO!AD$15 -> 0 | CJ118: =+V118*KeyAssumptionsPriceControl_FO!AE$15 -> 0 | CK118: =+W118*KeyAssumptionsPriceControl_FO!AF$15 -> 0 | CL118: =+X118*KeyAssumptionsPriceControl_FO!AG$15 -> 0 | CN118: 0 | CO118: 0 | CP118: 0 | CQ118: 0 | CR118: 0 | CS118: 0 | CT118: 0 | CU118: 0 | CV118: 0 | CW118: 0
C119: [Capex Item - Significant Project / Capital Program / Other Capex] | E119: [Service] | F119: [Major Cost Driver] | G119: [Asset category] | H119: [Capital type] | J119: Straight line | K119: [Year finalised?] | AV119: 0 | AW119: 0 | AX119: 0 | AY119: 0 | AZ119: 0 | BA119: 0 | BB119: 0 | BC119: 0 | BD119: 0 | BE119: 0 | BG119: 0 | BH119: 0 | BI119: 0 | BJ119: 0 | BK119: 0 | BL119: 0 | BM119: 0 | BN119: 0 | BO119: 0 | BP119: 0 | BR119: =+IF($K119="Ongoing",AV119,IF(RIGHT($K119,2)=RIGHT(BR$39,2),SUM($AV119:AV119),0)+IF(RIGHT(BR$39,2)>RIGHT($K119,2),AV119,0)) -> 0 | BS119: =+IF($K119="Ongoing",AW119,IF(RIGHT($K119,2)=RIGHT(BS$39,2),SUM($AV119:AW119),0)+IF(RIGHT(BS$39,2)>RIGHT($K119,2),AW119,0)) -> 0 | BT119: =+IF($K119="Ongoing",AX119,IF(RIGHT($K119,2)=RIGHT(BT$39,2),SUM($AV119:AX119),0)+IF(RIGHT(BT$39,2)>RIGHT($K119,2),AX119,0)) -> 0 | BU119: =+IF($K119="Ongoing",AY119,IF(RIGHT($K119,2)=RIGHT(BU$39,2),SUM($AV119:AY119),0)+IF(RIGHT(BU$39,2)>RIGHT($K119,2),AY119,0)) -> 0 | BV119: =+IF($K119="Ongoing",AZ119,IF(RIGHT($K119,2)=RIGHT(BV$39,2),SUM($AV119:AZ119),0)+IF(RIGHT(BV$39,2)>RIGHT($K119,2),AZ119,0)) -> 0 | BW119: =+IF($K119="Ongoing",BA119,IF(RIGHT($K119,2)=RIGHT(BW$39,2),SUM($AV119:BA119),0)+IF(RIGHT(BW$39,2)>RIGHT($K119,2),BA119,0)) -> 0 | BX119: =+IF($K119="Ongoing",BB119,IF(RIGHT($K119,2)=RIGHT(BX$39,2),SUM($AV119:BB119),0)+IF(RIGHT(BX$39,2)>RIGHT($K119,2),BB119,0)) -> 0 | BY119: =+IF($K119="Ongoing",BC119,IF(RIGHT($K119,2)=RIGHT(BY$39,2),SUM($AV119:BC119),0)+IF(RIGHT(BY$39,2)>RIGHT($K119,2),BC119,0)) -> 0 | BZ119: =+IF($K119="Ongoing",BD119,IF(RIGHT($K119,2)=RIGHT(BZ$39,2),SUM($AV119:BD119),0)+IF(RIGHT(BZ$39,2)>RIGHT($K119,2),BD119,0)) -> 0 | CA119: =+IF($K119="Ongoing",BE119,IF(RIGHT($K119,2)=RIGHT(CA$39,2),SUM($AV119:BE119),0)+IF(RIGHT(CA$39,2)>RIGHT($K119,2),BE119,0)) -> 0 | CC119: =+O119*KeyAssumptionsPriceControl_FO!X$15 -> 0 | CD119: =+P119*KeyAssumptionsPriceControl_FO!Y$15 -> 0 | CE119: =+Q119*KeyAssumptionsPriceControl_FO!Z$15 -> 0 | CF119: =+R119*KeyAssumptionsPriceControl_FO!AA$15 -> 0 | CG119: =+S119*KeyAssumptionsPriceControl_FO!AB$15 -> 0 | CH119: =+T119*KeyAssumptionsPriceControl_FO!AC$15 -> 0 | CI119: =+U119*KeyAssumptionsPriceControl_FO!AD$15 -> 0 | CJ119: =+V119*KeyAssumptionsPriceControl_FO!AE$15 -> 0 | CK119: =+W119*KeyAssumptionsPriceControl_FO!AF$15 -> 0 | CL119: =+X119*KeyAssumptionsPriceControl_FO!AG$15 -> 0 | CN119: 0 | CO119: 0 | CP119: 0 | CQ119: 0 | CR119: 0 | CS119: 0 | CT119: 0 | CU119: 0 | CV119: 0 | CW119: 0
C120: [Capex Item - Significant Project / Capital Program / Other Capex] | E120: [Service] | F120: [Major Cost Driver] | G120: [Asset category] | H120: [Capital type] | J120: Straight line | K120: [Year finalised?] | AV120: 0 | AW120: 0 | AX120: 0 | AY120: 0 | AZ120: 0 | BA120: 0 | BB120: 0 | BC120: 0 | BD120: 0 | BE120: 0 | BG120: 0 | BH120: 0 | BI120: 0 | BJ120: 0 | BK120: 0 | BL120: 0 | BM120: 0 | BN120: 0 | BO120: 0 | BP120: 0 | BR120: =+IF($K120="Ongoing",AV120,IF(RIGHT($K120,2)=RIGHT(BR$39,2),SUM($AV120:AV120),0)+IF(RIGHT(BR$39,2)>RIGHT($K120,2),AV120,0)) -> 0 | BS120: =+IF($K120="Ongoing",AW120,IF(RIGHT($K120,2)=RIGHT(BS$39,2),SUM($AV120:AW120),0)+IF(RIGHT(BS$39,2)>RIGHT($K120,2),AW120,0)) -> 0 | BT120: =+IF($K120="Ongoing",AX120,IF(RIGHT($K120,2)=RIGHT(BT$39,2),SUM($AV120:AX120),0)+IF(RIGHT(BT$39,2)>RIGHT($K120,2),AX120,0)) -> 0 | BU120: =+IF($K120="Ongoing",AY120,IF(RIGHT($K120,2)=RIGHT(BU$39,2),SUM($AV120:AY120),0)+IF(RIGHT(BU$39,2)>RIGHT($K120,2),AY120,0)) -> 0 | BV120: =+IF($K120="Ongoing",AZ120,IF(RIGHT($K120,2)=RIGHT(BV$39,2),SUM($AV120:AZ120),0)+IF(RIGHT(BV$39,2)>RIGHT($K120,2),AZ120,0)) -> 0 | BW120: =+IF($K120="Ongoing",BA120,IF(RIGHT($K120,2)=RIGHT(BW$39,2),SUM($AV120:BA120),0)+IF(RIGHT(BW$39,2)>RIGHT($K120,2),BA120,0)) -> 0 | BX120: =+IF($K120="Ongoing",BB120,IF(RIGHT($K120,2)=RIGHT(BX$39,2),SUM($AV120:BB120),0)+IF(RIGHT(BX$39,2)>RIGHT($K120,2),BB120,0)) -> 0 | BY120: =+IF($K120="Ongoing",BC120,IF(RIGHT($K120,2)=RIGHT(BY$39,2),SUM($AV120:BC120),0)+IF(RIGHT(BY$39,2)>RIGHT($K120,2),BC120,0)) -> 0 | BZ120: =+IF($K120="Ongoing",BD120,IF(RIGHT($K120,2)=RIGHT(BZ$39,2),SUM($AV120:BD120),0)+IF(RIGHT(BZ$39,2)>RIGHT($K120,2),BD120,0)) -> 0 | CA120: =+IF($K120="Ongoing",BE120,IF(RIGHT($K120,2)=RIGHT(CA$39,2),SUM($AV120:BE120),0)+IF(RIGHT(CA$39,2)>RIGHT($K120,2),BE120,0)) -> 0 | CC120: =+O120*KeyAssumptionsPriceControl_FO!X$15 -> 0 | CD120: =+P120*KeyAssumptionsPriceControl_FO!Y$15 -> 0 | CE120: =+Q120*KeyAssumptionsPriceControl_FO!Z$15 -> 0 | CF120: =+R120*KeyAssumptionsPriceControl_FO!AA$15 -> 0 | CG120: =+S120*KeyAssumptionsPriceControl_FO!AB$15 -> 0 | CH120: =+T120*KeyAssumptionsPriceControl_FO!AC$15 -> 0 | CI120: =+U120*KeyAssumptionsPriceControl_FO!AD$15 -> 0 | CJ120: =+V120*KeyAssumptionsPriceControl_FO!AE$15 -> 0 | CK120: =+W120*KeyAssumptionsPriceControl_FO!AF$15 -> 0 | CL120: =+X120*KeyAssumptionsPriceControl_FO!AG$15 -> 0 | CN120: 0 | CO120: 0 | CP120: 0 | CQ120: 0 | CR120: 0 | CS120: 0 | CT120: 0 | CU120: 0 | CV120: 0 | CW120: 0
C121: [Capex Item - Significant Project / Capital Program / Other Capex] | E121: [Service] | F121: [Major Cost Driver] | G121: [Asset category] | H121: [Capital type] | J121: Straight line | K121: [Year finalised?] | AV121: 0 | AW121: 0 | AX121: 0 | AY121: 0 | AZ121: 0 | BA121: 0 | BB121: 0 | BC121: 0 | BD121: 0 | BE121: 0 | BG121: 0 | BH121: 0 | BI121: 0 | BJ121: 0 | BK121: =IF($L121=0,0, IF($L121<=0.5,BV121, IF(AND($J121="straight line",$L121<1.51),(BU121-((BU121/$L121)*0.5))+BV121/$L121*0.5, IF($J121="straight line", IF((LEFT(BK$39,4)*1)-INT($L121)<LEFT($BG$39,4)*1,0,((OFFSET(BV121,0,-INT($L121+0.5),1,1))/$L121)*(IF($L121-INT($L121)>0.5,$L121-0.5-INT($L121),IF($L121-INT($L121)<=0.5,$L121-0.5-INT($L121)+1,0)))) +BV121/$L121*0.5 +SUM(OFFSET(BV121,0,MAX(-INT($L121+(0.5-(10^-12))),-BK$40)+1,1,MIN(INT($L121+(0.5-(10^-12))),BK$40)-1))*1/$L121, IF($J121="Declining Balance",-$BG$38,0))))) -> 0 | BL121: 0 | BM121: 0 | BN121: 0 | BO121: 0 | BP121: 0 | BR121: =+IF($K121="Ongoing",AV121,IF(RIGHT($K121,2)=RIGHT(BR$39,2),SUM($AV121:AV121),0)+IF(RIGHT(BR$39,2)>RIGHT($K121,2),AV121,0)) -> 0 | BS121: =+IF($K121="Ongoing",AW121,IF(RIGHT($K121,2)=RIGHT(BS$39,2),SUM($AV121:AW121),0)+IF(RIGHT(BS$39,2)>RIGHT($K121,2),AW121,0)) -> 0 | BT121: =+IF($K121="Ongoing",AX121,IF(RIGHT($K121,2)=RIGHT(BT$39,2),SUM($AV121:AX121),0)+IF(RIGHT(BT$39,2)>RIGHT($K121,2),AX121,0)) -> 0 | BU121: =+IF($K121="Ongoing",AY121,IF(RIGHT($K121,2)=RIGHT(BU$39,2),SUM($AV121:AY121),0)+IF(RIGHT(BU$39,2)>RIGHT($K121,2),AY121,0)) -> 0 | BV121: =+IF($K121="Ongoing",AZ121,IF(RIGHT($K121,2)=RIGHT(BV$39,2),SUM($AV121:AZ121),0)+IF(RIGHT(BV$39,2)>RIGHT($K121,2),AZ121,0)) -> 0 | BW121: =+IF($K121="Ongoing",BA121,IF(RIGHT($K121,2)=RIGHT(BW$39,2),SUM($AV121:BA121),0)+IF(RIGHT(BW$39,2)>RIGHT($K121,2),BA121,0)) -> 0 | BX121: =+IF($K121="Ongoing",BB121,IF(RIGHT($K121,2)=RIGHT(BX$39,2),SUM($AV121:BB121),0)+IF(RIGHT(BX$39,2)>RIGHT($K121,2),BB121,0)) -> 0 | BY121: =+IF($K121="Ongoing",BC121,IF(RIGHT($K121,2)=RIGHT(BY$39,2),SUM($AV121:BC121),0)+IF(RIGHT(BY$39,2)>RIGHT($K121,2),BC121,0)) -> 0 | BZ121: =+IF($K121="Ongoing",BD121,IF(RIGHT($K121,2)=RIGHT(BZ$39,2),SUM($AV121:BD121),0)+IF(RIGHT(BZ$39,2)>RIGHT($K121,2),BD121,0)) -> 0 | CA121: =+IF($K121="Ongoing",BE121,IF(RIGHT($K121,2)=RIGHT(CA$39,2),SUM($AV121:BE121),0)+IF(RIGHT(CA$39,2)>RIGHT($K121,2),BE121,0)) -> 0 | CC121: =+O121*KeyAssumptionsPriceControl_FO!X$15 -> 0 | CD121: =+P121*KeyAssumptionsPriceControl_FO!Y$15 -> 0 | CE121: =+Q121*KeyAssumptionsPriceControl_FO!Z$15 -> 0 | CF121: =+R121*KeyAssumptionsPriceControl_FO!AA$15 -> 0 | CG121: =+S121*KeyAssumptionsPriceControl_FO!AB$15 -> 0 | CH121: =+T121*KeyAssumptionsPriceControl_FO!AC$15 -> 0 | CI121: =+U121*KeyAssumptionsPriceControl_FO!AD$15 -> 0 | CJ121: =+V121*KeyAssumptionsPriceControl_FO!AE$15 -> 0 | CK121: =+W121*KeyAssumptionsPriceControl_FO!AF$15 -> 0 | CL121: =+X121*KeyAssumptionsPriceControl_FO!AG$15 -> 0 | CN121: 0 | CO121: 0 | CP121: 0 | CQ121: 0 | CR121: =IF($M121=0,0, IF($M121<=0.5,CG121, IF(AND($J121="straight line",$M121<1.51),(CF121-((CF121/$M121)*0.5))+CG121/$M121*0.5, IF($J121="straight line", IF((LEFT(CR$39,4)*1)-INT($M121)<LEFT($CN$39,4)*1,0,((OFFSET(CG121,0,-INT($M121+0.5),1,1))/$M121)*(IF($M121-INT($M121)>0.5,$M121-0.5-INT($M121),IF($M121-INT($M121)<=0.5,$M121-0.5-INT($M121)+1,0)))) +CG121/$M121*0.5 +SUM(OFFSET(CG121,0,MAX(-INT($M121+(0.5-(10^-12))),-CR$40)+1,1,MIN(INT($M121+(0.5-(10^-12))),CR$40)-1))*1/$M121, IF($J121="Declining Balance",-$CN$38,0))))) -> 0 | CS121: 0 | CT121: 0 | CU121: 0 | CV121: 0 | CW121: 0
C122: [Capex Item - Significant Project / Capital Program / Other Capex] | E122: [Service] | F122: [Major Cost Driver] | G122: [Asset category] | H122: [Capital type] | J122: Straight line | K122: [Year finalised?] | AV122: 0 | AW122: 0 | AX122: 0 | AY122: 0 | AZ122: 0 | BA122: 0 | BB122: 0 | BC122: 0 | BD122: 0 | BE122: 0 | BG122: 0 | BH122: =IF($L122=0,0, IF($L122<=0.5,BS122, IF(AND($J122="straight line",$L122<1.51),(BR122-((BR122/$L122)*0.5))+BS122/$L122*0.5, IF($J122="straight line", IF((LEFT(BH$39,4)*1)-INT($L122)<LEFT($BG$39,4)*1,0,((OFFSET(BS122,0,-INT($L122+0.5),1,1))/$L122)*(IF($L122-INT($L122)>0.5,$L122-0.5-INT($L122),IF($L122-INT($L122)<=0.5,$L122-0.5-INT($L122)+1,0)))) +BS122/$L122*0.5 +SUM(OFFSET(BS122,0,MAX(-INT($L122+(0.5-(10^-12))),-BH$40)+1,1,MIN(INT($L122+(0.5-(10^-12))),BH$40)-1))*1/$L122, IF($J122="Declining Balance",-$BG$38,0))))) -> 0 | BI122: 0 | BJ122: 0 | BK122: 0 | BL122: 0 | BM122: 0 | BN122: 0 | BO122: 0 | BP122: 0 | BR122: =+IF($K122="Ongoing",AV122,IF(RIGHT($K122,2)=RIGHT(BR$39,2),SUM($AV122:AV122),0)+IF(RIGHT(BR$39,2)>RIGHT($K122,2),AV122,0)) -> 0 | BS122: =+IF($K122="Ongoing",AW122,IF(RIGHT($K122,2)=RIGHT(BS$39,2),SUM($AV122:AW122),0)+IF(RIGHT(BS$39,2)>RIGHT($K122,2),AW122,0)) -> 0 | BT122: =+IF($K122="Ongoing",AX122,IF(RIGHT($K122,2)=RIGHT(BT$39,2),SUM($AV122:AX122),0)+IF(RIGHT(BT$39,2)>RIGHT($K122,2),AX122,0)) -> 0 | BU122: =+IF($K122="Ongoing",AY122,IF(RIGHT($K122,2)=RIGHT(BU$39,2),SUM($AV122:AY122),0)+IF(RIGHT(BU$39,2)>RIGHT($K122,2),AY122,0)) -> 0 | BV122: =+IF($K122="Ongoing",AZ122,IF(RIGHT($K122,2)=RIGHT(BV$39,2),SUM($AV122:AZ122),0)+IF(RIGHT(BV$39,2)>RIGHT($K122,2),AZ122,0)) -> 0 | BW122: =+IF($K122="Ongoing",BA122,IF(RIGHT($K122,2)=RIGHT(BW$39,2),SUM($AV122:BA122),0)+IF(RIGHT(BW$39,2)>RIGHT($K122,2),BA122,0)) -> 0 | BX122: =+IF($K122="Ongoing",BB122,IF(RIGHT($K122,2)=RIGHT(BX$39,2),SUM($AV122:BB122),0)+IF(RIGHT(BX$39,2)>RIGHT($K122,2),BB122,0)) -> 0 | BY122: =+IF($K122="Ongoing",BC122,IF(RIGHT($K122,2)=RIGHT(BY$39,2),SUM($AV122:BC122),0)+IF(RIGHT(BY$39,2)>RIGHT($K122,2),BC122,0)) -> 0 | BZ122: =+IF($K122="Ongoing",BD122,IF(RIGHT($K122,2)=RIGHT(BZ$39,2),SUM($AV122:BD122),0)+IF(RIGHT(BZ$39,2)>RIGHT($K122,2),BD122,0)) -> 0 | CA122: =+IF($K122="Ongoing",BE122,IF(RIGHT($K122,2)=RIGHT(CA$39,2),SUM($AV122:BE122),0)+IF(RIGHT(CA$39,2)>RIGHT($K122,2),BE122,0)) -> 0 | CC122: =+O122*KeyAssumptionsPriceControl_FO!X$15 -> 0 | CD122: =+P122*KeyAssumptionsPriceControl_FO!Y$15 -> 0 | CE122: =+Q122*KeyAssumptionsPriceControl_FO!Z$15 -> 0 | CF122: =+R122*KeyAssumptionsPriceControl_FO!AA$15 -> 0 | CG122: =+S122*KeyAssumptionsPriceControl_FO!AB$15 -> 0 | CH122: =+T122*KeyAssumptionsPriceControl_FO!AC$15 -> 0 | CI122: =+U122*KeyAssumptionsPriceControl_FO!AD$15 -> 0 | CJ122: =+V122*KeyAssumptionsPriceControl_FO!AE$15 -> 0 | CK122: =+W122*KeyAssumptionsPriceControl_FO!AF$15 -> 0 | CL122: =+X122*KeyAssumptionsPriceControl_FO!AG$15 -> 0 | CN122: 0 | CO122: =IF($M122=0,0, IF($M122<=0.5,CD122, IF(AND($J122="straight line",$M122<1.51),(CC122-((CC122/$M122)*0.5))+CD122/$M122*0.5, IF($J122="straight line", IF((LEFT(CO$39,4)*1)-INT($M122)<LEFT($CN$39,4)*1,0,((OFFSET(CD122,0,-INT($M122+0.5),1,1))/$M122)*(IF($M122-INT($M122)>0.5,$M122-0.5-INT($M122),IF($M122-INT($M122)<=0.5,$M122-0.5-INT($M122)+1,0)))) +CD122/$M122*0.5 +SUM(OFFSET(CD122,0,MAX(-INT($M122+(0.5-(10^-12))),-CO$40)+1,1,MIN(INT($M122+(0.5-(10^-12))),CO$40)-1))*1/$M122, IF($J122="Declining Balance",-$CN$38,0))))) -> 0 | CP122: 0 | CQ122: 0 | CR122: 0 | CS122: 0 | CT122: 0 | CU122: 0 | CV122: 0 | CW122: 0
C123: [Capex Item - Significant Project / Capital Program / Other Capex] | E123: [Service] | F123: [Major Cost Driver] | G123: [Asset category] | H123: [Capital type] | J123: Straight line | K123: [Year finalised?] | AV123: 0 | AW123: 0 | AX123: 0 | AY123: 0 | AZ123: 0 | BA123: 0 | BB123: 0 | BC123: 0 | BD123: 0 | BE123: 0 | BG123: 0 | BH123: 0 | BI123: 0 | BJ123: 0 | BK123: 0 | BL123: 0 | BM123: 0 | BN123: 0 | BO123: 0 | BP123: 0 | BR123: =+IF($K123="Ongoing",AV123,IF(RIGHT($K123,2)=RIGHT(BR$39,2),SUM($AV123:AV123),0)+IF(RIGHT(BR$39,2)>RIGHT($K123,2),AV123,0)) -> 0 | BS123: =+IF($K123="Ongoing",AW123,IF(RIGHT($K123,2)=RIGHT(BS$39,2),SUM($AV123:AW123),0)+IF(RIGHT(BS$39,2)>RIGHT($K123,2),AW123,0)) -> 0 | BT123: =+IF($K123="Ongoing",AX123,IF(RIGHT($K123,2)=RIGHT(BT$39,2),SUM($AV123:AX123),0)+IF(RIGHT(BT$39,2)>RIGHT($K123,2),AX123,0)) -> 0 | BU123: =+IF($K123="Ongoing",AY123,IF(RIGHT($K123,2)=RIGHT(BU$39,2),SUM($AV123:AY123),0)+IF(RIGHT(BU$39,2)>RIGHT($K123,2),AY123,0)) -> 0 | BV123: =+IF($K123="Ongoing",AZ123,IF(RIGHT($K123,2)=RIGHT(BV$39,2),SUM($AV123:AZ123),0)+IF(RIGHT(BV$39,2)>RIGHT($K123,2),AZ123,0)) -> 0 | BW123: =+IF($K123="Ongoing",BA123,IF(RIGHT($K123,2)=RIGHT(BW$39,2),SUM($AV123:BA123),0)+IF(RIGHT(BW$39,2)>RIGHT($K123,2),BA123,0)) -> 0 | BX123: =+IF($K123="Ongoing",BB123,IF(RIGHT($K123,2)=RIGHT(BX$39,2),SUM($AV123:BB123),0)+IF(RIGHT(BX$39,2)>RIGHT($K123,2),BB123,0)) -> 0 | BY123: =+IF($K123="Ongoing",BC123,IF(RIGHT($K123,2)=RIGHT(BY$39,2),SUM($AV123:BC123),0)+IF(RIGHT(BY$39,2)>RIGHT($K123,2),BC123,0)) -> 0 | BZ123: =+IF($K123="Ongoing",BD123,IF(RIGHT($K123,2)=RIGHT(BZ$39,2),SUM($AV123:BD123),0)+IF(RIGHT(BZ$39,2)>RIGHT($K123,2),BD123,0)) -> 0 | CA123: =+IF($K123="Ongoing",BE123,IF(RIGHT($K123,2)=RIGHT(CA$39,2),SUM($AV123:BE123),0)+IF(RIGHT(CA$39,2)>RIGHT($K123,2),BE123,0)) -> 0 | CC123: =+O123*KeyAssumptionsPriceControl_FO!X$15 -> 0 | CD123: =+P123*KeyAssumptionsPriceControl_FO!Y$15 -> 0 | CE123: =+Q123*KeyAssumptionsPriceControl_FO!Z$15 -> 0 | CF123: =+R123*KeyAssumptionsPriceControl_FO!AA$15 -> 0 | CG123: =+S123*KeyAssumptionsPriceControl_FO!AB$15 -> 0 | CH123: =+T123*KeyAssumptionsPriceControl_FO!AC$15 -> 0 | CI123: =+U123*KeyAssumptionsPriceControl_FO!AD$15 -> 0 | CJ123: =+V123*KeyAssumptionsPriceControl_FO!AE$15 -> 0 | CK123: =+W123*KeyAssumptionsPriceControl_FO!AF$15 -> 0 | CL123: =+X123*KeyAssumptionsPriceControl_FO!AG$15 -> 0 | CN123: 0 | CO123: 0 | CP123: 0 | CQ123: 0 | CR123: 0 | CS123: 0 | CT123: 0 | CU123: 0 | CV123: 0 | CW123: 0
C124: [Capex Item - Significant Project / Capital Program / Other Capex] | E124: [Service] | F124: [Major Cost Driver] | G124: [Asset category] | H124: [Capital type] | J124: Straight line | K124: [Year finalised?] | AV124: 0 | AW124: 0 | AX124: 0 | AY124: 0 | AZ124: 0 | BA124: 0 | BB124: 0 | BC124: 0 | BD124: 0 | BE124: 0 | BG124: 0 | BH124: 0 | BI124: 0 | BJ124: 0 | BK124: 0 | BL124: 0 | BM124: 0 | BN124: 0 | BO124: 0 | BP124: 0 | BR124: =+IF($K124="Ongoing",AV124,IF(RIGHT($K124,2)=RIGHT(BR$39,2),SUM($AV124:AV124),0)+IF(RIGHT(BR$39,2)>RIGHT($K124,2),AV124,0)) -> 0 | BS124: =+IF($K124="Ongoing",AW124,IF(RIGHT($K124,2)=RIGHT(BS$39,2),SUM($AV124:AW124),0)+IF(RIGHT(BS$39,2)>RIGHT($K124,2),AW124,0)) -> 0 | BT124: =+IF($K124="Ongoing",AX124,IF(RIGHT($K124,2)=RIGHT(BT$39,2),SUM($AV124:AX124),0)+IF(RIGHT(BT$39,2)>RIGHT($K124,2),AX124,0)) -> 0 | BU124: =+IF($K124="Ongoing",AY124,IF(RIGHT($K124,2)=RIGHT(BU$39,2),SUM($AV124:AY124),0)+IF(RIGHT(BU$39,2)>RIGHT($K124,2),AY124,0)) -> 0 | BV124: =+IF($K124="Ongoing",AZ124,IF(RIGHT($K124,2)=RIGHT(BV$39,2),SUM($AV124:AZ124),0)+IF(RIGHT(BV$39,2)>RIGHT($K124,2),AZ124,0)) -> 0 | BW124: =+IF($K124="Ongoing",BA124,IF(RIGHT($K124,2)=RIGHT(BW$39,2),SUM($AV124:BA124),0)+IF(RIGHT(BW$39,2)>RIGHT($K124,2),BA124,0)) -> 0 | BX124: =+IF($K124="Ongoing",BB124,IF(RIGHT($K124,2)=RIGHT(BX$39,2),SUM($AV124:BB124),0)+IF(RIGHT(BX$39,2)>RIGHT($K124,2),BB124,0)) -> 0 | BY124: =+IF($K124="Ongoing",BC124,IF(RIGHT($K124,2)=RIGHT(BY$39,2),SUM($AV124:BC124),0)+IF(RIGHT(BY$39,2)>RIGHT($K124,2),BC124,0)) -> 0 | BZ124: =+IF($K124="Ongoing",BD124,IF(RIGHT($K124,2)=RIGHT(BZ$39,2),SUM($AV124:BD124),0)+IF(RIGHT(BZ$39,2)>RIGHT($K124,2),BD124,0)) -> 0 | CA124: =+IF($K124="Ongoing",BE124,IF(RIGHT($K124,2)=RIGHT(CA$39,2),SUM($AV124:BE124),0)+IF(RIGHT(CA$39,2)>RIGHT($K124,2),BE124,0)) -> 0 | CC124: =+O124*KeyAssumptionsPriceControl_FO!X$15 -> 0 | CD124: =+P124*KeyAssumptionsPriceControl_FO!Y$15 -> 0 | CE124: =+Q124*KeyAssumptionsPriceControl_FO!Z$15 -> 0 | CF124: =+R124*KeyAssumptionsPriceControl_FO!AA$15 -> 0 | CG124: =+S124*KeyAssumptionsPriceControl_FO!AB$15 -> 0 | CH124: =+T124*KeyAssumptionsPriceControl_FO!AC$15 -> 0 | CI124: =+U124*KeyAssumptionsPriceControl_FO!AD$15 -> 0 | CJ124: =+V124*KeyAssumptionsPriceControl_FO!AE$15 -> 0 | CK124: =+W124*KeyAssumptionsPriceControl_FO!AF$15 -> 0 | CL124: =+X124*KeyAssumptionsPriceControl_FO!AG$15 -> 0 | CN124: 0 | CO124: 0 | CP124: 0 | CQ124: 0 | CR124: 0 | CS124: 0 | CT124: 0 | CU124: 0 | CV124: 0 | CW124: 0
C125: [Capex Item - Significant Project / Capital Program / Other Capex] | E125: [Service] | F125: [Major Cost Driver] | G125: [Asset category] | H125: [Capital type] | J125: Straight line | K125: [Year finalised?] | AV125: 0 | AW125: 0 | AX125: 0 | AY125: 0 | AZ125: 0 | BA125: 0 | BB125: 0 | BC125: 0 | BD125: 0 | BE125: 0 | BG125: 0 | BH125: 0 | BI125: 0 | BJ125: 0 | BK125: 0 | BL125: 0 | BM125: 0 | BN125: 0 | BO125: 0 | BP125: 0 | BR125: =+IF($K125="Ongoing",AV125,IF(RIGHT($K125,2)=RIGHT(BR$39,2),SUM($AV125:AV125),0)+IF(RIGHT(BR$39,2)>RIGHT($K125,2),AV125,0)) -> 0 | BS125: =+IF($K125="Ongoing",AW125,IF(RIGHT($K125,2)=RIGHT(BS$39,2),SUM($AV125:AW125),0)+IF(RIGHT(BS$39,2)>RIGHT($K125,2),AW125,0)) -> 0 | BT125: =+IF($K125="Ongoing",AX125,IF(RIGHT($K125,2)=RIGHT(BT$39,2),SUM($AV125:AX125),0)+IF(RIGHT(BT$39,2)>RIGHT($K125,2),AX125,0)) -> 0 | BU125: =+IF($K125="Ongoing",AY125,IF(RIGHT($K125,2)=RIGHT(BU$39,2),SUM($AV125:AY125),0)+IF(RIGHT(BU$39,2)>RIGHT($K125,2),AY125,0)) -> 0 | BV125: =+IF($K125="Ongoing",AZ125,IF(RIGHT($K125,2)=RIGHT(BV$39,2),SUM($AV125:AZ125),0)+IF(RIGHT(BV$39,2)>RIGHT($K125,2),AZ125,0)) -> 0 | BW125: =+IF($K125="Ongoing",BA125,IF(RIGHT($K125,2)=RIGHT(BW$39,2),SUM($AV125:BA125),0)+IF(RIGHT(BW$39,2)>RIGHT($K125,2),BA125,0)) -> 0 | BX125: =+IF($K125="Ongoing",BB125,IF(RIGHT($K125,2)=RIGHT(BX$39,2),SUM($AV125:BB125),0)+IF(RIGHT(BX$39,2)>RIGHT($K125,2),BB125,0)) -> 0 | BY125: =+IF($K125="Ongoing",BC125,IF(RIGHT($K125,2)=RIGHT(BY$39,2),SUM($AV125:BC125),0)+IF(RIGHT(BY$39,2)>RIGHT($K125,2),BC125,0)) -> 0 | BZ125: =+IF($K125="Ongoing",BD125,IF(RIGHT($K125,2)=RIGHT(BZ$39,2),SUM($AV125:BD125),0)+IF(RIGHT(BZ$39,2)>RIGHT($K125,2),BD125,0)) -> 0 | CA125: =+IF($K125="Ongoing",BE125,IF(RIGHT($K125,2)=RIGHT(CA$39,2),SUM($AV125:BE125),0)+IF(RIGHT(CA$39,2)>RIGHT($K125,2),BE125,0)) -> 0 | CC125: =+O125*KeyAssumptionsPriceControl_FO!X$15 -> 0 | CD125: =+P125*KeyAssumptionsPriceControl_FO!Y$15 -> 0 | CE125: =+Q125*KeyAssumptionsPriceControl_FO!Z$15 -> 0 | CF125: =+R125*KeyAssumptionsPriceControl_FO!AA$15 -> 0 | CG125: =+S125*KeyAssumptionsPriceControl_FO!AB$15 -> 0 | CH125: =+T125*KeyAssumptionsPriceControl_FO!AC$15 -> 0 | CI125: =+U125*KeyAssumptionsPriceControl_FO!AD$15 -> 0 | CJ125: =+V125*KeyAssumptionsPriceControl_FO!AE$15 -> 0 | CK125: =+W125*KeyAssumptionsPriceControl_FO!AF$15 -> 0 | CL125: =+X125*KeyAssumptionsPriceControl_FO!AG$15 -> 0 | CN125: 0 | CO125: 0 | CP125: 0 | CQ125: 0 | CR125: 0 | CS125: 0 | CT125: 0 | CU125: 0 | CV125: 0 | CW125: 0
C126: [Capex Item - Significant Project / Capital Program / Other Capex] | E126: [Service] | F126: [Major Cost Driver] | G126: [Asset category] | H126: [Capital type] | J126: Straight line | K126: [Year finalised?] | AV126: 0 | AW126: 0 | AX126: 0 | AY126: 0 | AZ126: 0 | BA126: 0 | BB126: 0 | BC126: 0 | BD126: 0 | BE126: 0 | BG126: 0 | BH126: 0 | BI126: 0 | BJ126: 0 | BK126: 0 | BL126: 0 | BM126: 0 | BN126: 0 | BO126: 0 | BP126: 0 | BR126: =+IF($K126="Ongoing",AV126,IF(RIGHT($K126,2)=RIGHT(BR$39,2),SUM($AV126:AV126),0)+IF(RIGHT(BR$39,2)>RIGHT($K126,2),AV126,0)) -> 0 | BS126: =+IF($K126="Ongoing",AW126,IF(RIGHT($K126,2)=RIGHT(BS$39,2),SUM($AV126:AW126),0)+IF(RIGHT(BS$39,2)>RIGHT($K126,2),AW126,0)) -> 0 | BT126: =+IF($K126="Ongoing",AX126,IF(RIGHT($K126,2)=RIGHT(BT$39,2),SUM($AV126:AX126),0)+IF(RIGHT(BT$39,2)>RIGHT($K126,2),AX126,0)) -> 0 | BU126: =+IF($K126="Ongoing",AY126,IF(RIGHT($K126,2)=RIGHT(BU$39,2),SUM($AV126:AY126),0)+IF(RIGHT(BU$39,2)>RIGHT($K126,2),AY126,0)) -> 0 | BV126: =+IF($K126="Ongoing",AZ126,IF(RIGHT($K126,2)=RIGHT(BV$39,2),SUM($AV126:AZ126),0)+IF(RIGHT(BV$39,2)>RIGHT($K126,2),AZ126,0)) -> 0 | BW126: =+IF($K126="Ongoing",BA126,IF(RIGHT($K126,2)=RIGHT(BW$39,2),SUM($AV126:BA126),0)+IF(RIGHT(BW$39,2)>RIGHT($K126,2),BA126,0)) -> 0 | BX126: =+IF($K126="Ongoing",BB126,IF(RIGHT($K126,2)=RIGHT(BX$39,2),SUM($AV126:BB126),0)+IF(RIGHT(BX$39,2)>RIGHT($K126,2),BB126,0)) -> 0 | BY126: =+IF($K126="Ongoing",BC126,IF(RIGHT($K126,2)=RIGHT(BY$39,2),SUM($AV126:BC126),0)+IF(RIGHT(BY$39,2)>RIGHT($K126,2),BC126,0)) -> 0 | BZ126: =+IF($K126="Ongoing",BD126,IF(RIGHT($K126,2)=RIGHT(BZ$39,2),SUM($AV126:BD126),0)+IF(RIGHT(BZ$39,2)>RIGHT($K126,2),BD126,0)) -> 0 | CA126: =+IF($K126="Ongoing",BE126,IF(RIGHT($K126,2)=RIGHT(CA$39,2),SUM($AV126:BE126),0)+IF(RIGHT(CA$39,2)>RIGHT($K126,2),BE126,0)) -> 0 | CC126: =+O126*KeyAssumptionsPriceControl_FO!X$15 -> 0 | CD126: =+P126*KeyAssumptionsPriceControl_FO!Y$15 -> 0 | CE126: =+Q126*KeyAssumptionsPriceControl_FO!Z$15 -> 0 | CF126: =+R126*KeyAssumptionsPriceControl_FO!AA$15 -> 0 | CG126: =+S126*KeyAssumptionsPriceControl_FO!AB$15 -> 0 | CH126: =+T126*KeyAssumptionsPriceControl_FO!AC$15 -> 0 | CI126: =+U126*KeyAssumptionsPriceControl_FO!AD$15 -> 0 | CJ126: =+V126*KeyAssumptionsPriceControl_FO!AE$15 -> 0 | CK126: =+W126*KeyAssumptionsPriceControl_FO!AF$15 -> 0 | CL126: =+X126*KeyAssumptionsPriceControl_FO!AG$15 -> 0 | CN126: 0 | CO126: 0 | CP126: 0 | CQ126: 0 | CR126: 0 | CS126: 0 | CT126: 0 | CU126: 0 | CV126: 0 | CW126: 0
